{"text_format":"1","workbook":"xlsx","n_sheets":11,"sheets":["Introduction","Activity Data","Settings","Summary","Revisions","Reference - Custom Messages","Reference - Lookup and Unit","Reference - EF Fuel Use","Reference - EF Road","Reference - EF Freight","Reference - EF Public"],"not_rendered":{"charts":2,"images":4,"macros":1,"external_links":0,"defined_names":123,"comments":7,"pivot_tables":0},"unopened":[],"bounds":{"document_bytes":16777216,"sheet_cells":100000,"rows_first":2000,"rows_last":500,"rows_between":2000,"halvings":0,"cell_chars":16384,"cell_head_chars":4096},"cells_cut":0,"cells_raw":0,"read":"whole","date_system":"1900"}

{"sheet":"Introduction","index":0,"n_rows":18,"n_cols":9,"rows_kept":18,"cut":false,"hidden":false,"merged":[[17,6,30,12],[13,6,15,12],[1,8,5,12],[9,1,9,12],[8,7,8,12],[8,1,8,6]]}
[]
[null,null,null,null,null,null,null,null,"Mobile Combustion\nGHG Emissions Calculation Tool\nVersion 2.6"]
[]
[]
[]
[]
[null,"Introduction"]
[]
[null,"This tool calculates the CO2, CH4 and N2O emissions from:\n\n     n Vehicles that are owned/controlled by you, including freight lorries.\n     n Public transport by road, rail, air and water.\n     n Mobile machinery, such as agricultural and construction equipment.",null,null,null,null,null,"The tool uses default emission factors, which vary by country. Currently, separate sets of emission factors are available for the UK and US. For other countries, if more specific emission factors are not available, companies should select the ‘Other’ category. This category uses either global default values or UK-specific values -- it will therefore lead to less accurate calculations. On the settings tab, users can supply custom emission factors or adjust the default global warming potentials."]
[null,"What data do I need?\n\nFuel use data are most accurate for calculating CO2 emissions, while distance-traveled data are most accurate for calculating CH4 and N2O emissions. So, for non-public transport sources, the recommended approach is to provide both fuel use and distance data. Where one type of data is unavailable, the tool uses fuel economy information (where available) to convert between these data types. Because CO2 contributes most to GHG emissions (>95%), companies should first strive to improve their fuel use records.\n\nPlease note that the emission from on-road freight transport can be calculated using vehicle distance or weight-distance data."]
[]
[null,"Start Here",null,null,null,null,"Notes"]
[]
[null,"Select the action that you'd like to perform below:",null,null,null,null,"Multipliers or other corrections to account for radiative forcing may be applied to the GWP of emissions arising from aircraft transport. If  used, this should be documented in the inventory report."]
[]
[]
[]
[null,null,null,null,null,null,"The emission factors used in this tool come from the UK Dept. for Environment, Food and Rural Affairs (DEFRA), the US Environmental Protection Agency (EPA) and the Intergovernmental Panel on Climate Change’s (IPCC) 2006 Guidelines for National Greenhouse Gas Inventories. The tool was developed by Clear Standards Inc. in collaboration with WRI.\n\nPlease cite this tool using the following format:\nWorld Resources Institute (2015). GHG Protocol tool for mobile combustion. Version 2.6.\n\nWhile the worksheets are largely self explanatory, for questions or suggestions on its contents, please contact the GHG Protocol at: ghgquestions@wri.org\n\nOther tools can be downloaded from the GHG Protocol website.\n"]

{"sheet":"Activity Data","index":1,"n_rows":115,"n_cols":96,"rows_kept":115,"cut":false,"hidden":false,"merged":[[8,95,9,95],[8,16,8,20],[5,3,6,7],[8,94,9,94],[8,93,9,93],[8,35,9,35],[8,36,9,36],[8,37,9,37],[8,43,9,43],[8,1,9,1],[8,2,9,2],[8,4,9,4],[8,3,9,3],[8,44,9,44],[8,41,9,41],[8,42,9,42],[8,33,9,33],[8,34,9,34],[8,40,9,40],[8,39,9,39],[8,38,9,38],[8,15,9,15],[8,7,8,14],[8,5,9,5],[111,2,111,7],[1,7,2,7],[3,7,4,7],[1,8,2,8],[3,8,4,8],[8,6,9,6]]}
[]
[null,null,null,null,null,null,null,"Total GHG Emissions, exclude Biofuel CO2\n(metric tonnes CO2e)",{"$f":"Ref_Total_Emission","v":0}]
[]
[null,null,null,null,null,null,null,"Biofuel CO2 Emissions\n(metric tonnes)",{"$f":"Ref_Total_Emission_Biomass","v":0}]
[]
[null,null,null,"The default emission factors are sourced from the US EPA Climate Leaders program or from the UK DEFRA (for air travel only)."]
[null,"Activity Data"]
[]
[null,"Status","Source Description","Region","Mode of Transport","Scope","Type of Activity Data","Activity Data",null,null,null,null,null,null,null,"Error Messages","GHG Emissions",null,null,null,null,null,null,null,null,null,null,null,null,null,null,null,null,"CO2 in Factor Unit Conversion -Numerator","CO2 in Factor Unit Conversion -Denominator","CO2 Biomass in Factor Unit Conversion -Numerator","CO2 Biomass in Factor Unit  Conversion -Denominator","CH4 in Factor Unit Conversion -Numerator","CH4 in Factor Unit  Conversion -Denominator","N2O in Factor Unit Conversion -Numerator","N2O in Factor Unit Conversion -Denominator","CO2 IPCC GWP Values","CH4IPCC GWP Values","N20 IPCC GWP Values","CO2Bio IPCC GWP Values",null,null,null,null,null,null,"Scope 1","Scope 1","Scope 1","Scope 1","Scope 1","Scope 1","Scope 3","Scope 3","Scope 3","Scope 3","Scope 3","Scope 3","All Scope","All Scope","Scope 1","Scope 1","Scope 1","Scope 1","Scope 1","Scope 1","Scope 1","Scope 1","Scope 1","Scope 1","Scope 1","Scope 1","Scope 3","Scope 3","Scope 3","Scope 3","Scope 3","Scope 3","Scope 3","Scope 3","Scope 3","Scope 3","Scope 3","Scope 3","All Scope","All Scope","All Scope","All Scope","Vehicle Unit dropdown","Partial formual to calculate total GHG emissions","Type of activitydata"]
[null,null,null,null,null,null,null,"Vehicle Type (For air transport, see footnote)","Distance Travelled","Total Weight of Freight","# of Passenger","Units of Measurement","Fuel Used","Fuel Amount","Unit of Fuel Amount",null,"Fossil Fuel CO2\n(metric tonnes)","CH4\n(kilograms)","N2O\n(kilograms)","Total GHG Emissions, exclude Biofuel CO2\n(metric tonnes CO2e)","Biofuel CO2 Emissions\n(metric tonnes)","CO2 Factor","CO2 Factor Unit - Numerator","CO2 Factor Unit - Denominator","CO2 Biomass Factor","CO2 Biomass Factor Unit - Numerator","CO2 Biomass Factor Unit - Denominator","CH4 Factor","CH4 Factor Unit - Numerator","CH4 Factor Unit - Denominator","N2O Factor","N2O Factor Unit - Numerator","N2O Factor Unit - Denominator",null,null,null,null,null,null,null,null,null,null,null,null,"Formula for Vehical dropdown","Sub formula for CO2 Emission factors calulations","Sub formula for CO2 Emission factors calulations","Sub formula for CO2 Emission factors calulations","Sub formula for BioFuel Emission factors calulations","If range exist","CO2 Factor Fuel Use","CO2 Factor Distance Use","CH4 Factor Fuel Use","CH4 Factor Distance Use","N2O Factor Fuel Use","N2O Factor Distance Use","CO2 Factor Fuel Use","CO2 Factor Distance Use","CH4 Factor Fuel Use","CH4 Factor Distance Use","N2O Factor Fuel Use","N2O Factor Distance Use","BioFuel CO2 Factor Fuel Use","BioFuel CO2 Factor Distance use","CO2 For Road","CO2 For Rail","CO2 For Water","CO2 For Aircraft","CH4 For Road","CH4 For Rail","CH4 For Water","CH4 For Aircraft","N2O For Road","N2O For Rail","N2O For Water","N2O For Aircraft","CO2 For Road","CO2 For Rail","CO2 For Water","CO2 For Aircraft","CH4 For Road","CH4 For Rail","CH4 For Water","CH4 For Aircraft","N2O For Road","N2O For Rail","N2O For Water","N2O For Aircraft","BioFuel CO2 Raod","BioFuel CO2 Rail","BioFuel CO2 Water","BioFuel CO2 Aircraft"]
[null,null,null,null,null,null,null,null,null,null,null,null,null,null,null," ",{"$f":"IF(ISERROR(IF(OR($CR11=\"Fuel Use\",$CR11=\"Custom Fuel\",$CR11=\"Fuel Use and Vehicle Distance\"),($N11*$V11*$AH11*$AI11),IF($CR11=\"Weight Distance (e.g. Freight Transport)\",($I11*$J11*$V11*$AH11*$AI11),IF($CR11=\"Passenger Distance (e.g. Public Transport)\",($I11*$K11*$V11*$AH11*$AI11),($I11*$V11*$AH11*$AI11))))),\"\",IF(OR($CR11=\"Fuel Use\",$CR11=\"Custom Fuel\",$CR11=\"Fuel Use and Vehicle Distance\"),($N11*$V11*$AH11*$AI11),IF($CR11=\"Weight Distance (e.g. Freight Transport)\",($I11*$J11*$V11*$AH11*$AI11),IF($CR11=\"Passenger Distance (e.g. Public Transport)\",($I11*$K11*$V11*$AH11*$AI11),($I11*$V11*$AH11*$AI11)))))","v":""},{"$f":"IF(ISERROR(IF($CR11=\"Weight Distance (e.g. Freight Transport)\",($I11*$J11*$AB11*$AL11*$AM11*1000),IF(OR($CR11=\"Fuel Use\",$CR11=\"Custom Fuel\"),($N11*$AB11*$AL11*$AM11*1000),IF($CR11=\"Passenger Distance (e.g. Public Transport)\",($I11*$AB11*$K11*$AL11*$AM11*1000),($I11*$AB11*$AL11*$AM11*1000))))),\"\",IF($CR11=\"Weight Distance (e.g. Freight Transport)\",($I11*$J11*$AB11*$AL11*$AM11*1000),IF(OR($CR11=\"Fuel Use\",$CR11=\"Custom Fuel\"),($N11*$AB11*$AL11*$AM11*1000),IF($CR11=\"Passenger Distance (e.g. Public Transport)\",($I11*$AB11*$K11*$AL11*$AM11*1000),($I11*$AB11*$AL11*$AM11*1000)))))","v":""},{"$f":"IF(ISERROR(IF($CR11=\"Weight Distance (e.g. Freight Transport)\",($I11*$J11*$AE11*$AN11*$AO11*1000),IF(OR($CR11=\"Fuel Use\",$CR11=\"Custom Fuel\"),($N11*$AE11*$AN11*$AO11*1000),IF($CR11=\"Passenger Distance (e.g. Public Transport)\",($I11*$AE11*$AN11*$K11*$AO11*1000),($I11*$AE11*$AN11*$AO11*1000))))),\"\",IF($CR11=\"Weight Distance (e.g. Freight Transport)\",($I11*$J11*$AE11*$AN11*$AO11*1000),IF(OR($CR11=\"Fuel Use\",$CR11=\"Custom Fuel\"),($N11*$AE11*$AN11*$AO11*1000),IF($CR11=\"Passenger Distance (e.g. Public Transport)\",($I11*$AE11*$AN11*$K11*$AO11*1000),($I11*$AE11*$AN11*$AO11*1000)))))","v":""},{"$f":"IF(AND(ISERROR($Q11*$AP11)=FALSE,ISERROR((R11/1000)*$AQ11)=FALSE,ISERROR((S11/1000)*$AR11)=FALSE),($Q11*$AP11)+((R11/1000)*$AQ11)+((S11/1000)*$AR11),IF(AND(ISERROR($Q11*$AP11)=FALSE,ISERROR((R11/1000)*$AQ11)=FALSE,ISERROR((S11/1000)*$AR11)=TRUE),($Q11*$AP11)+((R11/1000)*$AQ11),IF(AND(ISERROR($Q11*$AP11)=FALSE,ISERROR((R11/1000)*$AQ11)=TRUE,ISERROR((S11/1000)*$AR11)=FALSE),($Q11*$AP11)+((S11/1000)*$AR11),IF(AND(ISERROR($Q11*$AP11)=FALSE,ISERROR((R11/1000)*$AQ11)=TRUE,ISERROR((S11/1000)*$AR11)=TRUE),($Q11*$AP11),IF(AND(ISERROR($Q11*$AP11)=TRUE,ISERROR((R11/1000)*$AQ11)=FALSE,ISERROR((S11/1000)*$AR11)=FALSE),((R11/1000)*$AQ11)+((S11/1000)*$AR11),IF(AND(ISERROR($Q11*$AP11)=TRUE,ISERROR((R11/1000)*$AQ11)=FALSE,ISERROR((S11/1000)*$AR11)=TRUE),((R11/1000)*$AQ11),CQ11))))))","v":""},{"$f":"IF(ISERROR(IF(OR($CR11=\"Fuel Use\",$CR11=\"Custom Fuel\",$CR11=\"Fuel Use and Vehicle Distance\"),($N11*$Y11*$AJ11*$AK11),IF($CR11=\"Weight Distance (e.g. Freight Transport)\",($I11*$J11*$Y11*$AJ11*$AK11),IF($CR11=\"Passenger Distance (e.g. Public Transport)\",($I11*$Y11*$AJ11*$AK11*$K11),($I11*$Y11*$AJ11*$AK11))))),\"\",IF(OR($CR11=\"Fuel Use\",$CR11=\"Custom Fuel\",$CR11=\"Fuel Use and Vehicle Distance\"),($N11*$Y11*$AJ11*$AK11),IF($CR11=\"Weight Distance (e.g. Freight Transport)\",($I11*$J11*$Y11*$AJ11*$AK11),IF($CR11=\"Passenger Distance (e.g. Public Transport)\",($I11*$Y11*$AJ11*$AK11*$K11),($I11*$Y11*$AJ11*$AK11)))))","v":""},{"$f":"IF(OR($G11=\"Fuel Use\",$G11=\"Fuel Use and Vehicle Distance\"),VLOOKUP($M11,INDIRECT(\"Ref_EF_ByFuel\"&\"_\"&$D11),3,0),IF(AND($G11=\"Vehicle Distance (e.g. Road Transport)\",$D11=\"UK\"),VLOOKUP($H11,Ref_EF_Vehicle_Distance_UK,3,0),IF(AND($G11=\"Vehicle Distance (e.g. Road Transport)\",OR($D11=\"US\",$D11=\"Other\")),VLOOKUP($H11,INDIRECT(\"Ref_EF_Vehicle_Distance\"&\"_\"&$D11),15,0),IF(AND($G11=\"Vehicle Distance (e.g. Road Transport)\",ISBLANK($N11),ISBLANK($O11)),VLOOKUP($H11,INDIRECT(\"Ref_EF_Vehicle_Distance\"&\"_\"&$D11),15,0),IF($G11=\"Weight Distance (e.g. Freight Transport)\",VLOOKUP($H11,INDIRECT(\"Ref_EF_Weight_Distance\"&\"_\"&$D11),3,0),IF($G11=\"Custom Vehicle\",VLOOKUP($H11,Tbl_vehical_Settings,2,0),IF($G11=\"Custom Fuel\",VLOOKUP($M11,Tbl_Fuel_Settings,2,0),$AU11)))))))","v":{"$error":"#REF!"}},{"$f":"IF(OR($G11=\"Fuel Use\",$G11=\"Fuel Use and Vehicle Distance\"),VLOOKUP($M11,INDIRECT(\"Ref_EF_ByFuel\"&\"_\"&$D11),5,0),IF(AND($G11=\"Vehicle Distance (e.g. Road Transport)\",$D11=\"UK\"),VLOOKUP($H11,Ref_EF_Vehicle_Distance_UK,5,0),IF(AND($G11=\"Vehicle Distance (e.g. Road Transport)\",OR($D11=\"US\",$D11=\"Other\")),VLOOKUP($H11,INDIRECT(\"Ref_EF_Vehicle_Distance\"&\"_\"&$D11),17,0),IF(AND($G11=\"Vehicle Distance (e.g. Road Transport)\",ISBLANK($N11),ISBLANK($O11)),VLOOKUP($H11,INDIRECT(\"Ref_EF_Vehicle_Distance\"&\"_\"&$D11),17,0),IF($G11=\"Weight Distance (e.g. Freight Transport)\",VLOOKUP($H11,INDIRECT(\"Ref_EF_Weight_Distance\"&\"_\"&$D11),5,0),IF($G11=\"Custom Vehicle\",VLOOKUP($H11,Tbl_vehical_Settings,6,0),IF($G11=\"Custom Fuel\",VLOOKUP($M11,Tbl_Fuel_Settings,6,0),$AV11)))))))","v":{"$error":"#REF!"}},{"$f":"IF(OR($G11=\"Fuel Use\",$G11=\"Fuel Use and Vehicle Distance\"),VLOOKUP($M11,INDIRECT(\"Ref_EF_ByFuel\"&\"_\"&$D11),6,0),IF(AND($G11=\"Vehicle Distance (e.g. Road Transport)\",$D11=\"UK\"),VLOOKUP($H11,Ref_EF_Vehicle_Distance_UK,6,0),IF(AND($G11=\"Vehicle Distance (e.g. Road Transport)\",OR($D11=\"US\",$D11=\"Other\")),VLOOKUP($H11,INDIRECT(\"Ref_EF_Vehicle_Distance\"&\"_\"&$D11),18,0),IF(AND($G11=\"Vehicle Distance (e.g. Road Transport)\",ISBLANK($N11),ISBLANK($O11)),VLOOKUP($H11,INDIRECT(\"Ref_EF_Vehicle_Distance\"&\"_\"&$D11),18,0),IF($G11=\"Weight Distance (e.g. Freight Transport)\",VLOOKUP($H11,INDIRECT(\"Ref_EF_Weight_Distance\"&\"_\"&$D11),6,0),IF($G11=\"Custom Vehicle\",VLOOKUP($H11,Tbl_vehical_Settings,7,0),IF($G11=\"Custom Fuel\",VLOOKUP($M11,Tbl_Fuel_Settings,7,0),$AW11)))))))","v":{"$error":"#REF!"}},{"$f":"IF(OR($G11=\"Fuel Use\",$G11=\"Fuel Use and Vehicle Distance\"),VLOOKUP($M11,INDIRECT(\"Ref_EF_ByFuel\"&\"_\"&$D11),4,0),IF(AND($G11=\"Vehicle Distance (e.g. Road Transport)\",$D11=\"UK\"),VLOOKUP($H11,Ref_EF_Vehicle_Distance_UK,4,0),IF(AND($G11=\"Vehicle Distance (e.g. Road Transport)\",OR($D11=\"US\",$D11=\"Other\")),VLOOKUP($H11,INDIRECT(\"Ref_EF_Vehicle_Distance\"&\"_\"&$D11),16,0),IF(AND($G11=\"Vehicle Distance (e.g. Road Transport)\",ISBLANK($N11),ISBLANK($O11)),VLOOKUP($H11,INDIRECT(\"Ref_EF_Vehicle_Distance\"&\"_\"&$D11),16,0),IF($G11=\"Weight Distance (e.g. Freight Transport)\",VLOOKUP($H11,INDIRECT(\"Ref_EF_Weight_Distance\"&\"_\"&$D11),4,0),IF($G11=\"Custom Vehicle\",VLOOKUP($H11,Tbl_vehical_Settings,5,0),IF($G11=\"Custom Fuel\",VLOOKUP($M11,Tbl_Fuel_Settings,5,0),$AX11)))))))","v":{"$error":"#REF!"}},{"$f":"IF(OR($G11=\"Fuel Use\",$G11=\"Fuel Use and Vehicle Distance\"),VLOOKUP($M11,INDIRECT(\"Ref_EF_ByFuel\"&\"_\"&$D11),5,0),IF(AND($G11=\"Vehicle Distance (e.g. Road Transport)\",$D11=\"UK\"),VLOOKUP($H11,Ref_EF_Vehicle_Distance_UK,5,0),IF(AND($G11=\"Vehicle Distance (e.g. Road Transport)\",OR($D11=\"US\",$D11=\"Other\")),VLOOKUP($H11,INDIRECT(\"Ref_EF_Vehicle_Distance\"&\"_\"&$D11),17,0),IF(AND($G11=\"Vehicle Distance (e.g. Road Transport)\",ISBLANK($N11),ISBLANK($O11)),VLOOKUP($H11,INDIRECT(\"Ref_EF_Vehicle_Distance\"&\"_\"&$D11),17,0),IF($G11=\"Weight Distance (e.g. Freight Transport)\",VLOOKUP($H11,INDIRECT(\"Ref_EF_Weight_Distance\"&\"_\"&$D11),5,0),IF($G11=\"Custom Vehicle\",VLOOKUP($H11,Tbl_vehical_Settings,6,0),IF($G11=\"Custom Fuel\",VLOOKUP($M11,Tbl_Fuel_Settings,6,0),$AV11)))))))","v":{"$error":"#REF!"}},{"$f":"IF(OR($G11=\"Fuel Use\",$G11=\"Fuel Use and Vehicle Distance\"),VLOOKUP($M11,INDIRECT(\"Ref_EF_ByFuel\"&\"_\"&$D11),6,0),IF(AND($G11=\"Vehicle Distance (e.g. Road Transport)\",$D11=\"UK\"),VLOOKUP($H11,Ref_EF_Vehicle_Distance_UK,6,0),IF(AND($G11=\"Vehicle Distance (e.g. Road Transport)\",OR($D11=\"US\",$D11=\"Other\")),VLOOKUP($H11,INDIRECT(\"Ref_EF_Vehicle_Distance\"&\"_\"&$D11),18,0),IF(AND($G11=\"Vehicle Distance (e.g. Road Transport)\",ISBLANK($N11),ISBLANK($O11)),VLOOKUP($H11,INDIRECT(\"Ref_EF_Vehicle_Distance\"&\"_\"&$D11),18,0),IF($G11=\"Weight Distance (e.g. Freight Transport)\",VLOOKUP($H11,INDIRECT(\"Ref_EF_Weight_Distance\"&\"_\"&$D11),6,0),IF($G11=\"Custom Vehicle\",VLOOKUP($H11,Tbl_vehical_Settings,7,0),IF($G11=\"Custom Fuel\",VLOOKUP($M11,Tbl_Fuel_Settings,7,0),$AW11)))))))","v":{"$error":"#REF!"}},{"$f":"IF($G11=\"Fuel Use\",VLOOKUP($H11,INDIRECT(\"Ref_EF_ByFuel_CH4\"&\"_\"&$D11),3,0),\nIF($G11=\"Fuel Use and Vehicle Distance\",VLOOKUP($H11,INDIRECT(\"Ref_EF_Vehicle_Distance\"&\"_\"&$D11),3,0),IF($G11=\"Vehicle Distance (e.g. Road Transport)\",VLOOKUP($H11,INDIRECT(\"Ref_EF_Vehicle_Distance\"&\"_\"&$D11),IF($D11=\"UK\",7,3),0),IF($G11=\"Weight Distance (e.g. Freight Transport)\",VLOOKUP(VLOOKUP($H11,INDIRECT(\"Ref_EF_Weight_Distance\"&\"_\"&$D11),8,0),INDIRECT(\"Ref_EF_Weight_Distance_CH4\"&\"_\"&$D11),3,0),IF($G11=\"Custom Vehicle\",VLOOKUP($H11,Tbl_vehical_Settings,3,0),IF($G11=\"Custom Fuel\",VLOOKUP($M11,Tbl_Fuel_Settings,3,0),VLOOKUP($H11,INDIRECT(\"Ref_EF_Public_Transport\"&\"_\"&$D11),7,0)))))))","v":{"$error":"#REF!"}},{"$f":"IF($G11=\"Fuel Use\",VLOOKUP($H11,INDIRECT(\"Ref_EF_ByFuel_CH4\"&\"_\"&$D11),4,0),\nIF($G11=\"Fuel Use and Vehicle Distance\",VLOOKUP($H11,INDIRECT(\"Ref_EF_Vehicle_Distance\"&\"_\"&$D11),4,0),IF($G11=\"Vehicle Distance (e.g. Road Transport)\",VLOOKUP($H11,INDIRECT(\"Ref_EF_Vehicle_Distance\"&\"_\"&$D11),IF($D11=\"UK\",8,4),0),IF($G11=\"Weight Distance (e.g. Freight Transport)\",VLOOKUP(VLOOKUP($H11,INDIRECT(\"Ref_EF_Weight_Distance\"&\"_\"&$D11),8,0),INDIRECT(\"Ref_EF_Weight_Distance_CH4\"&\"_\"&$D11),4,0),IF($G11=\"Custom Vehicle\",VLOOKUP($H11,Tbl_vehical_Settings,6,0),IF($G11=\"Custom Fuel\",VLOOKUP($M11,Tbl_Fuel_Settings,6,0),VLOOKUP($H11,INDIRECT(\"Ref_EF_Public_Transport\"&\"_\"&$D11),8,0)))))))","v":{"$error":"#REF!"}},{"$f":"IF($G11=\"Fuel Use\",VLOOKUP($H11,INDIRECT(\"Ref_EF_ByFuel_CH4\"&\"_\"&$D11),5,0),\nIF($G11=\"Fuel Use and Vehicle Distance\",VLOOKUP($H11,INDIRECT(\"Ref_EF_Vehicle_Distance\"&\"_\"&$D11),5,0),IF($G11=\"Vehicle Distance (e.g. Road Transport)\",VLOOKUP($H11,INDIRECT(\"Ref_EF_Vehicle_Distance\"&\"_\"&$D11),IF($D11=\"UK\",9,5),0),IF($G11=\"Weight Distance (e.g. Freight Transport)\",VLOOKUP(VLOOKUP($H11,INDIRECT(\"Ref_EF_Weight_Distance\"&\"_\"&$D11),8,0),INDIRECT(\"Ref_EF_Weight_Distance_CH4\"&\"_\"&$D11),5,0),IF($G11=\"Custom Vehicle\",VLOOKUP($H11,Tbl_vehical_Settings,7,0),IF($G11=\"Custom Fuel\",VLOOKUP($M11,Tbl_Fuel_Settings,7,0),VLOOKUP($H11,INDIRECT(\"Ref_EF_Public_Transport\"&\"_\"&$D11),9,0)))))))","v":{"$error":"#REF!"}},{"$f":"IF($G11=\"Fuel Use\",VLOOKUP($H11,INDIRECT(\"Ref_EF_ByFuel_CH4\"&\"_\"&$D11),6,0),\nIF($G11=\"Fuel Use and Vehicle Distance\",VLOOKUP($H11,INDIRECT(\"Ref_EF_Vehicle_Distance\"&\"_\"&$D11),6,0),IF($G11=\"Vehicle Distance (e.g. Road Transport)\",VLOOKUP($H11,INDIRECT(\"Ref_EF_Vehicle_Distance\"&\"_\"&$D11),IF($D11=\"UK\",10,6),0),IF($G11=\"Weight Distance (e.g. Freight Transport)\",VLOOKUP(VLOOKUP($H11,INDIRECT(\"Ref_EF_Weight_Distance\"&\"_\"&$D11),8,0),INDIRECT(\"Ref_EF_Weight_Distance_CH4\"&\"_\"&$D11),6,0),IF($G11=\"Custom Vehicle\",VLOOKUP($H11,Tbl_vehical_Settings,4,0),IF($G11=\"Custom Fuel\",VLOOKUP($M11,Tbl_Fuel_Settings,4,0),VLOOKUP($H11,INDIRECT(\"Ref_EF_Public_Transport\"&\"_\"&$D11),10,0)))))))","v":{"$error":"#REF!"}},{"$f":"IF($G11=\"Fuel Use\",VLOOKUP($H11,INDIRECT(\"Ref_EF_ByFuel_CH4\"&\"_\"&$D11),7,0),\nIF($G11=\"Fuel Use and Vehicle Distance\",VLOOKUP($H11,INDIRECT(\"Ref_EF_Vehicle_Distance\"&\"_\"&$D11),7,0),IF($G11=\"Vehicle Distance (e.g. Road Transport)\",VLOOKUP($H11,INDIRECT(\"Ref_EF_Vehicle_Distance\"&\"_\"&$D11),IF($D11=\"UK\",11,7),0),IF($G11=\"Weight Distance (e.g. Freight Transport)\",VLOOKUP(VLOOKUP($H11,INDIRECT(\"Ref_EF_Weight_Distance\"&\"_\"&$D11),8,0),INDIRECT(\"Ref_EF_Weight_Distance_CH4\"&\"_\"&$D11),7,0),IF($G11=\"Custom Vehicle\",VLOOKUP($H11,Tbl_vehical_Settings,6,0),IF($G11=\"Custom Fuel\",VLOOKUP($M11,Tbl_Fuel_Settings,6,0),VLOOKUP($H11,INDIRECT(\"Ref_EF_Public_Transport\"&\"_\"&$D11),11,0)))))))","v":{"$error":"#REF!"}},{"$f":"IF($G11=\"Fuel Use\",VLOOKUP($H11,INDIRECT(\"Ref_EF_ByFuel_CH4\"&\"_\"&$D11),8,0),\nIF($G11=\"Fuel Use and Vehicle Distance\",VLOOKUP($H11,INDIRECT(\"Ref_EF_Vehicle_Distance\"&\"_\"&$D11),8,0),IF($G11=\"Vehicle Distance (e.g. Road Transport)\",VLOOKUP($H11,INDIRECT(\"Ref_EF_Vehicle_Distance\"&\"_\"&$D11),IF($D11=\"UK\",12,8),0),IF($G11=\"Weight Distance (e.g. Freight Transport)\",VLOOKUP(VLOOKUP($H11,INDIRECT(\"Ref_EF_Weight_Distance\"&\"_\"&$D11),8,0),INDIRECT(\"Ref_EF_Weight_Distance_CH4\"&\"_\"&$D11),8,0),IF($G11=\"Custom Vehicle\",VLOOKUP($H11,Tbl_vehical_Settings,7,0),IF($G11=\"Custom Fuel\",VLOOKUP($M11,Tbl_Fuel_Settings,7,0),VLOOKUP($H11,INDIRECT(\"Ref_EF_Public_Transport\"&\"_\"&$D11),12,0)))))))","v":{"$error":"#REF!"}},{"$f":"INDEX(Ref_Master_Unit_Table,MATCH($W11,REF_To_Unit,0),MATCH('Reference - Lookup and Unit'!$A$11,Ref_From_Units,0))","v":{"$error":"#REF!"}},{"$f":"INDEX(Ref_Master_Unit_Table,MATCH(IF(AND($D11=\"UK\",$G11=\"Vehicle Distance (e.g. Road Transport)\"),$L11,IF(ISBLANK($O11),$L11,$O11)),Ref_From_Units,0),MATCH($X11,REF_To_Unit,0))","v":{"$error":"#N/A"}},{"$f":"INDEX(Ref_Master_Unit_Table,MATCH($Z11,REF_To_Unit,0),MATCH('Reference - Lookup and Unit'!$A$11,Ref_From_Units,0))","v":{"$error":"#REF!"}},{"$f":"INDEX(Ref_Master_Unit_Table,MATCH(IF(AND($D11=\"UK\",$G11=\"Vehicle Distance (e.g. Road Transport)\"),$L11,IF(ISBLANK($O11),$L11,$O11)),Ref_From_Units,0),MATCH($AA11,REF_To_Unit,0))","v":{"$error":"#N/A"}},{"$f":"INDEX(Ref_Master_Unit_Table,MATCH($AC11,REF_To_Unit,0),MATCH('Reference - Lookup and Unit'!$A$11,Ref_From_Units,0))","v":{"$error":"#REF!"}},{"$f":"INDEX(Ref_Master_Unit_Table,MATCH(IF(OR($G11=\"Fuel Use\",$G11=\"Custom Fuel\"),$O11,$L11),Ref_From_Units,0),MATCH($AD11,REF_To_Unit,0))","v":{"$error":"#N/A"}},{"$f":"INDEX(Ref_Master_Unit_Table,MATCH($AF11,REF_To_Unit,0),MATCH('Reference - Lookup and Unit'!$A$11,Ref_From_Units,0))","v":{"$error":"#REF!"}},{"$f":"INDEX(Ref_Master_Unit_Table,MATCH(IF(OR($G11=\"Fuel Use\",$G11=\"Custom Fuel\"),$O11,$L11),Ref_From_Units,0),MATCH($AD11,REF_To_Unit,0))","v":{"$error":"#N/A"}},{"$f":"VLOOKUP(\"CO2\",INDIRECT(IF(Setting_IPCC_GWP_VERSION=\"1995 IPCC Second Assessment Report (SAR)\",\"Ref_EF_IPCC_GWP_95\",IF(Setting_IPCC_GWP_VERSION=\"2001 IPCC Third Assessment Report (TAR)\",\"Ref_EF_IPCC_GWP_2001\",\"Ref_EF_IPCC_GWP_2007\"))),2,0)","v":1},{"$f":"VLOOKUP(\"CH4\",INDIRECT(IF(Setting_IPCC_GWP_VERSION=\"1995 IPCC Second Assessment Report (SAR)\",\"Ref_EF_IPCC_GWP_95\",IF(Setting_IPCC_GWP_VERSION=\"2001 IPCC Third Assessment Report (TAR)\",\"Ref_EF_IPCC_GWP_2001\",IF(Setting_IPCC_GWP_VERSION=\"2007 IPCC Fourth Assessment Report\",\"Ref_EF_IPCC_GWP_2007\",\"Ref_EF_IPCC_GWP_2014\")))),2,0)","v":28},{"$f":"VLOOKUP(\"N2O\",INDIRECT(IF(Setting_IPCC_GWP_VERSION=\"1995 IPCC Second Assessment Report (SAR)\",\"Ref_EF_IPCC_GWP_95\",IF(Setting_IPCC_GWP_VERSION=\"2001 IPCC Third Assessment Report (TAR)\",\"Ref_EF_IPCC_GWP_2001\", IF(Setting_IPCC_GWP_VERSION=\"2007 IPCC Fourth Assessment Report\",\"Ref_EF_IPCC_GWP_2007\",\"Ref_EF_IPCC_GWP_2014\")))),2,0)","v":265},{"$f":"VLOOKUP(\"Biofuel CO2\",INDIRECT(IF(Setting_IPCC_GWP_VERSION=\"1995 IPCC Second Assessment Report (SAR)\",\"Ref_EF_IPCC_GWP_95\",IF(Setting_IPCC_GWP_VERSION=\"2001 IPCC Third Assessment Report (TAR)\",\"Ref_EF_IPCC_GWP_2001\",\"Ref_EF_IPCC_GWP_2007\"))),2,0)","v":1},{"$f":"IF(OR($G11=\"Fuel Use\",$G11=\"Custom fuel\"),(IF(E11<>\"\",(\"Ref_DD_vehicle_FuelUse\"&\"_\"&D11 &\"_\"&E11),\"Ref_DD_vehicle_FuelUse\"&\"_\"&D11)),IF(OR($G11=\"Vehicle Distance (e.g. Road Transport)\",$G11=\"Fuel Use and Vehicle Distance\"),(IF(E11<>\"\",(\"Ref_DD_vehicle_VehicleDistance\"&\"_\"&D11 &\"_\"&E11),\"Ref_DD_vehicle_VehicleDistance\"&\"_\"&D11)),IF($G11=\"Weight Distance (e.g. Freight Transport)\",(IF(E11<>\"\",(\"Ref_DD_vehicle_WeightDistance\"&\"_\"&D11 &\"_\"&E11),\"Ref_DD_vehicle_WeightDistance\"&\"_\"&D11)),(IF(E11<>\"\",(\"Ref_DD_vehicle_Passenger\"&\"_\"&D11 &\"_\"&E11),\"Ref_DD_vehicle_Passenger\"&\"_\"&D11)))))","v":"Ref_DD_vehicle_Passenger_"},{"$f":"VLOOKUP($H11,INDIRECT(\"Ref_EF_Public_Transport\"&\"_\"&$D11),3,0)","v":{"$error":"#REF!"}},{"$f":"VLOOKUP($H11,INDIRECT(\"Ref_EF_Public_Transport\"&\"_\"&$D11),5,0)","v":{"$error":"#REF!"}},{"$f":"VLOOKUP($H11,INDIRECT(\"Ref_EF_Public_Transport\"&\"_\"&$D11),6,0)","v":{"$error":"#REF!"}},{"$f":"VLOOKUP($H11,INDIRECT(\"Ref_EF_Public_Transport\"&\"_\"&$D11),4,0)","v":{"$error":"#REF!"}},{"$f":"IF(ISERROR(COLUMN(INDIRECT($AT11))),FALSE,TRUE)","v":false},{"$f":"IF(AND($F11=\"Scope 1\",OR($G11=\"Fuel Use\",$G11=\"Custom Fuel\",$G11=\"Fuel Use and Vehicle Distance\")),$Q11,IF(AND($F11=\"Scope 1\",OR($G11=\"Vehicle Distance (e.g. Road Transport)\",$G11=\"Custom Vehicle\"),ISBLANK($N11)=FALSE),$Q11,\"\"))","v":""},{"$f":"IF(AND($F11=\"Scope 1\",AND(OR($G11=\"Vehicle Distance (e.g. Road Transport)\",$G11=\"Custom Vehicle\"),OR($D11=\"US\",$D11=\"Other\"),ISBLANK($N11)=TRUE)),$Q11,IF(AND($F11=\"Scope 1\",$G11<>\"Fuel Use\",ISBLANK($N11)=TRUE),$Q11,\"\"))","v":""},{"$f":"IF(AND(OR(G11=\"Fuel Use\",G11=\"Custom Fuel\"),F11=\"Scope 1\",ISBLANK(I11)=TRUE),R11,\"\")","v":""},{"$f":"IF(AND(OR(G11=\"Fuel Use\",G11=\"Custom Fuel\"),F11=\"Scope 1\",ISBLANK(I11)=FALSE),R11,IF(AND(G11<>\"Fuel Use\",G11<>\"Custom Fuel\",F11=\"Scope 1\"),R11,\"\"))","v":""},{"$f":"IF(AND(OR(G11=\"Fuel Use\",G11=\"Custom Fuel\"),F11=\"Scope 1\",ISBLANK(I11)=TRUE),S11,\"\")","v":""},{"$f":"IF(AND(OR(G11=\"Fuel Use\",G11=\"Custom Fuel\"),F11=\"Scope 1\",ISBLANK(I11)=FALSE),S11,IF(AND(G11<>\"Fuel Use\",G11<>\"Custom Fuel\",F11=\"Scope 1\"),S11,\"\"))","v":""},{"$f":"IF(AND($F11=\"Scope 3\",OR($G11=\"Fuel Use\",$G11=\"Custom Fuel\",$G11=\"Fuel Use and Vehicle Distance\")),$Q11,IF(AND($F11=\"Scope 3\",OR($G11=\"Vehicle Distance (e.g. Road Transport)\",$G11=\"Custom Vehicle\"),ISBLANK($N11)=FALSE),$Q11,\"\"))","v":""},{"$f":"IF(AND($F11=\"Scope 3\",AND(OR($G11=\"Vehicle Distance (e.g. Road Transport)\",$G11=\"Custom Vehicle\"),OR($D11=\"US\",$D11=\"Other\"),ISBLANK($N11)=TRUE)),$Q11,IF(AND($F11=\"Scope 3\",$G11<>\"Fuel Use\",ISBLANK($N11)=TRUE),$Q11,\"\"))","v":""},{"$f":"IF(AND(OR(G11=\"Fuel Use\",G11=\"Custom Fuel\"),F11=\"Scope 3\",ISBLANK(I11)=TRUE),R11,\"\")","v":""},{"$f":"IF(AND(OR(G11=\"Fuel Use\",G11=\"Custom Fuel\"),F11=\"Scope 3\",ISBLANK(I11)=FALSE),R11,IF(AND(G11<>\"Fuel Use\",G11<>\"Custom Fuel\",F11=\"Scope 3\"),R11,\"\"))","v":""},{"$f":"IF(AND(OR(G11=\"Fuel Use\",G11=\"Custom Fuel\"),F11=\"Scope 3\",ISBLANK(I11)=TRUE),S11,\"\")","v":""},{"$f":"IF(AND(OR(G11=\"Fuel Use\",G11=\"Custom Fuel\"),F11=\"Scope 3\",ISBLANK(I11)=FALSE),S11,IF(AND(G11<>\"Fuel Use\",G11<>\"Custom Fuel\",F11=\"Scope 3\"),S11,\"\"))","v":""},{"$f":"IF(OR($G11=\"Fuel Use\",$G11=\"Custom Fuel\"),$U11,IF(AND(OR($G11=\"Vehicle Distance (e.g. Road Transport)\",$G11=\"Custom Vehicle\"),ISBLANK($N11)=FALSE),$U11,\"\"))","v":""},{"$f":"IF(AND(AND(OR($G11=\"Vehicle Distance (e.g. Road Transport)\",$G11=\"Custom Vehicle\"),OR($D11=\"US\",$D11=\"Other\"),ISBLANK($N11)=TRUE)),$U11,IF(AND($G11<>\"Fuel Use\",ISBLANK($N11)=TRUE),$U11,\"\"))","v":""},{"$f":"IF(AND($E11=\"Road\",$F11=\"Scope 1\"),$Q11,\"\")","v":""},{"$f":"IF(AND($E11=\"Rail\",$F11=\"Scope 1\"),$Q11,\"\")","v":""},{"$f":"IF(AND($E11=\"Water\",$F11=\"Scope 1\"),$Q11,\"\")","v":""},{"$f":"IF(AND($E11=\"AirCraft\",$F11=\"Scope 1\"),$Q11,\"\")","v":""},{"$f":"IF(AND($E11=\"Road\",$F11=\"Scope 1\"),$R11,\"\")","v":""},{"$f":"IF(AND($E11=\"Rail\",$F11=\"Scope 1\"),$R11,\"\")","v":""},{"$f":"IF(AND($E11=\"Water\",$F11=\"Scope 1\"),$R11,\"\")","v":""},{"$f":"IF(AND($E11=\"Aircraft\",$F11=\"Scope 1\"),$R11,\"\")","v":""},{"$f":"IF(AND($E11=\"Road\",$F11=\"Scope 1\"),$S11,\"\")","v":""},{"$f":"IF(AND($E11=\"Rail\",$F11=\"Scope 1\"),$S11,\"\")","v":""},{"$f":"IF(AND($E11=\"Water\",$F11=\"Scope 1\"),$S11,\"\")","v":""},{"$f":"IF(AND($E11=\"Aircraft\",$F11=\"Scope 1\"),$S11,\"\")","v":""},{"$f":"IF(AND($E11=\"Road\",$F11=\"Scope 3\"),$Q11,\"\")","v":""},{"$f":"IF(AND($E11=\"Rail\",$F11=\"Scope 3\"),$Q11,\"\")","v":""},{"$f":"IF(AND($E11=\"Water\",$F11=\"Scope 3\"),$Q11,\"\")","v":""},{"$f":"IF(AND($E11=\"AirCraft\",$F11=\"Scope 3\"),$Q11,\"\")","v":""},{"$f":"IF(AND($E11=\"Road\",$F11=\"Scope 3\"),$R11,\"\")","v":""},{"$f":"IF(AND($E11=\"Rail\",$F11=\"Scope 3\"),$R11,\"\")","v":""},{"$f":"IF(AND($E11=\"Water\",$F11=\"Scope 3\"),$R11,\"\")","v":""},{"$f":"IF(AND($E11=\"Aircraft\",$F11=\"Scope 3\"),$R11,\"\")","v":""},{"$f":"IF(AND($E11=\"Road\",$F11=\"Scope 3\"),$S11,\"\")","v":""},{"$f":"IF(AND($E11=\"Rail\",$F11=\"Scope 3\"),$S11,\"\")","v":""},{"$f":"IF(AND($E11=\"Water\",$F11=\"Scope 3\"),$S11,\"\")","v":""},{"$f":"IF(AND($E11=\"Aircraft\",$F11=\"Scope 3\"),$S11,\"\")","v":""},{"$f":"IF($E11=\"Road\",$U11,\"\")","v":""},{"$f":"IF($E11=\"Rail\",$U11,\"\")","v":""},{"$f":"IF($E11=\"Water\",$U11,\"\")","v":""},{"$f":"IF($E11=\"Aircraft\",$U11,\"\")","v":""},{"$f":"IF($G11=\"Weight Distance (e.g. Freight Transport)\",\"Ref_DD_WeightDistanceUnits\",IF($G11=\"Passenger Distance (e.g. Public Transport)\",\"Ref_DD_PasengerDistanceUnits\",IF($G11=\"Custom Vehicle\",\"Set_DD_Vehicle_Units\",\"Ref_DD_DistanceUnit\")))","v":"Ref_DD_DistanceUnit"},{"$f":"IF(AND(ISERROR($Q11*$AP11)=TRUE,ISERROR((R11/1000)*$AQ11)=TRUE,ISERROR((S11/1000)*$AR11)=FALSE),((S11/1000)*$AR11),\"\")","v":""},{"$f":"IF($G11=\"Custom vehicle\",IF(OR($L11=\"Passenger Mile\",$L11=\"Passenger Kilometer\"),\"Passenger Distance (e.g. Public Transport)\",IF(OR($L11=\"Tonne Mile\",$L11=\"Tonne Kilometer\"),\"Weight Distance (e.g. Freight Transport)\",\"Vehicle Distance (e.g. Road Transport)\")),$G11)","v":0}]
[null,null,null,null,null,null,null,null,null,null,null,null,null,null,null,null,{"$f":"IF(ISERROR(IF(OR($CR12=\"Fuel Use\",$CR12=\"Custom Fuel\",$CR12=\"Fuel Use and Vehicle Distance\"),($N12*$V12*$AH12*$AI12),IF($CR12=\"Weight Distance (e.g. Freight Transport)\",($I12*$J12*$V12*$AH12*$AI12),IF($CR12=\"Passenger Distance (e.g. Public Transport)\",($I12*$K12*$V12*$AH12*$AI12),($I12*$V12*$AH12*$AI12))))),\"\",IF(OR($CR12=\"Fuel Use\",$CR12=\"Custom Fuel\",$CR12=\"Fuel Use and Vehicle Distance\"),($N12*$V12*$AH12*$AI12),IF($CR12=\"Weight Distance (e.g. Freight Transport)\",($I12*$J12*$V12*$AH12*$AI12),IF($CR12=\"Passenger Distance (e.g. Public Transport)\",($I12*$K12*$V12*$AH12*$AI12),($I12*$V12*$AH12*$AI12)))))","v":""},{"$f":"IF(ISERROR(IF($CR12=\"Weight Distance (e.g. Freight Transport)\",($I12*$J12*$AB12*$AL12*$AM12*1000),IF(OR($CR12=\"Fuel Use\",$CR12=\"Custom Fuel\"),($N12*$AB12*$AL12*$AM12*1000),IF($CR12=\"Passenger Distance (e.g. Public Transport)\",($I12*$AB12*$K12*$AL12*$AM12*1000),($I12*$AB12*$AL12*$AM12*1000))))),\"\",IF($CR12=\"Weight Distance (e.g. Freight Transport)\",($I12*$J12*$AB12*$AL12*$AM12*1000),IF(OR($CR12=\"Fuel Use\",$CR12=\"Custom Fuel\"),($N12*$AB12*$AL12*$AM12*1000),IF($CR12=\"Passenger Distance (e.g. Public Transport)\",($I12*$AB12*$K12*$AL12*$AM12*1000),($I12*$AB12*$AL12*$AM12*1000)))))","v":""},{"$f":"IF(ISERROR(IF($CR12=\"Weight Distance (e.g. Freight Transport)\",($I12*$J12*$AE12*$AN12*$AO12*1000),IF(OR($CR12=\"Fuel Use\",$CR12=\"Custom Fuel\"),($N12*$AE12*$AN12*$AO12*1000),IF($CR12=\"Passenger Distance (e.g. Public Transport)\",($I12*$AE12*$AN12*$K12*$AO12*1000),($I12*$AE12*$AN12*$AO12*1000))))),\"\",IF($CR12=\"Weight Distance (e.g. Freight Transport)\",($I12*$J12*$AE12*$AN12*$AO12*1000),IF(OR($CR12=\"Fuel Use\",$CR12=\"Custom Fuel\"),($N12*$AE12*$AN12*$AO12*1000),IF($CR12=\"Passenger Distance (e.g. Public Transport)\",($I12*$AE12*$AN12*$K12*$AO12*1000),($I12*$AE12*$AN12*$AO12*1000)))))","v":""},{"$f":"IF(AND(ISERROR($Q12*$AP12)=FALSE,ISERROR((R12/1000)*$AQ12)=FALSE,ISERROR((S12/1000)*$AR12)=FALSE),($Q12*$AP12)+((R12/1000)*$AQ12)+((S12/1000)*$AR12),IF(AND(ISERROR($Q12*$AP12)=FALSE,ISERROR((R12/1000)*$AQ12)=FALSE,ISERROR((S12/1000)*$AR12)=TRUE),($Q12*$AP12)+((R12/1000)*$AQ12),IF(AND(ISERROR($Q12*$AP12)=FALSE,ISERROR((R12/1000)*$AQ12)=TRUE,ISERROR((S12/1000)*$AR12)=FALSE),($Q12*$AP12)+((S12/1000)*$AR12),IF(AND(ISERROR($Q12*$AP12)=FALSE,ISERROR((R12/1000)*$AQ12)=TRUE,ISERROR((S12/1000)*$AR12)=TRUE),($Q12*$AP12),IF(AND(ISERROR($Q12*$AP12)=TRUE,ISERROR((R12/1000)*$AQ12)=FALSE,ISERROR((S12/1000)*$AR12)=FALSE),((R12/1000)*$AQ12)+((S12/1000)*$AR12),IF(AND(ISERROR($Q12*$AP12)=TRUE,ISERROR((R12/1000)*$AQ12)=FALSE,ISERROR((S12/1000)*$AR12)=TRUE),((R12/1000)*$AQ12),CQ12))))))","v":""},{"$f":"IF(ISERROR(IF(OR($CR12=\"Fuel Use\",$CR12=\"Custom Fuel\",$CR12=\"Fuel Use and Vehicle Distance\"),($N12*$Y12*$AJ12*$AK12),IF($CR12=\"Weight Distance (e.g. Freight Transport)\",($I12*$J12*$Y12*$AJ12*$AK12),IF($CR12=\"Passenger Distance (e.g. Public Transport)\",($I12*$Y12*$AJ12*$AK12*$K12),($I12*$Y12*$AJ12*$AK12))))),\"\",IF(OR($CR12=\"Fuel Use\",$CR12=\"Custom Fuel\",$CR12=\"Fuel Use and Vehicle Distance\"),($N12*$Y12*$AJ12*$AK12),IF($CR12=\"Weight Distance (e.g. Freight Transport)\",($I12*$J12*$Y12*$AJ12*$AK12),IF($CR12=\"Passenger Distance (e.g. Public Transport)\",($I12*$Y12*$AJ12*$AK12*$K12),($I12*$Y12*$AJ12*$AK12)))))","v":""},{"$error":"#REF!"},{"$error":"#REF!"},{"$error":"#REF!"},{"$error":"#REF!"},{"$error":"#REF!"},{"$error":"#REF!"},{"$error":"#REF!"},{"$error":"#REF!"},{"$error":"#REF!"},{"$error":"#REF!"},{"$error":"#REF!"},{"$error":"#REF!"},{"$f":"INDEX(Ref_Master_Unit_Table,MATCH($W12,REF_To_Unit,0),MATCH('Reference - Lookup and Unit'!$A$11,Ref_From_Units,0))","v":{"$error":"#REF!"}},{"$error":"#N/A"},{"$f":"INDEX(Ref_Master_Unit_Table,MATCH($Z12,REF_To_Unit,0),MATCH('Reference - Lookup and Unit'!$A$11,Ref_From_Units,0))","v":{"$error":"#REF!"}},{"$error":"#N/A"},{"$f":"INDEX(Ref_Master_Unit_Table,MATCH($AC12,REF_To_Unit,0),MATCH('Reference - Lookup and Unit'!$A$11,Ref_From_Units,0))","v":{"$error":"#REF!"}},{"$error":"#N/A"},{"$f":"INDEX(Ref_Master_Unit_Table,MATCH($AF12,REF_To_Unit,0),MATCH('Reference - Lookup and Unit'!$A$11,Ref_From_Units,0))","v":{"$error":"#REF!"}},{"$error":"#N/A"},1,28,265,1,{"$f":"IF(OR($G12=\"Fuel Use\",$G12=\"Custom fuel\"),(IF(E12<>\"\",(\"Ref_DD_vehicle_FuelUse\"&\"_\"&D12 &\"_\"&E12),\"Ref_DD_vehicle_FuelUse\"&\"_\"&D12)),IF(OR($G12=\"Vehicle Distance (e.g. Road Transport)\",$G12=\"Fuel Use and Vehicle Distance\"),(IF(E12<>\"\",(\"Ref_DD_vehicle_VehicleDistance\"&\"_\"&D12 &\"_\"&E12),\"Ref_DD_vehicle_VehicleDistance\"&\"_\"&D12)),IF($G12=\"Weight Distance (e.g. Freight Transport)\",(IF(E12<>\"\",(\"Ref_DD_vehicle_WeightDistance\"&\"_\"&D12 &\"_\"&E12),\"Ref_DD_vehicle_WeightDistance\"&\"_\"&D12)),(IF(E12<>\"\",(\"Ref_DD_vehicle_Passenger\"&\"_\"&D12 &\"_\"&E12),\"Ref_DD_vehicle_Passenger\"&\"_\"&D12)))))","v":"Ref_DD_vehicle_Passenger_"},{"$f":"VLOOKUP($H12,INDIRECT(\"Ref_EF_Public_Transport\"&\"_\"&$D12),3,0)","v":{"$error":"#REF!"}},{"$f":"VLOOKUP($H12,INDIRECT(\"Ref_EF_Public_Transport\"&\"_\"&$D12),5,0)","v":{"$error":"#REF!"}},{"$f":"VLOOKUP($H12,INDIRECT(\"Ref_EF_Public_Transport\"&\"_\"&$D12),6,0)","v":{"$error":"#REF!"}},{"$f":"VLOOKUP($H12,INDIRECT(\"Ref_EF_Public_Transport\"&\"_\"&$D12),4,0)","v":{"$error":"#REF!"}},{"$f":"IF(ISERROR(COLUMN(INDIRECT($AT12))),FALSE,TRUE)","v":false},{"$f":"IF(AND($F12=\"Scope 1\",OR($G12=\"Fuel Use\",$G12=\"Custom Fuel\",$G12=\"Fuel Use and Vehicle Distance\")),$Q12,IF(AND($F12=\"Scope 1\",OR($G12=\"Vehicle Distance (e.g. Road Transport)\",$G12=\"Custom Vehicle\"),ISBLANK($N12)=FALSE),$Q12,\"\"))","v":""},{"$f":"IF(AND($F12=\"Scope 1\",AND(OR($G12=\"Vehicle Distance (e.g. Road Transport)\",$G12=\"Custom Vehicle\"),OR($D12=\"US\",$D12=\"Other\"),ISBLANK($N12)=TRUE)),$Q12,IF(AND($F12=\"Scope 1\",$G12<>\"Fuel Use\",ISBLANK($N12)=TRUE),$Q12,\"\"))","v":""},{"$f":"IF(AND(OR(G12=\"Fuel Use\",G12=\"Custom Fuel\"),F12=\"Scope 1\",ISBLANK(I12)=TRUE),R12,\"\")","v":""},{"$f":"IF(AND(OR(G12=\"Fuel Use\",G12=\"Custom Fuel\"),F12=\"Scope 1\",ISBLANK(I12)=FALSE),R12,IF(AND(G12<>\"Fuel Use\",G12<>\"Custom Fuel\",F12=\"Scope 1\"),R12,\"\"))","v":""},{"$f":"IF(AND(OR(G12=\"Fuel Use\",G12=\"Custom Fuel\"),F12=\"Scope 1\",ISBLANK(I12)=TRUE),S12,\"\")","v":""},{"$f":"IF(AND(OR(G12=\"Fuel Use\",G12=\"Custom Fuel\"),F12=\"Scope 1\",ISBLANK(I12)=FALSE),S12,IF(AND(G12<>\"Fuel Use\",G12<>\"Custom Fuel\",F12=\"Scope 1\"),S12,\"\"))","v":""},{"$f":"IF(AND($F12=\"Scope 3\",OR($G12=\"Fuel Use\",$G12=\"Custom Fuel\",$G12=\"Fuel Use and Vehicle Distance\")),$Q12,IF(AND($F12=\"Scope 3\",OR($G12=\"Vehicle Distance (e.g. Road Transport)\",$G12=\"Custom Vehicle\"),ISBLANK($N12)=FALSE),$Q12,\"\"))","v":""},{"$f":"IF(AND($F12=\"Scope 3\",AND(OR($G12=\"Vehicle Distance (e.g. Road Transport)\",$G12=\"Custom Vehicle\"),OR($D12=\"US\",$D12=\"Other\"),ISBLANK($N12)=TRUE)),$Q12,IF(AND($F12=\"Scope 3\",$G12<>\"Fuel Use\",ISBLANK($N12)=TRUE),$Q12,\"\"))","v":""},{"$f":"IF(AND(OR(G12=\"Fuel Use\",G12=\"Custom Fuel\"),F12=\"Scope 3\",ISBLANK(I12)=TRUE),R12,\"\")","v":""},{"$f":"IF(AND(OR(G12=\"Fuel Use\",G12=\"Custom Fuel\"),F12=\"Scope 3\",ISBLANK(I12)=FALSE),R12,IF(AND(G12<>\"Fuel Use\",G12<>\"Custom Fuel\",F12=\"Scope 3\"),R12,\"\"))","v":""},{"$f":"IF(AND(OR(G12=\"Fuel Use\",G12=\"Custom Fuel\"),F12=\"Scope 3\",ISBLANK(I12)=TRUE),S12,\"\")","v":""},{"$f":"IF(AND(OR(G12=\"Fuel Use\",G12=\"Custom Fuel\"),F12=\"Scope 3\",ISBLANK(I12)=FALSE),S12,IF(AND(G12<>\"Fuel Use\",G12<>\"Custom Fuel\",F12=\"Scope 3\"),S12,\"\"))","v":""},{"$f":"IF(OR($G12=\"Fuel Use\",$G12=\"Custom Fuel\"),$U12,IF(AND(OR($G12=\"Vehicle Distance (e.g. Road Transport)\",$G12=\"Custom Vehicle\"),ISBLANK($N12)=FALSE),$U12,\"\"))","v":""},{"$f":"IF(AND(AND(OR($G12=\"Vehicle Distance (e.g. Road Transport)\",$G12=\"Custom Vehicle\"),OR($D12=\"US\",$D12=\"Other\"),ISBLANK($N12)=TRUE)),$U12,IF(AND($G12<>\"Fuel Use\",ISBLANK($N12)=TRUE),$U12,\"\"))","v":""},"","","","","","","","","","","","","","","","","","","","","","","","","","","","",{"$f":"IF($G12=\"Weight Distance (e.g. Freight Transport)\",\"Ref_DD_WeightDistanceUnits\",IF($G12=\"Passenger Distance (e.g. Public Transport)\",\"Ref_DD_PasengerDistanceUnits\",IF($G12=\"Custom Vehicle\",\"Set_DD_Vehicle_Units\",\"Ref_DD_DistanceUnit\")))","v":"Ref_DD_DistanceUnit"},{"$f":"IF(AND(ISERROR($Q12*$AP12)=TRUE,ISERROR((R12/1000)*$AQ12)=TRUE,ISERROR((S12/1000)*$AR12)=FALSE),((S12/1000)*$AR12),\"\")","v":""},{"$f":"IF($G12=\"Custom vehicle\",IF(OR($L12=\"Passenger Mile\",$L12=\"Passenger Kilometer\"),\"Passenger Distance (e.g. Public Transport)\",IF(OR($L12=\"Tonne Mile\",$L12=\"Tonne Kilometer\"),\"Weight Distance (e.g. Freight Transport)\",\"Vehicle Distance (e.g. Road Transport)\")),$G12)","v":0}]
[null,null,null,null,null,null,null,null,null,null,null,null,null,null,null,null,{"$f":"IF(ISERROR(IF(OR($CR13=\"Fuel Use\",$CR13=\"Custom Fuel\",$CR13=\"Fuel Use and Vehicle Distance\"),($N13*$V13*$AH13*$AI13),IF($CR13=\"Weight Distance (e.g. Freight Transport)\",($I13*$J13*$V13*$AH13*$AI13),IF($CR13=\"Passenger Distance (e.g. Public Transport)\",($I13*$K13*$V13*$AH13*$AI13),($I13*$V13*$AH13*$AI13))))),\"\",IF(OR($CR13=\"Fuel Use\",$CR13=\"Custom Fuel\",$CR13=\"Fuel Use and Vehicle Distance\"),($N13*$V13*$AH13*$AI13),IF($CR13=\"Weight Distance (e.g. Freight Transport)\",($I13*$J13*$V13*$AH13*$AI13),IF($CR13=\"Passenger Distance (e.g. Public Transport)\",($I13*$K13*$V13*$AH13*$AI13),($I13*$V13*$AH13*$AI13)))))","v":""},{"$f":"IF(ISERROR(IF($CR13=\"Weight Distance (e.g. Freight Transport)\",($I13*$J13*$AB13*$AL13*$AM13*1000),IF(OR($CR13=\"Fuel Use\",$CR13=\"Custom Fuel\"),($N13*$AB13*$AL13*$AM13*1000),IF($CR13=\"Passenger Distance (e.g. Public Transport)\",($I13*$AB13*$K13*$AL13*$AM13*1000),($I13*$AB13*$AL13*$AM13*1000))))),\"\",IF($CR13=\"Weight Distance (e.g. Freight Transport)\",($I13*$J13*$AB13*$AL13*$AM13*1000),IF(OR($CR13=\"Fuel Use\",$CR13=\"Custom Fuel\"),($N13*$AB13*$AL13*$AM13*1000),IF($CR13=\"Passenger Distance (e.g. Public Transport)\",($I13*$AB13*$K13*$AL13*$AM13*1000),($I13*$AB13*$AL13*$AM13*1000)))))","v":""},{"$f":"IF(ISERROR(IF($CR13=\"Weight Distance (e.g. Freight Transport)\",($I13*$J13*$AE13*$AN13*$AO13*1000),IF(OR($CR13=\"Fuel Use\",$CR13=\"Custom Fuel\"),($N13*$AE13*$AN13*$AO13*1000),IF($CR13=\"Passenger Distance (e.g. Public Transport)\",($I13*$AE13*$AN13*$K13*$AO13*1000),($I13*$AE13*$AN13*$AO13*1000))))),\"\",IF($CR13=\"Weight Distance (e.g. Freight Transport)\",($I13*$J13*$AE13*$AN13*$AO13*1000),IF(OR($CR13=\"Fuel Use\",$CR13=\"Custom Fuel\"),($N13*$AE13*$AN13*$AO13*1000),IF($CR13=\"Passenger Distance (e.g. Public Transport)\",($I13*$AE13*$AN13*$K13*$AO13*1000),($I13*$AE13*$AN13*$AO13*1000)))))","v":""},"",{"$f":"IF(ISERROR(IF(OR($CR13=\"Fuel Use\",$CR13=\"Custom Fuel\",$CR13=\"Fuel Use and Vehicle Distance\"),($N13*$Y13*$AJ13*$AK13),IF($CR13=\"Weight Distance (e.g. Freight Transport)\",($I13*$J13*$Y13*$AJ13*$AK13),IF($CR13=\"Passenger Distance (e.g. Public Transport)\",($I13*$Y13*$AJ13*$AK13*$K13),($I13*$Y13*$AJ13*$AK13))))),\"\",IF(OR($CR13=\"Fuel Use\",$CR13=\"Custom Fuel\",$CR13=\"Fuel Use and Vehicle Distance\"),($N13*$Y13*$AJ13*$AK13),IF($CR13=\"Weight Distance (e.g. Freight Transport)\",($I13*$J13*$Y13*$AJ13*$AK13),IF($CR13=\"Passenger Distance (e.g. Public Transport)\",($I13*$Y13*$AJ13*$AK13*$K13),($I13*$Y13*$AJ13*$AK13)))))","v":""},{"$error":"#REF!"},{"$error":"#REF!"},{"$error":"#REF!"},{"$error":"#REF!"},{"$error":"#REF!"},{"$error":"#REF!"},{"$error":"#REF!"},{"$error":"#REF!"},{"$error":"#REF!"},{"$error":"#REF!"},{"$error":"#REF!"},{"$error":"#REF!"},{"$f":"INDEX(Ref_Master_Unit_Table,MATCH($W13,REF_To_Unit,0),MATCH('Reference - Lookup and Unit'!$A$11,Ref_From_Units,0))","v":{"$error":"#REF!"}},{"$error":"#N/A"},{"$f":"INDEX(Ref_Master_Unit_Table,MATCH($Z13,REF_To_Unit,0),MATCH('Reference - Lookup and Unit'!$A$11,Ref_From_Units,0))","v":{"$error":"#REF!"}},{"$error":"#N/A"},{"$f":"INDEX(Ref_Master_Unit_Table,MATCH($AC13,REF_To_Unit,0),MATCH('Reference - Lookup and Unit'!$A$11,Ref_From_Units,0))","v":{"$error":"#REF!"}},{"$error":"#N/A"},{"$f":"INDEX(Ref_Master_Unit_Table,MATCH($AF13,REF_To_Unit,0),MATCH('Reference - Lookup and Unit'!$A$11,Ref_From_Units,0))","v":{"$error":"#REF!"}},{"$error":"#N/A"},1,28,265,1,{"$f":"IF(OR($G13=\"Fuel Use\",$G13=\"Custom fuel\"),(IF(E13<>\"\",(\"Ref_DD_vehicle_FuelUse\"&\"_\"&D13 &\"_\"&E13),\"Ref_DD_vehicle_FuelUse\"&\"_\"&D13)),IF(OR($G13=\"Vehicle Distance (e.g. Road Transport)\",$G13=\"Fuel Use and Vehicle Distance\"),(IF(E13<>\"\",(\"Ref_DD_vehicle_VehicleDistance\"&\"_\"&D13 &\"_\"&E13),\"Ref_DD_vehicle_VehicleDistance\"&\"_\"&D13)),IF($G13=\"Weight Distance (e.g. Freight Transport)\",(IF(E13<>\"\",(\"Ref_DD_vehicle_WeightDistance\"&\"_\"&D13 &\"_\"&E13),\"Ref_DD_vehicle_WeightDistance\"&\"_\"&D13)),(IF(E13<>\"\",(\"Ref_DD_vehicle_Passenger\"&\"_\"&D13 &\"_\"&E13),\"Ref_DD_vehicle_Passenger\"&\"_\"&D13)))))","v":"Ref_DD_vehicle_Passenger_"},{"$f":"VLOOKUP($H13,INDIRECT(\"Ref_EF_Public_Transport\"&\"_\"&$D13),3,0)","v":{"$error":"#REF!"}},{"$f":"VLOOKUP($H13,INDIRECT(\"Ref_EF_Public_Transport\"&\"_\"&$D13),5,0)","v":{"$error":"#REF!"}},{"$f":"VLOOKUP($H13,INDIRECT(\"Ref_EF_Public_Transport\"&\"_\"&$D13),6,0)","v":{"$error":"#REF!"}},{"$f":"VLOOKUP($H13,INDIRECT(\"Ref_EF_Public_Transport\"&\"_\"&$D13),4,0)","v":{"$error":"#REF!"}},{"$f":"IF(ISERROR(COLUMN(INDIRECT($AT13))),FALSE,TRUE)","v":false},{"$f":"IF(AND($F13=\"Scope 1\",OR($G13=\"Fuel Use\",$G13=\"Custom Fuel\",$G13=\"Fuel Use and Vehicle Distance\")),$Q13,IF(AND($F13=\"Scope 1\",OR($G13=\"Vehicle Distance (e.g. Road Transport)\",$G13=\"Custom Vehicle\"),ISBLANK($N13)=FALSE),$Q13,\"\"))","v":""},{"$f":"IF(AND($F13=\"Scope 1\",AND(OR($G13=\"Vehicle Distance (e.g. Road Transport)\",$G13=\"Custom Vehicle\"),OR($D13=\"US\",$D13=\"Other\"),ISBLANK($N13)=TRUE)),$Q13,IF(AND($F13=\"Scope 1\",$G13<>\"Fuel Use\",ISBLANK($N13)=TRUE),$Q13,\"\"))","v":""},{"$f":"IF(AND(OR(G13=\"Fuel Use\",G13=\"Custom Fuel\"),F13=\"Scope 1\",ISBLANK(I13)=TRUE),R13,\"\")","v":""},{"$f":"IF(AND(OR(G13=\"Fuel Use\",G13=\"Custom Fuel\"),F13=\"Scope 1\",ISBLANK(I13)=FALSE),R13,IF(AND(G13<>\"Fuel Use\",G13<>\"Custom Fuel\",F13=\"Scope 1\"),R13,\"\"))","v":""},{"$f":"IF(AND(OR(G13=\"Fuel Use\",G13=\"Custom Fuel\"),F13=\"Scope 1\",ISBLANK(I13)=TRUE),S13,\"\")","v":""},{"$f":"IF(AND(OR(G13=\"Fuel Use\",G13=\"Custom Fuel\"),F13=\"Scope 1\",ISBLANK(I13)=FALSE),S13,IF(AND(G13<>\"Fuel Use\",G13<>\"Custom Fuel\",F13=\"Scope 1\"),S13,\"\"))","v":""},{"$f":"IF(AND($F13=\"Scope 3\",OR($G13=\"Fuel Use\",$G13=\"Custom Fuel\",$G13=\"Fuel Use and Vehicle Distance\")),$Q13,IF(AND($F13=\"Scope 3\",OR($G13=\"Vehicle Distance (e.g. Road Transport)\",$G13=\"Custom Vehicle\"),ISBLANK($N13)=FALSE),$Q13,\"\"))","v":""},{"$f":"IF(AND($F13=\"Scope 3\",AND(OR($G13=\"Vehicle Distance (e.g. Road Transport)\",$G13=\"Custom Vehicle\"),OR($D13=\"US\",$D13=\"Other\"),ISBLANK($N13)=TRUE)),$Q13,IF(AND($F13=\"Scope 3\",$G13<>\"Fuel Use\",ISBLANK($N13)=TRUE),$Q13,\"\"))","v":""},{"$f":"IF(AND(OR(G13=\"Fuel Use\",G13=\"Custom Fuel\"),F13=\"Scope 3\",ISBLANK(I13)=TRUE),R13,\"\")","v":""},{"$f":"IF(AND(OR(G13=\"Fuel Use\",G13=\"Custom Fuel\"),F13=\"Scope 3\",ISBLANK(I13)=FALSE),R13,IF(AND(G13<>\"Fuel Use\",G13<>\"Custom Fuel\",F13=\"Scope 3\"),R13,\"\"))","v":""},{"$f":"IF(AND(OR(G13=\"Fuel Use\",G13=\"Custom Fuel\"),F13=\"Scope 3\",ISBLANK(I13)=TRUE),S13,\"\")","v":""},{"$f":"IF(AND(OR(G13=\"Fuel Use\",G13=\"Custom Fuel\"),F13=\"Scope 3\",ISBLANK(I13)=FALSE),S13,IF(AND(G13<>\"Fuel Use\",G13<>\"Custom Fuel\",F13=\"Scope 3\"),S13,\"\"))","v":""},{"$f":"IF(OR($G13=\"Fuel Use\",$G13=\"Custom Fuel\"),$U13,IF(AND(OR($G13=\"Vehicle Distance (e.g. Road Transport)\",$G13=\"Custom Vehicle\"),ISBLANK($N13)=FALSE),$U13,\"\"))","v":""},{"$f":"IF(AND(AND(OR($G13=\"Vehicle Distance (e.g. Road Transport)\",$G13=\"Custom Vehicle\"),OR($D13=\"US\",$D13=\"Other\"),ISBLANK($N13)=TRUE)),$U13,IF(AND($G13<>\"Fuel Use\",ISBLANK($N13)=TRUE),$U13,\"\"))","v":""},"","","","","","","","","","","","","","","","","","","","","","","","","","","","",{"$f":"IF($G13=\"Weight Distance (e.g. Freight Transport)\",\"Ref_DD_WeightDistanceUnits\",IF($G13=\"Passenger Distance (e.g. Public Transport)\",\"Ref_DD_PasengerDistanceUnits\",IF($G13=\"Custom Vehicle\",\"Set_DD_Vehicle_Units\",\"Ref_DD_DistanceUnit\")))","v":"Ref_DD_DistanceUnit"},"",{"$f":"IF($G13=\"Custom vehicle\",IF(OR($L13=\"Passenger Mile\",$L13=\"Passenger Kilometer\"),\"Passenger Distance (e.g. Public Transport)\",IF(OR($L13=\"Tonne Mile\",$L13=\"Tonne Kilometer\"),\"Weight Distance (e.g. Freight Transport)\",\"Vehicle Distance (e.g. Road Transport)\")),$G13)","v":0}]
[null,null,null,null,null,null,null,null,null,null,null,null,null,null,null,null,"","","","","",{"$error":"#REF!"},{"$error":"#REF!"},{"$error":"#REF!"},{"$error":"#REF!"},{"$error":"#REF!"},{"$error":"#REF!"},{"$error":"#REF!"},{"$error":"#REF!"},{"$error":"#REF!"},{"$error":"#REF!"},{"$error":"#REF!"},{"$error":"#REF!"},{"$f":"INDEX(Ref_Master_Unit_Table,MATCH($W14,REF_To_Unit,0),MATCH('Reference - Lookup and Unit'!$A$11,Ref_From_Units,0))","v":{"$error":"#REF!"}},{"$error":"#N/A"},{"$f":"INDEX(Ref_Master_Unit_Table,MATCH($Z14,REF_To_Unit,0),MATCH('Reference - Lookup and Unit'!$A$11,Ref_From_Units,0))","v":{"$error":"#REF!"}},{"$error":"#N/A"},{"$f":"INDEX(Ref_Master_Unit_Table,MATCH($AC14,REF_To_Unit,0),MATCH('Reference - Lookup and Unit'!$A$11,Ref_From_Units,0))","v":{"$error":"#REF!"}},{"$error":"#N/A"},{"$f":"INDEX(Ref_Master_Unit_Table,MATCH($AF14,REF_To_Unit,0),MATCH('Reference - Lookup and Unit'!$A$11,Ref_From_Units,0))","v":{"$error":"#REF!"}},{"$error":"#N/A"},1,28,265,1,"Ref_DD_vehicle_Passenger_",{"$error":"#REF!"},{"$error":"#REF!"},{"$error":"#REF!"},{"$error":"#REF!"},false,"","","","","","","","","","","","","","","","","","","","","","","","","","","","","","","","","","","","","","","","","","","Ref_DD_DistanceUnit","",0]
[null,null,null,null,null,null,null,null,null,null,null,null,null,null,null,null,"","","",{"$f":"IF(AND(ISERROR($Q15*$AP15)=FALSE,ISERROR((R15/1000)*$AQ15)=FALSE,ISERROR((S15/1000)*$AR15)=FALSE),($Q15*$AP15)+((R15/1000)*$AQ15)+((S15/1000)*$AR15),IF(AND(ISERROR($Q15*$AP15)=FALSE,ISERROR((R15/1000)*$AQ15)=FALSE,ISERROR((S15/1000)*$AR15)=TRUE),($Q15*$AP15)+((R15/1000)*$AQ15),IF(AND(ISERROR($Q15*$AP15)=FALSE,ISERROR((R15/1000)*$AQ15)=TRUE,ISERROR((S15/1000)*$AR15)=FALSE),($Q15*$AP15)+((S15/1000)*$AR15),IF(AND(ISERROR($Q15*$AP15)=FALSE,ISERROR((R15/1000)*$AQ15)=TRUE,ISERROR((S15/1000)*$AR15)=TRUE),($Q15*$AP15),IF(AND(ISERROR($Q15*$AP15)=TRUE,ISERROR((R15/1000)*$AQ15)=FALSE,ISERROR((S15/1000)*$AR15)=FALSE),((R15/1000)*$AQ15)+((S15/1000)*$AR15),IF(AND(ISERROR($Q15*$AP15)=TRUE,ISERROR((R15/1000)*$AQ15)=FALSE,ISERROR((S15/1000)*$AR15)=TRUE),((R15/1000)*$AQ15),CQ15))))))","v":""},"",{"$error":"#REF!"},{"$error":"#REF!"},{"$error":"#REF!"},{"$error":"#REF!"},{"$error":"#REF!"},{"$error":"#REF!"},{"$error":"#REF!"},{"$error":"#REF!"},{"$error":"#REF!"},{"$error":"#REF!"},{"$error":"#REF!"},{"$error":"#REF!"},{"$f":"INDEX(Ref_Master_Unit_Table,MATCH($W15,REF_To_Unit,0),MATCH('Reference - Lookup and Unit'!$A$11,Ref_From_Units,0))","v":{"$error":"#REF!"}},{"$error":"#N/A"},{"$f":"INDEX(Ref_Master_Unit_Table,MATCH($Z15,REF_To_Unit,0),MATCH('Reference - Lookup and Unit'!$A$11,Ref_From_Units,0))","v":{"$error":"#REF!"}},{"$error":"#N/A"},{"$f":"INDEX(Ref_Master_Unit_Table,MATCH($AC15,REF_To_Unit,0),MATCH('Reference - Lookup and Unit'!$A$11,Ref_From_Units,0))","v":{"$error":"#REF!"}},{"$error":"#N/A"},{"$f":"INDEX(Ref_Master_Unit_Table,MATCH($AF15,REF_To_Unit,0),MATCH('Reference - Lookup and Unit'!$A$11,Ref_From_Units,0))","v":{"$error":"#REF!"}},{"$error":"#N/A"},1,28,265,1,"Ref_DD_vehicle_Passenger_",{"$error":"#REF!"},{"$error":"#REF!"},{"$error":"#REF!"},{"$error":"#REF!"},false,"","",{"$f":"IF(AND(OR(G15=\"Fuel Use\",G15=\"Custom Fuel\"),F15=\"Scope 1\",ISBLANK(I15)=TRUE),R15,\"\")","v":""},{"$f":"IF(AND(OR(G15=\"Fuel Use\",G15=\"Custom Fuel\"),F15=\"Scope 1\",ISBLANK(I15)=FALSE),R15,IF(AND(G15<>\"Fuel Use\",G15<>\"Custom Fuel\",F15=\"Scope 1\"),R15,\"\"))","v":""},{"$f":"IF(AND(OR(G15=\"Fuel Use\",G15=\"Custom Fuel\"),F15=\"Scope 1\",ISBLANK(I15)=TRUE),S15,\"\")","v":""},{"$f":"IF(AND(OR(G15=\"Fuel Use\",G15=\"Custom Fuel\"),F15=\"Scope 1\",ISBLANK(I15)=FALSE),S15,IF(AND(G15<>\"Fuel Use\",G15<>\"Custom Fuel\",F15=\"Scope 1\"),S15,\"\"))","v":""},"","",{"$f":"IF(AND(OR(G15=\"Fuel Use\",G15=\"Custom Fuel\"),F15=\"Scope 3\",ISBLANK(I15)=TRUE),R15,\"\")","v":""},{"$f":"IF(AND(OR(G15=\"Fuel Use\",G15=\"Custom Fuel\"),F15=\"Scope 3\",ISBLANK(I15)=FALSE),R15,IF(AND(G15<>\"Fuel Use\",G15<>\"Custom Fuel\",F15=\"Scope 3\"),R15,\"\"))","v":""},{"$f":"IF(AND(OR(G15=\"Fuel Use\",G15=\"Custom Fuel\"),F15=\"Scope 3\",ISBLANK(I15)=TRUE),S15,\"\")","v":""},{"$f":"IF(AND(OR(G15=\"Fuel Use\",G15=\"Custom Fuel\"),F15=\"Scope 3\",ISBLANK(I15)=FALSE),S15,IF(AND(G15<>\"Fuel Use\",G15<>\"Custom Fuel\",F15=\"Scope 3\"),S15,\"\"))","v":""},"","","","","","","","","","","","","","","","","","","","","","","","","","","","","","","Ref_DD_DistanceUnit",{"$f":"IF(AND(ISERROR($Q15*$AP15)=TRUE,ISERROR((R15/1000)*$AQ15)=TRUE,ISERROR((S15/1000)*$AR15)=FALSE),((S15/1000)*$AR15),\"\")","v":""},0]
[null,null,null,null,null,null,null,null,null,null,null,null,null,null,null,null,"","","",{"$f":"IF(AND(ISERROR($Q16*$AP16)=FALSE,ISERROR((R16/1000)*$AQ16)=FALSE,ISERROR((S16/1000)*$AR16)=FALSE),($Q16*$AP16)+((R16/1000)*$AQ16)+((S16/1000)*$AR16),IF(AND(ISERROR($Q16*$AP16)=FALSE,ISERROR((R16/1000)*$AQ16)=FALSE,ISERROR((S16/1000)*$AR16)=TRUE),($Q16*$AP16)+((R16/1000)*$AQ16),IF(AND(ISERROR($Q16*$AP16)=FALSE,ISERROR((R16/1000)*$AQ16)=TRUE,ISERROR((S16/1000)*$AR16)=FALSE),($Q16*$AP16)+((S16/1000)*$AR16),IF(AND(ISERROR($Q16*$AP16)=FALSE,ISERROR((R16/1000)*$AQ16)=TRUE,ISERROR((S16/1000)*$AR16)=TRUE),($Q16*$AP16),IF(AND(ISERROR($Q16*$AP16)=TRUE,ISERROR((R16/1000)*$AQ16)=FALSE,ISERROR((S16/1000)*$AR16)=FALSE),((R16/1000)*$AQ16)+((S16/1000)*$AR16),IF(AND(ISERROR($Q16*$AP16)=TRUE,ISERROR((R16/1000)*$AQ16)=FALSE,ISERROR((S16/1000)*$AR16)=TRUE),((R16/1000)*$AQ16),CQ16))))))","v":""},"",{"$error":"#REF!"},{"$error":"#REF!"},{"$error":"#REF!"},{"$error":"#REF!"},{"$error":"#REF!"},{"$error":"#REF!"},{"$error":"#REF!"},{"$error":"#REF!"},{"$error":"#REF!"},{"$error":"#REF!"},{"$error":"#REF!"},{"$error":"#REF!"},{"$f":"INDEX(Ref_Master_Unit_Table,MATCH($W16,REF_To_Unit,0),MATCH('Reference - Lookup and Unit'!$A$11,Ref_From_Units,0))","v":{"$error":"#REF!"}},{"$error":"#N/A"},{"$f":"INDEX(Ref_Master_Unit_Table,MATCH($Z16,REF_To_Unit,0),MATCH('Reference - Lookup and Unit'!$A$11,Ref_From_Units,0))","v":{"$error":"#REF!"}},{"$error":"#N/A"},{"$f":"INDEX(Ref_Master_Unit_Table,MATCH($AC16,REF_To_Unit,0),MATCH('Reference - Lookup and Unit'!$A$11,Ref_From_Units,0))","v":{"$error":"#REF!"}},{"$error":"#N/A"},{"$f":"INDEX(Ref_Master_Unit_Table,MATCH($AF16,REF_To_Unit,0),MATCH('Reference - Lookup and Unit'!$A$11,Ref_From_Units,0))","v":{"$error":"#REF!"}},{"$error":"#N/A"},1,28,265,1,"Ref_DD_vehicle_Passenger_",{"$error":"#REF!"},{"$error":"#REF!"},{"$error":"#REF!"},{"$error":"#REF!"},false,"","",{"$f":"IF(AND(OR(G16=\"Fuel Use\",G16=\"Custom Fuel\"),F16=\"Scope 1\",ISBLANK(I16)=TRUE),R16,\"\")","v":""},{"$f":"IF(AND(OR(G16=\"Fuel Use\",G16=\"Custom Fuel\"),F16=\"Scope 1\",ISBLANK(I16)=FALSE),R16,IF(AND(G16<>\"Fuel Use\",G16<>\"Custom Fuel\",F16=\"Scope 1\"),R16,\"\"))","v":""},{"$f":"IF(AND(OR(G16=\"Fuel Use\",G16=\"Custom Fuel\"),F16=\"Scope 1\",ISBLANK(I16)=TRUE),S16,\"\")","v":""},{"$f":"IF(AND(OR(G16=\"Fuel Use\",G16=\"Custom Fuel\"),F16=\"Scope 1\",ISBLANK(I16)=FALSE),S16,IF(AND(G16<>\"Fuel Use\",G16<>\"Custom Fuel\",F16=\"Scope 1\"),S16,\"\"))","v":""},"","",{"$f":"IF(AND(OR(G16=\"Fuel Use\",G16=\"Custom Fuel\"),F16=\"Scope 3\",ISBLANK(I16)=TRUE),R16,\"\")","v":""},{"$f":"IF(AND(OR(G16=\"Fuel Use\",G16=\"Custom Fuel\"),F16=\"Scope 3\",ISBLANK(I16)=FALSE),R16,IF(AND(G16<>\"Fuel Use\",G16<>\"Custom Fuel\",F16=\"Scope 3\"),R16,\"\"))","v":""},{"$f":"IF(AND(OR(G16=\"Fuel Use\",G16=\"Custom Fuel\"),F16=\"Scope 3\",ISBLANK(I16)=TRUE),S16,\"\")","v":""},{"$f":"IF(AND(OR(G16=\"Fuel Use\",G16=\"Custom Fuel\"),F16=\"Scope 3\",ISBLANK(I16)=FALSE),S16,IF(AND(G16<>\"Fuel Use\",G16<>\"Custom Fuel\",F16=\"Scope 3\"),S16,\"\"))","v":""},"","","","","","","","","","","","","","","","","","","","","","","","","","","","","","","Ref_DD_DistanceUnit",{"$f":"IF(AND(ISERROR($Q16*$AP16)=TRUE,ISERROR((R16/1000)*$AQ16)=TRUE,ISERROR((S16/1000)*$AR16)=FALSE),((S16/1000)*$AR16),\"\")","v":""},0]
[null,null,null,null,null,null,null,null,null,null,null,null,null,null,null,null,"","","",{"$f":"IF(AND(ISERROR($Q17*$AP17)=FALSE,ISERROR((R17/1000)*$AQ17)=FALSE,ISERROR((S17/1000)*$AR17)=FALSE),($Q17*$AP17)+((R17/1000)*$AQ17)+((S17/1000)*$AR17),IF(AND(ISERROR($Q17*$AP17)=FALSE,ISERROR((R17/1000)*$AQ17)=FALSE,ISERROR((S17/1000)*$AR17)=TRUE),($Q17*$AP17)+((R17/1000)*$AQ17),IF(AND(ISERROR($Q17*$AP17)=FALSE,ISERROR((R17/1000)*$AQ17)=TRUE,ISERROR((S17/1000)*$AR17)=FALSE),($Q17*$AP17)+((S17/1000)*$AR17),IF(AND(ISERROR($Q17*$AP17)=FALSE,ISERROR((R17/1000)*$AQ17)=TRUE,ISERROR((S17/1000)*$AR17)=TRUE),($Q17*$AP17),IF(AND(ISERROR($Q17*$AP17)=TRUE,ISERROR((R17/1000)*$AQ17)=FALSE,ISERROR((S17/1000)*$AR17)=FALSE),((R17/1000)*$AQ17)+((S17/1000)*$AR17),IF(AND(ISERROR($Q17*$AP17)=TRUE,ISERROR((R17/1000)*$AQ17)=FALSE,ISERROR((S17/1000)*$AR17)=TRUE),((R17/1000)*$AQ17),CQ17))))))","v":""},"",{"$error":"#REF!"},{"$error":"#REF!"},{"$error":"#REF!"},{"$error":"#REF!"},{"$error":"#REF!"},{"$error":"#REF!"},{"$error":"#REF!"},{"$error":"#REF!"},{"$error":"#REF!"},{"$error":"#REF!"},{"$error":"#REF!"},{"$error":"#REF!"},{"$f":"INDEX(Ref_Master_Unit_Table,MATCH($W17,REF_To_Unit,0),MATCH('Reference - Lookup and Unit'!$A$11,Ref_From_Units,0))","v":{"$error":"#REF!"}},{"$error":"#N/A"},{"$f":"INDEX(Ref_Master_Unit_Table,MATCH($Z17,REF_To_Unit,0),MATCH('Reference - Lookup and Unit'!$A$11,Ref_From_Units,0))","v":{"$error":"#REF!"}},{"$error":"#N/A"},{"$f":"INDEX(Ref_Master_Unit_Table,MATCH($AC17,REF_To_Unit,0),MATCH('Reference - Lookup and Unit'!$A$11,Ref_From_Units,0))","v":{"$error":"#REF!"}},{"$error":"#N/A"},{"$f":"INDEX(Ref_Master_Unit_Table,MATCH($AF17,REF_To_Unit,0),MATCH('Reference - Lookup and Unit'!$A$11,Ref_From_Units,0))","v":{"$error":"#REF!"}},{"$error":"#N/A"},1,28,265,1,"Ref_DD_vehicle_Passenger_",{"$error":"#REF!"},{"$error":"#REF!"},{"$error":"#REF!"},{"$error":"#REF!"},false,"","",{"$f":"IF(AND(OR(G17=\"Fuel Use\",G17=\"Custom Fuel\"),F17=\"Scope 1\",ISBLANK(I17)=TRUE),R17,\"\")","v":""},{"$f":"IF(AND(OR(G17=\"Fuel Use\",G17=\"Custom Fuel\"),F17=\"Scope 1\",ISBLANK(I17)=FALSE),R17,IF(AND(G17<>\"Fuel Use\",G17<>\"Custom Fuel\",F17=\"Scope 1\"),R17,\"\"))","v":""},{"$f":"IF(AND(OR(G17=\"Fuel Use\",G17=\"Custom Fuel\"),F17=\"Scope 1\",ISBLANK(I17)=TRUE),S17,\"\")","v":""},{"$f":"IF(AND(OR(G17=\"Fuel Use\",G17=\"Custom Fuel\"),F17=\"Scope 1\",ISBLANK(I17)=FALSE),S17,IF(AND(G17<>\"Fuel Use\",G17<>\"Custom Fuel\",F17=\"Scope 1\"),S17,\"\"))","v":""},"","",{"$f":"IF(AND(OR(G17=\"Fuel Use\",G17=\"Custom Fuel\"),F17=\"Scope 3\",ISBLANK(I17)=TRUE),R17,\"\")","v":""},{"$f":"IF(AND(OR(G17=\"Fuel Use\",G17=\"Custom Fuel\"),F17=\"Scope 3\",ISBLANK(I17)=FALSE),R17,IF(AND(G17<>\"Fuel Use\",G17<>\"Custom Fuel\",F17=\"Scope 3\"),R17,\"\"))","v":""},{"$f":"IF(AND(OR(G17=\"Fuel Use\",G17=\"Custom Fuel\"),F17=\"Scope 3\",ISBLANK(I17)=TRUE),S17,\"\")","v":""},{"$f":"IF(AND(OR(G17=\"Fuel Use\",G17=\"Custom Fuel\"),F17=\"Scope 3\",ISBLANK(I17)=FALSE),S17,IF(AND(G17<>\"Fuel Use\",G17<>\"Custom Fuel\",F17=\"Scope 3\"),S17,\"\"))","v":""},"","","","","","","","","","","","","","","","","","","","","","","","","","","","","","","Ref_DD_DistanceUnit",{"$f":"IF(AND(ISERROR($Q17*$AP17)=TRUE,ISERROR((R17/1000)*$AQ17)=TRUE,ISERROR((S17/1000)*$AR17)=FALSE),((S17/1000)*$AR17),\"\")","v":""},0]
[null,null,null,null,null,null,null,null,null,null,null,null,null,null,null,null,"","","",{"$f":"IF(AND(ISERROR($Q18*$AP18)=FALSE,ISERROR((R18/1000)*$AQ18)=FALSE,ISERROR((S18/1000)*$AR18)=FALSE),($Q18*$AP18)+((R18/1000)*$AQ18)+((S18/1000)*$AR18),IF(AND(ISERROR($Q18*$AP18)=FALSE,ISERROR((R18/1000)*$AQ18)=FALSE,ISERROR((S18/1000)*$AR18)=TRUE),($Q18*$AP18)+((R18/1000)*$AQ18),IF(AND(ISERROR($Q18*$AP18)=FALSE,ISERROR((R18/1000)*$AQ18)=TRUE,ISERROR((S18/1000)*$AR18)=FALSE),($Q18*$AP18)+((S18/1000)*$AR18),IF(AND(ISERROR($Q18*$AP18)=FALSE,ISERROR((R18/1000)*$AQ18)=TRUE,ISERROR((S18/1000)*$AR18)=TRUE),($Q18*$AP18),IF(AND(ISERROR($Q18*$AP18)=TRUE,ISERROR((R18/1000)*$AQ18)=FALSE,ISERROR((S18/1000)*$AR18)=FALSE),((R18/1000)*$AQ18)+((S18/1000)*$AR18),IF(AND(ISERROR($Q18*$AP18)=TRUE,ISERROR((R18/1000)*$AQ18)=FALSE,ISERROR((S18/1000)*$AR18)=TRUE),((R18/1000)*$AQ18),CQ18))))))","v":""},"",{"$error":"#REF!"},{"$error":"#REF!"},{"$error":"#REF!"},{"$error":"#REF!"},{"$error":"#REF!"},{"$error":"#REF!"},{"$error":"#REF!"},{"$error":"#REF!"},{"$error":"#REF!"},{"$error":"#REF!"},{"$error":"#REF!"},{"$error":"#REF!"},{"$f":"INDEX(Ref_Master_Unit_Table,MATCH($W18,REF_To_Unit,0),MATCH('Reference - Lookup and Unit'!$A$11,Ref_From_Units,0))","v":{"$error":"#REF!"}},{"$error":"#N/A"},{"$f":"INDEX(Ref_Master_Unit_Table,MATCH($Z18,REF_To_Unit,0),MATCH('Reference - Lookup and Unit'!$A$11,Ref_From_Units,0))","v":{"$error":"#REF!"}},{"$error":"#N/A"},{"$f":"INDEX(Ref_Master_Unit_Table,MATCH($AC18,REF_To_Unit,0),MATCH('Reference - Lookup and Unit'!$A$11,Ref_From_Units,0))","v":{"$error":"#REF!"}},{"$error":"#N/A"},{"$f":"INDEX(Ref_Master_Unit_Table,MATCH($AF18,REF_To_Unit,0),MATCH('Reference - Lookup and Unit'!$A$11,Ref_From_Units,0))","v":{"$error":"#REF!"}},{"$error":"#N/A"},1,28,265,1,"Ref_DD_vehicle_Passenger_",{"$error":"#REF!"},{"$error":"#REF!"},{"$error":"#REF!"},{"$error":"#REF!"},false,"","",{"$f":"IF(AND(OR(G18=\"Fuel Use\",G18=\"Custom Fuel\"),F18=\"Scope 1\",ISBLANK(I18)=TRUE),R18,\"\")","v":""},{"$f":"IF(AND(OR(G18=\"Fuel Use\",G18=\"Custom Fuel\"),F18=\"Scope 1\",ISBLANK(I18)=FALSE),R18,IF(AND(G18<>\"Fuel Use\",G18<>\"Custom Fuel\",F18=\"Scope 1\"),R18,\"\"))","v":""},{"$f":"IF(AND(OR(G18=\"Fuel Use\",G18=\"Custom Fuel\"),F18=\"Scope 1\",ISBLANK(I18)=TRUE),S18,\"\")","v":""},{"$f":"IF(AND(OR(G18=\"Fuel Use\",G18=\"Custom Fuel\"),F18=\"Scope 1\",ISBLANK(I18)=FALSE),S18,IF(AND(G18<>\"Fuel Use\",G18<>\"Custom Fuel\",F18=\"Scope 1\"),S18,\"\"))","v":""},"","",{"$f":"IF(AND(OR(G18=\"Fuel Use\",G18=\"Custom Fuel\"),F18=\"Scope 3\",ISBLANK(I18)=TRUE),R18,\"\")","v":""},{"$f":"IF(AND(OR(G18=\"Fuel Use\",G18=\"Custom Fuel\"),F18=\"Scope 3\",ISBLANK(I18)=FALSE),R18,IF(AND(G18<>\"Fuel Use\",G18<>\"Custom Fuel\",F18=\"Scope 3\"),R18,\"\"))","v":""},{"$f":"IF(AND(OR(G18=\"Fuel Use\",G18=\"Custom Fuel\"),F18=\"Scope 3\",ISBLANK(I18)=TRUE),S18,\"\")","v":""},{"$f":"IF(AND(OR(G18=\"Fuel Use\",G18=\"Custom Fuel\"),F18=\"Scope 3\",ISBLANK(I18)=FALSE),S18,IF(AND(G18<>\"Fuel Use\",G18<>\"Custom Fuel\",F18=\"Scope 3\"),S18,\"\"))","v":""},"","","","","","","","","","","","","","","","","","","","","","","","","","","","","","","Ref_DD_DistanceUnit",{"$f":"IF(AND(ISERROR($Q18*$AP18)=TRUE,ISERROR((R18/1000)*$AQ18)=TRUE,ISERROR((S18/1000)*$AR18)=FALSE),((S18/1000)*$AR18),\"\")","v":""},0]
[null,null,null,null,null,null,null,null,null,null,null,null,null,null,null,null,"","","","","",{"$error":"#REF!"},{"$error":"#REF!"},{"$error":"#REF!"},{"$error":"#REF!"},{"$error":"#REF!"},{"$error":"#REF!"},{"$error":"#REF!"},{"$error":"#REF!"},{"$error":"#REF!"},{"$error":"#REF!"},{"$error":"#REF!"},{"$error":"#REF!"},{"$f":"INDEX(Ref_Master_Unit_Table,MATCH($W19,REF_To_Unit,0),MATCH('Reference - Lookup and Unit'!$A$11,Ref_From_Units,0))","v":{"$error":"#REF!"}},{"$error":"#N/A"},{"$f":"INDEX(Ref_Master_Unit_Table,MATCH($Z19,REF_To_Unit,0),MATCH('Reference - Lookup and Unit'!$A$11,Ref_From_Units,0))","v":{"$error":"#REF!"}},{"$error":"#N/A"},{"$f":"INDEX(Ref_Master_Unit_Table,MATCH($AC19,REF_To_Unit,0),MATCH('Reference - Lookup and Unit'!$A$11,Ref_From_Units,0))","v":{"$error":"#REF!"}},{"$error":"#N/A"},{"$f":"INDEX(Ref_Master_Unit_Table,MATCH($AF19,REF_To_Unit,0),MATCH('Reference - Lookup and Unit'!$A$11,Ref_From_Units,0))","v":{"$error":"#REF!"}},{"$error":"#N/A"},1,28,265,1,"Ref_DD_vehicle_Passenger_",{"$error":"#REF!"},{"$error":"#REF!"},{"$error":"#REF!"},{"$error":"#REF!"},false,"","","","","","","","","","","","","","","","","","","","","","","","","","","","","","","","","","","","","","","","","","","Ref_DD_DistanceUnit","",0]
[null,null,null,null,null,null,null,null,null,null,null,null,null,null,null,null,"","","","","",{"$error":"#REF!"},{"$error":"#REF!"},{"$error":"#REF!"},{"$error":"#REF!"},{"$error":"#REF!"},{"$error":"#REF!"},{"$error":"#REF!"},{"$error":"#REF!"},{"$error":"#REF!"},{"$error":"#REF!"},{"$error":"#REF!"},{"$error":"#REF!"},{"$f":"INDEX(Ref_Master_Unit_Table,MATCH($W20,REF_To_Unit,0),MATCH('Reference - Lookup and Unit'!$A$11,Ref_From_Units,0))","v":{"$error":"#REF!"}},{"$error":"#N/A"},{"$f":"INDEX(Ref_Master_Unit_Table,MATCH($Z20,REF_To_Unit,0),MATCH('Reference - Lookup and Unit'!$A$11,Ref_From_Units,0))","v":{"$error":"#REF!"}},{"$error":"#N/A"},{"$f":"INDEX(Ref_Master_Unit_Table,MATCH($AC20,REF_To_Unit,0),MATCH('Reference - Lookup and Unit'!$A$11,Ref_From_Units,0))","v":{"$error":"#REF!"}},{"$error":"#N/A"},{"$f":"INDEX(Ref_Master_Unit_Table,MATCH($AF20,REF_To_Unit,0),MATCH('Reference - Lookup and Unit'!$A$11,Ref_From_Units,0))","v":{"$error":"#REF!"}},{"$error":"#N/A"},1,28,265,1,"Ref_DD_vehicle_Passenger_",{"$error":"#REF!"},{"$error":"#REF!"},{"$error":"#REF!"},{"$error":"#REF!"},false,"","","","","","","","","","","","","","","","","","","","","","","","","","","","","","","","","","","","","","","","","","","Ref_DD_DistanceUnit","",0]
[null,null,null,null,null,null,null,null,null,null,null,null,null,null,null,null,"","","","","",{"$error":"#REF!"},{"$error":"#REF!"},{"$error":"#REF!"},{"$error":"#REF!"},{"$error":"#REF!"},{"$error":"#REF!"},{"$error":"#REF!"},{"$error":"#REF!"},{"$error":"#REF!"},{"$error":"#REF!"},{"$error":"#REF!"},{"$error":"#REF!"},{"$f":"INDEX(Ref_Master_Unit_Table,MATCH($W21,REF_To_Unit,0),MATCH('Reference - Lookup and Unit'!$A$11,Ref_From_Units,0))","v":{"$error":"#REF!"}},{"$error":"#N/A"},{"$f":"INDEX(Ref_Master_Unit_Table,MATCH($Z21,REF_To_Unit,0),MATCH('Reference - Lookup and Unit'!$A$11,Ref_From_Units,0))","v":{"$error":"#REF!"}},{"$error":"#N/A"},{"$f":"INDEX(Ref_Master_Unit_Table,MATCH($AC21,REF_To_Unit,0),MATCH('Reference - Lookup and Unit'!$A$11,Ref_From_Units,0))","v":{"$error":"#REF!"}},{"$error":"#N/A"},{"$f":"INDEX(Ref_Master_Unit_Table,MATCH($AF21,REF_To_Unit,0),MATCH('Reference - Lookup and Unit'!$A$11,Ref_From_Units,0))","v":{"$error":"#REF!"}},{"$error":"#N/A"},1,28,265,1,"Ref_DD_vehicle_Passenger_",{"$error":"#REF!"},{"$error":"#REF!"},{"$error":"#REF!"},{"$error":"#REF!"},false,"","","","","","","","","","","","","","","","","","","","","","","","","","","","","","","","","","","","","","","","","","","Ref_DD_DistanceUnit","",0]
[null,null,null,null,null,null,null,null,null,null,null,null,null,null,null,null,"","","","","",{"$error":"#REF!"},{"$error":"#REF!"},{"$error":"#REF!"},{"$error":"#REF!"},{"$error":"#REF!"},{"$error":"#REF!"},{"$error":"#REF!"},{"$error":"#REF!"},{"$error":"#REF!"},{"$error":"#REF!"},{"$error":"#REF!"},{"$error":"#REF!"},{"$f":"INDEX(Ref_Master_Unit_Table,MATCH($W22,REF_To_Unit,0),MATCH('Reference - Lookup and Unit'!$A$11,Ref_From_Units,0))","v":{"$error":"#REF!"}},{"$error":"#N/A"},{"$f":"INDEX(Ref_Master_Unit_Table,MATCH($Z22,REF_To_Unit,0),MATCH('Reference - Lookup and Unit'!$A$11,Ref_From_Units,0))","v":{"$error":"#REF!"}},{"$error":"#N/A"},{"$f":"INDEX(Ref_Master_Unit_Table,MATCH($AC22,REF_To_Unit,0),MATCH('Reference - Lookup and Unit'!$A$11,Ref_From_Units,0))","v":{"$error":"#REF!"}},{"$error":"#N/A"},{"$f":"INDEX(Ref_Master_Unit_Table,MATCH($AF22,REF_To_Unit,0),MATCH('Reference - Lookup and Unit'!$A$11,Ref_From_Units,0))","v":{"$error":"#REF!"}},{"$error":"#N/A"},1,28,265,1,"Ref_DD_vehicle_Passenger_",{"$error":"#REF!"},{"$error":"#REF!"},{"$error":"#REF!"},{"$error":"#REF!"},false,"","","","","","","","","","","","","","","","","","","","","","","","","","","","","","","","","","","","","","","","","","","Ref_DD_DistanceUnit","",0]
[null,null,null,null,null,null,null,null,null,null,null,null,null,null,null,null,"","","","","",{"$error":"#REF!"},{"$error":"#REF!"},{"$error":"#REF!"},{"$error":"#REF!"},{"$error":"#REF!"},{"$error":"#REF!"},{"$error":"#REF!"},{"$error":"#REF!"},{"$error":"#REF!"},{"$error":"#REF!"},{"$error":"#REF!"},{"$error":"#REF!"},{"$f":"INDEX(Ref_Master_Unit_Table,MATCH($W23,REF_To_Unit,0),MATCH('Reference - Lookup and Unit'!$A$11,Ref_From_Units,0))","v":{"$error":"#REF!"}},{"$error":"#N/A"},{"$f":"INDEX(Ref_Master_Unit_Table,MATCH($Z23,REF_To_Unit,0),MATCH('Reference - Lookup and Unit'!$A$11,Ref_From_Units,0))","v":{"$error":"#REF!"}},{"$error":"#N/A"},{"$f":"INDEX(Ref_Master_Unit_Table,MATCH($AC23,REF_To_Unit,0),MATCH('Reference - Lookup and Unit'!$A$11,Ref_From_Units,0))","v":{"$error":"#REF!"}},{"$error":"#N/A"},{"$f":"INDEX(Ref_Master_Unit_Table,MATCH($AF23,REF_To_Unit,0),MATCH('Reference - Lookup and Unit'!$A$11,Ref_From_Units,0))","v":{"$error":"#REF!"}},{"$error":"#N/A"},1,28,265,1,"Ref_DD_vehicle_Passenger_",{"$error":"#REF!"},{"$error":"#REF!"},{"$error":"#REF!"},{"$error":"#REF!"},false,"","","","","","","","","","","","","","","","","","","","","","","","","","","","","","","","","","","","","","","","","","","Ref_DD_DistanceUnit","",0]
[null,null,null,null,null,null,null,null,null,null,null,null,null,null,null,null,"","","","","",{"$error":"#REF!"},{"$error":"#REF!"},{"$error":"#REF!"},{"$error":"#REF!"},{"$error":"#REF!"},{"$error":"#REF!"},{"$error":"#REF!"},{"$error":"#REF!"},{"$error":"#REF!"},{"$error":"#REF!"},{"$error":"#REF!"},{"$error":"#REF!"},{"$f":"INDEX(Ref_Master_Unit_Table,MATCH($W24,REF_To_Unit,0),MATCH('Reference - Lookup and Unit'!$A$11,Ref_From_Units,0))","v":{"$error":"#REF!"}},{"$error":"#N/A"},{"$f":"INDEX(Ref_Master_Unit_Table,MATCH($Z24,REF_To_Unit,0),MATCH('Reference - Lookup and Unit'!$A$11,Ref_From_Units,0))","v":{"$error":"#REF!"}},{"$error":"#N/A"},{"$f":"INDEX(Ref_Master_Unit_Table,MATCH($AC24,REF_To_Unit,0),MATCH('Reference - Lookup and Unit'!$A$11,Ref_From_Units,0))","v":{"$error":"#REF!"}},{"$error":"#N/A"},{"$f":"INDEX(Ref_Master_Unit_Table,MATCH($AF24,REF_To_Unit,0),MATCH('Reference - Lookup and Unit'!$A$11,Ref_From_Units,0))","v":{"$error":"#REF!"}},{"$error":"#N/A"},1,28,265,1,"Ref_DD_vehicle_Passenger_",{"$error":"#REF!"},{"$error":"#REF!"},{"$error":"#REF!"},{"$error":"#REF!"},false,"","","","","","","","","","","","","","","","","","","","","","","","","","","","","","","","","","","","","","","","","","","Ref_DD_DistanceUnit","",0]
[null,null,null,null,null,null,null,null,null,null,null,null,null,null,null,null,"","","","","",{"$error":"#REF!"},{"$error":"#REF!"},{"$error":"#REF!"},{"$error":"#REF!"},{"$error":"#REF!"},{"$error":"#REF!"},{"$error":"#REF!"},{"$error":"#REF!"},{"$error":"#REF!"},{"$error":"#REF!"},{"$error":"#REF!"},{"$error":"#REF!"},{"$f":"INDEX(Ref_Master_Unit_Table,MATCH($W25,REF_To_Unit,0),MATCH('Reference - Lookup and Unit'!$A$11,Ref_From_Units,0))","v":{"$error":"#REF!"}},{"$error":"#N/A"},{"$f":"INDEX(Ref_Master_Unit_Table,MATCH($Z25,REF_To_Unit,0),MATCH('Reference - Lookup and Unit'!$A$11,Ref_From_Units,0))","v":{"$error":"#REF!"}},{"$error":"#N/A"},{"$f":"INDEX(Ref_Master_Unit_Table,MATCH($AC25,REF_To_Unit,0),MATCH('Reference - Lookup and Unit'!$A$11,Ref_From_Units,0))","v":{"$error":"#REF!"}},{"$error":"#N/A"},{"$f":"INDEX(Ref_Master_Unit_Table,MATCH($AF25,REF_To_Unit,0),MATCH('Reference - Lookup and Unit'!$A$11,Ref_From_Units,0))","v":{"$error":"#REF!"}},{"$error":"#N/A"},1,28,265,1,"Ref_DD_vehicle_Passenger_",{"$error":"#REF!"},{"$error":"#REF!"},{"$error":"#REF!"},{"$error":"#REF!"},false,"","","","","","","","","","","","","","","","","","","","","","","","","","","","","","","","","","","","","","","","","","","Ref_DD_DistanceUnit","",0]
[null,null,null,null,null,null,null,null,null,null,null,null,null,null,null,null,"","","","","",{"$error":"#REF!"},{"$error":"#REF!"},{"$error":"#REF!"},{"$error":"#REF!"},{"$error":"#REF!"},{"$error":"#REF!"},{"$error":"#REF!"},{"$error":"#REF!"},{"$error":"#REF!"},{"$error":"#REF!"},{"$error":"#REF!"},{"$error":"#REF!"},{"$f":"INDEX(Ref_Master_Unit_Table,MATCH($W26,REF_To_Unit,0),MATCH('Reference - Lookup and Unit'!$A$11,Ref_From_Units,0))","v":{"$error":"#REF!"}},{"$error":"#N/A"},{"$f":"INDEX(Ref_Master_Unit_Table,MATCH($Z26,REF_To_Unit,0),MATCH('Reference - Lookup and Unit'!$A$11,Ref_From_Units,0))","v":{"$error":"#REF!"}},{"$error":"#N/A"},{"$f":"INDEX(Ref_Master_Unit_Table,MATCH($AC26,REF_To_Unit,0),MATCH('Reference - Lookup and Unit'!$A$11,Ref_From_Units,0))","v":{"$error":"#REF!"}},{"$error":"#N/A"},{"$f":"INDEX(Ref_Master_Unit_Table,MATCH($AF26,REF_To_Unit,0),MATCH('Reference - Lookup and Unit'!$A$11,Ref_From_Units,0))","v":{"$error":"#REF!"}},{"$error":"#N/A"},1,28,265,1,"Ref_DD_vehicle_Passenger_",{"$error":"#REF!"},{"$error":"#REF!"},{"$error":"#REF!"},{"$error":"#REF!"},false,"","","","","","","","","","","","","","","","","","","","","","","","","","","","","","","","","","","","","","","","","","","Ref_DD_DistanceUnit","",0]
[null,null,null,null,null,null,null,null,null,null,null,null,null,null,null,null,"","","","","",{"$error":"#REF!"},{"$error":"#REF!"},{"$error":"#REF!"},{"$error":"#REF!"},{"$error":"#REF!"},{"$error":"#REF!"},{"$error":"#REF!"},{"$error":"#REF!"},{"$error":"#REF!"},{"$error":"#REF!"},{"$error":"#REF!"},{"$error":"#REF!"},{"$f":"INDEX(Ref_Master_Unit_Table,MATCH($W27,REF_To_Unit,0),MATCH('Reference - Lookup and Unit'!$A$11,Ref_From_Units,0))","v":{"$error":"#REF!"}},{"$error":"#N/A"},{"$f":"INDEX(Ref_Master_Unit_Table,MATCH($Z27,REF_To_Unit,0),MATCH('Reference - Lookup and Unit'!$A$11,Ref_From_Units,0))","v":{"$error":"#REF!"}},{"$error":"#N/A"},{"$f":"INDEX(Ref_Master_Unit_Table,MATCH($AC27,REF_To_Unit,0),MATCH('Reference - Lookup and Unit'!$A$11,Ref_From_Units,0))","v":{"$error":"#REF!"}},{"$error":"#N/A"},{"$f":"INDEX(Ref_Master_Unit_Table,MATCH($AF27,REF_To_Unit,0),MATCH('Reference - Lookup and Unit'!$A$11,Ref_From_Units,0))","v":{"$error":"#REF!"}},{"$error":"#N/A"},1,28,265,1,"Ref_DD_vehicle_Passenger_",{"$error":"#REF!"},{"$error":"#REF!"},{"$error":"#REF!"},{"$error":"#REF!"},false,"","","","","","","","","","","","","","","","","","","","","","","","","","","","","","","","","","","","","","","","","","","Ref_DD_DistanceUnit","",0]
[null,null,null,null,null,null,null,null,null,null,null,null,null,null,null,null,"","","","","",{"$error":"#REF!"},{"$error":"#REF!"},{"$error":"#REF!"},{"$error":"#REF!"},{"$error":"#REF!"},{"$error":"#REF!"},{"$error":"#REF!"},{"$error":"#REF!"},{"$error":"#REF!"},{"$error":"#REF!"},{"$error":"#REF!"},{"$error":"#REF!"},{"$f":"INDEX(Ref_Master_Unit_Table,MATCH($W28,REF_To_Unit,0),MATCH('Reference - Lookup and Unit'!$A$11,Ref_From_Units,0))","v":{"$error":"#REF!"}},{"$error":"#N/A"},{"$f":"INDEX(Ref_Master_Unit_Table,MATCH($Z28,REF_To_Unit,0),MATCH('Reference - Lookup and Unit'!$A$11,Ref_From_Units,0))","v":{"$error":"#REF!"}},{"$error":"#N/A"},{"$f":"INDEX(Ref_Master_Unit_Table,MATCH($AC28,REF_To_Unit,0),MATCH('Reference - Lookup and Unit'!$A$11,Ref_From_Units,0))","v":{"$error":"#REF!"}},{"$error":"#N/A"},{"$f":"INDEX(Ref_Master_Unit_Table,MATCH($AF28,REF_To_Unit,0),MATCH('Reference - Lookup and Unit'!$A$11,Ref_From_Units,0))","v":{"$error":"#REF!"}},{"$error":"#N/A"},1,28,265,1,"Ref_DD_vehicle_Passenger_",{"$error":"#REF!"},{"$error":"#REF!"},{"$error":"#REF!"},{"$error":"#REF!"},false,"","","","","","","","","","","","","","","","","","","","","","","","","","","","","","","","","","","","","","","","","","","Ref_DD_DistanceUnit","",0]
[null,null,null,null,null,null,null,null,null,null,null,null,null,null,null,null,"","","","","",{"$error":"#REF!"},{"$error":"#REF!"},{"$error":"#REF!"},{"$error":"#REF!"},{"$error":"#REF!"},{"$error":"#REF!"},{"$error":"#REF!"},{"$error":"#REF!"},{"$error":"#REF!"},{"$error":"#REF!"},{"$error":"#REF!"},{"$error":"#REF!"},{"$f":"INDEX(Ref_Master_Unit_Table,MATCH($W29,REF_To_Unit,0),MATCH('Reference - Lookup and Unit'!$A$11,Ref_From_Units,0))","v":{"$error":"#REF!"}},{"$error":"#N/A"},{"$f":"INDEX(Ref_Master_Unit_Table,MATCH($Z29,REF_To_Unit,0),MATCH('Reference - Lookup and Unit'!$A$11,Ref_From_Units,0))","v":{"$error":"#REF!"}},{"$error":"#N/A"},{"$f":"INDEX(Ref_Master_Unit_Table,MATCH($AC29,REF_To_Unit,0),MATCH('Reference - Lookup and Unit'!$A$11,Ref_From_Units,0))","v":{"$error":"#REF!"}},{"$error":"#N/A"},{"$f":"INDEX(Ref_Master_Unit_Table,MATCH($AF29,REF_To_Unit,0),MATCH('Reference - Lookup and Unit'!$A$11,Ref_From_Units,0))","v":{"$error":"#REF!"}},{"$error":"#N/A"},1,28,265,1,"Ref_DD_vehicle_Passenger_",{"$error":"#REF!"},{"$error":"#REF!"},{"$error":"#REF!"},{"$error":"#REF!"},false,"","","","","","","","","","","","","","","","","","","","","","","","","","","","","","","","","","","","","","","","","","","Ref_DD_DistanceUnit","",0]
[null,null,null,null,null,null,null,null,null,null,null,null,null,null,null,null,"","","","","",{"$error":"#REF!"},{"$error":"#REF!"},{"$error":"#REF!"},{"$error":"#REF!"},{"$error":"#REF!"},{"$error":"#REF!"},{"$error":"#REF!"},{"$error":"#REF!"},{"$error":"#REF!"},{"$error":"#REF!"},{"$error":"#REF!"},{"$error":"#REF!"},{"$f":"INDEX(Ref_Master_Unit_Table,MATCH($W30,REF_To_Unit,0),MATCH('Reference - Lookup and Unit'!$A$11,Ref_From_Units,0))","v":{"$error":"#REF!"}},{"$error":"#N/A"},{"$f":"INDEX(Ref_Master_Unit_Table,MATCH($Z30,REF_To_Unit,0),MATCH('Reference - Lookup and Unit'!$A$11,Ref_From_Units,0))","v":{"$error":"#REF!"}},{"$error":"#N/A"},{"$f":"INDEX(Ref_Master_Unit_Table,MATCH($AC30,REF_To_Unit,0),MATCH('Reference - Lookup and Unit'!$A$11,Ref_From_Units,0))","v":{"$error":"#REF!"}},{"$error":"#N/A"},{"$f":"INDEX(Ref_Master_Unit_Table,MATCH($AF30,REF_To_Unit,0),MATCH('Reference - Lookup and Unit'!$A$11,Ref_From_Units,0))","v":{"$error":"#REF!"}},{"$error":"#N/A"},1,28,265,1,"Ref_DD_vehicle_Passenger_",{"$error":"#REF!"},{"$error":"#REF!"},{"$error":"#REF!"},{"$error":"#REF!"},false,"","","","","","","","","","","","","","","","","","","","","","","","","","","","","","","","","","","","","","","","","","","Ref_DD_DistanceUnit","",0]
[null,null,null,null,null,null,null,null,null,null,null,null,null,null,null,null,"","","","","",{"$error":"#REF!"},{"$error":"#REF!"},{"$error":"#REF!"},{"$error":"#REF!"},{"$error":"#REF!"},{"$error":"#REF!"},{"$error":"#REF!"},{"$error":"#REF!"},{"$error":"#REF!"},{"$error":"#REF!"},{"$error":"#REF!"},{"$error":"#REF!"},{"$f":"INDEX(Ref_Master_Unit_Table,MATCH($W31,REF_To_Unit,0),MATCH('Reference - Lookup and Unit'!$A$11,Ref_From_Units,0))","v":{"$error":"#REF!"}},{"$error":"#N/A"},{"$f":"INDEX(Ref_Master_Unit_Table,MATCH($Z31,REF_To_Unit,0),MATCH('Reference - Lookup and Unit'!$A$11,Ref_From_Units,0))","v":{"$error":"#REF!"}},{"$error":"#N/A"},{"$f":"INDEX(Ref_Master_Unit_Table,MATCH($AC31,REF_To_Unit,0),MATCH('Reference - Lookup and Unit'!$A$11,Ref_From_Units,0))","v":{"$error":"#REF!"}},{"$error":"#N/A"},{"$f":"INDEX(Ref_Master_Unit_Table,MATCH($AF31,REF_To_Unit,0),MATCH('Reference - Lookup and Unit'!$A$11,Ref_From_Units,0))","v":{"$error":"#REF!"}},{"$error":"#N/A"},1,28,265,1,"Ref_DD_vehicle_Passenger_",{"$error":"#REF!"},{"$error":"#REF!"},{"$error":"#REF!"},{"$error":"#REF!"},false,"","","","","","","","","","","","","","","","","","","","","","","","","","","","","","","","","","","","","","","","","","","Ref_DD_DistanceUnit","",0]
[null,null,null,null,null,null,null,null,null,null,null,null,null,null,null,null,"","","","","",{"$error":"#REF!"},{"$error":"#REF!"},{"$error":"#REF!"},{"$error":"#REF!"},{"$error":"#REF!"},{"$error":"#REF!"},{"$error":"#REF!"},{"$error":"#REF!"},{"$error":"#REF!"},{"$error":"#REF!"},{"$error":"#REF!"},{"$error":"#REF!"},{"$f":"INDEX(Ref_Master_Unit_Table,MATCH($W32,REF_To_Unit,0),MATCH('Reference - Lookup and Unit'!$A$11,Ref_From_Units,0))","v":{"$error":"#REF!"}},{"$error":"#N/A"},{"$f":"INDEX(Ref_Master_Unit_Table,MATCH($Z32,REF_To_Unit,0),MATCH('Reference - Lookup and Unit'!$A$11,Ref_From_Units,0))","v":{"$error":"#REF!"}},{"$error":"#N/A"},{"$f":"INDEX(Ref_Master_Unit_Table,MATCH($AC32,REF_To_Unit,0),MATCH('Reference - Lookup and Unit'!$A$11,Ref_From_Units,0))","v":{"$error":"#REF!"}},{"$error":"#N/A"},{"$f":"INDEX(Ref_Master_Unit_Table,MATCH($AF32,REF_To_Unit,0),MATCH('Reference - Lookup and Unit'!$A$11,Ref_From_Units,0))","v":{"$error":"#REF!"}},{"$error":"#N/A"},1,28,265,1,"Ref_DD_vehicle_Passenger_",{"$error":"#REF!"},{"$error":"#REF!"},{"$error":"#REF!"},{"$error":"#REF!"},false,"","","","","","","","","","","","","","","","","","","","","","","","","","","","","","","","","","","","","","","","","","","Ref_DD_DistanceUnit","",0]
[null,null,null,null,null,null,null,null,null,null,null,null,null,null,null,null,"","","","","",{"$error":"#REF!"},{"$error":"#REF!"},{"$error":"#REF!"},{"$error":"#REF!"},{"$error":"#REF!"},{"$error":"#REF!"},{"$error":"#REF!"},{"$error":"#REF!"},{"$error":"#REF!"},{"$error":"#REF!"},{"$error":"#REF!"},{"$error":"#REF!"},{"$f":"INDEX(Ref_Master_Unit_Table,MATCH($W33,REF_To_Unit,0),MATCH('Reference - Lookup and Unit'!$A$11,Ref_From_Units,0))","v":{"$error":"#REF!"}},{"$error":"#N/A"},{"$f":"INDEX(Ref_Master_Unit_Table,MATCH($Z33,REF_To_Unit,0),MATCH('Reference - Lookup and Unit'!$A$11,Ref_From_Units,0))","v":{"$error":"#REF!"}},{"$error":"#N/A"},{"$f":"INDEX(Ref_Master_Unit_Table,MATCH($AC33,REF_To_Unit,0),MATCH('Reference - Lookup and Unit'!$A$11,Ref_From_Units,0))","v":{"$error":"#REF!"}},{"$error":"#N/A"},{"$f":"INDEX(Ref_Master_Unit_Table,MATCH($AF33,REF_To_Unit,0),MATCH('Reference - Lookup and Unit'!$A$11,Ref_From_Units,0))","v":{"$error":"#REF!"}},{"$error":"#N/A"},1,28,265,1,"Ref_DD_vehicle_Passenger_",{"$error":"#REF!"},{"$error":"#REF!"},{"$error":"#REF!"},{"$error":"#REF!"},false,"","","","","","","","","","","","","","","","","","","","","","","","","","","","","","","","","","","","","","","","","","","Ref_DD_DistanceUnit","",0]
[null,null,null,null,null,null,null,null,null,null,null,null,null,null,null,null,"","","","","",{"$error":"#REF!"},{"$error":"#REF!"},{"$error":"#REF!"},{"$error":"#REF!"},{"$error":"#REF!"},{"$error":"#REF!"},{"$error":"#REF!"},{"$error":"#REF!"},{"$error":"#REF!"},{"$error":"#REF!"},{"$error":"#REF!"},{"$error":"#REF!"},{"$f":"INDEX(Ref_Master_Unit_Table,MATCH($W34,REF_To_Unit,0),MATCH('Reference - Lookup and Unit'!$A$11,Ref_From_Units,0))","v":{"$error":"#REF!"}},{"$error":"#N/A"},{"$f":"INDEX(Ref_Master_Unit_Table,MATCH($Z34,REF_To_Unit,0),MATCH('Reference - Lookup and Unit'!$A$11,Ref_From_Units,0))","v":{"$error":"#REF!"}},{"$error":"#N/A"},{"$f":"INDEX(Ref_Master_Unit_Table,MATCH($AC34,REF_To_Unit,0),MATCH('Reference - Lookup and Unit'!$A$11,Ref_From_Units,0))","v":{"$error":"#REF!"}},{"$error":"#N/A"},{"$f":"INDEX(Ref_Master_Unit_Table,MATCH($AF34,REF_To_Unit,0),MATCH('Reference - Lookup and Unit'!$A$11,Ref_From_Units,0))","v":{"$error":"#REF!"}},{"$error":"#N/A"},{"$f":"VLOOKUP(\"CO2\",INDIRECT(IF(Setting_IPCC_GWP_VERSION=\"1995 IPCC Second Assessment Report (SAR)\",\"Ref_EF_IPCC_GWP_95\",IF(Setting_IPCC_GWP_VERSION=\"2001 IPCC Third Assessment Report (TAR)\",\"Ref_EF_IPCC_GWP_2001\",IF(Setting_IPCC_GWP_VERSION=\"2007 IPCC Fourth Assessment Report\",\"Ref_EF_IPCC_GWP_2007\",\"Ref_EF_IPCC_GWP_2014\")))),2,0)","v":1},28,265,{"$f":"VLOOKUP(\"Biofuel CO2\",INDIRECT(IF(Setting_IPCC_GWP_VERSION=\"1995 IPCC Second Assessment Report (SAR)\",\"Ref_EF_IPCC_GWP_95\",IF(Setting_IPCC_GWP_VERSION=\"2001 IPCC Third Assessment Report (TAR)\",\"Ref_EF_IPCC_GWP_2001\",IF(Setting_IPCC_GWP_VERSION=\"2007 IPCC Fourth Assessment Report\",\"Ref_EF_IPCC_GWP_2007\",\"Ref_EF_IPCC_GWP_2014\")))),2,0)","v":1},"Ref_DD_vehicle_Passenger_",{"$error":"#REF!"},{"$error":"#REF!"},{"$error":"#REF!"},{"$error":"#REF!"},false,"","","","","","","","","","","","","","","","","","","","","","","","","","","","","","","","","","","","","","","","","","","Ref_DD_DistanceUnit","",0]
[null,null,null,null,null,null,null,null,null,null,null,null,null,null,null,null,"","","","","",{"$error":"#REF!"},{"$error":"#REF!"},{"$error":"#REF!"},{"$error":"#REF!"},{"$error":"#REF!"},{"$error":"#REF!"},{"$error":"#REF!"},{"$error":"#REF!"},{"$error":"#REF!"},{"$error":"#REF!"},{"$error":"#REF!"},{"$error":"#REF!"},{"$f":"INDEX(Ref_Master_Unit_Table,MATCH($W35,REF_To_Unit,0),MATCH('Reference - Lookup and Unit'!$A$11,Ref_From_Units,0))","v":{"$error":"#REF!"}},{"$error":"#N/A"},{"$f":"INDEX(Ref_Master_Unit_Table,MATCH($Z35,REF_To_Unit,0),MATCH('Reference - Lookup and Unit'!$A$11,Ref_From_Units,0))","v":{"$error":"#REF!"}},{"$error":"#N/A"},{"$f":"INDEX(Ref_Master_Unit_Table,MATCH($AC35,REF_To_Unit,0),MATCH('Reference - Lookup and Unit'!$A$11,Ref_From_Units,0))","v":{"$error":"#REF!"}},{"$error":"#N/A"},{"$f":"INDEX(Ref_Master_Unit_Table,MATCH($AF35,REF_To_Unit,0),MATCH('Reference - Lookup and Unit'!$A$11,Ref_From_Units,0))","v":{"$error":"#REF!"}},{"$error":"#N/A"},1,28,265,1,"Ref_DD_vehicle_Passenger_",{"$error":"#REF!"},{"$error":"#REF!"},{"$error":"#REF!"},{"$error":"#REF!"},false,"","","","","","","","","","","","","","","","","","","","","","","","","","","","","","","","","","","","","","","","","","","Ref_DD_DistanceUnit","",0]
[null,null,null,null,null,null,null,null,null,null,null,null,null,null,null,null,"","","","","",{"$error":"#REF!"},{"$error":"#REF!"},{"$error":"#REF!"},{"$error":"#REF!"},{"$error":"#REF!"},{"$error":"#REF!"},{"$error":"#REF!"},{"$error":"#REF!"},{"$error":"#REF!"},{"$error":"#REF!"},{"$error":"#REF!"},{"$error":"#REF!"},{"$f":"INDEX(Ref_Master_Unit_Table,MATCH($W36,REF_To_Unit,0),MATCH('Reference - Lookup and Unit'!$A$11,Ref_From_Units,0))","v":{"$error":"#REF!"}},{"$error":"#N/A"},{"$f":"INDEX(Ref_Master_Unit_Table,MATCH($Z36,REF_To_Unit,0),MATCH('Reference - Lookup and Unit'!$A$11,Ref_From_Units,0))","v":{"$error":"#REF!"}},{"$error":"#N/A"},{"$f":"INDEX(Ref_Master_Unit_Table,MATCH($AC36,REF_To_Unit,0),MATCH('Reference - Lookup and Unit'!$A$11,Ref_From_Units,0))","v":{"$error":"#REF!"}},{"$error":"#N/A"},{"$f":"INDEX(Ref_Master_Unit_Table,MATCH($AF36,REF_To_Unit,0),MATCH('Reference - Lookup and Unit'!$A$11,Ref_From_Units,0))","v":{"$error":"#REF!"}},{"$error":"#N/A"},1,28,265,1,"Ref_DD_vehicle_Passenger_",{"$error":"#REF!"},{"$error":"#REF!"},{"$error":"#REF!"},{"$error":"#REF!"},false,"","","","","","","","","","","","","","","","","","","","","","","","","","","","","","","","","","","","","","","","","","","Ref_DD_DistanceUnit","",0]
[null,null,null,null,null,null,null,null,null,null,null,null,null,null,null,null,"","","","","",{"$error":"#REF!"},{"$error":"#REF!"},{"$error":"#REF!"},{"$error":"#REF!"},{"$error":"#REF!"},{"$error":"#REF!"},{"$error":"#REF!"},{"$error":"#REF!"},{"$error":"#REF!"},{"$error":"#REF!"},{"$error":"#REF!"},{"$error":"#REF!"},{"$f":"INDEX(Ref_Master_Unit_Table,MATCH($W37,REF_To_Unit,0),MATCH('Reference - Lookup and Unit'!$A$11,Ref_From_Units,0))","v":{"$error":"#REF!"}},{"$error":"#N/A"},{"$f":"INDEX(Ref_Master_Unit_Table,MATCH($Z37,REF_To_Unit,0),MATCH('Reference - Lookup and Unit'!$A$11,Ref_From_Units,0))","v":{"$error":"#REF!"}},{"$error":"#N/A"},{"$f":"INDEX(Ref_Master_Unit_Table,MATCH($AC37,REF_To_Unit,0),MATCH('Reference - Lookup and Unit'!$A$11,Ref_From_Units,0))","v":{"$error":"#REF!"}},{"$error":"#N/A"},{"$f":"INDEX(Ref_Master_Unit_Table,MATCH($AF37,REF_To_Unit,0),MATCH('Reference - Lookup and Unit'!$A$11,Ref_From_Units,0))","v":{"$error":"#REF!"}},{"$error":"#N/A"},1,28,265,1,"Ref_DD_vehicle_Passenger_",{"$error":"#REF!"},{"$error":"#REF!"},{"$error":"#REF!"},{"$error":"#REF!"},false,"","","","","","","","","","","","","","","","","","","","","","","","","","","","","","","","","","","","","","","","","","","Ref_DD_DistanceUnit","",0]
[null,null,null,null,null,null,null,null,null,null,null,null,null,null,null,null,"","","","","",{"$error":"#REF!"},{"$error":"#REF!"},{"$error":"#REF!"},{"$error":"#REF!"},{"$error":"#REF!"},{"$error":"#REF!"},{"$error":"#REF!"},{"$error":"#REF!"},{"$error":"#REF!"},{"$error":"#REF!"},{"$error":"#REF!"},{"$error":"#REF!"},{"$f":"INDEX(Ref_Master_Unit_Table,MATCH($W38,REF_To_Unit,0),MATCH('Reference - Lookup and Unit'!$A$11,Ref_From_Units,0))","v":{"$error":"#REF!"}},{"$error":"#N/A"},{"$f":"INDEX(Ref_Master_Unit_Table,MATCH($Z38,REF_To_Unit,0),MATCH('Reference - Lookup and Unit'!$A$11,Ref_From_Units,0))","v":{"$error":"#REF!"}},{"$error":"#N/A"},{"$f":"INDEX(Ref_Master_Unit_Table,MATCH($AC38,REF_To_Unit,0),MATCH('Reference - Lookup and Unit'!$A$11,Ref_From_Units,0))","v":{"$error":"#REF!"}},{"$error":"#N/A"},{"$f":"INDEX(Ref_Master_Unit_Table,MATCH($AF38,REF_To_Unit,0),MATCH('Reference - Lookup and Unit'!$A$11,Ref_From_Units,0))","v":{"$error":"#REF!"}},{"$error":"#N/A"},1,28,265,1,"Ref_DD_vehicle_Passenger_",{"$error":"#REF!"},{"$error":"#REF!"},{"$error":"#REF!"},{"$error":"#REF!"},false,"","","","","","","","","","","","","","","","","","","","","","","","","","","","","","","","","","","","","","","","","","","Ref_DD_DistanceUnit","",0]
[null,null,null,null,null,null,null,null,null,null,null,null,null,null,null,null,"","","","","",{"$error":"#REF!"},{"$error":"#REF!"},{"$error":"#REF!"},{"$error":"#REF!"},{"$error":"#REF!"},{"$error":"#REF!"},{"$error":"#REF!"},{"$error":"#REF!"},{"$error":"#REF!"},{"$error":"#REF!"},{"$error":"#REF!"},{"$error":"#REF!"},{"$f":"INDEX(Ref_Master_Unit_Table,MATCH($W39,REF_To_Unit,0),MATCH('Reference - Lookup and Unit'!$A$11,Ref_From_Units,0))","v":{"$error":"#REF!"}},{"$error":"#N/A"},{"$f":"INDEX(Ref_Master_Unit_Table,MATCH($Z39,REF_To_Unit,0),MATCH('Reference - Lookup and Unit'!$A$11,Ref_From_Units,0))","v":{"$error":"#REF!"}},{"$error":"#N/A"},{"$f":"INDEX(Ref_Master_Unit_Table,MATCH($AC39,REF_To_Unit,0),MATCH('Reference - Lookup and Unit'!$A$11,Ref_From_Units,0))","v":{"$error":"#REF!"}},{"$error":"#N/A"},{"$f":"INDEX(Ref_Master_Unit_Table,MATCH($AF39,REF_To_Unit,0),MATCH('Reference - Lookup and Unit'!$A$11,Ref_From_Units,0))","v":{"$error":"#REF!"}},{"$error":"#N/A"},1,28,265,1,"Ref_DD_vehicle_Passenger_",{"$error":"#REF!"},{"$error":"#REF!"},{"$error":"#REF!"},{"$error":"#REF!"},false,"","","","","","","","","","","","","","","","","","","","","","","","","","","","","","","","","","","","","","","","","","","Ref_DD_DistanceUnit","",0]
[null,null,null,null,null,null,null,null,null,null,null,null,null,null,null,null,"","","","","",{"$error":"#REF!"},{"$error":"#REF!"},{"$error":"#REF!"},{"$error":"#REF!"},{"$error":"#REF!"},{"$error":"#REF!"},{"$error":"#REF!"},{"$error":"#REF!"},{"$error":"#REF!"},{"$error":"#REF!"},{"$error":"#REF!"},{"$error":"#REF!"},{"$f":"INDEX(Ref_Master_Unit_Table,MATCH($W40,REF_To_Unit,0),MATCH('Reference - Lookup and Unit'!$A$11,Ref_From_Units,0))","v":{"$error":"#REF!"}},{"$error":"#N/A"},{"$f":"INDEX(Ref_Master_Unit_Table,MATCH($Z40,REF_To_Unit,0),MATCH('Reference - Lookup and Unit'!$A$11,Ref_From_Units,0))","v":{"$error":"#REF!"}},{"$error":"#N/A"},{"$f":"INDEX(Ref_Master_Unit_Table,MATCH($AC40,REF_To_Unit,0),MATCH('Reference - Lookup and Unit'!$A$11,Ref_From_Units,0))","v":{"$error":"#REF!"}},{"$error":"#N/A"},{"$f":"INDEX(Ref_Master_Unit_Table,MATCH($AF40,REF_To_Unit,0),MATCH('Reference - Lookup and Unit'!$A$11,Ref_From_Units,0))","v":{"$error":"#REF!"}},{"$error":"#N/A"},1,28,265,1,"Ref_DD_vehicle_Passenger_",{"$error":"#REF!"},{"$error":"#REF!"},{"$error":"#REF!"},{"$error":"#REF!"},false,"","","","","","","","","","","","","","","","","","","","","","","","","","","","","","","","","","","","","","","","","","","Ref_DD_DistanceUnit","",0]
[null,null,null,null,null,null,null,null,null,null,null,null,null,null,null,null,"","","","","",{"$error":"#REF!"},{"$error":"#REF!"},{"$error":"#REF!"},{"$error":"#REF!"},{"$error":"#REF!"},{"$error":"#REF!"},{"$error":"#REF!"},{"$error":"#REF!"},{"$error":"#REF!"},{"$error":"#REF!"},{"$error":"#REF!"},{"$error":"#REF!"},{"$f":"INDEX(Ref_Master_Unit_Table,MATCH($W41,REF_To_Unit,0),MATCH('Reference - Lookup and Unit'!$A$11,Ref_From_Units,0))","v":{"$error":"#REF!"}},{"$error":"#N/A"},{"$f":"INDEX(Ref_Master_Unit_Table,MATCH($Z41,REF_To_Unit,0),MATCH('Reference - Lookup and Unit'!$A$11,Ref_From_Units,0))","v":{"$error":"#REF!"}},{"$error":"#N/A"},{"$f":"INDEX(Ref_Master_Unit_Table,MATCH($AC41,REF_To_Unit,0),MATCH('Reference - Lookup and Unit'!$A$11,Ref_From_Units,0))","v":{"$error":"#REF!"}},{"$error":"#N/A"},{"$f":"INDEX(Ref_Master_Unit_Table,MATCH($AF41,REF_To_Unit,0),MATCH('Reference - Lookup and Unit'!$A$11,Ref_From_Units,0))","v":{"$error":"#REF!"}},{"$error":"#N/A"},1,28,265,1,"Ref_DD_vehicle_Passenger_",{"$error":"#REF!"},{"$error":"#REF!"},{"$error":"#REF!"},{"$error":"#REF!"},false,"","","","","","","","","","","","","","","","","","","","","","","","","","","","","","","","","","","","","","","","","","","Ref_DD_DistanceUnit","",0]
[null,null,null,null,null,null,null,null,null,null,null,null,null,null,null,null,"","","","","",{"$error":"#REF!"},{"$error":"#REF!"},{"$error":"#REF!"},{"$error":"#REF!"},{"$error":"#REF!"},{"$error":"#REF!"},{"$error":"#REF!"},{"$error":"#REF!"},{"$error":"#REF!"},{"$error":"#REF!"},{"$error":"#REF!"},{"$error":"#REF!"},{"$f":"INDEX(Ref_Master_Unit_Table,MATCH($W42,REF_To_Unit,0),MATCH('Reference - Lookup and Unit'!$A$11,Ref_From_Units,0))","v":{"$error":"#REF!"}},{"$error":"#N/A"},{"$f":"INDEX(Ref_Master_Unit_Table,MATCH($Z42,REF_To_Unit,0),MATCH('Reference - Lookup and Unit'!$A$11,Ref_From_Units,0))","v":{"$error":"#REF!"}},{"$error":"#N/A"},{"$f":"INDEX(Ref_Master_Unit_Table,MATCH($AC42,REF_To_Unit,0),MATCH('Reference - Lookup and Unit'!$A$11,Ref_From_Units,0))","v":{"$error":"#REF!"}},{"$error":"#N/A"},{"$f":"INDEX(Ref_Master_Unit_Table,MATCH($AF42,REF_To_Unit,0),MATCH('Reference - Lookup and Unit'!$A$11,Ref_From_Units,0))","v":{"$error":"#REF!"}},{"$error":"#N/A"},1,28,265,1,"Ref_DD_vehicle_Passenger_",{"$error":"#REF!"},{"$error":"#REF!"},{"$error":"#REF!"},{"$error":"#REF!"},false,"","","","","","","","","","","","","","","","","","","","","","","","","","","","","","","","","","","","","","","","","","","Ref_DD_DistanceUnit","",0]
[null,null,null,null,null,null,null,null,null,null,null,null,null,null,null,null,"","","","","",{"$error":"#REF!"},{"$error":"#REF!"},{"$error":"#REF!"},{"$error":"#REF!"},{"$error":"#REF!"},{"$error":"#REF!"},{"$error":"#REF!"},{"$error":"#REF!"},{"$error":"#REF!"},{"$error":"#REF!"},{"$error":"#REF!"},{"$error":"#REF!"},{"$f":"INDEX(Ref_Master_Unit_Table,MATCH($W43,REF_To_Unit,0),MATCH('Reference - Lookup and Unit'!$A$11,Ref_From_Units,0))","v":{"$error":"#REF!"}},{"$error":"#N/A"},{"$f":"INDEX(Ref_Master_Unit_Table,MATCH($Z43,REF_To_Unit,0),MATCH('Reference - Lookup and Unit'!$A$11,Ref_From_Units,0))","v":{"$error":"#REF!"}},{"$error":"#N/A"},{"$f":"INDEX(Ref_Master_Unit_Table,MATCH($AC43,REF_To_Unit,0),MATCH('Reference - Lookup and Unit'!$A$11,Ref_From_Units,0))","v":{"$error":"#REF!"}},{"$error":"#N/A"},{"$f":"INDEX(Ref_Master_Unit_Table,MATCH($AF43,REF_To_Unit,0),MATCH('Reference - Lookup and Unit'!$A$11,Ref_From_Units,0))","v":{"$error":"#REF!"}},{"$error":"#N/A"},1,{"$f":"VLOOKUP(\"CH4\",INDIRECT(IF(Setting_IPCC_GWP_VERSION=\"1995 IPCC Second Assessment Report (SAR)\",\"Ref_EF_IPCC_GWP_95\",IF(Setting_IPCC_GWP_VERSION=\"2001 IPCC Third Assessment Report (TAR)\",\"Ref_EF_IPCC_GWP_2001\",IF(Setting_IPCC_GWP_VERSION=\"2007 IPCC Fourth Assessment Report\",\"Ref_EF_IPCC_GWP_2007\",\"Ref_EF_IPCC_GWP_2014\")))),2,0)","v":28},{"$f":"VLOOKUP(\"N2O\",INDIRECT(IF(Setting_IPCC_GWP_VERSION=\"1995 IPCC Second Assessment Report (SAR)\",\"Ref_EF_IPCC_GWP_95\",IF(Setting_IPCC_GWP_VERSION=\"2001 IPCC Third Assessment Report (TAR)\",\"Ref_EF_IPCC_GWP_2001\", IF(Setting_IPCC_GWP_VERSION=\"2007 IPCC Fourth Assessment Report\",\"Ref_EF_IPCC_GWP_2007\",\"Ref_EF_IPCC_GWP_2014\")))),2,0)","v":265},1,"Ref_DD_vehicle_Passenger_",{"$error":"#REF!"},{"$error":"#REF!"},{"$error":"#REF!"},{"$error":"#REF!"},false,"","","","","","","","","","","","","","","","","","","","","","","","","","","","","","","","","","","","","","","","","","","Ref_DD_DistanceUnit","",0]
[null,null,null,null,null,null,null,null,null,null,null,null,null,null,null,null,"","","","","",{"$f":"IF(OR($G44=\"Fuel Use\",$G44=\"Fuel Use and Vehicle Distance\"),VLOOKUP($M44,INDIRECT(\"Ref_EF_ByFuel\"&\"_\"&$D44),3,0),IF(AND($G44=\"Vehicle Distance (e.g. Road Transport)\",$D44=\"UK\"),VLOOKUP($H44,Ref_EF_Vehicle_Distance_UK,3,0),IF(AND($G44=\"Vehicle Distance (e.g. Road Transport)\",OR($D44=\"US\",$D44=\"Other\")),VLOOKUP($H44,INDIRECT(\"Ref_EF_Vehicle_Distance\"&\"_\"&$D44),15,0),IF(AND($G44=\"Vehicle Distance (e.g. Road Transport)\",ISBLANK($N44),ISBLANK($O44)),VLOOKUP($H44,INDIRECT(\"Ref_EF_Vehicle_Distance\"&\"_\"&$D44),15,0),IF($G44=\"Weight Distance (e.g. Freight Transport)\",VLOOKUP($H44,INDIRECT(\"Ref_EF_Weight_Distance\"&\"_\"&$D44),3,0),IF($G44=\"Custom Vehicle\",VLOOKUP($H44,Tbl_vehical_Settings,2,0),IF($G44=\"Custom Fuel\",VLOOKUP($M44,Tbl_Fuel_Settings,2,0),$AU44)))))))","v":{"$error":"#REF!"}},{"$f":"IF(OR($G44=\"Fuel Use\",$G44=\"Fuel Use and Vehicle Distance\"),VLOOKUP($M44,INDIRECT(\"Ref_EF_ByFuel\"&\"_\"&$D44),5,0),IF(AND($G44=\"Vehicle Distance (e.g. Road Transport)\",$D44=\"UK\"),VLOOKUP($H44,Ref_EF_Vehicle_Distance_UK,5,0),IF(AND($G44=\"Vehicle Distance (e.g. Road Transport)\",OR($D44=\"US\",$D44=\"Other\")),VLOOKUP($H44,INDIRECT(\"Ref_EF_Vehicle_Distance\"&\"_\"&$D44),17,0),IF(AND($G44=\"Vehicle Distance (e.g. Road Transport)\",ISBLANK($N44),ISBLANK($O44)),VLOOKUP($H44,INDIRECT(\"Ref_EF_Vehicle_Distance\"&\"_\"&$D44),17,0),IF($G44=\"Weight Distance (e.g. Freight Transport)\",VLOOKUP($H44,INDIRECT(\"Ref_EF_Weight_Distance\"&\"_\"&$D44),5,0),IF($G44=\"Custom Vehicle\",VLOOKUP($H44,Tbl_vehical_Settings,6,0),IF($G44=\"Custom Fuel\",VLOOKUP($M44,Tbl_Fuel_Settings,6,0),$AV44)))))))","v":{"$error":"#REF!"}},{"$f":"IF(OR($G44=\"Fuel Use\",$G44=\"Fuel Use and Vehicle Distance\"),VLOOKUP($M44,INDIRECT(\"Ref_EF_ByFuel\"&\"_\"&$D44),6,0),IF(AND($G44=\"Vehicle Distance (e.g. Road Transport)\",$D44=\"UK\"),VLOOKUP($H44,Ref_EF_Vehicle_Distance_UK,6,0),IF(AND($G44=\"Vehicle Distance (e.g. Road Transport)\",OR($D44=\"US\",$D44=\"Other\")),VLOOKUP($H44,INDIRECT(\"Ref_EF_Vehicle_Distance\"&\"_\"&$D44),18,0),IF(AND($G44=\"Vehicle Distance (e.g. Road Transport)\",ISBLANK($N44),ISBLANK($O44)),VLOOKUP($H44,INDIRECT(\"Ref_EF_Vehicle_Distance\"&\"_\"&$D44),18,0),IF($G44=\"Weight Distance (e.g. Freight Transport)\",VLOOKUP($H44,INDIRECT(\"Ref_EF_Weight_Distance\"&\"_\"&$D44),6,0),IF($G44=\"Custom Vehicle\",VLOOKUP($H44,Tbl_vehical_Settings,7,0),IF($G44=\"Custom Fuel\",VLOOKUP($M44,Tbl_Fuel_Settings,7,0),$AW44)))))))","v":{"$error":"#REF!"}},{"$f":"IF(OR($G44=\"Fuel Use\",$G44=\"Fuel Use and Vehicle Distance\"),VLOOKUP($M44,INDIRECT(\"Ref_EF_ByFuel\"&\"_\"&$D44),4,0),IF(AND($G44=\"Vehicle Distance (e.g. Road Transport)\",$D44=\"UK\"),VLOOKUP($H44,Ref_EF_Vehicle_Distance_UK,4,0),IF(AND($G44=\"Vehicle Distance (e.g. Road Transport)\",OR($D44=\"US\",$D44=\"Other\")),VLOOKUP($H44,INDIRECT(\"Ref_EF_Vehicle_Distance\"&\"_\"&$D44),16,0),IF(AND($G44=\"Vehicle Distance (e.g. Road Transport)\",ISBLANK($N44),ISBLANK($O44)),VLOOKUP($H44,INDIRECT(\"Ref_EF_Vehicle_Distance\"&\"_\"&$D44),16,0),IF($G44=\"Weight Distance (e.g. Freight Transport)\",VLOOKUP($H44,INDIRECT(\"Ref_EF_Weight_Distance\"&\"_\"&$D44),4,0),IF($G44=\"Custom Vehicle\",VLOOKUP($H44,Tbl_vehical_Settings,5,0),IF($G44=\"Custom Fuel\",VLOOKUP($M44,Tbl_Fuel_Settings,5,0),$AX44)))))))","v":{"$error":"#REF!"}},{"$f":"IF(OR($G44=\"Fuel Use\",$G44=\"Fuel Use and Vehicle Distance\"),VLOOKUP($M44,INDIRECT(\"Ref_EF_ByFuel\"&\"_\"&$D44),5,0),IF(AND($G44=\"Vehicle Distance (e.g. Road Transport)\",$D44=\"UK\"),VLOOKUP($H44,Ref_EF_Vehicle_Distance_UK,5,0),IF(AND($G44=\"Vehicle Distance (e.g. Road Transport)\",OR($D44=\"US\",$D44=\"Other\")),VLOOKUP($H44,INDIRECT(\"Ref_EF_Vehicle_Distance\"&\"_\"&$D44),17,0),IF(AND($G44=\"Vehicle Distance (e.g. Road Transport)\",ISBLANK($N44),ISBLANK($O44)),VLOOKUP($H44,INDIRECT(\"Ref_EF_Vehicle_Distance\"&\"_\"&$D44),17,0),IF($G44=\"Weight Distance (e.g. Freight Transport)\",VLOOKUP($H44,INDIRECT(\"Ref_EF_Weight_Distance\"&\"_\"&$D44),5,0),IF($G44=\"Custom Vehicle\",VLOOKUP($H44,Tbl_vehical_Settings,6,0),IF($G44=\"Custom Fuel\",VLOOKUP($M44,Tbl_Fuel_Settings,6,0),$AV44)))))))","v":{"$error":"#REF!"}},{"$f":"IF(OR($G44=\"Fuel Use\",$G44=\"Fuel Use and Vehicle Distance\"),VLOOKUP($M44,INDIRECT(\"Ref_EF_ByFuel\"&\"_\"&$D44),6,0),IF(AND($G44=\"Vehicle Distance (e.g. Road Transport)\",$D44=\"UK\"),VLOOKUP($H44,Ref_EF_Vehicle_Distance_UK,6,0),IF(AND($G44=\"Vehicle Distance (e.g. Road Transport)\",OR($D44=\"US\",$D44=\"Other\")),VLOOKUP($H44,INDIRECT(\"Ref_EF_Vehicle_Distance\"&\"_\"&$D44),18,0),IF(AND($G44=\"Vehicle Distance (e.g. Road Transport)\",ISBLANK($N44),ISBLANK($O44)),VLOOKUP($H44,INDIRECT(\"Ref_EF_Vehicle_Distance\"&\"_\"&$D44),18,0),IF($G44=\"Weight Distance (e.g. Freight Transport)\",VLOOKUP($H44,INDIRECT(\"Ref_EF_Weight_Distance\"&\"_\"&$D44),6,0),IF($G44=\"Custom Vehicle\",VLOOKUP($H44,Tbl_vehical_Settings,7,0),IF($G44=\"Custom Fuel\",VLOOKUP($M44,Tbl_Fuel_Settings,7,0),$AW44)))))))","v":{"$error":"#REF!"}},{"$f":"IF($G44=\"Fuel Use\",VLOOKUP($H44,INDIRECT(\"Ref_EF_ByFuel_CH4\"&\"_\"&$D44),3,0),\nIF($G44=\"Fuel Use and Vehicle Distance\",VLOOKUP($H44,INDIRECT(\"Ref_EF_Vehicle_Distance\"&\"_\"&$D44),3,0),IF($G44=\"Vehicle Distance (e.g. Road Transport)\",VLOOKUP($H44,INDIRECT(\"Ref_EF_Vehicle_Distance\"&\"_\"&$D44),IF($D44=\"UK\",7,3),0),IF($G44=\"Weight Distance (e.g. Freight Transport)\",VLOOKUP(VLOOKUP($H44,INDIRECT(\"Ref_EF_Weight_Distance\"&\"_\"&$D44),8,0),INDIRECT(\"Ref_EF_Weight_Distance_CH4\"&\"_\"&$D44),3,0),IF($G44=\"Custom Vehicle\",VLOOKUP($H44,Tbl_vehical_Settings,3,0),IF($G44=\"Custom Fuel\",VLOOKUP($M44,Tbl_Fuel_Settings,3,0),VLOOKUP($H44,INDIRECT(\"Ref_EF_Public_Transport\"&\"_\"&$D44),7,0)))))))","v":{"$error":"#REF!"}},{"$f":"IF($G44=\"Fuel Use\",VLOOKUP($H44,INDIRECT(\"Ref_EF_ByFuel_CH4\"&\"_\"&$D44),4,0),\nIF($G44=\"Fuel Use and Vehicle Distance\",VLOOKUP($H44,INDIRECT(\"Ref_EF_Vehicle_Distance\"&\"_\"&$D44),4,0),IF($G44=\"Vehicle Distance (e.g. Road Transport)\",VLOOKUP($H44,INDIRECT(\"Ref_EF_Vehicle_Distance\"&\"_\"&$D44),IF($D44=\"UK\",8,4),0),IF($G44=\"Weight Distance (e.g. Freight Transport)\",VLOOKUP(VLOOKUP($H44,INDIRECT(\"Ref_EF_Weight_Distance\"&\"_\"&$D44),8,0),INDIRECT(\"Ref_EF_Weight_Distance_CH4\"&\"_\"&$D44),4,0),IF($G44=\"Custom Vehicle\",VLOOKUP($H44,Tbl_vehical_Settings,6,0),IF($G44=\"Custom Fuel\",VLOOKUP($M44,Tbl_Fuel_Settings,6,0),VLOOKUP($H44,INDIRECT(\"Ref_EF_Public_Transport\"&\"_\"&$D44),8,0)))))))","v":{"$error":"#REF!"}},{"$f":"IF($G44=\"Fuel Use\",VLOOKUP($H44,INDIRECT(\"Ref_EF_ByFuel_CH4\"&\"_\"&$D44),5,0),\nIF($G44=\"Fuel Use and Vehicle Distance\",VLOOKUP($H44,INDIRECT(\"Ref_EF_Vehicle_Distance\"&\"_\"&$D44),5,0),IF($G44=\"Vehicle Distance (e.g. Road Transport)\",VLOOKUP($H44,INDIRECT(\"Ref_EF_Vehicle_Distance\"&\"_\"&$D44),IF($D44=\"UK\",9,5),0),IF($G44=\"Weight Distance (e.g. Freight Transport)\",VLOOKUP(VLOOKUP($H44,INDIRECT(\"Ref_EF_Weight_Distance\"&\"_\"&$D44),8,0),INDIRECT(\"Ref_EF_Weight_Distance_CH4\"&\"_\"&$D44),5,0),IF($G44=\"Custom Vehicle\",VLOOKUP($H44,Tbl_vehical_Settings,7,0),IF($G44=\"Custom Fuel\",VLOOKUP($M44,Tbl_Fuel_Settings,7,0),VLOOKUP($H44,INDIRECT(\"Ref_EF_Public_Transport\"&\"_\"&$D44),9,0)))))))","v":{"$error":"#REF!"}},{"$f":"IF($G44=\"Fuel Use\",VLOOKUP($H44,INDIRECT(\"Ref_EF_ByFuel_CH4\"&\"_\"&$D44),6,0),\nIF($G44=\"Fuel Use and Vehicle Distance\",VLOOKUP($H44,INDIRECT(\"Ref_EF_Vehicle_Distance\"&\"_\"&$D44),6,0),IF($G44=\"Vehicle Distance (e.g. Road Transport)\",VLOOKUP($H44,INDIRECT(\"Ref_EF_Vehicle_Distance\"&\"_\"&$D44),IF($D44=\"UK\",10,6),0),IF($G44=\"Weight Distance (e.g. Freight Transport)\",VLOOKUP(VLOOKUP($H44,INDIRECT(\"Ref_EF_Weight_Distance\"&\"_\"&$D44),8,0),INDIRECT(\"Ref_EF_Weight_Distance_CH4\"&\"_\"&$D44),6,0),IF($G44=\"Custom Vehicle\",VLOOKUP($H44,Tbl_vehical_Settings,4,0),IF($G44=\"Custom Fuel\",VLOOKUP($M44,Tbl_Fuel_Settings,4,0),VLOOKUP($H44,INDIRECT(\"Ref_EF_Public_Transport\"&\"_\"&$D44),10,0)))))))","v":{"$error":"#REF!"}},{"$f":"IF($G44=\"Fuel Use\",VLOOKUP($H44,INDIRECT(\"Ref_EF_ByFuel_CH4\"&\"_\"&$D44),7,0),\nIF($G44=\"Fuel Use and Vehicle Distance\",VLOOKUP($H44,INDIRECT(\"Ref_EF_Vehicle_Distance\"&\"_\"&$D44),7,0),IF($G44=\"Vehicle Distance (e.g. Road Transport)\",VLOOKUP($H44,INDIRECT(\"Ref_EF_Vehicle_Distance\"&\"_\"&$D44),IF($D44=\"UK\",11,7),0),IF($G44=\"Weight Distance (e.g. Freight Transport)\",VLOOKUP(VLOOKUP($H44,INDIRECT(\"Ref_EF_Weight_Distance\"&\"_\"&$D44),8,0),INDIRECT(\"Ref_EF_Weight_Distance_CH4\"&\"_\"&$D44),7,0),IF($G44=\"Custom Vehicle\",VLOOKUP($H44,Tbl_vehical_Settings,6,0),IF($G44=\"Custom Fuel\",VLOOKUP($M44,Tbl_Fuel_Settings,6,0),VLOOKUP($H44,INDIRECT(\"Ref_EF_Public_Transport\"&\"_\"&$D44),11,0)))))))","v":{"$error":"#REF!"}},{"$f":"IF($G44=\"Fuel Use\",VLOOKUP($H44,INDIRECT(\"Ref_EF_ByFuel_CH4\"&\"_\"&$D44),8,0),\nIF($G44=\"Fuel Use and Vehicle Distance\",VLOOKUP($H44,INDIRECT(\"Ref_EF_Vehicle_Distance\"&\"_\"&$D44),8,0),IF($G44=\"Vehicle Distance (e.g. Road Transport)\",VLOOKUP($H44,INDIRECT(\"Ref_EF_Vehicle_Distance\"&\"_\"&$D44),IF($D44=\"UK\",12,8),0),IF($G44=\"Weight Distance (e.g. Freight Transport)\",VLOOKUP(VLOOKUP($H44,INDIRECT(\"Ref_EF_Weight_Distance\"&\"_\"&$D44),8,0),INDIRECT(\"Ref_EF_Weight_Distance_CH4\"&\"_\"&$D44),8,0),IF($G44=\"Custom Vehicle\",VLOOKUP($H44,Tbl_vehical_Settings,7,0),IF($G44=\"Custom Fuel\",VLOOKUP($M44,Tbl_Fuel_Settings,7,0),VLOOKUP($H44,INDIRECT(\"Ref_EF_Public_Transport\"&\"_\"&$D44),12,0)))))))","v":{"$error":"#REF!"}},{"$f":"INDEX(Ref_Master_Unit_Table,MATCH($W44,REF_To_Unit,0),MATCH('Reference - Lookup and Unit'!$A$11,Ref_From_Units,0))","v":{"$error":"#REF!"}},{"$error":"#N/A"},{"$f":"INDEX(Ref_Master_Unit_Table,MATCH($Z44,REF_To_Unit,0),MATCH('Reference - Lookup and Unit'!$A$11,Ref_From_Units,0))","v":{"$error":"#REF!"}},{"$error":"#N/A"},{"$f":"INDEX(Ref_Master_Unit_Table,MATCH($AC44,REF_To_Unit,0),MATCH('Reference - Lookup and Unit'!$A$11,Ref_From_Units,0))","v":{"$error":"#REF!"}},{"$error":"#N/A"},{"$f":"INDEX(Ref_Master_Unit_Table,MATCH($AF44,REF_To_Unit,0),MATCH('Reference - Lookup and Unit'!$A$11,Ref_From_Units,0))","v":{"$error":"#REF!"}},{"$error":"#N/A"},1,28,265,1,"Ref_DD_vehicle_Passenger_",{"$error":"#REF!"},{"$error":"#REF!"},{"$error":"#REF!"},{"$error":"#REF!"},false,"","","","","","","","","","","","","","","","","","","","","","","","","","","","","","","","","","","","","","","","","","","Ref_DD_DistanceUnit","",0]
[null,null,null,null,null,null,null,null,null,null,null,null,null,null,null,null,"","","","","",{"$error":"#REF!"},{"$error":"#REF!"},{"$error":"#REF!"},{"$error":"#REF!"},{"$error":"#REF!"},{"$error":"#REF!"},{"$error":"#REF!"},{"$error":"#REF!"},{"$error":"#REF!"},{"$error":"#REF!"},{"$error":"#REF!"},{"$error":"#REF!"},{"$f":"INDEX(Ref_Master_Unit_Table,MATCH($W45,REF_To_Unit,0),MATCH('Reference - Lookup and Unit'!$A$11,Ref_From_Units,0))","v":{"$error":"#REF!"}},{"$error":"#N/A"},{"$f":"INDEX(Ref_Master_Unit_Table,MATCH($Z45,REF_To_Unit,0),MATCH('Reference - Lookup and Unit'!$A$11,Ref_From_Units,0))","v":{"$error":"#REF!"}},{"$error":"#N/A"},{"$f":"INDEX(Ref_Master_Unit_Table,MATCH($AC45,REF_To_Unit,0),MATCH('Reference - Lookup and Unit'!$A$11,Ref_From_Units,0))","v":{"$error":"#REF!"}},{"$error":"#N/A"},{"$f":"INDEX(Ref_Master_Unit_Table,MATCH($AF45,REF_To_Unit,0),MATCH('Reference - Lookup and Unit'!$A$11,Ref_From_Units,0))","v":{"$error":"#REF!"}},{"$error":"#N/A"},1,28,265,1,"Ref_DD_vehicle_Passenger_",{"$error":"#REF!"},{"$error":"#REF!"},{"$error":"#REF!"},{"$error":"#REF!"},false,"","","","","","","","","","","","","","","","","","","","","","","","","","","","","","","","","","","","","","","","","","","Ref_DD_DistanceUnit","",0]
[null,null,null,null,null,null,null,null,null,null,null,null,null,null,null,null,"","","","","",{"$error":"#REF!"},{"$error":"#REF!"},{"$error":"#REF!"},{"$error":"#REF!"},{"$error":"#REF!"},{"$error":"#REF!"},{"$error":"#REF!"},{"$error":"#REF!"},{"$error":"#REF!"},{"$error":"#REF!"},{"$error":"#REF!"},{"$error":"#REF!"},{"$f":"INDEX(Ref_Master_Unit_Table,MATCH($W46,REF_To_Unit,0),MATCH('Reference - Lookup and Unit'!$A$11,Ref_From_Units,0))","v":{"$error":"#REF!"}},{"$error":"#N/A"},{"$f":"INDEX(Ref_Master_Unit_Table,MATCH($Z46,REF_To_Unit,0),MATCH('Reference - Lookup and Unit'!$A$11,Ref_From_Units,0))","v":{"$error":"#REF!"}},{"$error":"#N/A"},{"$f":"INDEX(Ref_Master_Unit_Table,MATCH($AC46,REF_To_Unit,0),MATCH('Reference - Lookup and Unit'!$A$11,Ref_From_Units,0))","v":{"$error":"#REF!"}},{"$error":"#N/A"},{"$f":"INDEX(Ref_Master_Unit_Table,MATCH($AF46,REF_To_Unit,0),MATCH('Reference - Lookup and Unit'!$A$11,Ref_From_Units,0))","v":{"$error":"#REF!"}},{"$error":"#N/A"},1,28,265,1,"Ref_DD_vehicle_Passenger_",{"$error":"#REF!"},{"$error":"#REF!"},{"$error":"#REF!"},{"$error":"#REF!"},false,"","","","","","","","","","","","","","","","","","","","","","","","","","","","","","","","","","","","","","","","","","","Ref_DD_DistanceUnit","",0]
[null,null,null,null,null,null,null,null,null,null,null,null,null,null,null,null,"","","",{"$f":"IF(AND(ISERROR($Q47*$AP47)=FALSE,ISERROR((R47/1000)*$AQ47)=FALSE,ISERROR((S47/1000)*$AR47)=FALSE),($Q47*$AP47)+((R47/1000)*$AQ47)+((S47/1000)*$AR47),IF(AND(ISERROR($Q47*$AP47)=FALSE,ISERROR((R47/1000)*$AQ47)=FALSE,ISERROR((S47/1000)*$AR47)=TRUE),($Q47*$AP47)+((R47/1000)*$AQ47),IF(AND(ISERROR($Q47*$AP47)=FALSE,ISERROR((R47/1000)*$AQ47)=TRUE,ISERROR((S47/1000)*$AR47)=FALSE),($Q47*$AP47)+((S47/1000)*$AR47),IF(AND(ISERROR($Q47*$AP47)=FALSE,ISERROR((R47/1000)*$AQ47)=TRUE,ISERROR((S47/1000)*$AR47)=TRUE),($Q47*$AP47),IF(AND(ISERROR($Q47*$AP47)=TRUE,ISERROR((R47/1000)*$AQ47)=FALSE,ISERROR((S47/1000)*$AR47)=FALSE),((R47/1000)*$AQ47)+((S47/1000)*$AR47),IF(AND(ISERROR($Q47*$AP47)=TRUE,ISERROR((R47/1000)*$AQ47)=FALSE,ISERROR((S47/1000)*$AR47)=TRUE),((R47/1000)*$AQ47),CQ47))))))","v":""},"",{"$error":"#REF!"},{"$error":"#REF!"},{"$error":"#REF!"},{"$error":"#REF!"},{"$error":"#REF!"},{"$error":"#REF!"},{"$error":"#REF!"},{"$error":"#REF!"},{"$error":"#REF!"},{"$error":"#REF!"},{"$error":"#REF!"},{"$error":"#REF!"},{"$f":"INDEX(Ref_Master_Unit_Table,MATCH($W47,REF_To_Unit,0),MATCH('Reference - Lookup and Unit'!$A$11,Ref_From_Units,0))","v":{"$error":"#REF!"}},{"$f":"INDEX(Ref_Master_Unit_Table,MATCH(IF(AND($D47=\"UK\",$G47=\"Vehicle Distance (e.g. Road Transport)\"),$L47,IF(ISBLANK($O47),$L47,$O47)),Ref_From_Units,0),MATCH($X47,REF_To_Unit,0))","v":{"$error":"#N/A"}},{"$f":"INDEX(Ref_Master_Unit_Table,MATCH($Z47,REF_To_Unit,0),MATCH('Reference - Lookup and Unit'!$A$11,Ref_From_Units,0))","v":{"$error":"#REF!"}},{"$f":"INDEX(Ref_Master_Unit_Table,MATCH(IF(AND($D47=\"UK\",$G47=\"Vehicle Distance (e.g. Road Transport)\"),$L47,IF(ISBLANK($O47),$L47,$O47)),Ref_From_Units,0),MATCH($AA47,REF_To_Unit,0))","v":{"$error":"#N/A"}},{"$f":"INDEX(Ref_Master_Unit_Table,MATCH($AC47,REF_To_Unit,0),MATCH('Reference - Lookup and Unit'!$A$11,Ref_From_Units,0))","v":{"$error":"#REF!"}},{"$f":"INDEX(Ref_Master_Unit_Table,MATCH(IF(OR($G47=\"Fuel Use\",$G47=\"Custom Fuel\"),$O47,$L47),Ref_From_Units,0),MATCH($AD47,REF_To_Unit,0))","v":{"$error":"#N/A"}},{"$f":"INDEX(Ref_Master_Unit_Table,MATCH($AF47,REF_To_Unit,0),MATCH('Reference - Lookup and Unit'!$A$11,Ref_From_Units,0))","v":{"$error":"#REF!"}},{"$f":"INDEX(Ref_Master_Unit_Table,MATCH(IF(OR($G47=\"Fuel Use\",$G47=\"Custom Fuel\"),$O47,$L47),Ref_From_Units,0),MATCH($AD47,REF_To_Unit,0))","v":{"$error":"#N/A"}},1,28,265,1,"Ref_DD_vehicle_Passenger_",{"$error":"#REF!"},{"$error":"#REF!"},{"$error":"#REF!"},{"$error":"#REF!"},false,"","","","","","","","","","","","","","","","","","","","","","","","","","","","","","","","","","","","","","","","","","","Ref_DD_DistanceUnit",{"$f":"IF(AND(ISERROR($Q47*$AP47)=TRUE,ISERROR((R47/1000)*$AQ47)=TRUE,ISERROR((S47/1000)*$AR47)=FALSE),((S47/1000)*$AR47),\"\")","v":""},0]
[null,null,null,null,null,null,null,null,null,null,null,null,null,null,null,null,"","","","","",{"$error":"#REF!"},{"$error":"#REF!"},{"$error":"#REF!"},{"$error":"#REF!"},{"$error":"#REF!"},{"$error":"#REF!"},{"$error":"#REF!"},{"$error":"#REF!"},{"$error":"#REF!"},{"$error":"#REF!"},{"$error":"#REF!"},{"$error":"#REF!"},{"$f":"INDEX(Ref_Master_Unit_Table,MATCH($W48,REF_To_Unit,0),MATCH('Reference - Lookup and Unit'!$A$11,Ref_From_Units,0))","v":{"$error":"#REF!"}},{"$error":"#N/A"},{"$f":"INDEX(Ref_Master_Unit_Table,MATCH($Z48,REF_To_Unit,0),MATCH('Reference - Lookup and Unit'!$A$11,Ref_From_Units,0))","v":{"$error":"#REF!"}},{"$error":"#N/A"},{"$f":"INDEX(Ref_Master_Unit_Table,MATCH($AC48,REF_To_Unit,0),MATCH('Reference - Lookup and Unit'!$A$11,Ref_From_Units,0))","v":{"$error":"#REF!"}},{"$error":"#N/A"},{"$f":"INDEX(Ref_Master_Unit_Table,MATCH($AF48,REF_To_Unit,0),MATCH('Reference - Lookup and Unit'!$A$11,Ref_From_Units,0))","v":{"$error":"#REF!"}},{"$error":"#N/A"},1,28,265,1,"Ref_DD_vehicle_Passenger_",{"$error":"#REF!"},{"$error":"#REF!"},{"$error":"#REF!"},{"$error":"#REF!"},false,"","","","","","","","","","","","","","","","","","","","","","","","","","","","","","","","","","","","","","","","","","","Ref_DD_DistanceUnit","",0]
[null,null,null,null,null,null,null,null,null,null,null,null,null,null,null,null,"","","","","",{"$error":"#REF!"},{"$error":"#REF!"},{"$error":"#REF!"},{"$error":"#REF!"},{"$error":"#REF!"},{"$error":"#REF!"},{"$error":"#REF!"},{"$error":"#REF!"},{"$error":"#REF!"},{"$error":"#REF!"},{"$error":"#REF!"},{"$error":"#REF!"},{"$f":"INDEX(Ref_Master_Unit_Table,MATCH($W49,REF_To_Unit,0),MATCH('Reference - Lookup and Unit'!$A$11,Ref_From_Units,0))","v":{"$error":"#REF!"}},{"$error":"#N/A"},{"$f":"INDEX(Ref_Master_Unit_Table,MATCH($Z49,REF_To_Unit,0),MATCH('Reference - Lookup and Unit'!$A$11,Ref_From_Units,0))","v":{"$error":"#REF!"}},{"$error":"#N/A"},{"$f":"INDEX(Ref_Master_Unit_Table,MATCH($AC49,REF_To_Unit,0),MATCH('Reference - Lookup and Unit'!$A$11,Ref_From_Units,0))","v":{"$error":"#REF!"}},{"$error":"#N/A"},{"$f":"INDEX(Ref_Master_Unit_Table,MATCH($AF49,REF_To_Unit,0),MATCH('Reference - Lookup and Unit'!$A$11,Ref_From_Units,0))","v":{"$error":"#REF!"}},{"$error":"#N/A"},1,28,265,1,"Ref_DD_vehicle_Passenger_",{"$error":"#REF!"},{"$error":"#REF!"},{"$error":"#REF!"},{"$error":"#REF!"},false,"","","","","","","","","","","","","","","","","","","","","","","","","","","","","","","","","","","","","","","","","","","Ref_DD_DistanceUnit","",0]
[null,null,null,null,null,null,null,null,null,null,null,null,null,null,null,null,"","","","","",{"$error":"#REF!"},{"$error":"#REF!"},{"$error":"#REF!"},{"$error":"#REF!"},{"$error":"#REF!"},{"$error":"#REF!"},{"$error":"#REF!"},{"$error":"#REF!"},{"$error":"#REF!"},{"$error":"#REF!"},{"$error":"#REF!"},{"$error":"#REF!"},{"$f":"INDEX(Ref_Master_Unit_Table,MATCH($W50,REF_To_Unit,0),MATCH('Reference - Lookup and Unit'!$A$11,Ref_From_Units,0))","v":{"$error":"#REF!"}},{"$error":"#N/A"},{"$f":"INDEX(Ref_Master_Unit_Table,MATCH($Z50,REF_To_Unit,0),MATCH('Reference - Lookup and Unit'!$A$11,Ref_From_Units,0))","v":{"$error":"#REF!"}},{"$error":"#N/A"},{"$f":"INDEX(Ref_Master_Unit_Table,MATCH($AC50,REF_To_Unit,0),MATCH('Reference - Lookup and Unit'!$A$11,Ref_From_Units,0))","v":{"$error":"#REF!"}},{"$error":"#N/A"},{"$f":"INDEX(Ref_Master_Unit_Table,MATCH($AF50,REF_To_Unit,0),MATCH('Reference - Lookup and Unit'!$A$11,Ref_From_Units,0))","v":{"$error":"#REF!"}},{"$error":"#N/A"},1,28,265,1,"Ref_DD_vehicle_Passenger_",{"$error":"#REF!"},{"$error":"#REF!"},{"$error":"#REF!"},{"$error":"#REF!"},false,"","","","","","","","","","","","","","","","","","","","","","","","","","","","","","","","","","","","","","","","","","","Ref_DD_DistanceUnit","",0]
[null,null,null,null,null,null,null,null,null,null,null,null,null,null,null,null,"","","","","",{"$error":"#REF!"},{"$error":"#REF!"},{"$error":"#REF!"},{"$error":"#REF!"},{"$error":"#REF!"},{"$error":"#REF!"},{"$error":"#REF!"},{"$error":"#REF!"},{"$error":"#REF!"},{"$error":"#REF!"},{"$error":"#REF!"},{"$error":"#REF!"},{"$f":"INDEX(Ref_Master_Unit_Table,MATCH($W51,REF_To_Unit,0),MATCH('Reference - Lookup and Unit'!$A$11,Ref_From_Units,0))","v":{"$error":"#REF!"}},{"$error":"#N/A"},{"$f":"INDEX(Ref_Master_Unit_Table,MATCH($Z51,REF_To_Unit,0),MATCH('Reference - Lookup and Unit'!$A$11,Ref_From_Units,0))","v":{"$error":"#REF!"}},{"$error":"#N/A"},{"$f":"INDEX(Ref_Master_Unit_Table,MATCH($AC51,REF_To_Unit,0),MATCH('Reference - Lookup and Unit'!$A$11,Ref_From_Units,0))","v":{"$error":"#REF!"}},{"$error":"#N/A"},{"$f":"INDEX(Ref_Master_Unit_Table,MATCH($AF51,REF_To_Unit,0),MATCH('Reference - Lookup and Unit'!$A$11,Ref_From_Units,0))","v":{"$error":"#REF!"}},{"$error":"#N/A"},1,28,265,1,"Ref_DD_vehicle_Passenger_",{"$error":"#REF!"},{"$error":"#REF!"},{"$error":"#REF!"},{"$error":"#REF!"},false,"","","","","","","","","","","","","","","","","","","","","","","","","","","","","","","","","","","","","","","","","","","Ref_DD_DistanceUnit","",0]
[null,null,null,null,null,null,null,null,null,null,null,null,null,null,null,null,"","","","","",{"$error":"#REF!"},{"$error":"#REF!"},{"$error":"#REF!"},{"$error":"#REF!"},{"$error":"#REF!"},{"$error":"#REF!"},{"$error":"#REF!"},{"$error":"#REF!"},{"$error":"#REF!"},{"$error":"#REF!"},{"$error":"#REF!"},{"$error":"#REF!"},{"$f":"INDEX(Ref_Master_Unit_Table,MATCH($W52,REF_To_Unit,0),MATCH('Reference - Lookup and Unit'!$A$11,Ref_From_Units,0))","v":{"$error":"#REF!"}},{"$error":"#N/A"},{"$f":"INDEX(Ref_Master_Unit_Table,MATCH($Z52,REF_To_Unit,0),MATCH('Reference - Lookup and Unit'!$A$11,Ref_From_Units,0))","v":{"$error":"#REF!"}},{"$error":"#N/A"},{"$f":"INDEX(Ref_Master_Unit_Table,MATCH($AC52,REF_To_Unit,0),MATCH('Reference - Lookup and Unit'!$A$11,Ref_From_Units,0))","v":{"$error":"#REF!"}},{"$error":"#N/A"},{"$f":"INDEX(Ref_Master_Unit_Table,MATCH($AF52,REF_To_Unit,0),MATCH('Reference - Lookup and Unit'!$A$11,Ref_From_Units,0))","v":{"$error":"#REF!"}},{"$error":"#N/A"},1,28,265,1,"Ref_DD_vehicle_Passenger_",{"$error":"#REF!"},{"$error":"#REF!"},{"$error":"#REF!"},{"$error":"#REF!"},false,"","","","","","","","","","","","","","","","","","","","","","","","","","","","","","","","","","","","","","","","","","","Ref_DD_DistanceUnit","",0]
[null,null,null,null,null,null,null,null,null,null,null,null,null,null,null,null,"","","","","",{"$error":"#REF!"},{"$error":"#REF!"},{"$error":"#REF!"},{"$error":"#REF!"},{"$error":"#REF!"},{"$error":"#REF!"},{"$error":"#REF!"},{"$error":"#REF!"},{"$error":"#REF!"},{"$error":"#REF!"},{"$error":"#REF!"},{"$error":"#REF!"},{"$f":"INDEX(Ref_Master_Unit_Table,MATCH($W53,REF_To_Unit,0),MATCH('Reference - Lookup and Unit'!$A$11,Ref_From_Units,0))","v":{"$error":"#REF!"}},{"$error":"#N/A"},{"$f":"INDEX(Ref_Master_Unit_Table,MATCH($Z53,REF_To_Unit,0),MATCH('Reference - Lookup and Unit'!$A$11,Ref_From_Units,0))","v":{"$error":"#REF!"}},{"$error":"#N/A"},{"$f":"INDEX(Ref_Master_Unit_Table,MATCH($AC53,REF_To_Unit,0),MATCH('Reference - Lookup and Unit'!$A$11,Ref_From_Units,0))","v":{"$error":"#REF!"}},{"$error":"#N/A"},{"$f":"INDEX(Ref_Master_Unit_Table,MATCH($AF53,REF_To_Unit,0),MATCH('Reference - Lookup and Unit'!$A$11,Ref_From_Units,0))","v":{"$error":"#REF!"}},{"$error":"#N/A"},1,28,265,1,"Ref_DD_vehicle_Passenger_",{"$error":"#REF!"},{"$error":"#REF!"},{"$error":"#REF!"},{"$error":"#REF!"},false,"","","","","","","","","","","","","","","","","","","","","","","","","","","","","","","","","","","","","","","","","","","Ref_DD_DistanceUnit","",0]
[null,null,null,null,null,null,null,null,null,null,null,null,null,null,null,null,"","","","","",{"$error":"#REF!"},{"$error":"#REF!"},{"$error":"#REF!"},{"$error":"#REF!"},{"$error":"#REF!"},{"$error":"#REF!"},{"$error":"#REF!"},{"$error":"#REF!"},{"$error":"#REF!"},{"$error":"#REF!"},{"$error":"#REF!"},{"$error":"#REF!"},{"$f":"INDEX(Ref_Master_Unit_Table,MATCH($W54,REF_To_Unit,0),MATCH('Reference - Lookup and Unit'!$A$11,Ref_From_Units,0))","v":{"$error":"#REF!"}},{"$error":"#N/A"},{"$f":"INDEX(Ref_Master_Unit_Table,MATCH($Z54,REF_To_Unit,0),MATCH('Reference - Lookup and Unit'!$A$11,Ref_From_Units,0))","v":{"$error":"#REF!"}},{"$error":"#N/A"},{"$f":"INDEX(Ref_Master_Unit_Table,MATCH($AC54,REF_To_Unit,0),MATCH('Reference - Lookup and Unit'!$A$11,Ref_From_Units,0))","v":{"$error":"#REF!"}},{"$error":"#N/A"},{"$f":"INDEX(Ref_Master_Unit_Table,MATCH($AF54,REF_To_Unit,0),MATCH('Reference - Lookup and Unit'!$A$11,Ref_From_Units,0))","v":{"$error":"#REF!"}},{"$error":"#N/A"},1,28,265,1,"Ref_DD_vehicle_Passenger_",{"$error":"#REF!"},{"$error":"#REF!"},{"$error":"#REF!"},{"$error":"#REF!"},false,"","","","","","","","","","","","","","","","","","","","","","","","","","","","","","","","","","","","","","","","","","","Ref_DD_DistanceUnit","",0]
[null,null,null,null,null,null,null,null,null,null,null,null,null,null,null,null,"","","","","",{"$error":"#REF!"},{"$error":"#REF!"},{"$error":"#REF!"},{"$error":"#REF!"},{"$error":"#REF!"},{"$error":"#REF!"},{"$error":"#REF!"},{"$error":"#REF!"},{"$error":"#REF!"},{"$error":"#REF!"},{"$error":"#REF!"},{"$error":"#REF!"},{"$f":"INDEX(Ref_Master_Unit_Table,MATCH($W55,REF_To_Unit,0),MATCH('Reference - Lookup and Unit'!$A$11,Ref_From_Units,0))","v":{"$error":"#REF!"}},{"$error":"#N/A"},{"$f":"INDEX(Ref_Master_Unit_Table,MATCH($Z55,REF_To_Unit,0),MATCH('Reference - Lookup and Unit'!$A$11,Ref_From_Units,0))","v":{"$error":"#REF!"}},{"$error":"#N/A"},{"$f":"INDEX(Ref_Master_Unit_Table,MATCH($AC55,REF_To_Unit,0),MATCH('Reference - Lookup and Unit'!$A$11,Ref_From_Units,0))","v":{"$error":"#REF!"}},{"$error":"#N/A"},{"$f":"INDEX(Ref_Master_Unit_Table,MATCH($AF55,REF_To_Unit,0),MATCH('Reference - Lookup and Unit'!$A$11,Ref_From_Units,0))","v":{"$error":"#REF!"}},{"$error":"#N/A"},1,28,265,1,"Ref_DD_vehicle_Passenger_",{"$error":"#REF!"},{"$error":"#REF!"},{"$error":"#REF!"},{"$error":"#REF!"},false,"","","","","","","","","","","","","","","","","","","","","","","","","","","","","","","","","","","","","","","","","","","Ref_DD_DistanceUnit","",0]
[null,null,null,null,null,null,null,null,null,null,null,null,null,null,null,null,"","","","","",{"$error":"#REF!"},{"$error":"#REF!"},{"$error":"#REF!"},{"$error":"#REF!"},{"$error":"#REF!"},{"$error":"#REF!"},{"$error":"#REF!"},{"$error":"#REF!"},{"$error":"#REF!"},{"$error":"#REF!"},{"$error":"#REF!"},{"$error":"#REF!"},{"$f":"INDEX(Ref_Master_Unit_Table,MATCH($W56,REF_To_Unit,0),MATCH('Reference - Lookup and Unit'!$A$11,Ref_From_Units,0))","v":{"$error":"#REF!"}},{"$error":"#N/A"},{"$f":"INDEX(Ref_Master_Unit_Table,MATCH($Z56,REF_To_Unit,0),MATCH('Reference - Lookup and Unit'!$A$11,Ref_From_Units,0))","v":{"$error":"#REF!"}},{"$error":"#N/A"},{"$f":"INDEX(Ref_Master_Unit_Table,MATCH($AC56,REF_To_Unit,0),MATCH('Reference - Lookup and Unit'!$A$11,Ref_From_Units,0))","v":{"$error":"#REF!"}},{"$error":"#N/A"},{"$f":"INDEX(Ref_Master_Unit_Table,MATCH($AF56,REF_To_Unit,0),MATCH('Reference - Lookup and Unit'!$A$11,Ref_From_Units,0))","v":{"$error":"#REF!"}},{"$error":"#N/A"},1,28,265,1,"Ref_DD_vehicle_Passenger_",{"$error":"#REF!"},{"$error":"#REF!"},{"$error":"#REF!"},{"$error":"#REF!"},false,"","","","","","","","","","","","","","","","","","","","","","","","","","","","","","","","","","","","","","","","","","","Ref_DD_DistanceUnit","",0]
[null,null,null,null,null,null,null,null,null,null,null,null,null,null,null,null,"","","","","",{"$error":"#REF!"},{"$error":"#REF!"},{"$error":"#REF!"},{"$error":"#REF!"},{"$error":"#REF!"},{"$error":"#REF!"},{"$error":"#REF!"},{"$error":"#REF!"},{"$error":"#REF!"},{"$error":"#REF!"},{"$error":"#REF!"},{"$error":"#REF!"},{"$f":"INDEX(Ref_Master_Unit_Table,MATCH($W57,REF_To_Unit,0),MATCH('Reference - Lookup and Unit'!$A$11,Ref_From_Units,0))","v":{"$error":"#REF!"}},{"$error":"#N/A"},{"$f":"INDEX(Ref_Master_Unit_Table,MATCH($Z57,REF_To_Unit,0),MATCH('Reference - Lookup and Unit'!$A$11,Ref_From_Units,0))","v":{"$error":"#REF!"}},{"$error":"#N/A"},{"$f":"INDEX(Ref_Master_Unit_Table,MATCH($AC57,REF_To_Unit,0),MATCH('Reference - Lookup and Unit'!$A$11,Ref_From_Units,0))","v":{"$error":"#REF!"}},{"$error":"#N/A"},{"$f":"INDEX(Ref_Master_Unit_Table,MATCH($AF57,REF_To_Unit,0),MATCH('Reference - Lookup and Unit'!$A$11,Ref_From_Units,0))","v":{"$error":"#REF!"}},{"$error":"#N/A"},1,28,265,1,"Ref_DD_vehicle_Passenger_",{"$error":"#REF!"},{"$error":"#REF!"},{"$error":"#REF!"},{"$error":"#REF!"},false,"","","","","","","","","","","","","","","","","","","","","","","","","","","","","","","","","","","","","","","","","","","Ref_DD_DistanceUnit","",0]
[null,null,null,null,null,null,null,null,null,null,null,null,null,null,null,null,"","","","","",{"$error":"#REF!"},{"$error":"#REF!"},{"$error":"#REF!"},{"$error":"#REF!"},{"$error":"#REF!"},{"$error":"#REF!"},{"$error":"#REF!"},{"$error":"#REF!"},{"$error":"#REF!"},{"$error":"#REF!"},{"$error":"#REF!"},{"$error":"#REF!"},{"$f":"INDEX(Ref_Master_Unit_Table,MATCH($W58,REF_To_Unit,0),MATCH('Reference - Lookup and Unit'!$A$11,Ref_From_Units,0))","v":{"$error":"#REF!"}},{"$error":"#N/A"},{"$f":"INDEX(Ref_Master_Unit_Table,MATCH($Z58,REF_To_Unit,0),MATCH('Reference - Lookup and Unit'!$A$11,Ref_From_Units,0))","v":{"$error":"#REF!"}},{"$error":"#N/A"},{"$f":"INDEX(Ref_Master_Unit_Table,MATCH($AC58,REF_To_Unit,0),MATCH('Reference - Lookup and Unit'!$A$11,Ref_From_Units,0))","v":{"$error":"#REF!"}},{"$error":"#N/A"},{"$f":"INDEX(Ref_Master_Unit_Table,MATCH($AF58,REF_To_Unit,0),MATCH('Reference - Lookup and Unit'!$A$11,Ref_From_Units,0))","v":{"$error":"#REF!"}},{"$error":"#N/A"},1,28,265,1,"Ref_DD_vehicle_Passenger_",{"$error":"#REF!"},{"$error":"#REF!"},{"$error":"#REF!"},{"$error":"#REF!"},false,"","","","","","","","","","","","","","","","","","","","","","","","","","","","","","","","","","","","","","","","","","","Ref_DD_DistanceUnit","",0]
[null,null,null,null,null,null,null,null,null,null,null,null,null,null,null,null,"","","","","",{"$error":"#REF!"},{"$error":"#REF!"},{"$error":"#REF!"},{"$error":"#REF!"},{"$error":"#REF!"},{"$error":"#REF!"},{"$error":"#REF!"},{"$error":"#REF!"},{"$error":"#REF!"},{"$error":"#REF!"},{"$error":"#REF!"},{"$error":"#REF!"},{"$f":"INDEX(Ref_Master_Unit_Table,MATCH($W59,REF_To_Unit,0),MATCH('Reference - Lookup and Unit'!$A$11,Ref_From_Units,0))","v":{"$error":"#REF!"}},{"$error":"#N/A"},{"$f":"INDEX(Ref_Master_Unit_Table,MATCH($Z59,REF_To_Unit,0),MATCH('Reference - Lookup and Unit'!$A$11,Ref_From_Units,0))","v":{"$error":"#REF!"}},{"$error":"#N/A"},{"$f":"INDEX(Ref_Master_Unit_Table,MATCH($AC59,REF_To_Unit,0),MATCH('Reference - Lookup and Unit'!$A$11,Ref_From_Units,0))","v":{"$error":"#REF!"}},{"$error":"#N/A"},{"$f":"INDEX(Ref_Master_Unit_Table,MATCH($AF59,REF_To_Unit,0),MATCH('Reference - Lookup and Unit'!$A$11,Ref_From_Units,0))","v":{"$error":"#REF!"}},{"$error":"#N/A"},1,28,265,1,"Ref_DD_vehicle_Passenger_",{"$error":"#REF!"},{"$error":"#REF!"},{"$error":"#REF!"},{"$error":"#REF!"},false,"","","","","","","","","","","","","","","","","","","","","","","","","","","","","","","","","","","","","","","","","","","Ref_DD_DistanceUnit","",0]
[null,null,null,null,null,null,null,null,null,null,null,null,null,null,null,null,"","","","","",{"$error":"#REF!"},{"$error":"#REF!"},{"$error":"#REF!"},{"$error":"#REF!"},{"$error":"#REF!"},{"$error":"#REF!"},{"$error":"#REF!"},{"$error":"#REF!"},{"$error":"#REF!"},{"$error":"#REF!"},{"$error":"#REF!"},{"$error":"#REF!"},{"$f":"INDEX(Ref_Master_Unit_Table,MATCH($W60,REF_To_Unit,0),MATCH('Reference - Lookup and Unit'!$A$11,Ref_From_Units,0))","v":{"$error":"#REF!"}},{"$error":"#N/A"},{"$f":"INDEX(Ref_Master_Unit_Table,MATCH($Z60,REF_To_Unit,0),MATCH('Reference - Lookup and Unit'!$A$11,Ref_From_Units,0))","v":{"$error":"#REF!"}},{"$error":"#N/A"},{"$f":"INDEX(Ref_Master_Unit_Table,MATCH($AC60,REF_To_Unit,0),MATCH('Reference - Lookup and Unit'!$A$11,Ref_From_Units,0))","v":{"$error":"#REF!"}},{"$error":"#N/A"},{"$f":"INDEX(Ref_Master_Unit_Table,MATCH($AF60,REF_To_Unit,0),MATCH('Reference - Lookup and Unit'!$A$11,Ref_From_Units,0))","v":{"$error":"#REF!"}},{"$error":"#N/A"},1,28,265,1,"Ref_DD_vehicle_Passenger_",{"$error":"#REF!"},{"$error":"#REF!"},{"$error":"#REF!"},{"$error":"#REF!"},false,"","","","","","","","","","","","","","","","","","","","","","","","","","","","","","","","","","","","","","","","","","","Ref_DD_DistanceUnit","",0]
[null,null,null,null,null,null,null,null,null,null,null,null,null,null,null,null,"","","","","",{"$error":"#REF!"},{"$error":"#REF!"},{"$error":"#REF!"},{"$error":"#REF!"},{"$error":"#REF!"},{"$error":"#REF!"},{"$error":"#REF!"},{"$error":"#REF!"},{"$error":"#REF!"},{"$error":"#REF!"},{"$error":"#REF!"},{"$error":"#REF!"},{"$f":"INDEX(Ref_Master_Unit_Table,MATCH($W61,REF_To_Unit,0),MATCH('Reference - Lookup and Unit'!$A$11,Ref_From_Units,0))","v":{"$error":"#REF!"}},{"$error":"#N/A"},{"$f":"INDEX(Ref_Master_Unit_Table,MATCH($Z61,REF_To_Unit,0),MATCH('Reference - Lookup and Unit'!$A$11,Ref_From_Units,0))","v":{"$error":"#REF!"}},{"$error":"#N/A"},{"$f":"INDEX(Ref_Master_Unit_Table,MATCH($AC61,REF_To_Unit,0),MATCH('Reference - Lookup and Unit'!$A$11,Ref_From_Units,0))","v":{"$error":"#REF!"}},{"$error":"#N/A"},{"$f":"INDEX(Ref_Master_Unit_Table,MATCH($AF61,REF_To_Unit,0),MATCH('Reference - Lookup and Unit'!$A$11,Ref_From_Units,0))","v":{"$error":"#REF!"}},{"$error":"#N/A"},1,28,265,1,"Ref_DD_vehicle_Passenger_",{"$error":"#REF!"},{"$error":"#REF!"},{"$error":"#REF!"},{"$error":"#REF!"},false,"","","","","","","","","","","","","","","","","","","","","","","","","","","","","","","","","","","","","","","","","","","Ref_DD_DistanceUnit","",0]
[null,null,null,null,null,null,null,null,null,null,null,null,null,null,null,null,"","","","","",{"$error":"#REF!"},{"$error":"#REF!"},{"$error":"#REF!"},{"$error":"#REF!"},{"$error":"#REF!"},{"$error":"#REF!"},{"$error":"#REF!"},{"$error":"#REF!"},{"$error":"#REF!"},{"$error":"#REF!"},{"$error":"#REF!"},{"$error":"#REF!"},{"$f":"INDEX(Ref_Master_Unit_Table,MATCH($W62,REF_To_Unit,0),MATCH('Reference - Lookup and Unit'!$A$11,Ref_From_Units,0))","v":{"$error":"#REF!"}},{"$error":"#N/A"},{"$f":"INDEX(Ref_Master_Unit_Table,MATCH($Z62,REF_To_Unit,0),MATCH('Reference - Lookup and Unit'!$A$11,Ref_From_Units,0))","v":{"$error":"#REF!"}},{"$error":"#N/A"},{"$f":"INDEX(Ref_Master_Unit_Table,MATCH($AC62,REF_To_Unit,0),MATCH('Reference - Lookup and Unit'!$A$11,Ref_From_Units,0))","v":{"$error":"#REF!"}},{"$error":"#N/A"},{"$f":"INDEX(Ref_Master_Unit_Table,MATCH($AF62,REF_To_Unit,0),MATCH('Reference - Lookup and Unit'!$A$11,Ref_From_Units,0))","v":{"$error":"#REF!"}},{"$error":"#N/A"},1,28,265,1,"Ref_DD_vehicle_Passenger_",{"$error":"#REF!"},{"$error":"#REF!"},{"$error":"#REF!"},{"$error":"#REF!"},false,"","","","","","","","","","","","","","","","","","","","","","","","","","","","","","","","","","","","","","","","","","","Ref_DD_DistanceUnit","",0]
[null,null,null,null,null,null,null,null,null,null,null,null,null,null,null,null,"","","","","",{"$error":"#REF!"},{"$error":"#REF!"},{"$error":"#REF!"},{"$error":"#REF!"},{"$error":"#REF!"},{"$error":"#REF!"},{"$error":"#REF!"},{"$error":"#REF!"},{"$error":"#REF!"},{"$error":"#REF!"},{"$error":"#REF!"},{"$error":"#REF!"},{"$f":"INDEX(Ref_Master_Unit_Table,MATCH($W63,REF_To_Unit,0),MATCH('Reference - Lookup and Unit'!$A$11,Ref_From_Units,0))","v":{"$error":"#REF!"}},{"$error":"#N/A"},{"$f":"INDEX(Ref_Master_Unit_Table,MATCH($Z63,REF_To_Unit,0),MATCH('Reference - Lookup and Unit'!$A$11,Ref_From_Units,0))","v":{"$error":"#REF!"}},{"$error":"#N/A"},{"$f":"INDEX(Ref_Master_Unit_Table,MATCH($AC63,REF_To_Unit,0),MATCH('Reference - Lookup and Unit'!$A$11,Ref_From_Units,0))","v":{"$error":"#REF!"}},{"$error":"#N/A"},{"$f":"INDEX(Ref_Master_Unit_Table,MATCH($AF63,REF_To_Unit,0),MATCH('Reference - Lookup and Unit'!$A$11,Ref_From_Units,0))","v":{"$error":"#REF!"}},{"$error":"#N/A"},1,28,265,1,"Ref_DD_vehicle_Passenger_",{"$error":"#REF!"},{"$error":"#REF!"},{"$error":"#REF!"},{"$error":"#REF!"},false,"","","","","","","","","","","","","","","","","","","","","","","","","","","","","","","","","","","","","","","","","","","Ref_DD_DistanceUnit","",0]
[null,null,null,null,null,null,null,null,null,null,null,null,null,null,null,null,"","","","","",{"$error":"#REF!"},{"$error":"#REF!"},{"$error":"#REF!"},{"$error":"#REF!"},{"$error":"#REF!"},{"$error":"#REF!"},{"$error":"#REF!"},{"$error":"#REF!"},{"$error":"#REF!"},{"$error":"#REF!"},{"$error":"#REF!"},{"$error":"#REF!"},{"$f":"INDEX(Ref_Master_Unit_Table,MATCH($W64,REF_To_Unit,0),MATCH('Reference - Lookup and Unit'!$A$11,Ref_From_Units,0))","v":{"$error":"#REF!"}},{"$error":"#N/A"},{"$f":"INDEX(Ref_Master_Unit_Table,MATCH($Z64,REF_To_Unit,0),MATCH('Reference - Lookup and Unit'!$A$11,Ref_From_Units,0))","v":{"$error":"#REF!"}},{"$error":"#N/A"},{"$f":"INDEX(Ref_Master_Unit_Table,MATCH($AC64,REF_To_Unit,0),MATCH('Reference - Lookup and Unit'!$A$11,Ref_From_Units,0))","v":{"$error":"#REF!"}},{"$error":"#N/A"},{"$f":"INDEX(Ref_Master_Unit_Table,MATCH($AF64,REF_To_Unit,0),MATCH('Reference - Lookup and Unit'!$A$11,Ref_From_Units,0))","v":{"$error":"#REF!"}},{"$error":"#N/A"},1,28,265,1,"Ref_DD_vehicle_Passenger_",{"$error":"#REF!"},{"$error":"#REF!"},{"$error":"#REF!"},{"$error":"#REF!"},false,"","","","","","","","","","","","","","","","","","","","","","","","","","","","","","","","","","","","","","","","","","","Ref_DD_DistanceUnit","",0]
[null,null,null,null,null,null,null,null,null,null,null,null,null,null,null,null,"","","","","",{"$error":"#REF!"},{"$error":"#REF!"},{"$error":"#REF!"},{"$error":"#REF!"},{"$error":"#REF!"},{"$error":"#REF!"},{"$error":"#REF!"},{"$error":"#REF!"},{"$error":"#REF!"},{"$error":"#REF!"},{"$error":"#REF!"},{"$error":"#REF!"},{"$f":"INDEX(Ref_Master_Unit_Table,MATCH($W65,REF_To_Unit,0),MATCH('Reference - Lookup and Unit'!$A$11,Ref_From_Units,0))","v":{"$error":"#REF!"}},{"$error":"#N/A"},{"$f":"INDEX(Ref_Master_Unit_Table,MATCH($Z65,REF_To_Unit,0),MATCH('Reference - Lookup and Unit'!$A$11,Ref_From_Units,0))","v":{"$error":"#REF!"}},{"$error":"#N/A"},{"$f":"INDEX(Ref_Master_Unit_Table,MATCH($AC65,REF_To_Unit,0),MATCH('Reference - Lookup and Unit'!$A$11,Ref_From_Units,0))","v":{"$error":"#REF!"}},{"$error":"#N/A"},{"$f":"INDEX(Ref_Master_Unit_Table,MATCH($AF65,REF_To_Unit,0),MATCH('Reference - Lookup and Unit'!$A$11,Ref_From_Units,0))","v":{"$error":"#REF!"}},{"$error":"#N/A"},1,28,265,1,"Ref_DD_vehicle_Passenger_",{"$error":"#REF!"},{"$error":"#REF!"},{"$error":"#REF!"},{"$error":"#REF!"},false,"","","","","","","","","","","","","","","","","","","","","","","","","","","","","","","","","","","","","","","","","","","Ref_DD_DistanceUnit","",0]
[null,null,null,null,null,null,null,null,null,null,null,null,null,null,null,null,"","","","","",{"$error":"#REF!"},{"$error":"#REF!"},{"$error":"#REF!"},{"$error":"#REF!"},{"$error":"#REF!"},{"$error":"#REF!"},{"$error":"#REF!"},{"$error":"#REF!"},{"$error":"#REF!"},{"$error":"#REF!"},{"$error":"#REF!"},{"$error":"#REF!"},{"$f":"INDEX(Ref_Master_Unit_Table,MATCH($W66,REF_To_Unit,0),MATCH('Reference - Lookup and Unit'!$A$11,Ref_From_Units,0))","v":{"$error":"#REF!"}},{"$error":"#N/A"},{"$f":"INDEX(Ref_Master_Unit_Table,MATCH($Z66,REF_To_Unit,0),MATCH('Reference - Lookup and Unit'!$A$11,Ref_From_Units,0))","v":{"$error":"#REF!"}},{"$error":"#N/A"},{"$f":"INDEX(Ref_Master_Unit_Table,MATCH($AC66,REF_To_Unit,0),MATCH('Reference - Lookup and Unit'!$A$11,Ref_From_Units,0))","v":{"$error":"#REF!"}},{"$error":"#N/A"},{"$f":"INDEX(Ref_Master_Unit_Table,MATCH($AF66,REF_To_Unit,0),MATCH('Reference - Lookup and Unit'!$A$11,Ref_From_Units,0))","v":{"$error":"#REF!"}},{"$error":"#N/A"},1,28,265,1,"Ref_DD_vehicle_Passenger_",{"$error":"#REF!"},{"$error":"#REF!"},{"$error":"#REF!"},{"$error":"#REF!"},false,"","","","","","","","","","","","","","","","","","","","","","","","","","","","","","","","","","","","","","","","","","","Ref_DD_DistanceUnit","",0]
[null,null,null,null,null,null,null,null,null,null,null,null,null,null,null,null,"","","","","",{"$error":"#REF!"},{"$error":"#REF!"},{"$error":"#REF!"},{"$error":"#REF!"},{"$error":"#REF!"},{"$error":"#REF!"},{"$error":"#REF!"},{"$error":"#REF!"},{"$error":"#REF!"},{"$error":"#REF!"},{"$error":"#REF!"},{"$error":"#REF!"},{"$f":"INDEX(Ref_Master_Unit_Table,MATCH($W67,REF_To_Unit,0),MATCH('Reference - Lookup and Unit'!$A$11,Ref_From_Units,0))","v":{"$error":"#REF!"}},{"$error":"#N/A"},{"$f":"INDEX(Ref_Master_Unit_Table,MATCH($Z67,REF_To_Unit,0),MATCH('Reference - Lookup and Unit'!$A$11,Ref_From_Units,0))","v":{"$error":"#REF!"}},{"$error":"#N/A"},{"$f":"INDEX(Ref_Master_Unit_Table,MATCH($AC67,REF_To_Unit,0),MATCH('Reference - Lookup and Unit'!$A$11,Ref_From_Units,0))","v":{"$error":"#REF!"}},{"$error":"#N/A"},{"$f":"INDEX(Ref_Master_Unit_Table,MATCH($AF67,REF_To_Unit,0),MATCH('Reference - Lookup and Unit'!$A$11,Ref_From_Units,0))","v":{"$error":"#REF!"}},{"$error":"#N/A"},1,28,265,1,"Ref_DD_vehicle_Passenger_",{"$error":"#REF!"},{"$error":"#REF!"},{"$error":"#REF!"},{"$error":"#REF!"},false,"","","","","","","","","","","","","","","","","","","","","","","","","","","","","","","","","","","","","","","","","","","Ref_DD_DistanceUnit","",0]
[null,null,null,null,null,null,null,null,null,null,null,null,null,null,null,null,"","","","","",{"$error":"#REF!"},{"$error":"#REF!"},{"$error":"#REF!"},{"$error":"#REF!"},{"$error":"#REF!"},{"$error":"#REF!"},{"$error":"#REF!"},{"$error":"#REF!"},{"$error":"#REF!"},{"$error":"#REF!"},{"$error":"#REF!"},{"$error":"#REF!"},{"$f":"INDEX(Ref_Master_Unit_Table,MATCH($W68,REF_To_Unit,0),MATCH('Reference - Lookup and Unit'!$A$11,Ref_From_Units,0))","v":{"$error":"#REF!"}},{"$error":"#N/A"},{"$f":"INDEX(Ref_Master_Unit_Table,MATCH($Z68,REF_To_Unit,0),MATCH('Reference - Lookup and Unit'!$A$11,Ref_From_Units,0))","v":{"$error":"#REF!"}},{"$error":"#N/A"},{"$f":"INDEX(Ref_Master_Unit_Table,MATCH($AC68,REF_To_Unit,0),MATCH('Reference - Lookup and Unit'!$A$11,Ref_From_Units,0))","v":{"$error":"#REF!"}},{"$error":"#N/A"},{"$f":"INDEX(Ref_Master_Unit_Table,MATCH($AF68,REF_To_Unit,0),MATCH('Reference - Lookup and Unit'!$A$11,Ref_From_Units,0))","v":{"$error":"#REF!"}},{"$error":"#N/A"},1,28,265,1,"Ref_DD_vehicle_Passenger_",{"$error":"#REF!"},{"$error":"#REF!"},{"$error":"#REF!"},{"$error":"#REF!"},false,"","","","","","","","","","","","","","","","","","","","","","","","","","","","","","","","","","","","","","","","","","","Ref_DD_DistanceUnit","",0]
[null,null,null,null,null,null,null,null,null,null,null,null,null,null,null,null,"","","","","",{"$error":"#REF!"},{"$error":"#REF!"},{"$error":"#REF!"},{"$error":"#REF!"},{"$error":"#REF!"},{"$error":"#REF!"},{"$error":"#REF!"},{"$error":"#REF!"},{"$error":"#REF!"},{"$error":"#REF!"},{"$error":"#REF!"},{"$error":"#REF!"},{"$f":"INDEX(Ref_Master_Unit_Table,MATCH($W69,REF_To_Unit,0),MATCH('Reference - Lookup and Unit'!$A$11,Ref_From_Units,0))","v":{"$error":"#REF!"}},{"$error":"#N/A"},{"$f":"INDEX(Ref_Master_Unit_Table,MATCH($Z69,REF_To_Unit,0),MATCH('Reference - Lookup and Unit'!$A$11,Ref_From_Units,0))","v":{"$error":"#REF!"}},{"$error":"#N/A"},{"$f":"INDEX(Ref_Master_Unit_Table,MATCH($AC69,REF_To_Unit,0),MATCH('Reference - Lookup and Unit'!$A$11,Ref_From_Units,0))","v":{"$error":"#REF!"}},{"$error":"#N/A"},{"$f":"INDEX(Ref_Master_Unit_Table,MATCH($AF69,REF_To_Unit,0),MATCH('Reference - Lookup and Unit'!$A$11,Ref_From_Units,0))","v":{"$error":"#REF!"}},{"$error":"#N/A"},1,28,265,1,"Ref_DD_vehicle_Passenger_",{"$error":"#REF!"},{"$error":"#REF!"},{"$error":"#REF!"},{"$error":"#REF!"},false,"","","","","","","","","","","","","","","","","","","","","","","","","","","","","","","","","","","","","","","","","","","Ref_DD_DistanceUnit","",0]
[null,null,null,null,null,null,null,null,null,null,null,null,null,null,null,null,"","","","","",{"$error":"#REF!"},{"$error":"#REF!"},{"$error":"#REF!"},{"$error":"#REF!"},{"$error":"#REF!"},{"$error":"#REF!"},{"$error":"#REF!"},{"$error":"#REF!"},{"$error":"#REF!"},{"$error":"#REF!"},{"$error":"#REF!"},{"$error":"#REF!"},{"$f":"INDEX(Ref_Master_Unit_Table,MATCH($W70,REF_To_Unit,0),MATCH('Reference - Lookup and Unit'!$A$11,Ref_From_Units,0))","v":{"$error":"#REF!"}},{"$error":"#N/A"},{"$f":"INDEX(Ref_Master_Unit_Table,MATCH($Z70,REF_To_Unit,0),MATCH('Reference - Lookup and Unit'!$A$11,Ref_From_Units,0))","v":{"$error":"#REF!"}},{"$error":"#N/A"},{"$f":"INDEX(Ref_Master_Unit_Table,MATCH($AC70,REF_To_Unit,0),MATCH('Reference - Lookup and Unit'!$A$11,Ref_From_Units,0))","v":{"$error":"#REF!"}},{"$error":"#N/A"},{"$f":"INDEX(Ref_Master_Unit_Table,MATCH($AF70,REF_To_Unit,0),MATCH('Reference - Lookup and Unit'!$A$11,Ref_From_Units,0))","v":{"$error":"#REF!"}},{"$error":"#N/A"},1,28,265,1,"Ref_DD_vehicle_Passenger_",{"$error":"#REF!"},{"$error":"#REF!"},{"$error":"#REF!"},{"$error":"#REF!"},false,"","","","","","","","","","","","","","","","","","","","","","","","","","","","","","","","","","","","","","","","","","","Ref_DD_DistanceUnit","",0]
[null,null,null,null,null,null,null,null,null,null,null,null,null,null,null,null,"","","","","",{"$error":"#REF!"},{"$error":"#REF!"},{"$error":"#REF!"},{"$error":"#REF!"},{"$error":"#REF!"},{"$error":"#REF!"},{"$error":"#REF!"},{"$error":"#REF!"},{"$error":"#REF!"},{"$error":"#REF!"},{"$error":"#REF!"},{"$error":"#REF!"},{"$f":"INDEX(Ref_Master_Unit_Table,MATCH($W71,REF_To_Unit,0),MATCH('Reference - Lookup and Unit'!$A$11,Ref_From_Units,0))","v":{"$error":"#REF!"}},{"$error":"#N/A"},{"$f":"INDEX(Ref_Master_Unit_Table,MATCH($Z71,REF_To_Unit,0),MATCH('Reference - Lookup and Unit'!$A$11,Ref_From_Units,0))","v":{"$error":"#REF!"}},{"$error":"#N/A"},{"$f":"INDEX(Ref_Master_Unit_Table,MATCH($AC71,REF_To_Unit,0),MATCH('Reference - Lookup and Unit'!$A$11,Ref_From_Units,0))","v":{"$error":"#REF!"}},{"$error":"#N/A"},{"$f":"INDEX(Ref_Master_Unit_Table,MATCH($AF71,REF_To_Unit,0),MATCH('Reference - Lookup and Unit'!$A$11,Ref_From_Units,0))","v":{"$error":"#REF!"}},{"$error":"#N/A"},1,28,265,1,"Ref_DD_vehicle_Passenger_",{"$error":"#REF!"},{"$error":"#REF!"},{"$error":"#REF!"},{"$error":"#REF!"},false,"","","","","","","","","","","","","","","","","","","","","","","","","","","","","","","","","","","","","","","","","","","Ref_DD_DistanceUnit","",0]
[null,null,null,null,null,null,null,null,null,null,null,null,null,null,null,null,"","","","","",{"$error":"#REF!"},{"$error":"#REF!"},{"$error":"#REF!"},{"$error":"#REF!"},{"$error":"#REF!"},{"$error":"#REF!"},{"$error":"#REF!"},{"$error":"#REF!"},{"$error":"#REF!"},{"$error":"#REF!"},{"$error":"#REF!"},{"$error":"#REF!"},{"$f":"INDEX(Ref_Master_Unit_Table,MATCH($W72,REF_To_Unit,0),MATCH('Reference - Lookup and Unit'!$A$11,Ref_From_Units,0))","v":{"$error":"#REF!"}},{"$error":"#N/A"},{"$f":"INDEX(Ref_Master_Unit_Table,MATCH($Z72,REF_To_Unit,0),MATCH('Reference - Lookup and Unit'!$A$11,Ref_From_Units,0))","v":{"$error":"#REF!"}},{"$error":"#N/A"},{"$f":"INDEX(Ref_Master_Unit_Table,MATCH($AC72,REF_To_Unit,0),MATCH('Reference - Lookup and Unit'!$A$11,Ref_From_Units,0))","v":{"$error":"#REF!"}},{"$error":"#N/A"},{"$f":"INDEX(Ref_Master_Unit_Table,MATCH($AF72,REF_To_Unit,0),MATCH('Reference - Lookup and Unit'!$A$11,Ref_From_Units,0))","v":{"$error":"#REF!"}},{"$error":"#N/A"},1,28,265,1,"Ref_DD_vehicle_Passenger_",{"$error":"#REF!"},{"$error":"#REF!"},{"$error":"#REF!"},{"$error":"#REF!"},false,"","","","","","","","","","","","","","","","","","","","","","","","","","","","","","","","","","","","","","","","","","","Ref_DD_DistanceUnit","",0]
[null,null,null,null,null,null,null,null,null,null,null,null,null,null,null,null,"","","","","",{"$error":"#REF!"},{"$error":"#REF!"},{"$error":"#REF!"},{"$error":"#REF!"},{"$error":"#REF!"},{"$error":"#REF!"},{"$error":"#REF!"},{"$error":"#REF!"},{"$error":"#REF!"},{"$error":"#REF!"},{"$error":"#REF!"},{"$error":"#REF!"},{"$f":"INDEX(Ref_Master_Unit_Table,MATCH($W73,REF_To_Unit,0),MATCH('Reference - Lookup and Unit'!$A$11,Ref_From_Units,0))","v":{"$error":"#REF!"}},{"$error":"#N/A"},{"$f":"INDEX(Ref_Master_Unit_Table,MATCH($Z73,REF_To_Unit,0),MATCH('Reference - Lookup and Unit'!$A$11,Ref_From_Units,0))","v":{"$error":"#REF!"}},{"$error":"#N/A"},{"$f":"INDEX(Ref_Master_Unit_Table,MATCH($AC73,REF_To_Unit,0),MATCH('Reference - Lookup and Unit'!$A$11,Ref_From_Units,0))","v":{"$error":"#REF!"}},{"$error":"#N/A"},{"$f":"INDEX(Ref_Master_Unit_Table,MATCH($AF73,REF_To_Unit,0),MATCH('Reference - Lookup and Unit'!$A$11,Ref_From_Units,0))","v":{"$error":"#REF!"}},{"$error":"#N/A"},1,28,265,1,"Ref_DD_vehicle_Passenger_",{"$error":"#REF!"},{"$error":"#REF!"},{"$error":"#REF!"},{"$error":"#REF!"},false,"","","","","","","","","","","","","","","","","","","","","","","","","","","","","","","","","","","","","","","","","","","Ref_DD_DistanceUnit","",0]
[null,null,null,null,null,null,null,null,null,null,null,null,null,null,null,null,"","","","","",{"$error":"#REF!"},{"$error":"#REF!"},{"$error":"#REF!"},{"$error":"#REF!"},{"$error":"#REF!"},{"$error":"#REF!"},{"$error":"#REF!"},{"$error":"#REF!"},{"$error":"#REF!"},{"$error":"#REF!"},{"$error":"#REF!"},{"$error":"#REF!"},{"$f":"INDEX(Ref_Master_Unit_Table,MATCH($W74,REF_To_Unit,0),MATCH('Reference - Lookup and Unit'!$A$11,Ref_From_Units,0))","v":{"$error":"#REF!"}},{"$error":"#N/A"},{"$f":"INDEX(Ref_Master_Unit_Table,MATCH($Z74,REF_To_Unit,0),MATCH('Reference - Lookup and Unit'!$A$11,Ref_From_Units,0))","v":{"$error":"#REF!"}},{"$error":"#N/A"},{"$f":"INDEX(Ref_Master_Unit_Table,MATCH($AC74,REF_To_Unit,0),MATCH('Reference - Lookup and Unit'!$A$11,Ref_From_Units,0))","v":{"$error":"#REF!"}},{"$error":"#N/A"},{"$f":"INDEX(Ref_Master_Unit_Table,MATCH($AF74,REF_To_Unit,0),MATCH('Reference - Lookup and Unit'!$A$11,Ref_From_Units,0))","v":{"$error":"#REF!"}},{"$error":"#N/A"},1,28,265,1,"Ref_DD_vehicle_Passenger_",{"$error":"#REF!"},{"$error":"#REF!"},{"$error":"#REF!"},{"$error":"#REF!"},false,"","","","","","","","","","","","","","","","","","","","","","","","","","","","","","","","","","","","","","","","","","","Ref_DD_DistanceUnit","",0]
[null,null,null,null,null,null,null,null,null,null,null,null,null,null,null,null,"","","","","",{"$error":"#REF!"},{"$error":"#REF!"},{"$error":"#REF!"},{"$error":"#REF!"},{"$error":"#REF!"},{"$error":"#REF!"},{"$error":"#REF!"},{"$error":"#REF!"},{"$error":"#REF!"},{"$error":"#REF!"},{"$error":"#REF!"},{"$error":"#REF!"},{"$f":"INDEX(Ref_Master_Unit_Table,MATCH($W75,REF_To_Unit,0),MATCH('Reference - Lookup and Unit'!$A$11,Ref_From_Units,0))","v":{"$error":"#REF!"}},{"$error":"#N/A"},{"$f":"INDEX(Ref_Master_Unit_Table,MATCH($Z75,REF_To_Unit,0),MATCH('Reference - Lookup and Unit'!$A$11,Ref_From_Units,0))","v":{"$error":"#REF!"}},{"$error":"#N/A"},{"$f":"INDEX(Ref_Master_Unit_Table,MATCH($AC75,REF_To_Unit,0),MATCH('Reference - Lookup and Unit'!$A$11,Ref_From_Units,0))","v":{"$error":"#REF!"}},{"$error":"#N/A"},{"$f":"INDEX(Ref_Master_Unit_Table,MATCH($AF75,REF_To_Unit,0),MATCH('Reference - Lookup and Unit'!$A$11,Ref_From_Units,0))","v":{"$error":"#REF!"}},{"$error":"#N/A"},1,{"$f":"VLOOKUP(\"CH4\",INDIRECT(IF(Setting_IPCC_GWP_VERSION=\"1995 IPCC Second Assessment Report (SAR)\",\"Ref_EF_IPCC_GWP_95\",IF(Setting_IPCC_GWP_VERSION=\"2001 IPCC Third Assessment Report (TAR)\",\"Ref_EF_IPCC_GWP_2001\",IF(Setting_IPCC_GWP_VERSION=\"2007 IPCC Fourth Assessment Report\",\"Ref_EF_IPCC_GWP_2007\",\"Ref_EF_IPCC_GWP_2014\")))),2,0)","v":28},{"$f":"VLOOKUP(\"N2O\",INDIRECT(IF(Setting_IPCC_GWP_VERSION=\"1995 IPCC Second Assessment Report (SAR)\",\"Ref_EF_IPCC_GWP_95\",IF(Setting_IPCC_GWP_VERSION=\"2001 IPCC Third Assessment Report (TAR)\",\"Ref_EF_IPCC_GWP_2001\", IF(Setting_IPCC_GWP_VERSION=\"2007 IPCC Fourth Assessment Report\",\"Ref_EF_IPCC_GWP_2007\",\"Ref_EF_IPCC_GWP_2014\")))),2,0)","v":265},1,"Ref_DD_vehicle_Passenger_",{"$error":"#REF!"},{"$error":"#REF!"},{"$error":"#REF!"},{"$error":"#REF!"},false,"","","","","","","","","","","","","","","","","","","","","","","","","","","","","","","","","","","","","","","","","","","Ref_DD_DistanceUnit","",0]
[null,null,null,null,null,null,null,null,null,null,null,null,null,null,null,null,"","","","","",{"$f":"IF(OR($G76=\"Fuel Use\",$G76=\"Fuel Use and Vehicle Distance\"),VLOOKUP($M76,INDIRECT(\"Ref_EF_ByFuel\"&\"_\"&$D76),3,0),IF(AND($G76=\"Vehicle Distance (e.g. Road Transport)\",$D76=\"UK\"),VLOOKUP($H76,Ref_EF_Vehicle_Distance_UK,3,0),IF(AND($G76=\"Vehicle Distance (e.g. Road Transport)\",OR($D76=\"US\",$D76=\"Other\")),VLOOKUP($H76,INDIRECT(\"Ref_EF_Vehicle_Distance\"&\"_\"&$D76),15,0),IF(AND($G76=\"Vehicle Distance (e.g. Road Transport)\",ISBLANK($N76),ISBLANK($O76)),VLOOKUP($H76,INDIRECT(\"Ref_EF_Vehicle_Distance\"&\"_\"&$D76),15,0),IF($G76=\"Weight Distance (e.g. Freight Transport)\",VLOOKUP($H76,INDIRECT(\"Ref_EF_Weight_Distance\"&\"_\"&$D76),3,0),IF($G76=\"Custom Vehicle\",VLOOKUP($H76,Tbl_vehical_Settings,2,0),IF($G76=\"Custom Fuel\",VLOOKUP($M76,Tbl_Fuel_Settings,2,0),$AU76)))))))","v":{"$error":"#REF!"}},{"$f":"IF(OR($G76=\"Fuel Use\",$G76=\"Fuel Use and Vehicle Distance\"),VLOOKUP($M76,INDIRECT(\"Ref_EF_ByFuel\"&\"_\"&$D76),5,0),IF(AND($G76=\"Vehicle Distance (e.g. Road Transport)\",$D76=\"UK\"),VLOOKUP($H76,Ref_EF_Vehicle_Distance_UK,5,0),IF(AND($G76=\"Vehicle Distance (e.g. Road Transport)\",OR($D76=\"US\",$D76=\"Other\")),VLOOKUP($H76,INDIRECT(\"Ref_EF_Vehicle_Distance\"&\"_\"&$D76),17,0),IF(AND($G76=\"Vehicle Distance (e.g. Road Transport)\",ISBLANK($N76),ISBLANK($O76)),VLOOKUP($H76,INDIRECT(\"Ref_EF_Vehicle_Distance\"&\"_\"&$D76),17,0),IF($G76=\"Weight Distance (e.g. Freight Transport)\",VLOOKUP($H76,INDIRECT(\"Ref_EF_Weight_Distance\"&\"_\"&$D76),5,0),IF($G76=\"Custom Vehicle\",VLOOKUP($H76,Tbl_vehical_Settings,6,0),IF($G76=\"Custom Fuel\",VLOOKUP($M76,Tbl_Fuel_Settings,6,0),$AV76)))))))","v":{"$error":"#REF!"}},{"$f":"IF(OR($G76=\"Fuel Use\",$G76=\"Fuel Use and Vehicle Distance\"),VLOOKUP($M76,INDIRECT(\"Ref_EF_ByFuel\"&\"_\"&$D76),6,0),IF(AND($G76=\"Vehicle Distance (e.g. Road Transport)\",$D76=\"UK\"),VLOOKUP($H76,Ref_EF_Vehicle_Distance_UK,6,0),IF(AND($G76=\"Vehicle Distance (e.g. Road Transport)\",OR($D76=\"US\",$D76=\"Other\")),VLOOKUP($H76,INDIRECT(\"Ref_EF_Vehicle_Distance\"&\"_\"&$D76),18,0),IF(AND($G76=\"Vehicle Distance (e.g. Road Transport)\",ISBLANK($N76),ISBLANK($O76)),VLOOKUP($H76,INDIRECT(\"Ref_EF_Vehicle_Distance\"&\"_\"&$D76),18,0),IF($G76=\"Weight Distance (e.g. Freight Transport)\",VLOOKUP($H76,INDIRECT(\"Ref_EF_Weight_Distance\"&\"_\"&$D76),6,0),IF($G76=\"Custom Vehicle\",VLOOKUP($H76,Tbl_vehical_Settings,7,0),IF($G76=\"Custom Fuel\",VLOOKUP($M76,Tbl_Fuel_Settings,7,0),$AW76)))))))","v":{"$error":"#REF!"}},{"$f":"IF(OR($G76=\"Fuel Use\",$G76=\"Fuel Use and Vehicle Distance\"),VLOOKUP($M76,INDIRECT(\"Ref_EF_ByFuel\"&\"_\"&$D76),4,0),IF(AND($G76=\"Vehicle Distance (e.g. Road Transport)\",$D76=\"UK\"),VLOOKUP($H76,Ref_EF_Vehicle_Distance_UK,4,0),IF(AND($G76=\"Vehicle Distance (e.g. Road Transport)\",OR($D76=\"US\",$D76=\"Other\")),VLOOKUP($H76,INDIRECT(\"Ref_EF_Vehicle_Distance\"&\"_\"&$D76),16,0),IF(AND($G76=\"Vehicle Distance (e.g. Road Transport)\",ISBLANK($N76),ISBLANK($O76)),VLOOKUP($H76,INDIRECT(\"Ref_EF_Vehicle_Distance\"&\"_\"&$D76),16,0),IF($G76=\"Weight Distance (e.g. Freight Transport)\",VLOOKUP($H76,INDIRECT(\"Ref_EF_Weight_Distance\"&\"_\"&$D76),4,0),IF($G76=\"Custom Vehicle\",VLOOKUP($H76,Tbl_vehical_Settings,5,0),IF($G76=\"Custom Fuel\",VLOOKUP($M76,Tbl_Fuel_Settings,5,0),$AX76)))))))","v":{"$error":"#REF!"}},{"$f":"IF(OR($G76=\"Fuel Use\",$G76=\"Fuel Use and Vehicle Distance\"),VLOOKUP($M76,INDIRECT(\"Ref_EF_ByFuel\"&\"_\"&$D76),5,0),IF(AND($G76=\"Vehicle Distance (e.g. Road Transport)\",$D76=\"UK\"),VLOOKUP($H76,Ref_EF_Vehicle_Distance_UK,5,0),IF(AND($G76=\"Vehicle Distance (e.g. Road Transport)\",OR($D76=\"US\",$D76=\"Other\")),VLOOKUP($H76,INDIRECT(\"Ref_EF_Vehicle_Distance\"&\"_\"&$D76),17,0),IF(AND($G76=\"Vehicle Distance (e.g. Road Transport)\",ISBLANK($N76),ISBLANK($O76)),VLOOKUP($H76,INDIRECT(\"Ref_EF_Vehicle_Distance\"&\"_\"&$D76),17,0),IF($G76=\"Weight Distance (e.g. Freight Transport)\",VLOOKUP($H76,INDIRECT(\"Ref_EF_Weight_Distance\"&\"_\"&$D76),5,0),IF($G76=\"Custom Vehicle\",VLOOKUP($H76,Tbl_vehical_Settings,6,0),IF($G76=\"Custom Fuel\",VLOOKUP($M76,Tbl_Fuel_Settings,6,0),$AV76)))))))","v":{"$error":"#REF!"}},{"$f":"IF(OR($G76=\"Fuel Use\",$G76=\"Fuel Use and Vehicle Distance\"),VLOOKUP($M76,INDIRECT(\"Ref_EF_ByFuel\"&\"_\"&$D76),6,0),IF(AND($G76=\"Vehicle Distance (e.g. Road Transport)\",$D76=\"UK\"),VLOOKUP($H76,Ref_EF_Vehicle_Distance_UK,6,0),IF(AND($G76=\"Vehicle Distance (e.g. Road Transport)\",OR($D76=\"US\",$D76=\"Other\")),VLOOKUP($H76,INDIRECT(\"Ref_EF_Vehicle_Distance\"&\"_\"&$D76),18,0),IF(AND($G76=\"Vehicle Distance (e.g. Road Transport)\",ISBLANK($N76),ISBLANK($O76)),VLOOKUP($H76,INDIRECT(\"Ref_EF_Vehicle_Distance\"&\"_\"&$D76),18,0),IF($G76=\"Weight Distance (e.g. Freight Transport)\",VLOOKUP($H76,INDIRECT(\"Ref_EF_Weight_Distance\"&\"_\"&$D76),6,0),IF($G76=\"Custom Vehicle\",VLOOKUP($H76,Tbl_vehical_Settings,7,0),IF($G76=\"Custom Fuel\",VLOOKUP($M76,Tbl_Fuel_Settings,7,0),$AW76)))))))","v":{"$error":"#REF!"}},{"$f":"IF($G76=\"Fuel Use\",VLOOKUP($H76,INDIRECT(\"Ref_EF_ByFuel_CH4\"&\"_\"&$D76),3,0),\nIF($G76=\"Fuel Use and Vehicle Distance\",VLOOKUP($H76,INDIRECT(\"Ref_EF_Vehicle_Distance\"&\"_\"&$D76),3,0),IF($G76=\"Vehicle Distance (e.g. Road Transport)\",VLOOKUP($H76,INDIRECT(\"Ref_EF_Vehicle_Distance\"&\"_\"&$D76),IF($D76=\"UK\",7,3),0),IF($G76=\"Weight Distance (e.g. Freight Transport)\",VLOOKUP(VLOOKUP($H76,INDIRECT(\"Ref_EF_Weight_Distance\"&\"_\"&$D76),8,0),INDIRECT(\"Ref_EF_Weight_Distance_CH4\"&\"_\"&$D76),3,0),IF($G76=\"Custom Vehicle\",VLOOKUP($H76,Tbl_vehical_Settings,3,0),IF($G76=\"Custom Fuel\",VLOOKUP($M76,Tbl_Fuel_Settings,3,0),VLOOKUP($H76,INDIRECT(\"Ref_EF_Public_Transport\"&\"_\"&$D76),7,0)))))))","v":{"$error":"#REF!"}},{"$f":"IF($G76=\"Fuel Use\",VLOOKUP($H76,INDIRECT(\"Ref_EF_ByFuel_CH4\"&\"_\"&$D76),4,0),\nIF($G76=\"Fuel Use and Vehicle Distance\",VLOOKUP($H76,INDIRECT(\"Ref_EF_Vehicle_Distance\"&\"_\"&$D76),4,0),IF($G76=\"Vehicle Distance (e.g. Road Transport)\",VLOOKUP($H76,INDIRECT(\"Ref_EF_Vehicle_Distance\"&\"_\"&$D76),IF($D76=\"UK\",8,4),0),IF($G76=\"Weight Distance (e.g. Freight Transport)\",VLOOKUP(VLOOKUP($H76,INDIRECT(\"Ref_EF_Weight_Distance\"&\"_\"&$D76),8,0),INDIRECT(\"Ref_EF_Weight_Distance_CH4\"&\"_\"&$D76),4,0),IF($G76=\"Custom Vehicle\",VLOOKUP($H76,Tbl_vehical_Settings,6,0),IF($G76=\"Custom Fuel\",VLOOKUP($M76,Tbl_Fuel_Settings,6,0),VLOOKUP($H76,INDIRECT(\"Ref_EF_Public_Transport\"&\"_\"&$D76),8,0)))))))","v":{"$error":"#REF!"}},{"$f":"IF($G76=\"Fuel Use\",VLOOKUP($H76,INDIRECT(\"Ref_EF_ByFuel_CH4\"&\"_\"&$D76),5,0),\nIF($G76=\"Fuel Use and Vehicle Distance\",VLOOKUP($H76,INDIRECT(\"Ref_EF_Vehicle_Distance\"&\"_\"&$D76),5,0),IF($G76=\"Vehicle Distance (e.g. Road Transport)\",VLOOKUP($H76,INDIRECT(\"Ref_EF_Vehicle_Distance\"&\"_\"&$D76),IF($D76=\"UK\",9,5),0),IF($G76=\"Weight Distance (e.g. Freight Transport)\",VLOOKUP(VLOOKUP($H76,INDIRECT(\"Ref_EF_Weight_Distance\"&\"_\"&$D76),8,0),INDIRECT(\"Ref_EF_Weight_Distance_CH4\"&\"_\"&$D76),5,0),IF($G76=\"Custom Vehicle\",VLOOKUP($H76,Tbl_vehical_Settings,7,0),IF($G76=\"Custom Fuel\",VLOOKUP($M76,Tbl_Fuel_Settings,7,0),VLOOKUP($H76,INDIRECT(\"Ref_EF_Public_Transport\"&\"_\"&$D76),9,0)))))))","v":{"$error":"#REF!"}},{"$f":"IF($G76=\"Fuel Use\",VLOOKUP($H76,INDIRECT(\"Ref_EF_ByFuel_CH4\"&\"_\"&$D76),6,0),\nIF($G76=\"Fuel Use and Vehicle Distance\",VLOOKUP($H76,INDIRECT(\"Ref_EF_Vehicle_Distance\"&\"_\"&$D76),6,0),IF($G76=\"Vehicle Distance (e.g. Road Transport)\",VLOOKUP($H76,INDIRECT(\"Ref_EF_Vehicle_Distance\"&\"_\"&$D76),IF($D76=\"UK\",10,6),0),IF($G76=\"Weight Distance (e.g. Freight Transport)\",VLOOKUP(VLOOKUP($H76,INDIRECT(\"Ref_EF_Weight_Distance\"&\"_\"&$D76),8,0),INDIRECT(\"Ref_EF_Weight_Distance_CH4\"&\"_\"&$D76),6,0),IF($G76=\"Custom Vehicle\",VLOOKUP($H76,Tbl_vehical_Settings,4,0),IF($G76=\"Custom Fuel\",VLOOKUP($M76,Tbl_Fuel_Settings,4,0),VLOOKUP($H76,INDIRECT(\"Ref_EF_Public_Transport\"&\"_\"&$D76),10,0)))))))","v":{"$error":"#REF!"}},{"$f":"IF($G76=\"Fuel Use\",VLOOKUP($H76,INDIRECT(\"Ref_EF_ByFuel_CH4\"&\"_\"&$D76),7,0),\nIF($G76=\"Fuel Use and Vehicle Distance\",VLOOKUP($H76,INDIRECT(\"Ref_EF_Vehicle_Distance\"&\"_\"&$D76),7,0),IF($G76=\"Vehicle Distance (e.g. Road Transport)\",VLOOKUP($H76,INDIRECT(\"Ref_EF_Vehicle_Distance\"&\"_\"&$D76),IF($D76=\"UK\",11,7),0),IF($G76=\"Weight Distance (e.g. Freight Transport)\",VLOOKUP(VLOOKUP($H76,INDIRECT(\"Ref_EF_Weight_Distance\"&\"_\"&$D76),8,0),INDIRECT(\"Ref_EF_Weight_Distance_CH4\"&\"_\"&$D76),7,0),IF($G76=\"Custom Vehicle\",VLOOKUP($H76,Tbl_vehical_Settings,6,0),IF($G76=\"Custom Fuel\",VLOOKUP($M76,Tbl_Fuel_Settings,6,0),VLOOKUP($H76,INDIRECT(\"Ref_EF_Public_Transport\"&\"_\"&$D76),11,0)))))))","v":{"$error":"#REF!"}},{"$f":"IF($G76=\"Fuel Use\",VLOOKUP($H76,INDIRECT(\"Ref_EF_ByFuel_CH4\"&\"_\"&$D76),8,0),\nIF($G76=\"Fuel Use and Vehicle Distance\",VLOOKUP($H76,INDIRECT(\"Ref_EF_Vehicle_Distance\"&\"_\"&$D76),8,0),IF($G76=\"Vehicle Distance (e.g. Road Transport)\",VLOOKUP($H76,INDIRECT(\"Ref_EF_Vehicle_Distance\"&\"_\"&$D76),IF($D76=\"UK\",12,8),0),IF($G76=\"Weight Distance (e.g. Freight Transport)\",VLOOKUP(VLOOKUP($H76,INDIRECT(\"Ref_EF_Weight_Distance\"&\"_\"&$D76),8,0),INDIRECT(\"Ref_EF_Weight_Distance_CH4\"&\"_\"&$D76),8,0),IF($G76=\"Custom Vehicle\",VLOOKUP($H76,Tbl_vehical_Settings,7,0),IF($G76=\"Custom Fuel\",VLOOKUP($M76,Tbl_Fuel_Settings,7,0),VLOOKUP($H76,INDIRECT(\"Ref_EF_Public_Transport\"&\"_\"&$D76),12,0)))))))","v":{"$error":"#REF!"}},{"$f":"INDEX(Ref_Master_Unit_Table,MATCH($W76,REF_To_Unit,0),MATCH('Reference - Lookup and Unit'!$A$11,Ref_From_Units,0))","v":{"$error":"#REF!"}},{"$error":"#N/A"},{"$f":"INDEX(Ref_Master_Unit_Table,MATCH($Z76,REF_To_Unit,0),MATCH('Reference - Lookup and Unit'!$A$11,Ref_From_Units,0))","v":{"$error":"#REF!"}},{"$error":"#N/A"},{"$f":"INDEX(Ref_Master_Unit_Table,MATCH($AC76,REF_To_Unit,0),MATCH('Reference - Lookup and Unit'!$A$11,Ref_From_Units,0))","v":{"$error":"#REF!"}},{"$error":"#N/A"},{"$f":"INDEX(Ref_Master_Unit_Table,MATCH($AF76,REF_To_Unit,0),MATCH('Reference - Lookup and Unit'!$A$11,Ref_From_Units,0))","v":{"$error":"#REF!"}},{"$error":"#N/A"},1,28,265,1,"Ref_DD_vehicle_Passenger_",{"$error":"#REF!"},{"$error":"#REF!"},{"$error":"#REF!"},{"$error":"#REF!"},false,"","","","","","","","","","","","","","","","","","","","","","","","","","","","","","","","","","","","","","","","","","","Ref_DD_DistanceUnit","",0]
[null,null,null,null,null,null,null,null,null,null,null,null,null,null,null,null,{"$f":"IF(ISERROR(IF(OR($CR77=\"Fuel Use\",$CR77=\"Custom Fuel\",$CR77=\"Fuel Use and Vehicle Distance\"),($N77*$V77*$AH77*$AI77),IF($CR77=\"Weight Distance (e.g. Freight Transport)\",($I77*$J77*$V77*$AH77*$AI77),IF($CR77=\"Passenger Distance (e.g. Public Transport)\",($I77*$K77*$V77*$AH77*$AI77),($I77*$V77*$AH77*$AI77))))),\"\",IF(OR($CR77=\"Fuel Use\",$CR77=\"Custom Fuel\",$CR77=\"Fuel Use and Vehicle Distance\"),($N77*$V77*$AH77*$AI77),IF($CR77=\"Weight Distance (e.g. Freight Transport)\",($I77*$J77*$V77*$AH77*$AI77),IF($CR77=\"Passenger Distance (e.g. Public Transport)\",($I77*$K77*$V77*$AH77*$AI77),($I77*$V77*$AH77*$AI77)))))","v":""},{"$f":"IF(ISERROR(IF($CR77=\"Weight Distance (e.g. Freight Transport)\",($I77*$J77*$AB77*$AL77*$AM77*1000),IF(OR($CR77=\"Fuel Use\",$CR77=\"Custom Fuel\"),($N77*$AB77*$AL77*$AM77*1000),IF($CR77=\"Passenger Distance (e.g. Public Transport)\",($I77*$AB77*$K77*$AL77*$AM77*1000),($I77*$AB77*$AL77*$AM77*1000))))),\"\",IF($CR77=\"Weight Distance (e.g. Freight Transport)\",($I77*$J77*$AB77*$AL77*$AM77*1000),IF(OR($CR77=\"Fuel Use\",$CR77=\"Custom Fuel\"),($N77*$AB77*$AL77*$AM77*1000),IF($CR77=\"Passenger Distance (e.g. Public Transport)\",($I77*$AB77*$K77*$AL77*$AM77*1000),($I77*$AB77*$AL77*$AM77*1000)))))","v":""},{"$f":"IF(ISERROR(IF($CR77=\"Weight Distance (e.g. Freight Transport)\",($I77*$J77*$AE77*$AN77*$AO77*1000),IF(OR($CR77=\"Fuel Use\",$CR77=\"Custom Fuel\"),($N77*$AE77*$AN77*$AO77*1000),IF($CR77=\"Passenger Distance (e.g. Public Transport)\",($I77*$AE77*$AN77*$K77*$AO77*1000),($I77*$AE77*$AN77*$AO77*1000))))),\"\",IF($CR77=\"Weight Distance (e.g. Freight Transport)\",($I77*$J77*$AE77*$AN77*$AO77*1000),IF(OR($CR77=\"Fuel Use\",$CR77=\"Custom Fuel\"),($N77*$AE77*$AN77*$AO77*1000),IF($CR77=\"Passenger Distance (e.g. Public Transport)\",($I77*$AE77*$AN77*$K77*$AO77*1000),($I77*$AE77*$AN77*$AO77*1000)))))","v":""},"",{"$f":"IF(ISERROR(IF(OR($CR77=\"Fuel Use\",$CR77=\"Custom Fuel\",$CR77=\"Fuel Use and Vehicle Distance\"),($N77*$Y77*$AJ77*$AK77),IF($CR77=\"Weight Distance (e.g. Freight Transport)\",($I77*$J77*$Y77*$AJ77*$AK77),IF($CR77=\"Passenger Distance (e.g. Public Transport)\",($I77*$Y77*$AJ77*$AK77*$K77),($I77*$Y77*$AJ77*$AK77))))),\"\",IF(OR($CR77=\"Fuel Use\",$CR77=\"Custom Fuel\",$CR77=\"Fuel Use and Vehicle Distance\"),($N77*$Y77*$AJ77*$AK77),IF($CR77=\"Weight Distance (e.g. Freight Transport)\",($I77*$J77*$Y77*$AJ77*$AK77),IF($CR77=\"Passenger Distance (e.g. Public Transport)\",($I77*$Y77*$AJ77*$AK77*$K77),($I77*$Y77*$AJ77*$AK77)))))","v":""},{"$error":"#REF!"},{"$error":"#REF!"},{"$error":"#REF!"},{"$error":"#REF!"},{"$error":"#REF!"},{"$error":"#REF!"},{"$error":"#REF!"},{"$error":"#REF!"},{"$error":"#REF!"},{"$error":"#REF!"},{"$error":"#REF!"},{"$error":"#REF!"},{"$f":"INDEX(Ref_Master_Unit_Table,MATCH($W77,REF_To_Unit,0),MATCH('Reference - Lookup and Unit'!$A$11,Ref_From_Units,0))","v":{"$error":"#REF!"}},{"$error":"#N/A"},{"$f":"INDEX(Ref_Master_Unit_Table,MATCH($Z77,REF_To_Unit,0),MATCH('Reference - Lookup and Unit'!$A$11,Ref_From_Units,0))","v":{"$error":"#REF!"}},{"$error":"#N/A"},{"$f":"INDEX(Ref_Master_Unit_Table,MATCH($AC77,REF_To_Unit,0),MATCH('Reference - Lookup and Unit'!$A$11,Ref_From_Units,0))","v":{"$error":"#REF!"}},{"$error":"#N/A"},{"$f":"INDEX(Ref_Master_Unit_Table,MATCH($AF77,REF_To_Unit,0),MATCH('Reference - Lookup and Unit'!$A$11,Ref_From_Units,0))","v":{"$error":"#REF!"}},{"$error":"#N/A"},1,28,265,1,{"$f":"IF(OR($G77=\"Fuel Use\",$G77=\"Custom fuel\"),(IF(E77<>\"\",(\"Ref_DD_vehicle_FuelUse\"&\"_\"&D77 &\"_\"&E77),\"Ref_DD_vehicle_FuelUse\"&\"_\"&D77)),IF(OR($G77=\"Vehicle Distance (e.g. Road Transport)\",$G77=\"Fuel Use and Vehicle Distance\"),(IF(E77<>\"\",(\"Ref_DD_vehicle_VehicleDistance\"&\"_\"&D77 &\"_\"&E77),\"Ref_DD_vehicle_VehicleDistance\"&\"_\"&D77)),IF($G77=\"Weight Distance (e.g. Freight Transport)\",(IF(E77<>\"\",(\"Ref_DD_vehicle_WeightDistance\"&\"_\"&D77 &\"_\"&E77),\"Ref_DD_vehicle_WeightDistance\"&\"_\"&D77)),(IF(E77<>\"\",(\"Ref_DD_vehicle_Passenger\"&\"_\"&D77 &\"_\"&E77),\"Ref_DD_vehicle_Passenger\"&\"_\"&D77)))))","v":"Ref_DD_vehicle_Passenger_"},{"$error":"#REF!"},{"$error":"#REF!"},{"$error":"#REF!"},{"$error":"#REF!"},false,"","","","","","","","","","","","","","","","","","","","","","","","","","","","","","","","","","","","","","","","","","",{"$f":"IF($G77=\"Weight Distance (e.g. Freight Transport)\",\"Ref_DD_WeightDistanceUnits\",IF($G77=\"Passenger Distance (e.g. Public Transport)\",\"Ref_DD_PasengerDistanceUnits\",IF($G77=\"Custom Vehicle\",\"Set_DD_Vehicle_Units\",\"Ref_DD_DistanceUnit\")))","v":"Ref_DD_DistanceUnit"},"",{"$f":"IF($G77=\"Custom vehicle\",IF(OR($L77=\"Passenger Mile\",$L77=\"Passenger Kilometer\"),\"Passenger Distance (e.g. Public Transport)\",IF(OR($L77=\"Tonne Mile\",$L77=\"Tonne Kilometer\"),\"Weight Distance (e.g. Freight Transport)\",\"Vehicle Distance (e.g. Road Transport)\")),$G77)","v":0}]
[null,null,null,null,null,null,null,null,null,null,null,null,null,null,null,null,"","","","","",{"$error":"#REF!"},{"$error":"#REF!"},{"$error":"#REF!"},{"$error":"#REF!"},{"$error":"#REF!"},{"$error":"#REF!"},{"$error":"#REF!"},{"$error":"#REF!"},{"$error":"#REF!"},{"$error":"#REF!"},{"$error":"#REF!"},{"$error":"#REF!"},{"$f":"INDEX(Ref_Master_Unit_Table,MATCH($W78,REF_To_Unit,0),MATCH('Reference - Lookup and Unit'!$A$11,Ref_From_Units,0))","v":{"$error":"#REF!"}},{"$error":"#N/A"},{"$f":"INDEX(Ref_Master_Unit_Table,MATCH($Z78,REF_To_Unit,0),MATCH('Reference - Lookup and Unit'!$A$11,Ref_From_Units,0))","v":{"$error":"#REF!"}},{"$error":"#N/A"},{"$f":"INDEX(Ref_Master_Unit_Table,MATCH($AC78,REF_To_Unit,0),MATCH('Reference - Lookup and Unit'!$A$11,Ref_From_Units,0))","v":{"$error":"#REF!"}},{"$error":"#N/A"},{"$f":"INDEX(Ref_Master_Unit_Table,MATCH($AF78,REF_To_Unit,0),MATCH('Reference - Lookup and Unit'!$A$11,Ref_From_Units,0))","v":{"$error":"#REF!"}},{"$error":"#N/A"},1,28,265,1,"Ref_DD_vehicle_Passenger_",{"$error":"#REF!"},{"$error":"#REF!"},{"$error":"#REF!"},{"$error":"#REF!"},false,"","","","","","","","","","","","","","","","","","","","","","","","","","","","","","","","","","","","","","","","","","","Ref_DD_DistanceUnit","",0]
[null,null,null,null,null,null,null,null,null,null,null,null,null,null,null,null,"","","",{"$f":"IF(AND(ISERROR($Q79*$AP79)=FALSE,ISERROR((R79/1000)*$AQ79)=FALSE,ISERROR((S79/1000)*$AR79)=FALSE),($Q79*$AP79)+((R79/1000)*$AQ79)+((S79/1000)*$AR79),IF(AND(ISERROR($Q79*$AP79)=FALSE,ISERROR((R79/1000)*$AQ79)=FALSE,ISERROR((S79/1000)*$AR79)=TRUE),($Q79*$AP79)+((R79/1000)*$AQ79),IF(AND(ISERROR($Q79*$AP79)=FALSE,ISERROR((R79/1000)*$AQ79)=TRUE,ISERROR((S79/1000)*$AR79)=FALSE),($Q79*$AP79)+((S79/1000)*$AR79),IF(AND(ISERROR($Q79*$AP79)=FALSE,ISERROR((R79/1000)*$AQ79)=TRUE,ISERROR((S79/1000)*$AR79)=TRUE),($Q79*$AP79),IF(AND(ISERROR($Q79*$AP79)=TRUE,ISERROR((R79/1000)*$AQ79)=FALSE,ISERROR((S79/1000)*$AR79)=FALSE),((R79/1000)*$AQ79)+((S79/1000)*$AR79),IF(AND(ISERROR($Q79*$AP79)=TRUE,ISERROR((R79/1000)*$AQ79)=FALSE,ISERROR((S79/1000)*$AR79)=TRUE),((R79/1000)*$AQ79),CQ79))))))","v":""},"",{"$error":"#REF!"},{"$error":"#REF!"},{"$error":"#REF!"},{"$error":"#REF!"},{"$error":"#REF!"},{"$error":"#REF!"},{"$error":"#REF!"},{"$error":"#REF!"},{"$error":"#REF!"},{"$error":"#REF!"},{"$error":"#REF!"},{"$error":"#REF!"},{"$f":"INDEX(Ref_Master_Unit_Table,MATCH($W79,REF_To_Unit,0),MATCH('Reference - Lookup and Unit'!$A$11,Ref_From_Units,0))","v":{"$error":"#REF!"}},{"$f":"INDEX(Ref_Master_Unit_Table,MATCH(IF(AND($D79=\"UK\",$G79=\"Vehicle Distance (e.g. Road Transport)\"),$L79,IF(ISBLANK($O79),$L79,$O79)),Ref_From_Units,0),MATCH($X79,REF_To_Unit,0))","v":{"$error":"#N/A"}},{"$f":"INDEX(Ref_Master_Unit_Table,MATCH($Z79,REF_To_Unit,0),MATCH('Reference - Lookup and Unit'!$A$11,Ref_From_Units,0))","v":{"$error":"#REF!"}},{"$f":"INDEX(Ref_Master_Unit_Table,MATCH(IF(AND($D79=\"UK\",$G79=\"Vehicle Distance (e.g. Road Transport)\"),$L79,IF(ISBLANK($O79),$L79,$O79)),Ref_From_Units,0),MATCH($AA79,REF_To_Unit,0))","v":{"$error":"#N/A"}},{"$f":"INDEX(Ref_Master_Unit_Table,MATCH($AC79,REF_To_Unit,0),MATCH('Reference - Lookup and Unit'!$A$11,Ref_From_Units,0))","v":{"$error":"#REF!"}},{"$f":"INDEX(Ref_Master_Unit_Table,MATCH(IF(OR($G79=\"Fuel Use\",$G79=\"Custom Fuel\"),$O79,$L79),Ref_From_Units,0),MATCH($AD79,REF_To_Unit,0))","v":{"$error":"#N/A"}},{"$f":"INDEX(Ref_Master_Unit_Table,MATCH($AF79,REF_To_Unit,0),MATCH('Reference - Lookup and Unit'!$A$11,Ref_From_Units,0))","v":{"$error":"#REF!"}},{"$f":"INDEX(Ref_Master_Unit_Table,MATCH(IF(OR($G79=\"Fuel Use\",$G79=\"Custom Fuel\"),$O79,$L79),Ref_From_Units,0),MATCH($AD79,REF_To_Unit,0))","v":{"$error":"#N/A"}},1,28,265,1,"Ref_DD_vehicle_Passenger_",{"$error":"#REF!"},{"$error":"#REF!"},{"$error":"#REF!"},{"$error":"#REF!"},false,"","","","","","","","","","","","","","","","","","","","","","","","","","","","","","","","","","","","","","","","","","","Ref_DD_DistanceUnit",{"$f":"IF(AND(ISERROR($Q79*$AP79)=TRUE,ISERROR((R79/1000)*$AQ79)=TRUE,ISERROR((S79/1000)*$AR79)=FALSE),((S79/1000)*$AR79),\"\")","v":""},0]
[null,null,null,null,null,null,null,null,null,null,null,null,null,null,null,null,"","","","","",{"$error":"#REF!"},{"$error":"#REF!"},{"$error":"#REF!"},{"$error":"#REF!"},{"$error":"#REF!"},{"$error":"#REF!"},{"$error":"#REF!"},{"$error":"#REF!"},{"$error":"#REF!"},{"$error":"#REF!"},{"$error":"#REF!"},{"$error":"#REF!"},{"$f":"INDEX(Ref_Master_Unit_Table,MATCH($W80,REF_To_Unit,0),MATCH('Reference - Lookup and Unit'!$A$11,Ref_From_Units,0))","v":{"$error":"#REF!"}},{"$error":"#N/A"},{"$f":"INDEX(Ref_Master_Unit_Table,MATCH($Z80,REF_To_Unit,0),MATCH('Reference - Lookup and Unit'!$A$11,Ref_From_Units,0))","v":{"$error":"#REF!"}},{"$error":"#N/A"},{"$f":"INDEX(Ref_Master_Unit_Table,MATCH($AC80,REF_To_Unit,0),MATCH('Reference - Lookup and Unit'!$A$11,Ref_From_Units,0))","v":{"$error":"#REF!"}},{"$error":"#N/A"},{"$f":"INDEX(Ref_Master_Unit_Table,MATCH($AF80,REF_To_Unit,0),MATCH('Reference - Lookup and Unit'!$A$11,Ref_From_Units,0))","v":{"$error":"#REF!"}},{"$error":"#N/A"},1,28,265,1,"Ref_DD_vehicle_Passenger_",{"$error":"#REF!"},{"$error":"#REF!"},{"$error":"#REF!"},{"$error":"#REF!"},{"$f":"IF(ISERROR(COLUMN(INDIRECT($AT80))),FALSE,TRUE)","v":false},{"$f":"IF(AND($F80=\"Scope 1\",OR($G80=\"Fuel Use\",$G80=\"Custom Fuel\",$G80=\"Fuel Use and Vehicle Distance\")),$Q80,IF(AND($F80=\"Scope 1\",OR($G80=\"Vehicle Distance (e.g. Road Transport)\",$G80=\"Custom Vehicle\"),ISBLANK($N80)=FALSE),$Q80,\"\"))","v":""},{"$f":"IF(AND($F80=\"Scope 1\",AND(OR($G80=\"Vehicle Distance (e.g. Road Transport)\",$G80=\"Custom Vehicle\"),OR($D80=\"US\",$D80=\"Other\"),ISBLANK($N80)=TRUE)),$Q80,IF(AND($F80=\"Scope 1\",$G80<>\"Fuel Use\",ISBLANK($N80)=TRUE),$Q80,\"\"))","v":""},{"$f":"IF(AND(OR(G80=\"Fuel Use\",G80=\"Custom Fuel\"),F80=\"Scope 1\",ISBLANK(I80)=TRUE),R80,\"\")","v":""},{"$f":"IF(AND(OR(G80=\"Fuel Use\",G80=\"Custom Fuel\"),F80=\"Scope 1\",ISBLANK(I80)=FALSE),R80,IF(AND(G80<>\"Fuel Use\",G80<>\"Custom Fuel\",F80=\"Scope 1\"),R80,\"\"))","v":""},{"$f":"IF(AND(OR(G80=\"Fuel Use\",G80=\"Custom Fuel\"),F80=\"Scope 1\",ISBLANK(I80)=TRUE),S80,\"\")","v":""},{"$f":"IF(AND(OR(G80=\"Fuel Use\",G80=\"Custom Fuel\"),F80=\"Scope 1\",ISBLANK(I80)=FALSE),S80,IF(AND(G80<>\"Fuel Use\",G80<>\"Custom Fuel\",F80=\"Scope 1\"),S80,\"\"))","v":""},{"$f":"IF(AND($F80=\"Scope 3\",OR($G80=\"Fuel Use\",$G80=\"Custom Fuel\",$G80=\"Fuel Use and Vehicle Distance\")),$Q80,IF(AND($F80=\"Scope 3\",OR($G80=\"Vehicle Distance (e.g. Road Transport)\",$G80=\"Custom Vehicle\"),ISBLANK($N80)=FALSE),$Q80,\"\"))","v":""},{"$f":"IF(AND($F80=\"Scope 3\",AND(OR($G80=\"Vehicle Distance (e.g. Road Transport)\",$G80=\"Custom Vehicle\"),OR($D80=\"US\",$D80=\"Other\"),ISBLANK($N80)=TRUE)),$Q80,IF(AND($F80=\"Scope 3\",$G80<>\"Fuel Use\",ISBLANK($N80)=TRUE),$Q80,\"\"))","v":""},{"$f":"IF(AND(OR(G80=\"Fuel Use\",G80=\"Custom Fuel\"),F80=\"Scope 3\",ISBLANK(I80)=TRUE),R80,\"\")","v":""},{"$f":"IF(AND(OR(G80=\"Fuel Use\",G80=\"Custom Fuel\"),F80=\"Scope 3\",ISBLANK(I80)=FALSE),R80,IF(AND(G80<>\"Fuel Use\",G80<>\"Custom Fuel\",F80=\"Scope 3\"),R80,\"\"))","v":""},{"$f":"IF(AND(OR(G80=\"Fuel Use\",G80=\"Custom Fuel\"),F80=\"Scope 3\",ISBLANK(I80)=TRUE),S80,\"\")","v":""},{"$f":"IF(AND(OR(G80=\"Fuel Use\",G80=\"Custom Fuel\"),F80=\"Scope 3\",ISBLANK(I80)=FALSE),S80,IF(AND(G80<>\"Fuel Use\",G80<>\"Custom Fuel\",F80=\"Scope 3\"),S80,\"\"))","v":""},{"$f":"IF(OR($G80=\"Fuel Use\",$G80=\"Custom Fuel\"),$U80,IF(AND(OR($G80=\"Vehicle Distance (e.g. Road Transport)\",$G80=\"Custom Vehicle\"),ISBLANK($N80)=FALSE),$U80,\"\"))","v":""},{"$f":"IF(AND(AND(OR($G80=\"Vehicle Distance (e.g. Road Transport)\",$G80=\"Custom Vehicle\"),OR($D80=\"US\",$D80=\"Other\"),ISBLANK($N80)=TRUE)),$U80,IF(AND($G80<>\"Fuel Use\",ISBLANK($N80)=TRUE),$U80,\"\"))","v":""},"","","","","","","","","","","","","","","","","","","","","","","","","","","","","Ref_DD_DistanceUnit","",0]
[null,null,null,null,null,null,null,null,null,null,null,null,null,null,null,null,"","","","","",{"$error":"#REF!"},{"$error":"#REF!"},{"$error":"#REF!"},{"$error":"#REF!"},{"$error":"#REF!"},{"$error":"#REF!"},{"$error":"#REF!"},{"$error":"#REF!"},{"$error":"#REF!"},{"$error":"#REF!"},{"$error":"#REF!"},{"$error":"#REF!"},{"$f":"INDEX(Ref_Master_Unit_Table,MATCH($W81,REF_To_Unit,0),MATCH('Reference - Lookup and Unit'!$A$11,Ref_From_Units,0))","v":{"$error":"#REF!"}},{"$error":"#N/A"},{"$f":"INDEX(Ref_Master_Unit_Table,MATCH($Z81,REF_To_Unit,0),MATCH('Reference - Lookup and Unit'!$A$11,Ref_From_Units,0))","v":{"$error":"#REF!"}},{"$error":"#N/A"},{"$f":"INDEX(Ref_Master_Unit_Table,MATCH($AC81,REF_To_Unit,0),MATCH('Reference - Lookup and Unit'!$A$11,Ref_From_Units,0))","v":{"$error":"#REF!"}},{"$error":"#N/A"},{"$f":"INDEX(Ref_Master_Unit_Table,MATCH($AF81,REF_To_Unit,0),MATCH('Reference - Lookup and Unit'!$A$11,Ref_From_Units,0))","v":{"$error":"#REF!"}},{"$error":"#N/A"},1,28,265,1,"Ref_DD_vehicle_Passenger_",{"$error":"#REF!"},{"$error":"#REF!"},{"$error":"#REF!"},{"$error":"#REF!"},false,"","","","","","","","","","","","","","","","","","","","","","","","","","","","","","","","","","","","","","","","","","","Ref_DD_DistanceUnit","",0]
[null,null,null,null,null,null,null,null,null,null,null,null,null,null,null,null,"","","","","",{"$error":"#REF!"},{"$error":"#REF!"},{"$error":"#REF!"},{"$error":"#REF!"},{"$error":"#REF!"},{"$error":"#REF!"},{"$error":"#REF!"},{"$error":"#REF!"},{"$error":"#REF!"},{"$error":"#REF!"},{"$error":"#REF!"},{"$error":"#REF!"},{"$f":"INDEX(Ref_Master_Unit_Table,MATCH($W82,REF_To_Unit,0),MATCH('Reference - Lookup and Unit'!$A$11,Ref_From_Units,0))","v":{"$error":"#REF!"}},{"$error":"#N/A"},{"$f":"INDEX(Ref_Master_Unit_Table,MATCH($Z82,REF_To_Unit,0),MATCH('Reference - Lookup and Unit'!$A$11,Ref_From_Units,0))","v":{"$error":"#REF!"}},{"$error":"#N/A"},{"$f":"INDEX(Ref_Master_Unit_Table,MATCH($AC82,REF_To_Unit,0),MATCH('Reference - Lookup and Unit'!$A$11,Ref_From_Units,0))","v":{"$error":"#REF!"}},{"$error":"#N/A"},{"$f":"INDEX(Ref_Master_Unit_Table,MATCH($AF82,REF_To_Unit,0),MATCH('Reference - Lookup and Unit'!$A$11,Ref_From_Units,0))","v":{"$error":"#REF!"}},{"$error":"#N/A"},1,28,265,1,"Ref_DD_vehicle_Passenger_",{"$error":"#REF!"},{"$error":"#REF!"},{"$error":"#REF!"},{"$error":"#REF!"},false,"","","","","","","","","","","","","","","","","","","","","","","","","","","","","","","","","","","","","","","","","","","Ref_DD_DistanceUnit","",0]
[null,null,null,null,null,null,null,null,null,null,null,null,null,null,null,null,"","","","","",{"$error":"#REF!"},{"$error":"#REF!"},{"$error":"#REF!"},{"$error":"#REF!"},{"$error":"#REF!"},{"$error":"#REF!"},{"$error":"#REF!"},{"$error":"#REF!"},{"$error":"#REF!"},{"$error":"#REF!"},{"$error":"#REF!"},{"$error":"#REF!"},{"$f":"INDEX(Ref_Master_Unit_Table,MATCH($W83,REF_To_Unit,0),MATCH('Reference - Lookup and Unit'!$A$11,Ref_From_Units,0))","v":{"$error":"#REF!"}},{"$error":"#N/A"},{"$f":"INDEX(Ref_Master_Unit_Table,MATCH($Z83,REF_To_Unit,0),MATCH('Reference - Lookup and Unit'!$A$11,Ref_From_Units,0))","v":{"$error":"#REF!"}},{"$error":"#N/A"},{"$f":"INDEX(Ref_Master_Unit_Table,MATCH($AC83,REF_To_Unit,0),MATCH('Reference - Lookup and Unit'!$A$11,Ref_From_Units,0))","v":{"$error":"#REF!"}},{"$error":"#N/A"},{"$f":"INDEX(Ref_Master_Unit_Table,MATCH($AF83,REF_To_Unit,0),MATCH('Reference - Lookup and Unit'!$A$11,Ref_From_Units,0))","v":{"$error":"#REF!"}},{"$error":"#N/A"},1,28,265,1,"Ref_DD_vehicle_Passenger_",{"$error":"#REF!"},{"$error":"#REF!"},{"$error":"#REF!"},{"$error":"#REF!"},false,"","","","","","","","","","","","","","","","","","","","","","","","","","","","","","","","","","","","","","","","","","","Ref_DD_DistanceUnit","",0]
[null,null,null,null,null,null,null,null,null,null,null,null,null,null,null,null,"","","","","",{"$error":"#REF!"},{"$error":"#REF!"},{"$error":"#REF!"},{"$error":"#REF!"},{"$error":"#REF!"},{"$error":"#REF!"},{"$error":"#REF!"},{"$error":"#REF!"},{"$error":"#REF!"},{"$error":"#REF!"},{"$error":"#REF!"},{"$error":"#REF!"},{"$f":"INDEX(Ref_Master_Unit_Table,MATCH($W84,REF_To_Unit,0),MATCH('Reference - Lookup and Unit'!$A$11,Ref_From_Units,0))","v":{"$error":"#REF!"}},{"$error":"#N/A"},{"$f":"INDEX(Ref_Master_Unit_Table,MATCH($Z84,REF_To_Unit,0),MATCH('Reference - Lookup and Unit'!$A$11,Ref_From_Units,0))","v":{"$error":"#REF!"}},{"$error":"#N/A"},{"$f":"INDEX(Ref_Master_Unit_Table,MATCH($AC84,REF_To_Unit,0),MATCH('Reference - Lookup and Unit'!$A$11,Ref_From_Units,0))","v":{"$error":"#REF!"}},{"$error":"#N/A"},{"$f":"INDEX(Ref_Master_Unit_Table,MATCH($AF84,REF_To_Unit,0),MATCH('Reference - Lookup and Unit'!$A$11,Ref_From_Units,0))","v":{"$error":"#REF!"}},{"$error":"#N/A"},1,28,265,1,"Ref_DD_vehicle_Passenger_",{"$error":"#REF!"},{"$error":"#REF!"},{"$error":"#REF!"},{"$error":"#REF!"},false,"","","","","","","","","","","","","","","","","","","","","","","","","","","","","","","","","","","","","","","","","","","Ref_DD_DistanceUnit","",0]
[null,null,null,null,null,null,null,null,null,null,null,null,null,null,null,null,"","","","","",{"$error":"#REF!"},{"$error":"#REF!"},{"$error":"#REF!"},{"$error":"#REF!"},{"$error":"#REF!"},{"$error":"#REF!"},{"$error":"#REF!"},{"$error":"#REF!"},{"$error":"#REF!"},{"$error":"#REF!"},{"$error":"#REF!"},{"$error":"#REF!"},{"$f":"INDEX(Ref_Master_Unit_Table,MATCH($W85,REF_To_Unit,0),MATCH('Reference - Lookup and Unit'!$A$11,Ref_From_Units,0))","v":{"$error":"#REF!"}},{"$error":"#N/A"},{"$f":"INDEX(Ref_Master_Unit_Table,MATCH($Z85,REF_To_Unit,0),MATCH('Reference - Lookup and Unit'!$A$11,Ref_From_Units,0))","v":{"$error":"#REF!"}},{"$error":"#N/A"},{"$f":"INDEX(Ref_Master_Unit_Table,MATCH($AC85,REF_To_Unit,0),MATCH('Reference - Lookup and Unit'!$A$11,Ref_From_Units,0))","v":{"$error":"#REF!"}},{"$error":"#N/A"},{"$f":"INDEX(Ref_Master_Unit_Table,MATCH($AF85,REF_To_Unit,0),MATCH('Reference - Lookup and Unit'!$A$11,Ref_From_Units,0))","v":{"$error":"#REF!"}},{"$error":"#N/A"},1,28,265,1,"Ref_DD_vehicle_Passenger_",{"$error":"#REF!"},{"$error":"#REF!"},{"$error":"#REF!"},{"$error":"#REF!"},false,"","","","","","","","","","","","","","","","","","","","","","","","","","","","","","","","","","","","","","","","","","","Ref_DD_DistanceUnit","",0]
[null,null,null,null,null,null,null,null,null,null,null,null,null,null,null,null,"","","","","",{"$error":"#REF!"},{"$error":"#REF!"},{"$error":"#REF!"},{"$error":"#REF!"},{"$error":"#REF!"},{"$error":"#REF!"},{"$error":"#REF!"},{"$error":"#REF!"},{"$error":"#REF!"},{"$error":"#REF!"},{"$error":"#REF!"},{"$error":"#REF!"},{"$f":"INDEX(Ref_Master_Unit_Table,MATCH($W86,REF_To_Unit,0),MATCH('Reference - Lookup and Unit'!$A$11,Ref_From_Units,0))","v":{"$error":"#REF!"}},{"$error":"#N/A"},{"$f":"INDEX(Ref_Master_Unit_Table,MATCH($Z86,REF_To_Unit,0),MATCH('Reference - Lookup and Unit'!$A$11,Ref_From_Units,0))","v":{"$error":"#REF!"}},{"$error":"#N/A"},{"$f":"INDEX(Ref_Master_Unit_Table,MATCH($AC86,REF_To_Unit,0),MATCH('Reference - Lookup and Unit'!$A$11,Ref_From_Units,0))","v":{"$error":"#REF!"}},{"$error":"#N/A"},{"$f":"INDEX(Ref_Master_Unit_Table,MATCH($AF86,REF_To_Unit,0),MATCH('Reference - Lookup and Unit'!$A$11,Ref_From_Units,0))","v":{"$error":"#REF!"}},{"$error":"#N/A"},1,28,265,1,"Ref_DD_vehicle_Passenger_",{"$error":"#REF!"},{"$error":"#REF!"},{"$error":"#REF!"},{"$error":"#REF!"},false,"","","","","","","","","","","","","","","","","","","","","","","","","","","","","","","","","","","","","","","","","","","Ref_DD_DistanceUnit","",0]
[null,null,null,null,null,null,null,null,null,null,null,null,null,null,null,null,"","","","","",{"$error":"#REF!"},{"$error":"#REF!"},{"$error":"#REF!"},{"$error":"#REF!"},{"$error":"#REF!"},{"$error":"#REF!"},{"$error":"#REF!"},{"$error":"#REF!"},{"$error":"#REF!"},{"$error":"#REF!"},{"$error":"#REF!"},{"$error":"#REF!"},{"$f":"INDEX(Ref_Master_Unit_Table,MATCH($W87,REF_To_Unit,0),MATCH('Reference - Lookup and Unit'!$A$11,Ref_From_Units,0))","v":{"$error":"#REF!"}},{"$error":"#N/A"},{"$f":"INDEX(Ref_Master_Unit_Table,MATCH($Z87,REF_To_Unit,0),MATCH('Reference - Lookup and Unit'!$A$11,Ref_From_Units,0))","v":{"$error":"#REF!"}},{"$error":"#N/A"},{"$f":"INDEX(Ref_Master_Unit_Table,MATCH($AC87,REF_To_Unit,0),MATCH('Reference - Lookup and Unit'!$A$11,Ref_From_Units,0))","v":{"$error":"#REF!"}},{"$error":"#N/A"},{"$f":"INDEX(Ref_Master_Unit_Table,MATCH($AF87,REF_To_Unit,0),MATCH('Reference - Lookup and Unit'!$A$11,Ref_From_Units,0))","v":{"$error":"#REF!"}},{"$error":"#N/A"},1,28,265,1,"Ref_DD_vehicle_Passenger_",{"$error":"#REF!"},{"$error":"#REF!"},{"$error":"#REF!"},{"$error":"#REF!"},false,"","","","","","","","","","","","","","","","","","","","","","","","","","","","","","","","","","","","","","","","","","","Ref_DD_DistanceUnit","",0]
[null,null,null,null,null,null,null,null,null,null,null,null,null,null,null,null,"","","","","",{"$error":"#REF!"},{"$error":"#REF!"},{"$error":"#REF!"},{"$error":"#REF!"},{"$error":"#REF!"},{"$error":"#REF!"},{"$error":"#REF!"},{"$error":"#REF!"},{"$error":"#REF!"},{"$error":"#REF!"},{"$error":"#REF!"},{"$error":"#REF!"},{"$f":"INDEX(Ref_Master_Unit_Table,MATCH($W88,REF_To_Unit,0),MATCH('Reference - Lookup and Unit'!$A$11,Ref_From_Units,0))","v":{"$error":"#REF!"}},{"$error":"#N/A"},{"$f":"INDEX(Ref_Master_Unit_Table,MATCH($Z88,REF_To_Unit,0),MATCH('Reference - Lookup and Unit'!$A$11,Ref_From_Units,0))","v":{"$error":"#REF!"}},{"$error":"#N/A"},{"$f":"INDEX(Ref_Master_Unit_Table,MATCH($AC88,REF_To_Unit,0),MATCH('Reference - Lookup and Unit'!$A$11,Ref_From_Units,0))","v":{"$error":"#REF!"}},{"$error":"#N/A"},{"$f":"INDEX(Ref_Master_Unit_Table,MATCH($AF88,REF_To_Unit,0),MATCH('Reference - Lookup and Unit'!$A$11,Ref_From_Units,0))","v":{"$error":"#REF!"}},{"$error":"#N/A"},1,28,265,1,"Ref_DD_vehicle_Passenger_",{"$error":"#REF!"},{"$error":"#REF!"},{"$error":"#REF!"},{"$error":"#REF!"},false,"","","","","","","","","","","","","","","","","","","","","","","","","","","","","","","","","","","","","","","","","","","Ref_DD_DistanceUnit","",0]
[null,null,null,null,null,null,null,null,null,null,null,null,null,null,null,null,"","","","","",{"$error":"#REF!"},{"$error":"#REF!"},{"$error":"#REF!"},{"$error":"#REF!"},{"$error":"#REF!"},{"$error":"#REF!"},{"$error":"#REF!"},{"$error":"#REF!"},{"$error":"#REF!"},{"$error":"#REF!"},{"$error":"#REF!"},{"$error":"#REF!"},{"$f":"INDEX(Ref_Master_Unit_Table,MATCH($W89,REF_To_Unit,0),MATCH('Reference - Lookup and Unit'!$A$11,Ref_From_Units,0))","v":{"$error":"#REF!"}},{"$error":"#N/A"},{"$f":"INDEX(Ref_Master_Unit_Table,MATCH($Z89,REF_To_Unit,0),MATCH('Reference - Lookup and Unit'!$A$11,Ref_From_Units,0))","v":{"$error":"#REF!"}},{"$error":"#N/A"},{"$f":"INDEX(Ref_Master_Unit_Table,MATCH($AC89,REF_To_Unit,0),MATCH('Reference - Lookup and Unit'!$A$11,Ref_From_Units,0))","v":{"$error":"#REF!"}},{"$error":"#N/A"},{"$f":"INDEX(Ref_Master_Unit_Table,MATCH($AF89,REF_To_Unit,0),MATCH('Reference - Lookup and Unit'!$A$11,Ref_From_Units,0))","v":{"$error":"#REF!"}},{"$error":"#N/A"},1,28,265,1,"Ref_DD_vehicle_Passenger_",{"$error":"#REF!"},{"$error":"#REF!"},{"$error":"#REF!"},{"$error":"#REF!"},false,"","","","","","","","","","","","","","","","","","","","","","","","","","","","","","","","","","","","","","","","","","","Ref_DD_DistanceUnit","",0]
[null,null,null,null,null,null,null,null,null,null,null,null,null,null,null,null,"","","","","",{"$error":"#REF!"},{"$error":"#REF!"},{"$error":"#REF!"},{"$error":"#REF!"},{"$error":"#REF!"},{"$error":"#REF!"},{"$error":"#REF!"},{"$error":"#REF!"},{"$error":"#REF!"},{"$error":"#REF!"},{"$error":"#REF!"},{"$error":"#REF!"},{"$f":"INDEX(Ref_Master_Unit_Table,MATCH($W90,REF_To_Unit,0),MATCH('Reference - Lookup and Unit'!$A$11,Ref_From_Units,0))","v":{"$error":"#REF!"}},{"$error":"#N/A"},{"$f":"INDEX(Ref_Master_Unit_Table,MATCH($Z90,REF_To_Unit,0),MATCH('Reference - Lookup and Unit'!$A$11,Ref_From_Units,0))","v":{"$error":"#REF!"}},{"$error":"#N/A"},{"$f":"INDEX(Ref_Master_Unit_Table,MATCH($AC90,REF_To_Unit,0),MATCH('Reference - Lookup and Unit'!$A$11,Ref_From_Units,0))","v":{"$error":"#REF!"}},{"$error":"#N/A"},{"$f":"INDEX(Ref_Master_Unit_Table,MATCH($AF90,REF_To_Unit,0),MATCH('Reference - Lookup and Unit'!$A$11,Ref_From_Units,0))","v":{"$error":"#REF!"}},{"$error":"#N/A"},1,28,265,1,"Ref_DD_vehicle_Passenger_",{"$error":"#REF!"},{"$error":"#REF!"},{"$error":"#REF!"},{"$error":"#REF!"},false,"","","","","","","","","","","","","","","","","","","","","","","","","","","","","","","","","","","","","","","","","","","Ref_DD_DistanceUnit","",0]
[null,null,null,null,null,null,null,null,null,null,null,null,null,null,null,null,"","","","","",{"$error":"#REF!"},{"$error":"#REF!"},{"$error":"#REF!"},{"$error":"#REF!"},{"$error":"#REF!"},{"$error":"#REF!"},{"$error":"#REF!"},{"$error":"#REF!"},{"$error":"#REF!"},{"$error":"#REF!"},{"$error":"#REF!"},{"$error":"#REF!"},{"$f":"INDEX(Ref_Master_Unit_Table,MATCH($W91,REF_To_Unit,0),MATCH('Reference - Lookup and Unit'!$A$11,Ref_From_Units,0))","v":{"$error":"#REF!"}},{"$error":"#N/A"},{"$f":"INDEX(Ref_Master_Unit_Table,MATCH($Z91,REF_To_Unit,0),MATCH('Reference - Lookup and Unit'!$A$11,Ref_From_Units,0))","v":{"$error":"#REF!"}},{"$error":"#N/A"},{"$f":"INDEX(Ref_Master_Unit_Table,MATCH($AC91,REF_To_Unit,0),MATCH('Reference - Lookup and Unit'!$A$11,Ref_From_Units,0))","v":{"$error":"#REF!"}},{"$error":"#N/A"},{"$f":"INDEX(Ref_Master_Unit_Table,MATCH($AF91,REF_To_Unit,0),MATCH('Reference - Lookup and Unit'!$A$11,Ref_From_Units,0))","v":{"$error":"#REF!"}},{"$error":"#N/A"},1,28,265,1,"Ref_DD_vehicle_Passenger_",{"$error":"#REF!"},{"$error":"#REF!"},{"$error":"#REF!"},{"$error":"#REF!"},false,"","","","","","","","","","","","","","","","","","","","","","","","","","","","","","","","","","","","","","","","","","","Ref_DD_DistanceUnit","",0]
[null,null,null,null,null,null,null,null,null,null,null,null,null,null,null,null,"","","","","",{"$error":"#REF!"},{"$error":"#REF!"},{"$error":"#REF!"},{"$error":"#REF!"},{"$error":"#REF!"},{"$error":"#REF!"},{"$error":"#REF!"},{"$error":"#REF!"},{"$error":"#REF!"},{"$error":"#REF!"},{"$error":"#REF!"},{"$error":"#REF!"},{"$f":"INDEX(Ref_Master_Unit_Table,MATCH($W92,REF_To_Unit,0),MATCH('Reference - Lookup and Unit'!$A$11,Ref_From_Units,0))","v":{"$error":"#REF!"}},{"$error":"#N/A"},{"$f":"INDEX(Ref_Master_Unit_Table,MATCH($Z92,REF_To_Unit,0),MATCH('Reference - Lookup and Unit'!$A$11,Ref_From_Units,0))","v":{"$error":"#REF!"}},{"$error":"#N/A"},{"$f":"INDEX(Ref_Master_Unit_Table,MATCH($AC92,REF_To_Unit,0),MATCH('Reference - Lookup and Unit'!$A$11,Ref_From_Units,0))","v":{"$error":"#REF!"}},{"$error":"#N/A"},{"$f":"INDEX(Ref_Master_Unit_Table,MATCH($AF92,REF_To_Unit,0),MATCH('Reference - Lookup and Unit'!$A$11,Ref_From_Units,0))","v":{"$error":"#REF!"}},{"$error":"#N/A"},1,28,265,1,"Ref_DD_vehicle_Passenger_",{"$error":"#REF!"},{"$error":"#REF!"},{"$error":"#REF!"},{"$error":"#REF!"},false,"","","","","","","","","","","","","","","","","","","","","","","","","","","","","","","","","","","","","","","","","","","Ref_DD_DistanceUnit","",0]
[null,null,null,null,null,null,null,null,null,null,null,null,null,null,null,null,"","","","","",{"$error":"#REF!"},{"$error":"#REF!"},{"$error":"#REF!"},{"$error":"#REF!"},{"$error":"#REF!"},{"$error":"#REF!"},{"$error":"#REF!"},{"$error":"#REF!"},{"$error":"#REF!"},{"$error":"#REF!"},{"$error":"#REF!"},{"$error":"#REF!"},{"$f":"INDEX(Ref_Master_Unit_Table,MATCH($W93,REF_To_Unit,0),MATCH('Reference - Lookup and Unit'!$A$11,Ref_From_Units,0))","v":{"$error":"#REF!"}},{"$error":"#N/A"},{"$f":"INDEX(Ref_Master_Unit_Table,MATCH($Z93,REF_To_Unit,0),MATCH('Reference - Lookup and Unit'!$A$11,Ref_From_Units,0))","v":{"$error":"#REF!"}},{"$error":"#N/A"},{"$f":"INDEX(Ref_Master_Unit_Table,MATCH($AC93,REF_To_Unit,0),MATCH('Reference - Lookup and Unit'!$A$11,Ref_From_Units,0))","v":{"$error":"#REF!"}},{"$error":"#N/A"},{"$f":"INDEX(Ref_Master_Unit_Table,MATCH($AF93,REF_To_Unit,0),MATCH('Reference - Lookup and Unit'!$A$11,Ref_From_Units,0))","v":{"$error":"#REF!"}},{"$error":"#N/A"},1,28,265,1,"Ref_DD_vehicle_Passenger_",{"$error":"#REF!"},{"$error":"#REF!"},{"$error":"#REF!"},{"$error":"#REF!"},false,"","","","","","","","","","","","","","","","","","","","","","","","","","","","","","","","","","","","","","","","","","","Ref_DD_DistanceUnit","",0]
[null,null,null,null,null,null,null,null,null,null,null,null,null,null,null,null,"","","","","",{"$error":"#REF!"},{"$error":"#REF!"},{"$error":"#REF!"},{"$error":"#REF!"},{"$error":"#REF!"},{"$error":"#REF!"},{"$error":"#REF!"},{"$error":"#REF!"},{"$error":"#REF!"},{"$error":"#REF!"},{"$error":"#REF!"},{"$error":"#REF!"},{"$f":"INDEX(Ref_Master_Unit_Table,MATCH($W94,REF_To_Unit,0),MATCH('Reference - Lookup and Unit'!$A$11,Ref_From_Units,0))","v":{"$error":"#REF!"}},{"$error":"#N/A"},{"$f":"INDEX(Ref_Master_Unit_Table,MATCH($Z94,REF_To_Unit,0),MATCH('Reference - Lookup and Unit'!$A$11,Ref_From_Units,0))","v":{"$error":"#REF!"}},{"$error":"#N/A"},{"$f":"INDEX(Ref_Master_Unit_Table,MATCH($AC94,REF_To_Unit,0),MATCH('Reference - Lookup and Unit'!$A$11,Ref_From_Units,0))","v":{"$error":"#REF!"}},{"$error":"#N/A"},{"$f":"INDEX(Ref_Master_Unit_Table,MATCH($AF94,REF_To_Unit,0),MATCH('Reference - Lookup and Unit'!$A$11,Ref_From_Units,0))","v":{"$error":"#REF!"}},{"$error":"#N/A"},1,28,265,1,"Ref_DD_vehicle_Passenger_",{"$error":"#REF!"},{"$error":"#REF!"},{"$error":"#REF!"},{"$error":"#REF!"},false,"","","","","","","","","","","","","","","","","","","","","","","","","","","","","","","","","","","","","","","","","","","Ref_DD_DistanceUnit","",0]
[null,null,null,null,null,null,null,null,null,null,null,null,null,null,null,null,"","","","","",{"$error":"#REF!"},{"$error":"#REF!"},{"$error":"#REF!"},{"$error":"#REF!"},{"$error":"#REF!"},{"$error":"#REF!"},{"$error":"#REF!"},{"$error":"#REF!"},{"$error":"#REF!"},{"$error":"#REF!"},{"$error":"#REF!"},{"$error":"#REF!"},{"$f":"INDEX(Ref_Master_Unit_Table,MATCH($W95,REF_To_Unit,0),MATCH('Reference - Lookup and Unit'!$A$11,Ref_From_Units,0))","v":{"$error":"#REF!"}},{"$error":"#N/A"},{"$f":"INDEX(Ref_Master_Unit_Table,MATCH($Z95,REF_To_Unit,0),MATCH('Reference - Lookup and Unit'!$A$11,Ref_From_Units,0))","v":{"$error":"#REF!"}},{"$error":"#N/A"},{"$f":"INDEX(Ref_Master_Unit_Table,MATCH($AC95,REF_To_Unit,0),MATCH('Reference - Lookup and Unit'!$A$11,Ref_From_Units,0))","v":{"$error":"#REF!"}},{"$error":"#N/A"},{"$f":"INDEX(Ref_Master_Unit_Table,MATCH($AF95,REF_To_Unit,0),MATCH('Reference - Lookup and Unit'!$A$11,Ref_From_Units,0))","v":{"$error":"#REF!"}},{"$error":"#N/A"},1,28,265,1,"Ref_DD_vehicle_Passenger_",{"$error":"#REF!"},{"$error":"#REF!"},{"$error":"#REF!"},{"$error":"#REF!"},false,"","","","","","","","","","","","","","","","","","","","","","","","","","","","","","","","","","","","","","","","","","","Ref_DD_DistanceUnit","",0]
[null,null,null,null,null,null,null,null,null,null,null,null,null,null,null,null,"","","","","",{"$error":"#REF!"},{"$error":"#REF!"},{"$error":"#REF!"},{"$error":"#REF!"},{"$error":"#REF!"},{"$error":"#REF!"},{"$error":"#REF!"},{"$error":"#REF!"},{"$error":"#REF!"},{"$error":"#REF!"},{"$error":"#REF!"},{"$error":"#REF!"},{"$f":"INDEX(Ref_Master_Unit_Table,MATCH($W96,REF_To_Unit,0),MATCH('Reference - Lookup and Unit'!$A$11,Ref_From_Units,0))","v":{"$error":"#REF!"}},{"$error":"#N/A"},{"$f":"INDEX(Ref_Master_Unit_Table,MATCH($Z96,REF_To_Unit,0),MATCH('Reference - Lookup and Unit'!$A$11,Ref_From_Units,0))","v":{"$error":"#REF!"}},{"$error":"#N/A"},{"$f":"INDEX(Ref_Master_Unit_Table,MATCH($AC96,REF_To_Unit,0),MATCH('Reference - Lookup and Unit'!$A$11,Ref_From_Units,0))","v":{"$error":"#REF!"}},{"$error":"#N/A"},{"$f":"INDEX(Ref_Master_Unit_Table,MATCH($AF96,REF_To_Unit,0),MATCH('Reference - Lookup and Unit'!$A$11,Ref_From_Units,0))","v":{"$error":"#REF!"}},{"$error":"#N/A"},1,28,265,1,"Ref_DD_vehicle_Passenger_",{"$error":"#REF!"},{"$error":"#REF!"},{"$error":"#REF!"},{"$error":"#REF!"},false,"","","","","","","","","","","","","","","","","","","","","","","","","","","","","","","","","","","","","","","","","","","Ref_DD_DistanceUnit","",0]
[null,null,null,null,null,null,null,null,null,null,null,null,null,null,null,null,"","","","","",{"$error":"#REF!"},{"$error":"#REF!"},{"$error":"#REF!"},{"$error":"#REF!"},{"$error":"#REF!"},{"$error":"#REF!"},{"$error":"#REF!"},{"$error":"#REF!"},{"$error":"#REF!"},{"$error":"#REF!"},{"$error":"#REF!"},{"$error":"#REF!"},{"$f":"INDEX(Ref_Master_Unit_Table,MATCH($W97,REF_To_Unit,0),MATCH('Reference - Lookup and Unit'!$A$11,Ref_From_Units,0))","v":{"$error":"#REF!"}},{"$error":"#N/A"},{"$f":"INDEX(Ref_Master_Unit_Table,MATCH($Z97,REF_To_Unit,0),MATCH('Reference - Lookup and Unit'!$A$11,Ref_From_Units,0))","v":{"$error":"#REF!"}},{"$error":"#N/A"},{"$f":"INDEX(Ref_Master_Unit_Table,MATCH($AC97,REF_To_Unit,0),MATCH('Reference - Lookup and Unit'!$A$11,Ref_From_Units,0))","v":{"$error":"#REF!"}},{"$error":"#N/A"},{"$f":"INDEX(Ref_Master_Unit_Table,MATCH($AF97,REF_To_Unit,0),MATCH('Reference - Lookup and Unit'!$A$11,Ref_From_Units,0))","v":{"$error":"#REF!"}},{"$error":"#N/A"},1,28,265,1,"Ref_DD_vehicle_Passenger_",{"$error":"#REF!"},{"$error":"#REF!"},{"$error":"#REF!"},{"$error":"#REF!"},false,"","","","","","","","","","","","","","","","","","","","","","","","","","","","","","","","","","","","","","","","","","","Ref_DD_DistanceUnit","",0]
[null,null,null,null,null,null,null,null,null,null,null,null,null,null,null,null,"","","","","",{"$error":"#REF!"},{"$error":"#REF!"},{"$error":"#REF!"},{"$error":"#REF!"},{"$error":"#REF!"},{"$error":"#REF!"},{"$error":"#REF!"},{"$error":"#REF!"},{"$error":"#REF!"},{"$error":"#REF!"},{"$error":"#REF!"},{"$error":"#REF!"},{"$f":"INDEX(Ref_Master_Unit_Table,MATCH($W98,REF_To_Unit,0),MATCH('Reference - Lookup and Unit'!$A$11,Ref_From_Units,0))","v":{"$error":"#REF!"}},{"$error":"#N/A"},{"$f":"INDEX(Ref_Master_Unit_Table,MATCH($Z98,REF_To_Unit,0),MATCH('Reference - Lookup and Unit'!$A$11,Ref_From_Units,0))","v":{"$error":"#REF!"}},{"$error":"#N/A"},{"$f":"INDEX(Ref_Master_Unit_Table,MATCH($AC98,REF_To_Unit,0),MATCH('Reference - Lookup and Unit'!$A$11,Ref_From_Units,0))","v":{"$error":"#REF!"}},{"$error":"#N/A"},{"$f":"INDEX(Ref_Master_Unit_Table,MATCH($AF98,REF_To_Unit,0),MATCH('Reference - Lookup and Unit'!$A$11,Ref_From_Units,0))","v":{"$error":"#REF!"}},{"$error":"#N/A"},1,28,265,1,"Ref_DD_vehicle_Passenger_",{"$error":"#REF!"},{"$error":"#REF!"},{"$error":"#REF!"},{"$error":"#REF!"},false,"","","","","","","","","","","","","","","","","","","","","","","","","","","","","","","","","","","","","","","","","","","Ref_DD_DistanceUnit","",0]
[null,null,null,null,null,null,null,null,null,null,null,null,null,null,null,null,"","","","","",{"$error":"#REF!"},{"$error":"#REF!"},{"$error":"#REF!"},{"$error":"#REF!"},{"$error":"#REF!"},{"$error":"#REF!"},{"$error":"#REF!"},{"$error":"#REF!"},{"$error":"#REF!"},{"$error":"#REF!"},{"$error":"#REF!"},{"$error":"#REF!"},{"$f":"INDEX(Ref_Master_Unit_Table,MATCH($W99,REF_To_Unit,0),MATCH('Reference - Lookup and Unit'!$A$11,Ref_From_Units,0))","v":{"$error":"#REF!"}},{"$error":"#N/A"},{"$f":"INDEX(Ref_Master_Unit_Table,MATCH($Z99,REF_To_Unit,0),MATCH('Reference - Lookup and Unit'!$A$11,Ref_From_Units,0))","v":{"$error":"#REF!"}},{"$error":"#N/A"},{"$f":"INDEX(Ref_Master_Unit_Table,MATCH($AC99,REF_To_Unit,0),MATCH('Reference - Lookup and Unit'!$A$11,Ref_From_Units,0))","v":{"$error":"#REF!"}},{"$error":"#N/A"},{"$f":"INDEX(Ref_Master_Unit_Table,MATCH($AF99,REF_To_Unit,0),MATCH('Reference - Lookup and Unit'!$A$11,Ref_From_Units,0))","v":{"$error":"#REF!"}},{"$error":"#N/A"},1,28,265,1,"Ref_DD_vehicle_Passenger_",{"$error":"#REF!"},{"$error":"#REF!"},{"$error":"#REF!"},{"$error":"#REF!"},false,"","","","","","","","","","","","","","","","","","","","","","","","","","","","","","","","","","","","","","","","","","","Ref_DD_DistanceUnit","",0]
[null,null,null,null,null,null,null,null,null,null,null,null,null,null,null,null,"","","","","",{"$error":"#REF!"},{"$error":"#REF!"},{"$error":"#REF!"},{"$error":"#REF!"},{"$error":"#REF!"},{"$error":"#REF!"},{"$error":"#REF!"},{"$error":"#REF!"},{"$error":"#REF!"},{"$error":"#REF!"},{"$error":"#REF!"},{"$error":"#REF!"},{"$f":"INDEX(Ref_Master_Unit_Table,MATCH($W100,REF_To_Unit,0),MATCH('Reference - Lookup and Unit'!$A$11,Ref_From_Units,0))","v":{"$error":"#REF!"}},{"$error":"#N/A"},{"$f":"INDEX(Ref_Master_Unit_Table,MATCH($Z100,REF_To_Unit,0),MATCH('Reference - Lookup and Unit'!$A$11,Ref_From_Units,0))","v":{"$error":"#REF!"}},{"$error":"#N/A"},{"$f":"INDEX(Ref_Master_Unit_Table,MATCH($AC100,REF_To_Unit,0),MATCH('Reference - Lookup and Unit'!$A$11,Ref_From_Units,0))","v":{"$error":"#REF!"}},{"$error":"#N/A"},{"$f":"INDEX(Ref_Master_Unit_Table,MATCH($AF100,REF_To_Unit,0),MATCH('Reference - Lookup and Unit'!$A$11,Ref_From_Units,0))","v":{"$error":"#REF!"}},{"$error":"#N/A"},1,28,265,1,"Ref_DD_vehicle_Passenger_",{"$error":"#REF!"},{"$error":"#REF!"},{"$error":"#REF!"},{"$error":"#REF!"},false,"","","","","","","","","","","","","","","","","","","","","","","","","","","","","","","","","","","","","","","","","","","Ref_DD_DistanceUnit","",0]
[null,null,null,null,null,null,null,null,null,null,null,null,null,null,null,null,"","","",{"$f":"IF(AND(ISERROR($Q101*$AP101)=FALSE,ISERROR((R101/1000)*$AQ101)=FALSE,ISERROR((S101/1000)*$AR101)=FALSE),($Q101*$AP101)+((R101/1000)*$AQ101)+((S101/1000)*$AR101),IF(AND(ISERROR($Q101*$AP101)=FALSE,ISERROR((R101/1000)*$AQ101)=FALSE,ISERROR((S101/1000)*$AR101)=TRUE),($Q101*$AP101)+((R101/1000)*$AQ101),IF(AND(ISERROR($Q101*$AP101)=FALSE,ISERROR((R101/1000)*$AQ101)=TRUE,ISERROR((S101/1000)*$AR101)=FALSE),($Q101*$AP101)+((S101/1000)*$AR101),IF(AND(ISERROR($Q101*$AP101)=FALSE,ISERROR((R101/1000)*$AQ101)=TRUE,ISERROR((S101/1000)*$AR101)=TRUE),($Q101*$AP101),IF(AND(ISERROR($Q101*$AP101)=TRUE,ISERROR((R101/1000)*$AQ101)=FALSE,ISERROR((S101/1000)*$AR101)=FALSE),((R101/1000)*$AQ101)+((S101/1000)*$AR101),IF(AND(ISERROR($Q101*$AP101)=TRUE,ISERROR((R101/1000)*$AQ101)=FALSE,ISERROR((S101/1000)*$AR101)=TRUE),((R101/1000)*$AQ101),CQ101))))))","v":""},"",{"$error":"#REF!"},{"$error":"#REF!"},{"$error":"#REF!"},{"$error":"#REF!"},{"$error":"#REF!"},{"$error":"#REF!"},{"$error":"#REF!"},{"$error":"#REF!"},{"$error":"#REF!"},{"$error":"#REF!"},{"$error":"#REF!"},{"$error":"#REF!"},{"$f":"INDEX(Ref_Master_Unit_Table,MATCH($W101,REF_To_Unit,0),MATCH('Reference - Lookup and Unit'!$A$11,Ref_From_Units,0))","v":{"$error":"#REF!"}},{"$error":"#N/A"},{"$f":"INDEX(Ref_Master_Unit_Table,MATCH($Z101,REF_To_Unit,0),MATCH('Reference - Lookup and Unit'!$A$11,Ref_From_Units,0))","v":{"$error":"#REF!"}},{"$error":"#N/A"},{"$f":"INDEX(Ref_Master_Unit_Table,MATCH($AC101,REF_To_Unit,0),MATCH('Reference - Lookup and Unit'!$A$11,Ref_From_Units,0))","v":{"$error":"#REF!"}},{"$error":"#N/A"},{"$f":"INDEX(Ref_Master_Unit_Table,MATCH($AF101,REF_To_Unit,0),MATCH('Reference - Lookup and Unit'!$A$11,Ref_From_Units,0))","v":{"$error":"#REF!"}},{"$error":"#N/A"},1,28,265,1,"Ref_DD_vehicle_Passenger_",{"$error":"#REF!"},{"$error":"#REF!"},{"$error":"#REF!"},{"$error":"#REF!"},false,"","",{"$f":"IF(AND(OR(G101=\"Fuel Use\",G101=\"Custom Fuel\"),F101=\"Scope 1\",ISBLANK(I101)=TRUE),R101,\"\")","v":""},{"$f":"IF(AND(OR(G101=\"Fuel Use\",G101=\"Custom Fuel\"),F101=\"Scope 1\",ISBLANK(I101)=FALSE),R101,IF(AND(G101<>\"Fuel Use\",G101<>\"Custom Fuel\",F101=\"Scope 1\"),R101,\"\"))","v":""},{"$f":"IF(AND(OR(G101=\"Fuel Use\",G101=\"Custom Fuel\"),F101=\"Scope 1\",ISBLANK(I101)=TRUE),S101,\"\")","v":""},{"$f":"IF(AND(OR(G101=\"Fuel Use\",G101=\"Custom Fuel\"),F101=\"Scope 1\",ISBLANK(I101)=FALSE),S101,IF(AND(G101<>\"Fuel Use\",G101<>\"Custom Fuel\",F101=\"Scope 1\"),S101,\"\"))","v":""},"","",{"$f":"IF(AND(OR(G101=\"Fuel Use\",G101=\"Custom Fuel\"),F101=\"Scope 3\",ISBLANK(I101)=TRUE),R101,\"\")","v":""},{"$f":"IF(AND(OR(G101=\"Fuel Use\",G101=\"Custom Fuel\"),F101=\"Scope 3\",ISBLANK(I101)=FALSE),R101,IF(AND(G101<>\"Fuel Use\",G101<>\"Custom Fuel\",F101=\"Scope 3\"),R101,\"\"))","v":""},{"$f":"IF(AND(OR(G101=\"Fuel Use\",G101=\"Custom Fuel\"),F101=\"Scope 3\",ISBLANK(I101)=TRUE),S101,\"\")","v":""},{"$f":"IF(AND(OR(G101=\"Fuel Use\",G101=\"Custom Fuel\"),F101=\"Scope 3\",ISBLANK(I101)=FALSE),S101,IF(AND(G101<>\"Fuel Use\",G101<>\"Custom Fuel\",F101=\"Scope 3\"),S101,\"\"))","v":""},"","","","","","","","","","","","","","","","","","","","","","","","","","","","","","","Ref_DD_DistanceUnit",{"$f":"IF(AND(ISERROR($Q101*$AP101)=TRUE,ISERROR((R101/1000)*$AQ101)=TRUE,ISERROR((S101/1000)*$AR101)=FALSE),((S101/1000)*$AR101),\"\")","v":""},0]
[null,null,null,null,null,null,null,null,null,null,null,null,null,null,null,null,"","","","","",{"$error":"#REF!"},{"$error":"#REF!"},{"$error":"#REF!"},{"$error":"#REF!"},{"$error":"#REF!"},{"$error":"#REF!"},{"$error":"#REF!"},{"$error":"#REF!"},{"$error":"#REF!"},{"$error":"#REF!"},{"$error":"#REF!"},{"$error":"#REF!"},{"$f":"INDEX(Ref_Master_Unit_Table,MATCH($W102,REF_To_Unit,0),MATCH('Reference - Lookup and Unit'!$A$11,Ref_From_Units,0))","v":{"$error":"#REF!"}},{"$error":"#N/A"},{"$f":"INDEX(Ref_Master_Unit_Table,MATCH($Z102,REF_To_Unit,0),MATCH('Reference - Lookup and Unit'!$A$11,Ref_From_Units,0))","v":{"$error":"#REF!"}},{"$error":"#N/A"},{"$f":"INDEX(Ref_Master_Unit_Table,MATCH($AC102,REF_To_Unit,0),MATCH('Reference - Lookup and Unit'!$A$11,Ref_From_Units,0))","v":{"$error":"#REF!"}},{"$error":"#N/A"},{"$f":"INDEX(Ref_Master_Unit_Table,MATCH($AF102,REF_To_Unit,0),MATCH('Reference - Lookup and Unit'!$A$11,Ref_From_Units,0))","v":{"$error":"#REF!"}},{"$error":"#N/A"},1,28,265,1,"Ref_DD_vehicle_Passenger_",{"$error":"#REF!"},{"$error":"#REF!"},{"$error":"#REF!"},{"$error":"#REF!"},false,"","","","","","","","","","","","","","","","","","","","","","","","","","","","","","","","","","","","","","","","","","","Ref_DD_DistanceUnit","",0]
[null,null,null,null,null,null,null,null,null,null,null,null,null,null,null,null,"","","","","",{"$error":"#REF!"},{"$error":"#REF!"},{"$error":"#REF!"},{"$error":"#REF!"},{"$error":"#REF!"},{"$error":"#REF!"},{"$error":"#REF!"},{"$error":"#REF!"},{"$error":"#REF!"},{"$error":"#REF!"},{"$error":"#REF!"},{"$error":"#REF!"},{"$f":"INDEX(Ref_Master_Unit_Table,MATCH($W103,REF_To_Unit,0),MATCH('Reference - Lookup and Unit'!$A$11,Ref_From_Units,0))","v":{"$error":"#REF!"}},{"$error":"#N/A"},{"$f":"INDEX(Ref_Master_Unit_Table,MATCH($Z103,REF_To_Unit,0),MATCH('Reference - Lookup and Unit'!$A$11,Ref_From_Units,0))","v":{"$error":"#REF!"}},{"$error":"#N/A"},{"$f":"INDEX(Ref_Master_Unit_Table,MATCH($AC103,REF_To_Unit,0),MATCH('Reference - Lookup and Unit'!$A$11,Ref_From_Units,0))","v":{"$error":"#REF!"}},{"$error":"#N/A"},{"$f":"INDEX(Ref_Master_Unit_Table,MATCH($AF103,REF_To_Unit,0),MATCH('Reference - Lookup and Unit'!$A$11,Ref_From_Units,0))","v":{"$error":"#REF!"}},{"$error":"#N/A"},1,28,265,1,"Ref_DD_vehicle_Passenger_",{"$error":"#REF!"},{"$error":"#REF!"},{"$error":"#REF!"},{"$error":"#REF!"},false,"","","","","","","","","","","","","","","","","","","","","","","","","","","","","","","","","","","","","","","","","","","Ref_DD_DistanceUnit","",0]
[null,null,null,null,null,null,null,null,null,null,null,null,null,null,null,null,"","","","","",{"$error":"#REF!"},{"$error":"#REF!"},{"$error":"#REF!"},{"$error":"#REF!"},{"$error":"#REF!"},{"$error":"#REF!"},{"$error":"#REF!"},{"$error":"#REF!"},{"$error":"#REF!"},{"$error":"#REF!"},{"$error":"#REF!"},{"$error":"#REF!"},{"$f":"INDEX(Ref_Master_Unit_Table,MATCH($W104,REF_To_Unit,0),MATCH('Reference - Lookup and Unit'!$A$11,Ref_From_Units,0))","v":{"$error":"#REF!"}},{"$error":"#N/A"},{"$f":"INDEX(Ref_Master_Unit_Table,MATCH($Z104,REF_To_Unit,0),MATCH('Reference - Lookup and Unit'!$A$11,Ref_From_Units,0))","v":{"$error":"#REF!"}},{"$error":"#N/A"},{"$f":"INDEX(Ref_Master_Unit_Table,MATCH($AC104,REF_To_Unit,0),MATCH('Reference - Lookup and Unit'!$A$11,Ref_From_Units,0))","v":{"$error":"#REF!"}},{"$error":"#N/A"},{"$f":"INDEX(Ref_Master_Unit_Table,MATCH($AF104,REF_To_Unit,0),MATCH('Reference - Lookup and Unit'!$A$11,Ref_From_Units,0))","v":{"$error":"#REF!"}},{"$error":"#N/A"},1,28,265,1,"Ref_DD_vehicle_Passenger_",{"$error":"#REF!"},{"$error":"#REF!"},{"$error":"#REF!"},{"$error":"#REF!"},false,"","","","","","","","","","","","","","","","","","","","","","","","","","","","","","","","","","","","","","","","","","","Ref_DD_DistanceUnit","",0]
[null,null,null,null,null,null,null,null,null,null,null,null,null,null,null,null,"","","","","",{"$error":"#REF!"},{"$error":"#REF!"},{"$error":"#REF!"},{"$error":"#REF!"},{"$error":"#REF!"},{"$error":"#REF!"},{"$error":"#REF!"},{"$error":"#REF!"},{"$error":"#REF!"},{"$error":"#REF!"},{"$error":"#REF!"},{"$error":"#REF!"},{"$f":"INDEX(Ref_Master_Unit_Table,MATCH($W105,REF_To_Unit,0),MATCH('Reference - Lookup and Unit'!$A$11,Ref_From_Units,0))","v":{"$error":"#REF!"}},{"$error":"#N/A"},{"$f":"INDEX(Ref_Master_Unit_Table,MATCH($Z105,REF_To_Unit,0),MATCH('Reference - Lookup and Unit'!$A$11,Ref_From_Units,0))","v":{"$error":"#REF!"}},{"$error":"#N/A"},{"$f":"INDEX(Ref_Master_Unit_Table,MATCH($AC105,REF_To_Unit,0),MATCH('Reference - Lookup and Unit'!$A$11,Ref_From_Units,0))","v":{"$error":"#REF!"}},{"$error":"#N/A"},{"$f":"INDEX(Ref_Master_Unit_Table,MATCH($AF105,REF_To_Unit,0),MATCH('Reference - Lookup and Unit'!$A$11,Ref_From_Units,0))","v":{"$error":"#REF!"}},{"$error":"#N/A"},1,28,265,1,"Ref_DD_vehicle_Passenger_",{"$error":"#REF!"},{"$error":"#REF!"},{"$error":"#REF!"},{"$error":"#REF!"},false,"","","","","","","","","","","","","","","","","","","","","","","","","","","","","","","","","","","","","","","","","","","Ref_DD_DistanceUnit","",0]
[null,null,null,null,null,null,null,null,null,null,null,null,null,null,null,null,"","","","","",{"$error":"#REF!"},{"$error":"#REF!"},{"$error":"#REF!"},{"$error":"#REF!"},{"$error":"#REF!"},{"$error":"#REF!"},{"$error":"#REF!"},{"$error":"#REF!"},{"$error":"#REF!"},{"$error":"#REF!"},{"$error":"#REF!"},{"$error":"#REF!"},{"$f":"INDEX(Ref_Master_Unit_Table,MATCH($W106,REF_To_Unit,0),MATCH('Reference - Lookup and Unit'!$A$11,Ref_From_Units,0))","v":{"$error":"#REF!"}},{"$error":"#N/A"},{"$f":"INDEX(Ref_Master_Unit_Table,MATCH($Z106,REF_To_Unit,0),MATCH('Reference - Lookup and Unit'!$A$11,Ref_From_Units,0))","v":{"$error":"#REF!"}},{"$error":"#N/A"},{"$f":"INDEX(Ref_Master_Unit_Table,MATCH($AC106,REF_To_Unit,0),MATCH('Reference - Lookup and Unit'!$A$11,Ref_From_Units,0))","v":{"$error":"#REF!"}},{"$error":"#N/A"},{"$f":"INDEX(Ref_Master_Unit_Table,MATCH($AF106,REF_To_Unit,0),MATCH('Reference - Lookup and Unit'!$A$11,Ref_From_Units,0))","v":{"$error":"#REF!"}},{"$error":"#N/A"},1,28,265,1,"Ref_DD_vehicle_Passenger_",{"$error":"#REF!"},{"$error":"#REF!"},{"$error":"#REF!"},{"$error":"#REF!"},false,"","","","","","","","","","","","","","","","","","","","","","","","","","","","","","","","","","","","","","","","","","","Ref_DD_DistanceUnit","",0]
[null,null,null,null,null,null,null,null,null,null,null,null,null,null,null,null,"","","",{"$f":"IF(AND(ISERROR($Q107*$AP107)=FALSE,ISERROR((R107/1000)*$AQ107)=FALSE,ISERROR((S107/1000)*$AR107)=FALSE),($Q107*$AP107)+((R107/1000)*$AQ107)+((S107/1000)*$AR107),IF(AND(ISERROR($Q107*$AP107)=FALSE,ISERROR((R107/1000)*$AQ107)=FALSE,ISERROR((S107/1000)*$AR107)=TRUE),($Q107*$AP107)+((R107/1000)*$AQ107),IF(AND(ISERROR($Q107*$AP107)=FALSE,ISERROR((R107/1000)*$AQ107)=TRUE,ISERROR((S107/1000)*$AR107)=FALSE),($Q107*$AP107)+((S107/1000)*$AR107),IF(AND(ISERROR($Q107*$AP107)=FALSE,ISERROR((R107/1000)*$AQ107)=TRUE,ISERROR((S107/1000)*$AR107)=TRUE),($Q107*$AP107),IF(AND(ISERROR($Q107*$AP107)=TRUE,ISERROR((R107/1000)*$AQ107)=FALSE,ISERROR((S107/1000)*$AR107)=FALSE),((R107/1000)*$AQ107)+((S107/1000)*$AR107),IF(AND(ISERROR($Q107*$AP107)=TRUE,ISERROR((R107/1000)*$AQ107)=FALSE,ISERROR((S107/1000)*$AR107)=TRUE),((R107/1000)*$AQ107),CQ107))))))","v":""},"",{"$error":"#REF!"},{"$error":"#REF!"},{"$error":"#REF!"},{"$error":"#REF!"},{"$error":"#REF!"},{"$error":"#REF!"},{"$error":"#REF!"},{"$error":"#REF!"},{"$error":"#REF!"},{"$error":"#REF!"},{"$error":"#REF!"},{"$error":"#REF!"},{"$f":"INDEX(Ref_Master_Unit_Table,MATCH($W107,REF_To_Unit,0),MATCH('Reference - Lookup and Unit'!$A$11,Ref_From_Units,0))","v":{"$error":"#REF!"}},{"$error":"#N/A"},{"$f":"INDEX(Ref_Master_Unit_Table,MATCH($Z107,REF_To_Unit,0),MATCH('Reference - Lookup and Unit'!$A$11,Ref_From_Units,0))","v":{"$error":"#REF!"}},{"$error":"#N/A"},{"$f":"INDEX(Ref_Master_Unit_Table,MATCH($AC107,REF_To_Unit,0),MATCH('Reference - Lookup and Unit'!$A$11,Ref_From_Units,0))","v":{"$error":"#REF!"}},{"$error":"#N/A"},{"$f":"INDEX(Ref_Master_Unit_Table,MATCH($AF107,REF_To_Unit,0),MATCH('Reference - Lookup and Unit'!$A$11,Ref_From_Units,0))","v":{"$error":"#REF!"}},{"$error":"#N/A"},1,28,265,1,"Ref_DD_vehicle_Passenger_",{"$error":"#REF!"},{"$error":"#REF!"},{"$error":"#REF!"},{"$error":"#REF!"},false,"","",{"$f":"IF(AND(OR(G107=\"Fuel Use\",G107=\"Custom Fuel\"),F107=\"Scope 1\",ISBLANK(I107)=TRUE),R107,\"\")","v":""},{"$f":"IF(AND(OR(G107=\"Fuel Use\",G107=\"Custom Fuel\"),F107=\"Scope 1\",ISBLANK(I107)=FALSE),R107,IF(AND(G107<>\"Fuel Use\",G107<>\"Custom Fuel\",F107=\"Scope 1\"),R107,\"\"))","v":""},{"$f":"IF(AND(OR(G107=\"Fuel Use\",G107=\"Custom Fuel\"),F107=\"Scope 1\",ISBLANK(I107)=TRUE),S107,\"\")","v":""},{"$f":"IF(AND(OR(G107=\"Fuel Use\",G107=\"Custom Fuel\"),F107=\"Scope 1\",ISBLANK(I107)=FALSE),S107,IF(AND(G107<>\"Fuel Use\",G107<>\"Custom Fuel\",F107=\"Scope 1\"),S107,\"\"))","v":""},"","",{"$f":"IF(AND(OR(G107=\"Fuel Use\",G107=\"Custom Fuel\"),F107=\"Scope 3\",ISBLANK(I107)=TRUE),R107,\"\")","v":""},{"$f":"IF(AND(OR(G107=\"Fuel Use\",G107=\"Custom Fuel\"),F107=\"Scope 3\",ISBLANK(I107)=FALSE),R107,IF(AND(G107<>\"Fuel Use\",G107<>\"Custom Fuel\",F107=\"Scope 3\"),R107,\"\"))","v":""},{"$f":"IF(AND(OR(G107=\"Fuel Use\",G107=\"Custom Fuel\"),F107=\"Scope 3\",ISBLANK(I107)=TRUE),S107,\"\")","v":""},{"$f":"IF(AND(OR(G107=\"Fuel Use\",G107=\"Custom Fuel\"),F107=\"Scope 3\",ISBLANK(I107)=FALSE),S107,IF(AND(G107<>\"Fuel Use\",G107<>\"Custom Fuel\",F107=\"Scope 3\"),S107,\"\"))","v":""},"","","","","","","","","","","","","","","","","","","","","","","","","","","","","","","Ref_DD_DistanceUnit",{"$f":"IF(AND(ISERROR($Q107*$AP107)=TRUE,ISERROR((R107/1000)*$AQ107)=TRUE,ISERROR((S107/1000)*$AR107)=FALSE),((S107/1000)*$AR107),\"\")","v":""},0]
[null,null,null,null,null,null,null,null,null,null,null,null,null,null,null,null,"","","",{"$f":"IF(AND(ISERROR($Q108*$AP108)=FALSE,ISERROR((R108/1000)*$AQ108)=FALSE,ISERROR((S108/1000)*$AR108)=FALSE),($Q108*$AP108)+((R108/1000)*$AQ108)+((S108/1000)*$AR108),IF(AND(ISERROR($Q108*$AP108)=FALSE,ISERROR((R108/1000)*$AQ108)=FALSE,ISERROR((S108/1000)*$AR108)=TRUE),($Q108*$AP108)+((R108/1000)*$AQ108),IF(AND(ISERROR($Q108*$AP108)=FALSE,ISERROR((R108/1000)*$AQ108)=TRUE,ISERROR((S108/1000)*$AR108)=FALSE),($Q108*$AP108)+((S108/1000)*$AR108),IF(AND(ISERROR($Q108*$AP108)=FALSE,ISERROR((R108/1000)*$AQ108)=TRUE,ISERROR((S108/1000)*$AR108)=TRUE),($Q108*$AP108),IF(AND(ISERROR($Q108*$AP108)=TRUE,ISERROR((R108/1000)*$AQ108)=FALSE,ISERROR((S108/1000)*$AR108)=FALSE),((R108/1000)*$AQ108)+((S108/1000)*$AR108),IF(AND(ISERROR($Q108*$AP108)=TRUE,ISERROR((R108/1000)*$AQ108)=FALSE,ISERROR((S108/1000)*$AR108)=TRUE),((R108/1000)*$AQ108),CQ108))))))","v":""},"",{"$error":"#REF!"},{"$error":"#REF!"},{"$error":"#REF!"},{"$error":"#REF!"},{"$error":"#REF!"},{"$error":"#REF!"},{"$error":"#REF!"},{"$error":"#REF!"},{"$error":"#REF!"},{"$error":"#REF!"},{"$error":"#REF!"},{"$error":"#REF!"},{"$f":"INDEX(Ref_Master_Unit_Table,MATCH($W108,REF_To_Unit,0),MATCH('Reference - Lookup and Unit'!$A$11,Ref_From_Units,0))","v":{"$error":"#REF!"}},{"$error":"#N/A"},{"$f":"INDEX(Ref_Master_Unit_Table,MATCH($Z108,REF_To_Unit,0),MATCH('Reference - Lookup and Unit'!$A$11,Ref_From_Units,0))","v":{"$error":"#REF!"}},{"$error":"#N/A"},{"$f":"INDEX(Ref_Master_Unit_Table,MATCH($AC108,REF_To_Unit,0),MATCH('Reference - Lookup and Unit'!$A$11,Ref_From_Units,0))","v":{"$error":"#REF!"}},{"$error":"#N/A"},{"$f":"INDEX(Ref_Master_Unit_Table,MATCH($AF108,REF_To_Unit,0),MATCH('Reference - Lookup and Unit'!$A$11,Ref_From_Units,0))","v":{"$error":"#REF!"}},{"$error":"#N/A"},1,28,265,1,"Ref_DD_vehicle_Passenger_",{"$error":"#REF!"},{"$error":"#REF!"},{"$error":"#REF!"},{"$error":"#REF!"},false,"","",{"$f":"IF(AND(OR(G108=\"Fuel Use\",G108=\"Custom Fuel\"),F108=\"Scope 1\",ISBLANK(I108)=TRUE),R108,\"\")","v":""},{"$f":"IF(AND(OR(G108=\"Fuel Use\",G108=\"Custom Fuel\"),F108=\"Scope 1\",ISBLANK(I108)=FALSE),R108,IF(AND(G108<>\"Fuel Use\",G108<>\"Custom Fuel\",F108=\"Scope 1\"),R108,\"\"))","v":""},{"$f":"IF(AND(OR(G108=\"Fuel Use\",G108=\"Custom Fuel\"),F108=\"Scope 1\",ISBLANK(I108)=TRUE),S108,\"\")","v":""},{"$f":"IF(AND(OR(G108=\"Fuel Use\",G108=\"Custom Fuel\"),F108=\"Scope 1\",ISBLANK(I108)=FALSE),S108,IF(AND(G108<>\"Fuel Use\",G108<>\"Custom Fuel\",F108=\"Scope 1\"),S108,\"\"))","v":""},"","",{"$f":"IF(AND(OR(G108=\"Fuel Use\",G108=\"Custom Fuel\"),F108=\"Scope 3\",ISBLANK(I108)=TRUE),R108,\"\")","v":""},{"$f":"IF(AND(OR(G108=\"Fuel Use\",G108=\"Custom Fuel\"),F108=\"Scope 3\",ISBLANK(I108)=FALSE),R108,IF(AND(G108<>\"Fuel Use\",G108<>\"Custom Fuel\",F108=\"Scope 3\"),R108,\"\"))","v":""},{"$f":"IF(AND(OR(G108=\"Fuel Use\",G108=\"Custom Fuel\"),F108=\"Scope 3\",ISBLANK(I108)=TRUE),S108,\"\")","v":""},{"$f":"IF(AND(OR(G108=\"Fuel Use\",G108=\"Custom Fuel\"),F108=\"Scope 3\",ISBLANK(I108)=FALSE),S108,IF(AND(G108<>\"Fuel Use\",G108<>\"Custom Fuel\",F108=\"Scope 3\"),S108,\"\"))","v":""},"","","","","","","","","","","","","","","","","","","","","","","","","","","","","","","Ref_DD_DistanceUnit",{"$f":"IF(AND(ISERROR($Q108*$AP108)=TRUE,ISERROR((R108/1000)*$AQ108)=TRUE,ISERROR((S108/1000)*$AR108)=FALSE),((S108/1000)*$AR108),\"\")","v":""},0]
[null,null,null,null,null,null,null,null,null,null,null,null,null,null,null,null,"","","",{"$f":"IF(AND(ISERROR($Q109*$AP109)=FALSE,ISERROR((R109/1000)*$AQ109)=FALSE,ISERROR((S109/1000)*$AR109)=FALSE),($Q109*$AP109)+((R109/1000)*$AQ109)+((S109/1000)*$AR109),IF(AND(ISERROR($Q109*$AP109)=FALSE,ISERROR((R109/1000)*$AQ109)=FALSE,ISERROR((S109/1000)*$AR109)=TRUE),($Q109*$AP109)+((R109/1000)*$AQ109),IF(AND(ISERROR($Q109*$AP109)=FALSE,ISERROR((R109/1000)*$AQ109)=TRUE,ISERROR((S109/1000)*$AR109)=FALSE),($Q109*$AP109)+((S109/1000)*$AR109),IF(AND(ISERROR($Q109*$AP109)=FALSE,ISERROR((R109/1000)*$AQ109)=TRUE,ISERROR((S109/1000)*$AR109)=TRUE),($Q109*$AP109),IF(AND(ISERROR($Q109*$AP109)=TRUE,ISERROR((R109/1000)*$AQ109)=FALSE,ISERROR((S109/1000)*$AR109)=FALSE),((R109/1000)*$AQ109)+((S109/1000)*$AR109),IF(AND(ISERROR($Q109*$AP109)=TRUE,ISERROR((R109/1000)*$AQ109)=FALSE,ISERROR((S109/1000)*$AR109)=TRUE),((R109/1000)*$AQ109),CQ109))))))","v":""},"",{"$error":"#REF!"},{"$error":"#REF!"},{"$error":"#REF!"},{"$error":"#REF!"},{"$error":"#REF!"},{"$error":"#REF!"},{"$error":"#REF!"},{"$error":"#REF!"},{"$error":"#REF!"},{"$error":"#REF!"},{"$error":"#REF!"},{"$error":"#REF!"},{"$f":"INDEX(Ref_Master_Unit_Table,MATCH($W109,REF_To_Unit,0),MATCH('Reference - Lookup and Unit'!$A$11,Ref_From_Units,0))","v":{"$error":"#REF!"}},{"$error":"#N/A"},{"$f":"INDEX(Ref_Master_Unit_Table,MATCH($Z109,REF_To_Unit,0),MATCH('Reference - Lookup and Unit'!$A$11,Ref_From_Units,0))","v":{"$error":"#REF!"}},{"$error":"#N/A"},{"$f":"INDEX(Ref_Master_Unit_Table,MATCH($AC109,REF_To_Unit,0),MATCH('Reference - Lookup and Unit'!$A$11,Ref_From_Units,0))","v":{"$error":"#REF!"}},{"$error":"#N/A"},{"$f":"INDEX(Ref_Master_Unit_Table,MATCH($AF109,REF_To_Unit,0),MATCH('Reference - Lookup and Unit'!$A$11,Ref_From_Units,0))","v":{"$error":"#REF!"}},{"$error":"#N/A"},1,28,265,1,{"$f":"IF(OR($G109=\"Fuel Use\",$G109=\"Custom fuel\"),(IF(E109<>\"\",(\"Ref_DD_vehicle_FuelUse\"&\"_\"&D109 &\"_\"&E109),\"Ref_DD_vehicle_FuelUse\"&\"_\"&D109)),IF(OR($G109=\"Vehicle Distance (e.g. Road Transport)\",$G109=\"Fuel Use and Vehicle Distance\"),(IF(E109<>\"\",(\"Ref_DD_vehicle_VehicleDistance\"&\"_\"&D109 &\"_\"&E109),\"Ref_DD_vehicle_VehicleDistance\"&\"_\"&D109)),IF($G109=\"Weight Distance (e.g. Freight Transport)\",(IF(E109<>\"\",(\"Ref_DD_vehicle_WeightDistance\"&\"_\"&D109 &\"_\"&E109),\"Ref_DD_vehicle_WeightDistance\"&\"_\"&D109)),(IF(E109<>\"\",(\"Ref_DD_vehicle_Passenger\"&\"_\"&D109 &\"_\"&E109),\"Ref_DD_vehicle_Passenger\"&\"_\"&D109)))))","v":"Ref_DD_vehicle_Passenger_"},{"$error":"#REF!"},{"$error":"#REF!"},{"$error":"#REF!"},{"$error":"#REF!"},false,"","",{"$f":"IF(AND(OR(G109=\"Fuel Use\",G109=\"Custom Fuel\"),F109=\"Scope 1\",ISBLANK(I109)=TRUE),R109,\"\")","v":""},{"$f":"IF(AND(OR(G109=\"Fuel Use\",G109=\"Custom Fuel\"),F109=\"Scope 1\",ISBLANK(I109)=FALSE),R109,IF(AND(G109<>\"Fuel Use\",G109<>\"Custom Fuel\",F109=\"Scope 1\"),R109,\"\"))","v":""},{"$f":"IF(AND(OR(G109=\"Fuel Use\",G109=\"Custom Fuel\"),F109=\"Scope 1\",ISBLANK(I109)=TRUE),S109,\"\")","v":""},{"$f":"IF(AND(OR(G109=\"Fuel Use\",G109=\"Custom Fuel\"),F109=\"Scope 1\",ISBLANK(I109)=FALSE),S109,IF(AND(G109<>\"Fuel Use\",G109<>\"Custom Fuel\",F109=\"Scope 1\"),S109,\"\"))","v":""},"","",{"$f":"IF(AND(OR(G109=\"Fuel Use\",G109=\"Custom Fuel\"),F109=\"Scope 3\",ISBLANK(I109)=TRUE),R109,\"\")","v":""},{"$f":"IF(AND(OR(G109=\"Fuel Use\",G109=\"Custom Fuel\"),F109=\"Scope 3\",ISBLANK(I109)=FALSE),R109,IF(AND(G109<>\"Fuel Use\",G109<>\"Custom Fuel\",F109=\"Scope 3\"),R109,\"\"))","v":""},{"$f":"IF(AND(OR(G109=\"Fuel Use\",G109=\"Custom Fuel\"),F109=\"Scope 3\",ISBLANK(I109)=TRUE),S109,\"\")","v":""},{"$f":"IF(AND(OR(G109=\"Fuel Use\",G109=\"Custom Fuel\"),F109=\"Scope 3\",ISBLANK(I109)=FALSE),S109,IF(AND(G109<>\"Fuel Use\",G109<>\"Custom Fuel\",F109=\"Scope 3\"),S109,\"\"))","v":""},"","","","","","","","","","","","","","","","","","","","","","","","","","","","","","","Ref_DD_DistanceUnit",{"$f":"IF(AND(ISERROR($Q109*$AP109)=TRUE,ISERROR((R109/1000)*$AQ109)=TRUE,ISERROR((S109/1000)*$AR109)=FALSE),((S109/1000)*$AR109),\"\")","v":""},0]
[null,null,null,null,null,null,null,null,null,null,null,null,null,null,null,null,"","","",{"$f":"IF(AND(ISERROR($Q110*$AP110)=FALSE,ISERROR((R110/1000)*$AQ110)=FALSE,ISERROR((S110/1000)*$AR110)=FALSE),($Q110*$AP110)+((R110/1000)*$AQ110)+((S110/1000)*$AR110),IF(AND(ISERROR($Q110*$AP110)=FALSE,ISERROR((R110/1000)*$AQ110)=FALSE,ISERROR((S110/1000)*$AR110)=TRUE),($Q110*$AP110)+((R110/1000)*$AQ110),IF(AND(ISERROR($Q110*$AP110)=FALSE,ISERROR((R110/1000)*$AQ110)=TRUE,ISERROR((S110/1000)*$AR110)=FALSE),($Q110*$AP110)+((S110/1000)*$AR110),IF(AND(ISERROR($Q110*$AP110)=FALSE,ISERROR((R110/1000)*$AQ110)=TRUE,ISERROR((S110/1000)*$AR110)=TRUE),($Q110*$AP110),IF(AND(ISERROR($Q110*$AP110)=TRUE,ISERROR((R110/1000)*$AQ110)=FALSE,ISERROR((S110/1000)*$AR110)=FALSE),((R110/1000)*$AQ110)+((S110/1000)*$AR110),IF(AND(ISERROR($Q110*$AP110)=TRUE,ISERROR((R110/1000)*$AQ110)=FALSE,ISERROR((S110/1000)*$AR110)=TRUE),((R110/1000)*$AQ110),CQ110))))))","v":""},"",{"$error":"#REF!"},{"$error":"#REF!"},{"$error":"#REF!"},{"$error":"#REF!"},{"$error":"#REF!"},{"$error":"#REF!"},{"$error":"#REF!"},{"$error":"#REF!"},{"$error":"#REF!"},{"$error":"#REF!"},{"$error":"#REF!"},{"$error":"#REF!"},{"$f":"INDEX(Ref_Master_Unit_Table,MATCH($W110,REF_To_Unit,0),MATCH('Reference - Lookup and Unit'!$A$11,Ref_From_Units,0))","v":{"$error":"#REF!"}},{"$error":"#N/A"},{"$f":"INDEX(Ref_Master_Unit_Table,MATCH($Z110,REF_To_Unit,0),MATCH('Reference - Lookup and Unit'!$A$11,Ref_From_Units,0))","v":{"$error":"#REF!"}},{"$error":"#N/A"},{"$f":"INDEX(Ref_Master_Unit_Table,MATCH($AC110,REF_To_Unit,0),MATCH('Reference - Lookup and Unit'!$A$11,Ref_From_Units,0))","v":{"$error":"#REF!"}},{"$error":"#N/A"},{"$f":"INDEX(Ref_Master_Unit_Table,MATCH($AF110,REF_To_Unit,0),MATCH('Reference - Lookup and Unit'!$A$11,Ref_From_Units,0))","v":{"$error":"#REF!"}},{"$error":"#N/A"},1,28,265,1,"Ref_DD_vehicle_Passenger_",{"$error":"#REF!"},{"$error":"#REF!"},{"$error":"#REF!"},{"$error":"#REF!"},false,"","",{"$f":"IF(AND(OR(G110=\"Fuel Use\",G110=\"Custom Fuel\"),F110=\"Scope 1\",ISBLANK(I110)=TRUE),R110,\"\")","v":""},{"$f":"IF(AND(OR(G110=\"Fuel Use\",G110=\"Custom Fuel\"),F110=\"Scope 1\",ISBLANK(I110)=FALSE),R110,IF(AND(G110<>\"Fuel Use\",G110<>\"Custom Fuel\",F110=\"Scope 1\"),R110,\"\"))","v":""},{"$f":"IF(AND(OR(G110=\"Fuel Use\",G110=\"Custom Fuel\"),F110=\"Scope 1\",ISBLANK(I110)=TRUE),S110,\"\")","v":""},{"$f":"IF(AND(OR(G110=\"Fuel Use\",G110=\"Custom Fuel\"),F110=\"Scope 1\",ISBLANK(I110)=FALSE),S110,IF(AND(G110<>\"Fuel Use\",G110<>\"Custom Fuel\",F110=\"Scope 1\"),S110,\"\"))","v":""},"","",{"$f":"IF(AND(OR(G110=\"Fuel Use\",G110=\"Custom Fuel\"),F110=\"Scope 3\",ISBLANK(I110)=TRUE),R110,\"\")","v":""},{"$f":"IF(AND(OR(G110=\"Fuel Use\",G110=\"Custom Fuel\"),F110=\"Scope 3\",ISBLANK(I110)=FALSE),R110,IF(AND(G110<>\"Fuel Use\",G110<>\"Custom Fuel\",F110=\"Scope 3\"),R110,\"\"))","v":""},{"$f":"IF(AND(OR(G110=\"Fuel Use\",G110=\"Custom Fuel\"),F110=\"Scope 3\",ISBLANK(I110)=TRUE),S110,\"\")","v":""},{"$f":"IF(AND(OR(G110=\"Fuel Use\",G110=\"Custom Fuel\"),F110=\"Scope 3\",ISBLANK(I110)=FALSE),S110,IF(AND(G110<>\"Fuel Use\",G110<>\"Custom Fuel\",F110=\"Scope 3\"),S110,\"\"))","v":""},"","","","","","","","","","","","","","","","","","","","","","","","","","","","","","","Ref_DD_DistanceUnit",{"$f":"IF(AND(ISERROR($Q110*$AP110)=TRUE,ISERROR((R110/1000)*$AQ110)=TRUE,ISERROR((S110/1000)*$AR110)=FALSE),((S110/1000)*$AR110),\"\")","v":""},0]
[null,"ü",null,null,null,null,null,null,null,null,null,null,null,null,null,"Total (metric tonnes CO2e)",{"$f":"SUM(Q11:Q110)","v":0},{"$f":"SUM(R11:R110)","v":0},{"$f":"SUM(S11:S110)","v":0},{"$f":"SUM(T11:T110)","v":0},{"$f":"SUM(U11:U110)","v":0},null,null,null,null,null,null,null,null,null,null,null,null,null,null,null,null,null,null,null,null,null,null,null,null,null,null,null,null,null,null,{"$f":"SUM(AZ11:AZ110)","v":0},0,0,0,0,0,0,0,0,0,0,0,0,0,0,0,0,0,0,0,0,0,0,0,0,0,0,0,0,0,0,0,0,0,0,0,0,0,0,0,0,0]
[null,null,"* Please note the following distance categories when calculating air transport emissions.  "]
[null,null,"     Domestic = < 463 km"]
[null,null,"     Short-haul = ≥ 463 <1108 km "]
[null,null,"     Long haul = ≥ 1108 km"]

{"sheet":"Settings","index":2,"n_rows":29,"n_cols":9,"rows_kept":29,"cut":false,"hidden":false,"merged":[[27,1,28,1],[27,6,27,7],[10,1,10,2],[27,8,28,8],[27,2,27,5],[15,1,16,1],[15,8,16,8],[15,6,15,7],[15,2,15,5]]}
[]
[]
[]
[]
[]
[]
[null,"Global Warming Potential"]
[]
[null,"Please select the appropriate Global Warming Potential value below:"]
[]
[null,"2014 IPCC Fifth Assessment Report"]
[null,"Note: The Fifth Assessment Report GWP values used in this tool exclude climate–carbon feedbacks for non-CO2 emissions. Use of the latest GWP values is recommended."]
[]
[null,"Custom Fuel Type"]
[]
[null,"Fuel","Emission Factors",null,null,null,"Unit of Emission Factors",null,"Notes"]
[null,null,"Fossil CO2 ","CH4","N2O","Biofuel CO2","Numerator\n(e.g., kg of GHG)","Denominator\n(e.g., tonne of fuel)"]
[]
[]
[]
[]
[]
[]
[]
[]
[null,"Custom Vehicle Type"]
[]
[null,"Vehicle","Emission Factors",null,null,null,"Unit of Emission Factors",null,"Notes"]
[null,null,"Fossil CO2 ","CH4","N2O","Biofuel CO2","Numerator\n(e.g., kg of GHG)","Denominator\n(e.g., kilometer)"]

{"sheet":"Summary","index":3,"n_rows":67,"n_cols":11,"rows_kept":67,"cut":false,"hidden":false,"merged":[[55,9,56,9],[55,10,56,10],[65,1,65,2],[59,1,60,1],[59,6,60,6],[55,3,55,5],[61,1,62,1],[61,6,62,6],[55,7,56,7],[55,8,56,8],[63,6,64,6],[55,6,56,6],[57,1,58,1],[57,6,58,6],[66,1,66,2],[66,3,66,5],[55,1,56,1],[55,2,56,2],[63,1,64,1],[24,5,25,5],[26,5,28,5],[29,5,31,5],[32,1,32,2],[24,3,24,4],[24,1,25,1],[24,2,25,2],[26,1,28,1],[29,1,31,1]]}
[]
[]
[]
[]
[]
[]
[null,"Summary: Emissions by Scope"]
[]
[]
[]
[]
[]
[]
[]
[]
[]
[]
[]
[]
[]
[]
[]
[]
[]
[null,"Calculation Method","Greenhouse gas","Fossil Fuel Emissions",null,"Biofuel CO2 Emission\n(metric tonnes)"]
[null,null,null,"Scope 1\n(metric tonnes)","Scope 3\n(metric tonnes)",null,null,{"$f":"D26","v":"Scope 1\n(metric tonnes)"},{"$f":"E26","v":"Scope 3\n(metric tonnes)"},{"$f":"F25","v":"Biofuel CO2 Emission\n(metric tonnes)"}]
[null,"Fuel Use","CO2",{"$f":"'Activity Data'!AZ111","v":0},{"$f":"'Activity Data'!BF111","v":0},{"$f":"'Activity Data'!BL111","v":0},null,{"$f":"D33","v":0},{"$f":"E33","v":0},{"$f":"F33","v":0}]
[null,null,"CH4",{"$f":"'Activity Data'!BB111/1000","v":0},{"$f":"'Activity Data'!BH111/1000","v":0}]
[null,null,"N2O",{"$f":"'Activity Data'!BD111/1000","v":0},{"$f":"'Activity Data'!BJ111/1000","v":0}]
[null,"Distance","CO2",{"$f":"'Activity Data'!BA111","v":0},{"$f":"'Activity Data'!BG111","v":0},{"$f":"'Activity Data'!BM111","v":0}]
[null,null,"CH4",{"$f":"'Activity Data'!BC111/1000","v":0},{"$f":"'Activity Data'!BI111/1000","v":0}]
[null,null,"N2O",{"$f":"'Activity Data'!BE111/1000","v":0},{"$f":"'Activity Data'!BK111/1000","v":0}]
[null,"Total (metric tonnes CO2e)",null,{"$f":"IF(ISERROR(D27*$H$58),0,D27*$H$58)+IF(ISERROR((D28)*$I$58),0,(D28)*$I$58)+IF(ISERROR((D29)*$J$58),0,(D29)*$J$58) + IF(ISERROR(D30*$H$58),0,D30*$H$58)+IF(ISERROR((D31)*$I$58),0,(D31)*$I$58)+IF(ISERROR((D32)*$J$58),0,(D32)*$J$58)","v":0},{"$f":"IF(ISERROR(E27*$H$58),0,E27*$H$58)+IF(ISERROR((E28)*$I$58),0,(E28)*$I$58)+IF(ISERROR((E29)*$J$58),0,(E29)*$J$58) + IF(ISERROR(E30*$H$58),0,E30*$H$58)+IF(ISERROR((E31)*$I$58),0,(E31)*$I$58)+IF(ISERROR((E32)*$J$58),0,(E32)*$J$58)","v":0},{"$f":"SUM(F27:F32)","v":0}]
[]
[]
[]
[null,"Summary: Emissions by Mode of Transport"]
[]
[]
[]
[]
[]
[]
[]
[]
[]
[]
[]
[]
[]
[]
[]
[]
[]
[]
[null,"Mode of Transport","Scope","Fossil Fuel Emissions",null,null,"Biofuel CO2 Emission\n(metric tonnes)","CO2 IPCC GWP Values","CH4 IPCC GWP Values","N2O IPCC GWP Values","Biofuel CO2 IPCC GWP Values"]
[null,null,null,"Fossil Fuel CO2\n(metric tonnes)","CH4\n(kilograms)","N2O\n(kilograms)"]
[null,"Road","Scope 1",{"$f":"'Activity Data'!BN111","v":0},{"$f":"'Activity Data'!BR111","v":0},{"$f":"'Activity Data'!BV111","v":0},{"$f":"'Activity Data'!CL111","v":0},{"$f":"VLOOKUP(\"CO2\",INDIRECT(IF(Setting_IPCC_GWP_VERSION=\"1995 IPCC Second Assessment Report (SAR)\",\"Ref_EF_IPCC_GWP_95\",IF(Setting_IPCC_GWP_VERSION=\"2001 IPCC Third Assessment Report (TAR)\",\"Ref_EF_IPCC_GWP_2001\",\"Ref_EF_IPCC_GWP_2007\"))),2,0)","v":1},{"$f":"VLOOKUP(\"CH4\",INDIRECT(IF(Setting_IPCC_GWP_VERSION=\"1995 IPCC Second Assessment Report (SAR)\",\"Ref_EF_IPCC_GWP_95\",IF(Setting_IPCC_GWP_VERSION=\"2001 IPCC Third Assessment Report (TAR)\",\"Ref_EF_IPCC_GWP_2001\",\"Ref_EF_IPCC_GWP_2007\"))),2,0)","v":25},{"$f":"VLOOKUP(\"N2O\",INDIRECT(IF(Setting_IPCC_GWP_VERSION=\"1995 IPCC Second Assessment Report (SAR)\",\"Ref_EF_IPCC_GWP_95\",IF(Setting_IPCC_GWP_VERSION=\"2001 IPCC Third Assessment Report (TAR)\",\"Ref_EF_IPCC_GWP_2001\",\"Ref_EF_IPCC_GWP_2007\"))),2,0)","v":298},{"$f":"VLOOKUP(\"Biofuel CO2\",INDIRECT(IF(Setting_IPCC_GWP_VERSION=\"1995 IPCC Second Assessment Report (SAR)\",\"Ref_EF_IPCC_GWP_95\",IF(Setting_IPCC_GWP_VERSION=\"2001 IPCC Third Assessment Report (TAR)\",\"Ref_EF_IPCC_GWP_2001\",\"Ref_EF_IPCC_GWP_2007\"))),2,0)","v":1}]
[null,null,"Scope 3",{"$f":"'Activity Data'!BZ111","v":0},{"$f":"'Activity Data'!CD111","v":0},{"$f":"'Activity Data'!CH111","v":0},null,"Table for Chart"]
[null,"Rail","Scope 1",{"$f":"'Activity Data'!BO111","v":0},{"$f":"'Activity Data'!BS111","v":0},{"$f":"'Activity Data'!BW111","v":0},{"$f":"'Activity Data'!CM111","v":0},{"$f":"B58","v":"Road"},{"$f":"B60","v":"Rail"},{"$f":"B62","v":"Water"},{"$f":"B64","v":"AirCraft"}]
[null,null,"Scope 3",{"$f":"'Activity Data'!CA111","v":0},{"$f":"'Activity Data'!CE111","v":0},{"$f":"'Activity Data'!CI111","v":0},null,{"$f":"SUM(D58:G59)","v":0},{"$f":"SUM(D60:G61)","v":0},{"$f":"SUM(D62:F63)","v":0},{"$f":"SUM(D64:G65)","v":0}]
[null,"Water","Scope 1",{"$f":"'Activity Data'!BP111","v":0},{"$f":"'Activity Data'!BT111","v":0},{"$f":"'Activity Data'!BX111","v":0},{"$f":"'Activity Data'!CN111","v":0}]
[null,null,"Scope 3",{"$f":"'Activity Data'!CB111","v":0},{"$f":"'Activity Data'!CF111","v":0},{"$f":"'Activity Data'!CJ111","v":0}]
[null,"AirCraft","Scope 1",{"$f":"'Activity Data'!BQ111","v":0},{"$f":"'Activity Data'!BU111","v":0},{"$f":"'Activity Data'!BY111","v":0},{"$f":"'Activity Data'!CO111","v":0}]
[null,null,"Scope 3",{"$f":"'Activity Data'!CC111","v":0},{"$f":"'Activity Data'!CG111","v":0},{"$f":"'Activity Data'!CK111","v":0}]
[null,"Total Emissions",null,{"$f":"SUM(D58:D65)","v":0},{"$f":"SUM(E58:E65)","v":0},{"$f":"SUM(F58:F65)","v":0},{"$f":"SUM(G58:G65)","v":0}]
[null,"Total GHG Emission (metric tonnes CO2e)",null,{"$f":"IF(ISERROR(D66*$H$58),0,D66*$H$58)+IF(ISERROR((E66/1000)*$I$58),0,(E66/1000)*$I$58)+IF(ISERROR((F66/1000)*$J$58),0,(F66/1000)*$J$58)","v":0}]

{"sheet":"Revisions","index":4,"n_rows":16,"n_cols":5,"rows_kept":16,"cut":false,"hidden":false,"merged":[]}
[]
[]
[]
[]
[]
[]
[null,"Revision History"]
[]
[null,"Version","Revision Date","Updated By","Description"]
[null,"2.0","2009-05-10","Richard Mak","Initial 2.0 release"]
[null,"2.1","2011-06-14","GHG Protocol","Revised the emission factors for UK sources to be consistent with most recent guidance from UK DEFRA (dated October 2010; see http://www.defra.gov.uk/environment/business/reporting/conversion-factors.htm) "]
[null,"2.2","2011-06-28","GHG Protocol","Corrected transcription error for US-based air freight transport emission factors"]
[null,"2.3 ","2011-10-24","GHG Protocol","Modified text in parts of the tool. Caculation formulae and emission factors were not adjusted."]
[null,"2.4","2011-12-07","Francis Gassert","Removed error message"]
[null,"2.5","2013-06-19","GHG Protocol","Adjusted conversion factors for measurement units to/from standard cubic feet and cubic feet"]
[null,"2.6","2015-05-18","GHG Protocol","Added GWP values from IPCC's Fifth Assessment Report"]

{"sheet":"Reference - Custom Messages","index":5,"n_rows":43,"n_cols":11,"rows_kept":43,"cut":false,"hidden":true,"merged":[]}
[]
["Activity Data Custom Messages"]
[]
["Field 1","Value 1","Field 2","Value 2","Field 3","Value 3","Field 4","Value 4","Message","Error Message?"]
["Type of Activity Data","Vehicle Distance (e.g. Road Transport)","Vehicle Type","Bus - CNG",null,null,null,null,"Sorry. Emission factors are not available for CNG vehicles based on vehicle distance.","Yes",{"$f":"IF(ISBLANK(A5),\"\",IF(B5<>\"*\",IF(ISBLANK(B5),\"^\"&A5,B5),\"~\"&A5))&IF(ISBLANK(C5),\"\",IF(D5<>\"*\",IF(ISBLANK(D5),\"^\"&C5,D5),\"~\"&C5))&IF(ISBLANK(E5),\"\",IF(F5<>\"*\",IF(ISBLANK(F5),\"^&E5\",F5),\"~\"&E5))&IF(ISBLANK(G5),\"\",IF(H5<>\"*\",IF(ISBLANK(H5),\"^\"&G5,H5),\"~\"&G5))","v":"Vehicle Distance (e.g. Road Transport)Bus - CNG"}]
["Type of Activity Data","Vehicle Distance (e.g. Road Transport)","Vehicle Type","Light Goods Vehicle - CNG",null,null,null,null,"Sorry. Emission factors are not available for CNG vehicles based on vehicle distance.","Yes","Vehicle Distance (e.g. Road Transport)Light Goods Vehicle - CNG"]
["Type of Activity Data","Vehicle Distance (e.g. Road Transport)","Vehicle Type","Heavy Duty Vehicle - Rigid - CNG",null,null,null,null,"Sorry. Emission factors are not available for CNG vehicles based on vehicle distance.","Yes","Vehicle Distance (e.g. Road Transport)Heavy Duty Vehicle - Rigid - CNG"]
["Type of Activity Data","Vehicle Distance (e.g. Road Transport)","Vehicle Type","Heavy Duty Vehicle - Articulated - CNG",null,null,null,null,"Sorry. Emission factors are not available for CNG vehicles based on vehicle distance.","Yes","Vehicle Distance (e.g. Road Transport)Heavy Duty Vehicle - Articulated - CNG"]
["Type of Activity Data","Vehicle Distance (e.g. Road Transport)","Vehicle Type","Passenger Car - Fuel Unknown",null,null,null,null,"Sorry. Emission factors based on vehicle distance are not available when the Fuel Used is not known.","Yes","Vehicle Distance (e.g. Road Transport)Passenger Car - Fuel Unknown"]
["Type of Activity Data","Vehicle Distance (e.g. Road Transport)","Vehicle Type","Light Goods Vehicle - Fuel Unknown",null,null,null,null,"Sorry. Emission factors based on vehicle distance are not available when the Fuel Used is not known.","Yes","Vehicle Distance (e.g. Road Transport)Light Goods Vehicle - Fuel Unknown"]
["Type of Activity Data","Vehicle Distance (e.g. Road Transport)","Vehicle Type","Heavy Duty Vehicle - Rigid - Fuel Unknown",null,null,null,null,"Sorry. Emission factors based on vehicle distance are not available when the Fuel Used is not known.","Yes","Vehicle Distance (e.g. Road Transport)Heavy Duty Vehicle - Rigid - Fuel Unknown"]
["Type of Activity Data","Vehicle Distance (e.g. Road Transport)","Vehicle Type","Heavy Duty Vehicle - Articulated - Fuel Unknown",null,null,null,null,"Sorry. Emission factors based on vehicle distance are not available when the Fuel Used is not known.","Yes","Vehicle Distance (e.g. Road Transport)Heavy Duty Vehicle - Articulated - Fuel Unknown"]
["Distance Travelled","*","Unit of Distance",null,null,null,null,null,"Please select Unit of Distance","Yes","~Distance Travelled^Unit of Distance"]
["Distance Travelled",null,"Unit of Distance","*",null,null,null,null,"Please enter Distance Travelled","Yes",{"$f":"IF(ISBLANK(A14),\"\",IF(B14<>\"*\",IF(ISBLANK(B14),\"^\"&A14,B14),\"~\"&A14))&IF(ISBLANK(C14),\"\",IF(D14<>\"*\",IF(ISBLANK(D14),\"^\"&C14,D14),\"~\"&C14))&IF(ISBLANK(E14),\"\",IF(F14<>\"*\",IF(ISBLANK(F14),\"^&E5\",F14),\"~\"&E14))&IF(ISBLANK(G14),\"\",IF(H14<>\"*\",IF(ISBLANK(H14),\"^\"&G14,H14),\"~\"&G14))","v":"^Distance Travelled~Unit of Distance"}]
["Distance Travelled","*","Vehicle Type",null,null,null,null,null,"Please select Vehicle Type","Yes","~Distance Travelled^Vehicle Type"]
["Fuel Amount","*","Unit of Fuel Amount",null,null,null,null,null,"Please enter Unit of Fuel Amount","Yes","~Fuel Amount^Unit of Fuel Amount"]
["Fuel Amount",null,"Unit of Fuel Amount","*",null,null,null,null,"Please enter Fuel Amount","Yes","^Fuel Amount~Unit of Fuel Amount"]
["Fuel Used","*","Fuel Amount",null,null,null,null,null,"Please enter Fuel Amount","Yes","~Fuel Used^Fuel Amount"]
["Fuel Used",null,"Fuel Amount","*",null,null,null,null,"Please select Fuel Used","Yes","^Fuel Used~Fuel Amount"]
["Type of Activity Data","Fuel Use","Fuel Used",null,null,null,null,null,"Please select Fuel Used","Yes","Fuel Use^Fuel Used"]
["Type of Activity Data","Vehicle Distance (e.g. Road Transport)","Vehicle Type",null,null,null,null,null,"Please select Vehicle Type","Yes","Vehicle Distance (e.g. Road Transport)^Vehicle Type"]
["Type of Activity Data","Vehicle Distance (e.g. Road Transport)","Distance Travelled",null,null,null,null,null,"Please enter Distance Travelled","Yes","Vehicle Distance (e.g. Road Transport)^Distance Travelled"]
["Type of Activity Data","Passenger Distance (e.g. Public Transport)","Vehicle Type",null,null,null,null,null,"Please select Vehicle Type","Yes","Passenger Distance (e.g. Public Transport)^Vehicle Type"]
["Type of Activity Data","Passenger Distance (e.g. Public Transport)","Distance Travelled",null,null,null,null,null,"Please enter Distance Travelled","Yes","Passenger Distance (e.g. Public Transport)^Distance Travelled"]
["Type of Activity Data","Passenger Distance (e.g. Public Transport)","# of Passenger",null,null,null,null,null,"Please enter # of Passengers","Yes",{"$f":"IF(ISBLANK(A25),\"\",IF(B25<>\"*\",IF(ISBLANK(B25),\"^\"&A25,B25),\"~\"&A25))&IF(ISBLANK(C25),\"\",IF(D25<>\"*\",IF(ISBLANK(D25),\"^\"&C25,D25),\"~\"&C25))&IF(ISBLANK(E25),\"\",IF(F25<>\"*\",IF(ISBLANK(F25),\"^&E5\",F25),\"~\"&E25))&IF(ISBLANK(G25),\"\",IF(H25<>\"*\",IF(ISBLANK(H25),\"^\"&G25,H25),\"~\"&G25))","v":"Passenger Distance (e.g. Public Transport)^# of Passenger"}]
["Type of Activity Data","Weight Distance (e.g. Freight Transport)","Vehicle Type",null,null,null,null,null,"Please select Vehicle Type","Yes","Weight Distance (e.g. Freight Transport)^Vehicle Type"]
["Type of Activity Data","Weight Distance (e.g. Freight Transport)","Distance Travelled",null,null,null,null,null,"Please enter Distance Travelled","Yes","Weight Distance (e.g. Freight Transport)^Distance Travelled"]
["Type of Activity Data","Custom Fuel","Fuel Used",null,null,null,null,null,"Please select Fuel Used. This selection allows users to use their own ‘custom’ emission factors that have been entered into the tool on the ‘Settings’ tab.","Yes","Custom Fuel^Fuel Used"]
["Type of Activity Data","Custom Vehicle","Vehicle Type",null,null,null,null,null,"Please select Vehicle Type. This selection allows users to use their own ‘custom’ emission factors that have been entered into the tool on the ‘Settings’ tab.","Yes","Custom Vehicle^Vehicle Type"]
["Type of Activity Data","Custom Vehicle","Distance Travelled",null,null,null,null,null,"Please enter Distance Travelled","Yes","Custom Vehicle^Distance Travelled"]
["Type of Activity Data","Weight Distance (e.g. Freight Transport)","Gross Weight",null,null,null,null,null,"Please enter gross weight of vehicle, which includes the weight of both the vehicle and the goods","Yes","Weight Distance (e.g. Freight Transport)^Gross Weight"]
["Type of Activity Data","Fuel Use and Vehicle Distance","Vehicle Type",null,null,null,null,null,"Please select Vehicle Type","Yes","Fuel Use and Vehicle Distance^Vehicle Type"]
["Type of Activity Data","Fuel Use and Vehicle Distance","Distance Travelled",null,null,null,null,null,"Please enter Distance Travelled","Yes","Fuel Use and Vehicle Distance^Distance Travelled"]
["Type of Activity Data","Fuel Use and Vehicle Distance","Fuel Used",null,null,null,null,null,"Please select Fuel Used","Yes","Fuel Use and Vehicle Distance^Fuel Used"]
["Mode of Transport","Road","Scope","Scope 1",null,null,null,null,"Fuel use data are preferred for calculating CO2 emissions. Vehicle distance data are preferred for CH4 and N2O.","No","RoadScope 1"]
["Region","Other",null,null,null,null,null,null,"The default emission factors for \"Other\" regions are either global defaults (for CO2 emissions based on fuel use) or from UK DEFRA. These values should only be used in the absence of more specific emission factors.","No","Other"]
["Type of Activity Data","Weight Distance (e.g. Freight Transport)",null,null,null,null,null,null,"Emissions from freight transport can also be calculated using Vehicle distance data.","No","Weight Distance (e.g. Freight Transport)"]
["Mode of Transport","Aircraft",null,null,null,null,null,null,"Sorry. Emission factors are not available to calculate the CH4 and N2O emissions (which contribute <5% to the total GHG emissions from aircraft). Domestic’ flights are < 300 miles/483 km; short-haul flights are ≥ 300 miles/483 km and <700 miles/1126 km, and long haul flights are anything ≥ 700 miles/1126 km.","No","Aircraft"]
["Region","UK",null,null,null,null,null,null,"The default emission factors are sourced from the UK DEFRA (http://www.defra.gov.uk/environment/business/reporting/pdf/passenger-transport.pdf).","No","UK"]
["Region","US",null,null,null,null,null,null,"The default emission factors are sourced from the US EPA Climate Leaders program or from the UK DEFRA (for air travel only).","No","US"]
["Region","UK","Mode of Transport","Road",null,null,null,null,"Sorry. UK-specific emission factors are not available to calculate the CH4 and N2O emissions","No","UKRoad"]
[null,null,null,null,null,null,null,null,null,null,{"$f":"IF(ISBLANK(A42),\"\",IF(B42<>\"*\",IF(ISBLANK(B42),\"^\"&A42,B42),\"~\"&A42))&IF(ISBLANK(C42),\"\",IF(D42<>\"*\",IF(ISBLANK(D42),\"^\"&C42,D42),\"~\"&C42))&IF(ISBLANK(E42),\"\",IF(F42<>\"*\",IF(ISBLANK(F42),\"^&E5\",F42),\"~\"&E42))&IF(ISBLANK(G42),\"\",IF(H42<>\"*\",IF(ISBLANK(H42),\"^\"&G42,H42),\"~\"&G42))","v":""}]
[null,null,null,null,null,null,null,null,null,null,""]

{"sheet":"Reference - Lookup and Unit","index":6,"n_rows":123,"n_cols":28,"rows_kept":123,"cut":false,"hidden":true,"merged":[[1,1,1,7]]}
["Master Conversion Table"]
[null,"To Unit"]
["From Unit","US Gallon","UK Gallon","Litre","Barrel","Standard Cubic Foot","Cubic Foot","Cubic Meter","Metric Ton","Kilogram","Pound","Short Ton","Long Ton","Gram","Mile","Kilometer","Kilowatt Hour","Therm","BTU","MMBTU","Megajoule","Gigajoule","Tonne Mile","Short Ton Mile","Short Ton Kilometer","Tonne Kilometer","Passenger Mile","Passenger Kilometer"]
["US Gallon",1,0.83267384,3.78541178,2.3809523799999999E-2,126.67,126.67,3.7854117800000002E-3]
["UK Gallon",1.2009504200000001,1,4.5460918799999996,2.8594057700000002E-2,{"$f":"F4*B5","v":152.12438970140002},{"$f":"G4*C5","v":126.67},4.5460918800000003E-3]
["Litre",0.26417205199999999,0.219969157,1,6.2898107700000002E-3,{"$f":"  0.035314667","v":3.5314667000000001E-2},{"$f":"  0.035314667","v":3.5314667000000001E-2},1E-3]
["Barrel",42,34.972301299999998,158.98729499999999,1,4.2109375,4.2109375,0.158987295]
["Standard Cubic Foot",7.4805194799999999,6.2288328799999997,28.316846600000002,0.178107607,1,1,2.8316846600000001E-2]
["Cubic Foot",7.4805194799999999,6.2288328799999997,28.316846600000002,0.178107607,1,1,2.8316846600000001E-2]
["Cubic Meter",264.17205200000001,219.969157,1000,6.2898107699999999,35.314666699999997,35.314666699999997,1]
["Metric Ton",null,null,null,null,null,null,null,1,1000,2204.6226200000001,1.1023113099999999,0.98420652799999997,1000000]
["Kilogram",null,null,null,null,null,null,null,1E-3,1,2.2046226199999999,1.10231131E-3,9.842065279999999E-4,1000]
["Pound",null,null,null,null,null,null,null,4.5359236999999999E-4,0.45359237000000002,1,5.0000000000000001E-4,4.4642857100000001E-4,453.59237000000002]
["Short Ton",null,null,null,null,null,null,null,0.90718474000000004,907.18474000000003,2000,1,0.89285714299999996,907184.74]
["Long Ton",null,null,null,null,null,null,null,1.01604691,"1 016.04691",2240,1.1200000000000001,1,1016046.91]
["Gram",null,null,null,null,null,null,null,9.9999999999999995E-7,1E-3,null,null,null,1]
["Mile",null,null,null,null,null,null,null,null,null,null,null,null,null,1,1.6093440000000001]
["Kilometer",null,null,null,null,null,null,null,null,null,null,null,null,null,0.62137119200000002,1]
["Kilowatt Hour",null,null,null,null,null,null,null,null,null,null,null,null,null,null,null,1,3.4121416299999999E-2,3412.1416300000001,3.4121416300000001E-3,3.6,3.5999999999999999E-3]
["Therm",null,null,null,null,null,null,null,null,null,null,null,null,null,null,null,29.307106999999998,1,100000,0.1,105.505585,0.105505585]
["BTU",null,null,null,null,null,null,null,null,null,null,null,null,null,null,null,2.9307106999999999E-4,1.0000000000000001E-5,1,9.9999999999999995E-7,1.0550558499999999E-3,1.05505585E-6]
["MMBTU",null,null,null,null,null,null,null,null,null,null,null,null,null,null,null,293.07106999999996,10,1000000,1,1055.05585,1.05505585]
["Megajoule",null,null,null,null,null,null,null,null,null,null,null,null,null,null,null,0.27777777799999998,9.4781711999999997E-3,947.81712000000005,9.4781712000000006E-4,1,1E-3]
["Gigajoule",null,null,null,null,null,null,null,null,null,null,null,null,null,null,null,277.77777800000001,9.4781712000000002,947817.12,0.94781711999999996,1000,1]
["Tonne Mile",null,null,null,null,null,null,null,null,null,null,null,null,null,null,null,null,null,null,null,null,null,1,1.1023113099999999,1.7739980900000001,1.6093440000000001]
["Short Ton Mile",null,null,null,null,null,null,null,null,null,null,null,null,null,null,null,null,null,null,null,null,null,0.90718474076075661,1,1.6093440006146924,1.4599723194348793]
["Short Ton Kilometer",null,null,null,null,null,null,null,null,null,null,null,null,null,null,null,null,null,null,null,null,null,0.5636984637307223,0.62137119199999991,1,0.90718474000000004]
["Tonne Kilometer",null,null,null,null,null,null,null,null,null,null,null,null,null,null,null,null,null,null,null,null,null,0.62137119200000002,0.68494449264978152,1.1023113099999999,1]
["Passenger Mile",null,null,null,null,null,null,null,null,null,null,null,null,null,null,null,null,null,null,null,null,null,null,null,null,null,1,1.6093440000000001]
["Passenger Kilometer",null,null,null,null,null,null,null,null,null,null,null,null,null,null,null,null,null,null,null,null,null,null,null,null,null,0.62137119200000002,1]
[]
[]
["Lookups for Regions"]
[]
["Region"]
["US"]
["UK"]
["Other"]
[]
["Lookups for Mode of Transport"]
[]
["Mode of Transport"]
["Road"]
["Rail"]
["Water"]
["Aircraft"]
[]
["Lookups for Type of Activity Data"]
[]
["Type of Activity Data"]
["Fuel Use and Vehicle Distance"]
["Fuel Use"]
["Vehicle Distance (e.g. Road Transport)"]
["Passenger Distance (e.g. Public Transport)"]
["Weight Distance (e.g. Freight Transport)"]
["Custom Fuel"]
["Custom Vehicle"]
[]
[]
["Lookups for Scope"]
[]
["Scope"]
["Scope 1"]
["Scope 3"]
[]
[]
["Blank list"]
[]
[]
["Denominator lookup list"]
[]
["Units "]
[{"$f":"A25","v":"Tonne Mile"}]
[{"$f":"A28","v":"Tonne Kilometer"}]
["Short Ton Mile"]
["Short Ton Kilometer"]
[{"$f":"A29","v":"Passenger Mile"}]
[{"$f":"A30","v":"Passenger Kilometer"}]
[{"$f":"A17","v":"Mile"}]
[{"$f":"A18","v":"Kilometer"}]
[]
["IPCC GWP Version"]
[]
["IPCC GWP"]
["1995 IPCC Second Assessment Report (SAR)"]
["2001 IPCC Third Assessment Report (TAR)"]
["2007 IPCC Fourth Assessment Report"]
["2014 IPCC Fifth Assessment Report"]
[]
["IPCC GWP Values"]
[]
["IPCC GWP","Waste","GWP Value"]
["1995 IPCC Second Assessment Report (SAR)","CO2",1]
["1995 IPCC Second Assessment Report (SAR)","Biofuel CO2",1]
["1995 IPCC Second Assessment Report (SAR)","CH4",21]
["1995 IPCC Second Assessment Report (SAR)","N2O",310]
["2001 IPCC Third Assessment Report (TAR)","CO2",1]
["2001 IPCC Third Assessment Report (TAR)","Biofuel CO2",1]
["2001 IPCC Third Assessment Report (TAR)","CH4",23]
["2001 IPCC Third Assessment Report (TAR)","N2O",296]
["2007 IPCC Fourth Assessment Report","CO2",1]
["2007 IPCC Fourth Assessment Report","Biofuel CO2",1]
["2007 IPCC Fourth Assessment Report","CH4",25]
["2007 IPCC Fourth Assessment Report","N2O",298]
["2014 IPCC Fifth Assessment Report","CO2",1]
["2014 IPCC Fifth Assessment Report","Biofuel CO2",1]
["2014 IPCC Fifth Assessment Report","CH4",28]
["2014 IPCC Fifth Assessment Report","N2O",265]
[]
["Activity Data Columns"]
["Columns"]
[{"$f":"'Activity Data'!D9","v":"Region"}]
[{"$f":"'Activity Data'!E9","v":"Mode of Transport"}]
[{"$f":"'Activity Data'!F9","v":"Scope"}]
[{"$f":"'Activity Data'!G9","v":"Type of Activity Data"}]
[{"$f":"'Activity Data'!H10","v":"Vehicle Type (For air transport, see footnote)"}]
[{"$f":"'Activity Data'!I10","v":"Distance Travelled"}]
[{"$f":"'Activity Data'!J10","v":"Total Weight of Freight"}]
[{"$f":"'Activity Data'!K10","v":"# of Passenger"}]
[{"$f":"'Activity Data'!L10","v":"Units of Measurement"}]
[{"$f":"'Activity Data'!M10","v":"Fuel Used"}]
[{"$f":"'Activity Data'!N10","v":"Fuel Amount"}]
[{"$f":"'Activity Data'!O10","v":"Unit of Fuel Amount"}]

{"sheet":"Reference - EF Fuel Use","index":7,"n_rows":158,"n_cols":10,"rows_kept":158,"cut":false,"hidden":true,"merged":[]}
["CO2 Emission Factors by Fuel"]
[]
["Fuel","Region","CO2","CO2 - Biomass Fuel","CO2 Unit - Numerator","CO2 Unit - Denominator","Default Scope","Unit Type","Mode of Transport"]
["Jet Fuel","Other",9.4280000000000008,null,"Kilogram","US Gallon",null,"Volume","Aircraft"]
["Aviation Gasoline","Other",8.3330000000000002,null,"Kilogram","US Gallon",null,"Volume","Aircraft"]
["Gasoline/Petrol","Other",8.5987349910000006,null,"Kilogram","US Gallon",null,"Volume"]
["On-Road Diesel Fuel","Other",10.131,null,"Kilogram","US Gallon",null,"Volume"]
["Residual Fuel Oil (3s 5 and 6)","Other",11.125,null,"Kilogram","US Gallon",null,"Volume"]
["LPG","Other",6.1,null,"Kilogram","US Gallon",null,"Volume"]
["CNG","Other",5.2999999999999999E-2,null,"Kilogram","Standard Cubic Foot",null,"Volume"]
["LNG","Other",4.46,null,"Kilogram","US Gallon",null,"Volume"]
["Ethanol","Other",null,5.56,"Kilogram","US Gallon",null,"Volume"]
["100% Biodiesel","Other",null,9.4600000000000009,"Kilogram","US Gallon",null,"Volume"]
["E85 Ethanol/Gasoline","Other",1.2898102490000001,4.726,"Kilogram","US Gallon",null,"Volume"]
["B20 Biodiesel/Diesel","Other",8.104417776,1.8919999999999999,"Kilogram","US Gallon",null,"Volume"]
[{"$f":"A4","v":"Jet Fuel"},"UK",9.5460499999999993,null,"Kilogram","US Gallon",null,"Volume","Aircraft"]
[{"$f":"A5","v":"Aviation Gasoline"},"UK",8.3729499999999994,null,"Kilogram","US Gallon",null,"Volume","Aircraft"]
["Gasoline/Petrol","UK",8.71326,null,"Kilogram","US Gallon",null,"Volume"]
["On-Road Diesel Fuel","UK",9.9984099999999998,null,"Kilogram","US Gallon",null,"Volume"]
["Residual Fuel Oil (3s 5 and 6)","UK",9.5767132723415997,null,"Kilogram","US Gallon",null,"Volume"]
["LPG","UK",5.6410206405167997,null,"Kilogram","US Gallon",null,"Volume"]
["CNG","UK",5.7284980656408503E-2,null,"Kilogram","Standard Cubic Foot",null,"Volume"]
["LNG","UK",4.6454573413247999,null,"Kilogram","US Gallon",null,"Volume"]
["Ethanol","UK",null,5.56,"Kilogram","US Gallon",null,"Volume"]
["100% Biodiesel","UK",null,9.4600000000000009,"Kilogram","US Gallon",null,"Volume"]
["E85 Ethanol/Gasoline","UK",{"$f":"0.15*C18","v":1.306989},{"$f":"0.85*D24","v":4.726},"Kilogram","US Gallon",null,"Volume"]
["B20 Biodiesel/Diesel","UK",{"$f":"0.8*C19","v":7.9987279999999998},{"$f":"0.2*D25","v":1.8920000000000003},"Kilogram","US Gallon",null,"Volume"]
["Jet Fuel","US",9.57,null,"Kilogram","US Gallon",null,"Volume","Aircraft"]
["Aviation Gasoline","US",8.32,null,"Kilogram","US Gallon",null,"Volume","Aircraft"]
["Gasoline/Petrol","US",8.81,null,"Kilogram","US Gallon",null,"Volume"]
["On-Road Diesel Fuel","US",10.15,null,"Kilogram","US Gallon",null,"Volume"]
["Residual Fuel Oil (3s 5 and 6)","US",11.8,null,"Kilogram","US Gallon",null,"Volume"]
["LPG","US",5.79,null,"Kilogram","US Gallon",null,"Volume"]
["CNG","US",5.3999999999999999E-2,null,"Kilogram","Standard Cubic Foot",null,"Volume"]
["LNG","US",4.46,null,"Kilogram","US Gallon",null,"Volume"]
["Ethanol","US",null,5.56,"Kilogram","US Gallon",null,"Volume"]
["100% Biodiesel","US",null,9.4600000000000009,"Kilogram","US Gallon",null,"Volume"]
["E85 Ethanol/Gasoline","US",{"$f":"0.15*C30","v":1.3215000000000001},{"$f":"0.85*D36","v":4.726},"Kilogram","US Gallon",null,"Volume"]
["B20 Biodiesel/Diesel","US",{"$f":"0.8*C31","v":8.120000000000001},{"$f":"0.2*D37","v":1.8920000000000003},"Kilogram","US Gallon",null,"Volume"]
[]
["CH4 and N2O Emission Factors by Fuel"]
[]
["Transport and Fuel","Region","CH4","CH4 Unit - Numerator","CH4 Unit - Denominator","N2O","N2O Unit - Numerator","N2O Unit - Denominator","Default Scope","Mode of Transport"]
["Train - Diesel Fuel","UK",0.8,"Gram","US Gallon",0.26,"Gram","US Gallon",null,"Rail"]
["Other","UK",0,"Gram","US Gallon",0,"Gram","US Gallon",null,"Rail"]
["Agricultural Equipment - Gasoline","UK",1.26,"Gram","US Gallon",0.22,"Gram","US Gallon",null,"Road"]
["Agricultural Equipment - Diesel Fuel","UK",1.44,"Gram","US Gallon",0.26,"Gram","US Gallon",null,"Road"]
["Construction Equipment - Gasoline","UK",0.5,"Gram","US Gallon",0.22,"Gram","US Gallon",null,"Road"]
["Construction Equipment - Diesel Fuel","UK",0.57999999999999996,"Gram","US Gallon",0.26,"Gram","US Gallon",null,"Road"]
["Other","UK",0,"Gram","US Gallon",0,"Gram","US Gallon",null,"Road"]
["Ship and Boat - Residual Fuel Oil","UK",0.86,"Gram","US Gallon",0.3,"Gram","US Gallon",null,"Water"]
["Ship and Boat - Diesel Fuel","UK",0.74,"Gram","US Gallon",0.26,"Gram","US Gallon",null,"Water"]
["Ship and Boat - Gasoline","UK",0.64,"Gram","US Gallon",0.22,"Gram","US Gallon",null,"Water"]
["Other","UK",0,"Gram","US Gallon",0,"Gram","US Gallon",null,"Water"]
["Other","UK",0,"Gram","US Gallon",0,"Gram","US Gallon",null,"AirCraft"]
["Train - Diesel Fuel","US",0.8,"Gram","US Gallon",0.26,"Gram","US Gallon",null,"Rail"]
["Agricultural Equipment - Gasoline","US",1.26,"Gram","US Gallon",0.22,"Gram","US Gallon",null,"Road"]
["Agricultural Equipment - Diesel Fuel","US",1.44,"Gram","US Gallon",0.26,"Gram","US Gallon",null,"Road"]
["Construction Equipment - Gasoline","US",0.5,"Gram","US Gallon",0.22,"Gram","US Gallon",null,"Road"]
["Construction Equipment - Diesel Fuel","US",0.57999999999999996,"Gram","US Gallon",0.26,"Gram","US Gallon",null,"Road"]
["Bus - CNG","US",4.7183999999999999,"Gram","US Gallon",0.42,"Gram","US Gallon",null,"Road"]
["Bus - Ethanol","US",0.9850000000000001,"Gram","US Gallon",0.875,"Gram","US Gallon",null,"Road"]
["Bus - Diesel","US",1.8870000000000001E-2,"Gram","US Gallon",1.7759999999999998E-2,"Gram","US Gallon",null,"Road"]
["Bus - Gasoline","US",0.10500000000000001,"Gram","US Gallon",8.5000000000000006E-2,"Gram","US Gallon",null,"Road"]
["Passenger Car - Gasoline - Year 1984-1993","US",1.5840000000000001,"Gram","US Gallon",1.4557499999999999,"Gram","US Gallon",null,"Road"]
["Passenger Car - Gasoline - Year 1994","US",1.19475,"Gram","US Gallon",1.26,"Gram","US Gallon",null,"Road"]
["Passenger Car - Gasoline - Year 1995","US",0.80549999999999999,"Gram","US Gallon",1.0642500000000001,"Gram","US Gallon",null,"Road"]
["Passenger Car - Gasoline - Year 1996","US",0.61199999999999999,"Gram","US Gallon",0.95850000000000002,"Gram","US Gallon",null,"Road"]
["Passenger Car - Gasoline - Year 1997","US",0.60299999999999998,"Gram","US Gallon",0.94950000000000001,"Gram","US Gallon",null,"Road"]
["Passenger Car - Gasoline - Year 1998","US",0.56024999999999991,"Gram","US Gallon",0.88424999999999998,"Gram","US Gallon",null,"Road"]
["Passenger Car - Gasoline - Year 1999","US",0.48600000000000004,"Gram","US Gallon",0.75824999999999998,"Gram","US Gallon",null,"Road"]
["Passenger Car - Gasoline - Year 2000","US",0.40050000000000002,"Gram","US Gallon",0.61425000000000007,"Gram","US Gallon",null,"Road"]
["Passenger Car - Gasoline - Year 2001","US",0.2475,"Gram","US Gallon",0.35550000000000004,"Gram","US Gallon",null,"Road"]
["Passenger Car - Gasoline - Year 2002","US",0.24074999999999999,"Gram","US Gallon",0.34425,"Gram","US Gallon",null,"Road"]
["Passenger Car - Gasoline - Year 2003","US",0.25650000000000001,"Gram","US Gallon",0.30375000000000002,"Gram","US Gallon",null,"Road"]
["Passenger Car - Gasoline - Year 2004","US",0.32625000000000004,"Gram","US Gallon",0.18675,"Gram","US Gallon",null,"Road"]
["Passenger Car - Gasoline - Year 2005-present","US",0.33074999999999999,"Gram","US Gallon",0.17775000000000002,"Gram","US Gallon",null,"Road"]
["Passenger Car - Diesel - Year 1960-1982","US",1.3499999999999998E-2,"Gram","US Gallon",2.6999999999999996E-2,"Gram","US Gallon",null,"Road"]
["Passenger Car - Diesel - Year 1983-present","US",1.125E-2,"Gram","US Gallon",2.2499999999999999E-2,"Gram","US Gallon",null,"Road"]
["Passenger Car - Fuel Unknown","US",0.69750000000000001,"Gram","US Gallon",0.72,"Gram","US Gallon",null,"Road"]
["Light Goods Vehicle - CNG","US",11.939399999999999,"Gram","US Gallon",0.81,"Gram","US Gallon",null,"Road"]
["Light Goods Vehicle - LPG","US",0.59939999999999993,"Gram","US Gallon",1.0853999999999999,"Gram","US Gallon",null,"Road"]
["Light Goods Vehicle - Ethanol","US",0.89100000000000001,"Gram","US Gallon",1.0853999999999999,"Gram","US Gallon",null,"Road"]
["Light Goods Vehicle - Gasoline - Year 1987-1993","US",1.3170599999999999,"Gram","US Gallon",1.6766999999999999,"Gram","US Gallon",null,"Road"]
["Light Goods Vehicle - Gasoline - Year 1994","US",1.0465200000000001,"Gram","US Gallon",1.5908399999999998,"Gram","US Gallon",null,"Road"]
["Light Goods Vehicle - Gasoline - Year 1995","US",0.83754000000000006,"Gram","US Gallon",1.47096,"Gram","US Gallon",null,"Road"]
["Light Goods Vehicle - Gasoline - Year 1996","US",0.73223999999999989,"Gram","US Gallon",1.4110199999999999,"Gram","US Gallon",null,"Road"]
["Light Goods Vehicle - Gasoline - Year 1997","US",0.73223999999999989,"Gram","US Gallon",1.4110199999999999,"Gram","US Gallon",null,"Road"]
["Light Goods Vehicle - Gasoline - Year 1998","US",0.63341999999999998,"Gram","US Gallon",1.17936,"Gram","US Gallon",null,"Road"]
["Light Goods Vehicle - Gasoline - Year 1999","US",0.52001999999999993,"Gram","US Gallon",0.91367999999999994,"Gram","US Gallon",null,"Road"]
["Light Goods Vehicle - Gasoline - Year 2000","US",0.56051999999999991,"Gram","US Gallon",1.0060199999999999,"Gram","US Gallon",null,"Road"]
["Light Goods Vehicle - Gasoline - Year 2001","US",0.24462,"Gram","US Gallon",0.26568000000000003,"Gram","US Gallon",null,"Road"]
["Light Goods Vehicle - Gasoline - Year 2002","US",0.28836000000000001,"Gram","US Gallon",0.36936000000000002,"Gram","US Gallon",null,"Road"]
["Light Goods Vehicle - Gasoline - Year 2003","US",0.25109999999999999,"Gram","US Gallon",0.18468000000000001,"Gram","US Gallon",null,"Road"]
["Light Goods Vehicle - Gasoline - Year 2004","US",0.24623999999999999,"Gram","US Gallon",0.21384,"Gram","US Gallon",null,"Road"]
["Light Goods Vehicle - Gasoline - Year 2005-present","US",0.25433999999999996,"Gram","US Gallon",0.16361999999999999,"Gram","US Gallon",null,"Road"]
["Light Goods Vehicle - Diesel - Year 1960-1982","US",1.7819999999999999E-2,"Gram","US Gallon",2.7539999999999999E-2,"Gram","US Gallon",null,"Road"]
["Light Goods Vehicle - Diesel - Year 1983-1995","US",1.4579999999999999E-2,"Gram","US Gallon",2.2679999999999999E-2,"Gram","US Gallon",null,"Road"]
["Light Goods Vehicle - Diesel - Year 1996-present","US",1.6199999999999999E-2,"Gram","US Gallon",2.4299999999999999E-2,"Gram","US Gallon",null,"Road"]
["Light Goods Vehicle - Fuel Unknown","US",0.58319999999999994,"Gram","US Gallon",0.76139999999999997,"Gram","US Gallon",null,"Road"]
["Heavy Duty Vehicle - Rigid - Gasoline - Year 1985-1986","US",3.5992000000000002,"Gram","US Gallon",0.45319999999999999,"Gram","US Gallon",null,"Road"]
["Heavy Duty Vehicle - Rigid - Gasoline - Year 1987","US",3.234,"Gram","US Gallon",0.74712000000000012,"Gram","US Gallon",null,"Road"]
["Heavy Duty Vehicle - Rigid - Gasoline - Year 1988-1989","US",3.0729600000000001,"Gram","US Gallon",0.82103999999999999,"Gram","US Gallon",null,"Road"]
["Heavy Duty Vehicle - Rigid - Gasoline - Year 1990-1995","US",2.8564800000000004,"Gram","US Gallon",1.0049600000000001,"Gram","US Gallon",null,"Road"]
["Heavy Duty Vehicle - Rigid - Gasoline - Year 1996","US",1.1246400000000001,"Gram","US Gallon",1.4784000000000002,"Gram","US Gallon",null,"Road"]
["Heavy Duty Vehicle - Rigid - Gasoline - Year 1997","US",0.81312000000000006,"Gram","US Gallon",1.5188800000000002,"Gram","US Gallon",null,"Road"]
["Heavy Duty Vehicle - Rigid - Gasoline - Year 1998","US",0.56408000000000014,"Gram","US Gallon",1.4898400000000003,"Gram","US Gallon",null,"Road"]
["Heavy Duty Vehicle - Rigid - Gasoline - Year 1999","US",0.50863999999999998,"Gram","US Gallon",1.2627999999999999,"Gram","US Gallon",null,"Road"]
["Heavy Duty Vehicle - Rigid - Gasoline - Year 2000","US",0.43384,"Gram","US Gallon",0.96096000000000015,"Gram","US Gallon",null,"Road"]
["Heavy Duty Vehicle - Rigid - Gasoline - Year 2001","US",0.46464000000000005,"Gram","US Gallon",1.0868,"Gram","US Gallon",null,"Road"]
["Heavy Duty Vehicle - Rigid - Gasoline - Year 2002","US",0.48048000000000007,"Gram","US Gallon",1.1501600000000003,"Gram","US Gallon",null,"Road"]
["Heavy Duty Vehicle - Rigid - Gasoline - Year 2003","US",0.46904000000000001,"Gram","US Gallon",1.0912000000000002,"Gram","US Gallon",null,"Road"]
["Heavy Duty Vehicle - Rigid - Gasoline - Year 2004","US",0.30008000000000001,"Gram","US Gallon",0.25080000000000002,"Gram","US Gallon",null,"Road"]
["Heavy Duty Vehicle - Rigid - Gasoline - Year 2005-present","US",0.28688000000000002,"Gram","US Gallon",0.15576000000000001,"Gram","US Gallon",null,"Road"]
["Heavy Duty Vehicle - Rigid - Diesel - Year 1960-present","US",4.488000000000001E-2,"Gram","US Gallon",4.224E-2,"Gram","US Gallon",null,"Road"]
["Heavy Duty Vehicle - Rigid - CNG","US",17.300800000000002,"Gram","US Gallon",1.54,"Gram","US Gallon",null,"Road"]
["Heavy Duty Vehicle - Rigid - LNG","US",17.300800000000002,"Gram","US Gallon",1.54,"Gram","US Gallon",null,"Road"]
["Heavy Duty Vehicle - Rigid - LPG","US",0.58080000000000009,"Gram","US Gallon",1.54,"Gram","US Gallon",null,"Road"]
["Heavy Duty Vehicle - Rigid - Ethanol","US",1.7336000000000003,"Gram","US Gallon",1.54,"Gram","US Gallon",null,"Road"]
["Heavy Duty Vehicle - Rigid - Fuel Unknown","US",0.18480000000000002,"Gram","US Gallon",0.14960000000000001,"Gram","US Gallon",null,"Road"]
["Heavy Duty Vehicle - Articulated - Gasoline - Year 1985-1986","US",2.4131,"Gram","US Gallon",0.30385000000000001,"Gram","US Gallon",null,"Road"]
["Heavy Duty Vehicle - Articulated - Gasoline - Year 1987","US",2.16825,"Gram","US Gallon",0.50091000000000008,"Gram","US Gallon",null,"Road"]
["Heavy Duty Vehicle - Articulated - Gasoline - Year 1988-1989","US",2.0602800000000001,"Gram","US Gallon",0.55047000000000001,"Gram","US Gallon",null,"Road"]
["Heavy Duty Vehicle - Articulated - Gasoline - Year 1990-1995","US",1.9151400000000001,"Gram","US Gallon",0.67378000000000005,"Gram","US Gallon",null,"Road"]
["Heavy Duty Vehicle - Articulated - Gasoline - Year 1996","US",0.75402000000000002,"Gram","US Gallon",0.99120000000000008,"Gram","US Gallon",null,"Road"]
["Heavy Duty Vehicle - Articulated - Gasoline - Year 1997","US",0.54515999999999998,"Gram","US Gallon",1.01834,"Gram","US Gallon",null,"Road"]
["Heavy Duty Vehicle - Articulated - Gasoline - Year 1998","US",0.37819000000000003,"Gram","US Gallon",0.99887000000000015,"Gram","US Gallon",null,"Road"]
["Heavy Duty Vehicle - Articulated - Gasoline - Year 1999","US",0.34101999999999999,"Gram","US Gallon",0.84665000000000001,"Gram","US Gallon",null,"Road"]
["Heavy Duty Vehicle - Articulated - Gasoline - Year 2000","US",0.29087000000000002,"Gram","US Gallon",0.64428000000000007,"Gram","US Gallon",null,"Road"]
["Heavy Duty Vehicle - Articulated - Gasoline - Year 2001","US",0.31152000000000002,"Gram","US Gallon",0.72865000000000002,"Gram","US Gallon",null,"Road"]
["Heavy Duty Vehicle - Articulated - Gasoline - Year 2002","US",0.32214000000000004,"Gram","US Gallon",0.77113000000000009,"Gram","US Gallon",null,"Road"]
["Heavy Duty Vehicle - Articulated - Gasoline - Year 2003","US",0.31447000000000003,"Gram","US Gallon",0.73160000000000003,"Gram","US Gallon",null,"Road"]
["Heavy Duty Vehicle - Articulated - Gasoline - Year 2004","US",0.20119000000000001,"Gram","US Gallon",0.16815000000000002,"Gram","US Gallon",null,"Road"]
["Heavy Duty Vehicle - Articulated - Gasoline - Year 2005-present","US",0.19233999999999998,"Gram","US Gallon",0.10443000000000001,"Gram","US Gallon",null,"Road"]
["Heavy Duty Vehicle - Articulated - Diesel - Year 1960-present","US",3.0090000000000006E-2,"Gram","US Gallon",2.8319999999999998E-2,"Gram","US Gallon",null,"Road"]
["Heavy Duty Vehicle - Articulated - CNG","US",11.599400000000001,"Gram","US Gallon",1.0325,"Gram","US Gallon",null,"Road"]
["Heavy Duty Vehicle - Articulated - LNG","US",11.599400000000001,"Gram","US Gallon",1.0325,"Gram","US Gallon",null,"Road"]
["Heavy Duty Vehicle - Articulated - LPG","US",0.38940000000000002,"Gram","US Gallon",1.0325,"Gram","US Gallon",null,"Road"]
["Heavy Duty Vehicle - Articulated - Ethanol","US",1.1623000000000001,"Gram","US Gallon",1.0325,"Gram","US Gallon",null,"Road"]
["Heavy Duty Vehicle - Articulated - Fuel Unknown","US",0.12390000000000001,"Gram","US Gallon",0.10030000000000001,"Gram","US Gallon",null,"Road"]
["Motorbike - Non-Catalyst Control","US",3.36,"Gram","US Gallon",0.34499999999999997,"Gram","US Gallon",null,"Road"]
["Motorbike - Uncontrolled","US",4.4950000000000001,"Gram","US Gallon",0.43499999999999994,"Gram","US Gallon",null,"Road"]
["Motorbike - Control Unknown","US",3.5000000000000004,"Gram","US Gallon",0.35000000000000003,"Gram","US Gallon",null,"Road"]
["Ship and Boat - Residual Fuel Oil","US",0.86,"Gram","US Gallon",0.3,"Gram","US Gallon",null,"Water"]
["Ship and Boat - Diesel Fuel","US",0.74,"Gram","US Gallon",0.26,"Gram","US Gallon",null,"Water"]
["Ship and Boat - Gasoline","US",0.64,"Gram","US Gallon",0.22,"Gram","US Gallon",null,"Water"]
["Train - Diesel Fuel","Other",null,null,null,null,null,null,null,"Rail"]
["Other","Other",null,null,null,null,null,null,null,"Rail"]
["Agricultural Equipment - Gasoline","Other",null,null,null,null,null,null,null,"Road"]
["Agricultural Equipment - Diesel Fuel","Other",null,null,null,null,null,null,null,"Road"]
["Construction Equipment - Gasoline","Other",null,null,null,null,null,null,null,"Road"]
["Construction Equipment - Diesel Fuel","Other",null,null,null,null,null,null,null,"Road"]
["Other","Other",null,null,null,null,null,null,null,"Road"]
["Ship and Boat - Residual Fuel Oil","Other",null,null,null,null,null,null,null,"Water"]
["Ship and Boat - Diesel Fuel","Other",null,null,null,null,null,null,null,"Water"]
["Ship and Boat - Gasoline","Other",null,null,null,null,null,null,null,"Water"]
["Other","Other",null,null,null,null,null,null,null,"Water"]
["Other","Other",null,null,null,null,null,null,null,"AirCraft"]

{"sheet":"Reference - EF Road","index":8,"n_rows":222,"n_cols":18,"rows_kept":222,"cut":false,"hidden":true,"merged":[]}
["CO2, CH4 and N2O Emission Factors for US by Vehicle Distance"]
[]
["Vehicle and Fuel and Vehicle Year","Region","CH4","CH4 Unit - Numerator","CH4 Unit - Denominator","N2O","N2O Unit - Numerator","N2O Unit - Denominator","Default Scope","Mode of Transport","Fuel Efficiency","Fuel Efficiency Unit - Numerator","Fuel Efficiency Unit - Denominator","Fuel","CO2","CO2 - Biomass Fuel","CO2 Unit - Numerator","CO2 Unit - Denominator"]
["Bus - CNG","Other",null,null,null,null,null,null,null,"Road",2.4,"Mile","US Gallon","CNG"]
["Bus - Ethanol","Other",null,null,null,null,null,null,null,"Road",5,"Mile","US Gallon","Ethanol",null,1.1119999999999999,"Kilogram","Mile"]
["Bus - Diesel","Other",null,null,null,null,null,null,null,"Road",3.7,"Mile","US Gallon","On-Road Diesel Fuel",2.7381081081081082,null,"Kilogram","Mile"]
["Bus - Gasoline","Other",null,null,null,null,null,null,null,"Road",5,"Mile","US Gallon","Gasoline/Petrol",1.7197469982000002,null,"Kilogram","Mile"]
["Passenger Car - Gasoline - Year 1984-1993","Other",null,null,null,null,null,null,null,"Road",22.5,"Mile","US Gallon","Gasoline/Petrol",0.38216599960000003,null,"Kilogram","Mile"]
["Passenger Car - Gasoline - Year 1994","Other",null,null,null,null,null,null,null,"Road",22.5,"Mile","US Gallon","Gasoline/Petrol",0.38216599960000003,null,"Kilogram","Mile"]
["Passenger Car - Gasoline - Year 1995","Other",null,null,null,null,null,null,null,"Road",22.5,"Mile","US Gallon","Gasoline/Petrol",0.38216599960000003,null,"Kilogram","Mile"]
["Passenger Car - Gasoline - Year 1996","Other",null,null,null,null,null,null,null,"Road",22.5,"Mile","US Gallon","Gasoline/Petrol",0.38216599960000003,null,"Kilogram","Mile"]
["Passenger Car - Gasoline - Year 1997","Other",null,null,null,null,null,null,null,"Road",22.5,"Mile","US Gallon","Gasoline/Petrol",0.38216599960000003,null,"Kilogram","Mile"]
["Passenger Car - Gasoline - Year 1998","Other",null,null,null,null,null,null,null,"Road",22.5,"Mile","US Gallon","Gasoline/Petrol",0.38216599960000003,null,"Kilogram","Mile"]
["Passenger Car - Gasoline - Year 1999","Other",null,null,null,null,null,null,null,"Road",22.5,"Mile","US Gallon","Gasoline/Petrol",0.38216599960000003,null,"Kilogram","Mile"]
["Passenger Car - Gasoline - Year 2000","Other",null,null,null,null,null,null,null,"Road",22.5,"Mile","US Gallon","Gasoline/Petrol",0.38216599960000003,null,"Kilogram","Mile"]
["Passenger Car - Gasoline - Year 2001","Other",null,null,null,null,null,null,null,"Road",22.5,"Mile","US Gallon","Gasoline/Petrol",0.38216599960000003,null,"Kilogram","Mile"]
["Passenger Car - Gasoline - Year 2002","Other",null,null,null,null,null,null,null,"Road",22.5,"Mile","US Gallon","Gasoline/Petrol",0.38216599960000003,null,"Kilogram","Mile"]
["Passenger Car - Gasoline - Year 2003","Other",null,null,null,null,null,null,null,"Road",22.5,"Mile","US Gallon","Gasoline/Petrol",0.38216599960000003,null,"Kilogram","Mile"]
["Passenger Car - Gasoline - Year 2004","Other",null,null,null,null,null,null,null,"Road",22.5,"Mile","US Gallon","Gasoline/Petrol",0.38216599960000003,null,"Kilogram","Mile"]
["Passenger Car - Gasoline - Year 2005-present","Other",null,null,null,null,null,null,null,"Road",22.5,"Mile","US Gallon","Gasoline/Petrol",0.38216599960000003,null,"Kilogram","Mile"]
["Passenger Car - Diesel - Year 1960-1982","Other",null,null,null,null,null,null,null,"Road",22.5,"Mile","US Gallon","On-Road Diesel Fuel",0.4502666666666667,null,"Kilogram","Mile"]
["Passenger Car - Diesel - Year 1983-present","Other",null,null,null,null,null,null,null,"Road",22.5,"Mile","US Gallon","On-Road Diesel Fuel",0.4502666666666667,null,"Kilogram","Mile"]
["Passenger Car - Fuel Unknown","Other",null,null,null,null,null,null,null,"Road",22.5,"Mile","US Gallon"]
["Light Goods Vehicle - CNG","Other",null,null,null,null,null,null,null,"Road",16.2,"Mile","US Gallon","CNG"]
["Light Goods Vehicle - LPG","Other",null,null,null,null,null,null,null,"Road",16.2,"Mile","US Gallon","LPG",0.37654320987654322,null,"Kilogram","Mile"]
["Light Goods Vehicle - Ethanol","Other",null,null,null,null,null,null,null,"Road",16.2,"Mile","US Gallon","Ethanol",null,0.34320987654320989,"Kilogram","Mile"]
["Light Goods Vehicle - Gasoline - Year 1987-1993","Other",null,null,null,null,null,null,null,"Road",16.2,"Mile","US Gallon","Gasoline/Petrol",0.53078611055555558,null,"Kilogram","Mile"]
["Light Goods Vehicle - Gasoline - Year 1994","Other",null,null,null,null,null,null,null,"Road",16.2,"Mile","US Gallon","Gasoline/Petrol",0.53078611055555558,null,"Kilogram","Mile"]
["Light Goods Vehicle - Gasoline - Year 1995","Other",null,null,null,null,null,null,null,"Road",16.2,"Mile","US Gallon","Gasoline/Petrol",0.53078611055555558,null,"Kilogram","Mile"]
["Light Goods Vehicle - Gasoline - Year 1996","Other",null,null,null,null,null,null,null,"Road",16.2,"Mile","US Gallon","Gasoline/Petrol",0.53078611055555558,null,"Kilogram","Mile"]
["Light Goods Vehicle - Gasoline - Year 1997","Other",null,null,null,null,null,null,null,"Road",16.2,"Mile","US Gallon","Gasoline/Petrol",0.53078611055555558,null,"Kilogram","Mile"]
["Light Goods Vehicle - Gasoline - Year 1998","Other",null,null,null,null,null,null,null,"Road",16.2,"Mile","US Gallon","Gasoline/Petrol",0.53078611055555558,null,"Kilogram","Mile"]
["Light Goods Vehicle - Gasoline - Year 1999","Other",null,null,null,null,null,null,null,"Road",16.2,"Mile","US Gallon","Gasoline/Petrol",0.53078611055555558,null,"Kilogram","Mile"]
["Light Goods Vehicle - Gasoline - Year 2000","Other",null,null,null,null,null,null,null,"Road",16.2,"Mile","US Gallon","Gasoline/Petrol",0.53078611055555558,null,"Kilogram","Mile"]
["Light Goods Vehicle - Gasoline - Year 2001","Other",null,null,null,null,null,null,null,"Road",16.2,"Mile","US Gallon","Gasoline/Petrol",0.53078611055555558,null,"Kilogram","Mile"]
["Light Goods Vehicle - Gasoline - Year 2002","Other",null,null,null,null,null,null,null,"Road",16.2,"Mile","US Gallon","Gasoline/Petrol",0.53078611055555558,null,"Kilogram","Mile"]
["Light Goods Vehicle - Gasoline - Year 2003","Other",null,null,null,null,null,null,null,"Road",16.2,"Mile","US Gallon","Gasoline/Petrol",0.53078611055555558,null,"Kilogram","Mile"]
["Light Goods Vehicle - Gasoline - Year 2004","Other",null,null,null,null,null,null,null,"Road",16.2,"Mile","US Gallon","Gasoline/Petrol",0.53078611055555558,null,"Kilogram","Mile"]
["Light Goods Vehicle - Gasoline - Year 2005-present","Other",null,null,null,null,null,null,null,"Road",16.2,"Mile","US Gallon","Gasoline/Petrol",0.53078611055555558,null,"Kilogram","Mile"]
["Light Goods Vehicle - Diesel - Year 1960-1982","Other",null,null,null,null,null,null,null,"Road",16.2,"Mile","US Gallon","On-Road Diesel Fuel",0.62537037037037047,null,"Kilogram","Mile"]
["Light Goods Vehicle - Diesel - Year 1983-1995","Other",null,null,null,null,null,null,null,"Road",16.2,"Mile","US Gallon","On-Road Diesel Fuel",0.62537037037037047,null,"Kilogram","Mile"]
["Light Goods Vehicle - Diesel - Year 1996-present","Other",null,null,null,null,null,null,null,"Road",16.2,"Mile","US Gallon","On-Road Diesel Fuel",0.62537037037037047,null,"Kilogram","Mile"]
["Light Goods Vehicle - Fuel Unknown","Other",null,null,null,null,null,null,null,"Road",16.2,"Mile","US Gallon"]
["Heavy Duty Vehicle - Rigid - Gasoline - Year 1985-1986","Other",null,null,null,null,null,null,null,"Road",8.8000000000000007,"Mile","US Gallon","Gasoline/Petrol",0.97712897624999995,null,"Kilogram","Mile"]
["Heavy Duty Vehicle - Rigid - Gasoline - Year 1987","Other",null,null,null,null,null,null,null,"Road",8.8000000000000007,"Mile","US Gallon","Gasoline/Petrol",0.97712897624999995,null,"Kilogram","Mile"]
["Heavy Duty Vehicle - Rigid - Gasoline - Year 1988-1989","Other",null,null,null,null,null,null,null,"Road",8.8000000000000007,"Mile","US Gallon","Gasoline/Petrol",0.97712897624999995,null,"Kilogram","Mile"]
["Heavy Duty Vehicle - Rigid - Gasoline - Year 1990-1995","Other",null,null,null,null,null,null,null,"Road",8.8000000000000007,"Mile","US Gallon","Gasoline/Petrol",0.97712897624999995,null,"Kilogram","Mile"]
["Heavy Duty Vehicle - Rigid - Gasoline - Year 1996","Other",null,null,null,null,null,null,null,"Road",8.8000000000000007,"Mile","US Gallon","Gasoline/Petrol",0.97712897624999995,null,"Kilogram","Mile"]
["Heavy Duty Vehicle - Rigid - Gasoline - Year 1997","Other",null,null,null,null,null,null,null,"Road",8.8000000000000007,"Mile","US Gallon","Gasoline/Petrol",0.97712897624999995,null,"Kilogram","Mile"]
["Heavy Duty Vehicle - Rigid - Gasoline - Year 1998","Other",null,null,null,null,null,null,null,"Road",8.8000000000000007,"Mile","US Gallon","Gasoline/Petrol",0.97712897624999995,null,"Kilogram","Mile"]
["Heavy Duty Vehicle - Rigid - Gasoline - Year 1999","Other",null,null,null,null,null,null,null,"Road",8.8000000000000007,"Mile","US Gallon","Gasoline/Petrol",0.97712897624999995,null,"Kilogram","Mile"]
["Heavy Duty Vehicle - Rigid - Gasoline - Year 2000","Other",null,null,null,null,null,null,null,"Road",8.8000000000000007,"Mile","US Gallon","Gasoline/Petrol",0.97712897624999995,null,"Kilogram","Mile"]
["Heavy Duty Vehicle - Rigid - Gasoline - Year 2001","Other",null,null,null,null,null,null,null,"Road",8.8000000000000007,"Mile","US Gallon","Gasoline/Petrol",0.97712897624999995,null,"Kilogram","Mile"]
["Heavy Duty Vehicle - Rigid - Gasoline - Year 2002","Other",null,null,null,null,null,null,null,"Road",8.8000000000000007,"Mile","US Gallon","Gasoline/Petrol",0.97712897624999995,null,"Kilogram","Mile"]
["Heavy Duty Vehicle - Rigid - Gasoline - Year 2003","Other",null,null,null,null,null,null,null,"Road",8.8000000000000007,"Mile","US Gallon","Gasoline/Petrol",0.97712897624999995,null,"Kilogram","Mile"]
["Heavy Duty Vehicle - Rigid - Gasoline - Year 2004","Other",null,null,null,null,null,null,null,"Road",8.8000000000000007,"Mile","US Gallon","Gasoline/Petrol",0.97712897624999995,null,"Kilogram","Mile"]
["Heavy Duty Vehicle - Rigid - Gasoline - Year 2005-present","Other",null,null,null,null,null,null,null,"Road",8.8000000000000007,"Mile","US Gallon","Gasoline/Petrol",0.97712897624999995,null,"Kilogram","Mile"]
["Heavy Duty Vehicle - Rigid - Diesel - Year 1960-present","Other",null,null,null,null,null,null,null,"Road",8.8000000000000007,"Mile","US Gallon","On-Road Diesel Fuel",1.1512499999999999,null,"Kilogram","Mile"]
["Heavy Duty Vehicle - Rigid - CNG","Other",null,null,null,null,null,null,null,"Road",8.8000000000000007,"Mile","US Gallon","CNG"]
["Heavy Duty Vehicle - Rigid - LNG","Other",null,null,null,null,null,null,null,"Road",8.8000000000000007,"Mile","US Gallon","LNG",0.50681818181818172,null,"Kilogram","Mile"]
["Heavy Duty Vehicle - Rigid - LPG","Other",null,null,null,null,null,null,null,"Road",8.8000000000000007,"Mile","US Gallon","LPG",0.69318181818181812,null,"Kilogram","Mile"]
["Heavy Duty Vehicle - Rigid - Ethanol","Other",null,null,null,null,null,null,null,"Road",8.8000000000000007,"Mile","US Gallon","Ethanol",null,0.63181818181818172,"Kilogram","Mile"]
["Heavy Duty Vehicle - Rigid - Fuel Unknown","Other",null,null,null,null,null,null,null,"Road",8.8000000000000007,"Mile","US Gallon"]
["Heavy Duty Vehicle - Articulated - Gasoline - Year 1985-1986","Other",null,null,null,null,null,null,null,"Road",5.9,"Mile","US Gallon","Gasoline/Petrol",1.4574127103389831,null,"Kilogram","Mile"]
["Heavy Duty Vehicle - Articulated - Gasoline - Year 1987","Other",null,null,null,null,null,null,null,"Road",5.9,"Mile","US Gallon","Gasoline/Petrol",1.4574127103389831,null,"Kilogram","Mile"]
["Heavy Duty Vehicle - Articulated - Gasoline - Year 1988-1989","Other",null,null,null,null,null,null,null,"Road",5.9,"Mile","US Gallon","Gasoline/Petrol",1.4574127103389831,null,"Kilogram","Mile"]
["Heavy Duty Vehicle - Articulated - Gasoline - Year 1990-1995","Other",null,null,null,null,null,null,null,"Road",5.9,"Mile","US Gallon","Gasoline/Petrol",1.4574127103389831,null,"Kilogram","Mile"]
["Heavy Duty Vehicle - Articulated - Gasoline - Year 1996","Other",null,null,null,null,null,null,null,"Road",5.9,"Mile","US Gallon","Gasoline/Petrol",1.4574127103389831,null,"Kilogram","Mile"]
["Heavy Duty Vehicle - Articulated - Gasoline - Year 1997","Other",null,null,null,null,null,null,null,"Road",5.9,"Mile","US Gallon","Gasoline/Petrol",1.4574127103389831,null,"Kilogram","Mile"]
["Heavy Duty Vehicle - Articulated - Gasoline - Year 1998","Other",null,null,null,null,null,null,null,"Road",5.9,"Mile","US Gallon","Gasoline/Petrol",1.4574127103389831,null,"Kilogram","Mile"]
["Heavy Duty Vehicle - Articulated - Gasoline - Year 1999","Other",null,null,null,null,null,null,null,"Road",5.9,"Mile","US Gallon","Gasoline/Petrol",1.4574127103389831,null,"Kilogram","Mile"]
["Heavy Duty Vehicle - Articulated - Gasoline - Year 2000","Other",null,null,null,null,null,null,null,"Road",5.9,"Mile","US Gallon","Gasoline/Petrol",1.4574127103389831,null,"Kilogram","Mile"]
["Heavy Duty Vehicle - Articulated - Gasoline - Year 2001","Other",null,null,null,null,null,null,null,"Road",5.9,"Mile","US Gallon","Gasoline/Petrol",1.4574127103389831,null,"Kilogram","Mile"]
["Heavy Duty Vehicle - Articulated - Gasoline - Year 2002","Other",null,null,null,null,null,null,null,"Road",5.9,"Mile","US Gallon","Gasoline/Petrol",1.4574127103389831,null,"Kilogram","Mile"]
["Heavy Duty Vehicle - Articulated - Gasoline - Year 2003","Other",null,null,null,null,null,null,null,"Road",5.9,"Mile","US Gallon","Gasoline/Petrol",1.4574127103389831,null,"Kilogram","Mile"]
["Heavy Duty Vehicle - Articulated - Gasoline - Year 2004","Other",null,null,null,null,null,null,null,"Road",5.9,"Mile","US Gallon","Gasoline/Petrol",1.4574127103389831,null,"Kilogram","Mile"]
["Heavy Duty Vehicle - Articulated - Gasoline - Year 2005-present","Other",null,null,null,null,null,null,null,"Road",5.9,"Mile","US Gallon","Gasoline/Petrol",1.4574127103389831,null,"Kilogram","Mile"]
["Heavy Duty Vehicle - Articulated - Diesel - Year 1960-present","Other",null,null,null,null,null,null,null,"Road",5.9,"Mile","US Gallon","On-Road Diesel Fuel",1.7171186440677966,null,"Kilogram","Mile"]
["Heavy Duty Vehicle - Articulated - CNG","Other",null,null,null,null,null,null,null,"Road",5.9,"Mile","US Gallon","CNG"]
["Heavy Duty Vehicle - Articulated - LNG","Other",null,null,null,null,null,null,null,"Road",5.9,"Mile","US Gallon","LNG",0.75593220338983047,null,"Kilogram","Mile"]
["Heavy Duty Vehicle - Articulated - LPG","Other",null,null,null,null,null,null,null,"Road",5.9,"Mile","US Gallon","LPG",1.0338983050847457,null,"Kilogram","Mile"]
["Heavy Duty Vehicle - Articulated - Ethanol","Other",null,null,null,null,null,null,null,"Road",5.9,"Mile","US Gallon","Ethanol",null,0.94237288135593211,"Kilogram","Mile"]
["Heavy Duty Vehicle - Articulated - Fuel Unknown","Other",null,null,null,null,null,null,null,"Road",5.9,"Mile","US Gallon"]
["Motorbike - Non-Catalyst Control","Other",null,null,null,null,null,null,null,"Road",50,"Mile","US Gallon","On-Road Diesel Fuel",0.20261999999999999,null,"Kilogram","Mile"]
["Motorbike - Uncontrolled","Other",null,null,null,null,null,null,null,"Road",50,"Mile","US Gallon","On-Road Diesel Fuel",0.20261999999999999,null,"Kilogram","Mile"]
["Motorbike - Control Unknown","Other",null,null,null,null,null,null,null,"Road",50,"Mile","US Gallon","On-Road Diesel Fuel",0.20261999999999999,null,"Kilogram","Mile"]
["Bus - CNG","US",1.966,"Gram","Mile",0.17499999999999999,"Gram","Mile",null,"Road",2.4,"Mile","US Gallon","CNG"]
["Bus - Ethanol","US",0.19700000000000001,"Gram","Mile",0.17499999999999999,"Gram","Mile",null,"Road",5,"Mile","US Gallon","Ethanol",null,1.1119999999999999,"Kilogram","Mile"]
["Bus - Diesel","US",5.1000000000000004E-3,"Gram","Mile",4.7999999999999996E-3,"Gram","Mile",null,"Road",3.7,"Mile","US Gallon","On-Road Diesel Fuel",2.7432432432432434,null,"Kilogram","Mile"]
["Bus - Gasoline","US",2.1000000000000001E-2,"Gram","Mile",1.7000000000000001E-2,"Gram","Mile",null,"Road",5,"Mile","US Gallon","Gasoline/Petrol",1.762,null,"Kilogram","Mile"]
["Passenger Car - Gasoline - Year 1984-1993","US",7.0400000000000004E-2,"Gram","Mile",6.4699999999999994E-2,"Gram","Mile",null,"Road",22.5,"Mile","US Gallon","Gasoline/Petrol",0.3915555555555556,null,"Kilogram","Mile"]
["Passenger Car - Gasoline - Year 1994","US",5.3100000000000001E-2,"Gram","Mile",5.6000000000000001E-2,"Gram","Mile",null,"Road",22.5,"Mile","US Gallon","Gasoline/Petrol",0.3915555555555556,null,"Kilogram","Mile"]
["Passenger Car - Gasoline - Year 1995","US",3.5799999999999998E-2,"Gram","Mile",4.7300000000000002E-2,"Gram","Mile",null,"Road",22.5,"Mile","US Gallon","Gasoline/Petrol",0.3915555555555556,null,"Kilogram","Mile"]
["Passenger Car - Gasoline - Year 1996","US",2.7199999999999998E-2,"Gram","Mile",4.2599999999999999E-2,"Gram","Mile",null,"Road",22.5,"Mile","US Gallon","Gasoline/Petrol",0.3915555555555556,null,"Kilogram","Mile"]
["Passenger Car - Gasoline - Year 1997","US",2.6800000000000001E-2,"Gram","Mile",4.2200000000000001E-2,"Gram","Mile",null,"Road",22.5,"Mile","US Gallon","Gasoline/Petrol",0.3915555555555556,null,"Kilogram","Mile"]
["Passenger Car - Gasoline - Year 1998","US",2.4899999999999999E-2,"Gram","Mile",3.9300000000000002E-2,"Gram","Mile",null,"Road",22.5,"Mile","US Gallon","Gasoline/Petrol",0.3915555555555556,null,"Kilogram","Mile"]
["Passenger Car - Gasoline - Year 1999","US",2.1600000000000001E-2,"Gram","Mile",3.3700000000000001E-2,"Gram","Mile",null,"Road",22.5,"Mile","US Gallon","Gasoline/Petrol",0.3915555555555556,null,"Kilogram","Mile"]
["Passenger Car - Gasoline - Year 2000","US",1.78E-2,"Gram","Mile",2.7300000000000001E-2,"Gram","Mile",null,"Road",22.5,"Mile","US Gallon","Gasoline/Petrol",0.3915555555555556,null,"Kilogram","Mile"]
["Passenger Car - Gasoline - Year 2001","US",1.0999999999999999E-2,"Gram","Mile",1.5800000000000002E-2,"Gram","Mile",null,"Road",22.5,"Mile","US Gallon","Gasoline/Petrol",0.3915555555555556,null,"Kilogram","Mile"]
["Passenger Car - Gasoline - Year 2002","US",1.0699999999999999E-2,"Gram","Mile",1.5299999999999999E-2,"Gram","Mile",null,"Road",22.5,"Mile","US Gallon","Gasoline/Petrol",0.3915555555555556,null,"Kilogram","Mile"]
["Passenger Car - Gasoline - Year 2003","US",1.14E-2,"Gram","Mile",1.35E-2,"Gram","Mile",null,"Road",22.5,"Mile","US Gallon","Gasoline/Petrol",0.3915555555555556,null,"Kilogram","Mile"]
["Passenger Car - Gasoline - Year 2004","US",1.4500000000000001E-2,"Gram","Mile",8.3000000000000001E-3,"Gram","Mile",null,"Road",22.5,"Mile","US Gallon","Gasoline/Petrol",0.3915555555555556,null,"Kilogram","Mile"]
["Passenger Car - Gasoline - Year 2005-present","US",1.47E-2,"Gram","Mile",7.9000000000000008E-3,"Gram","Mile",null,"Road",22.5,"Mile","US Gallon","Gasoline/Petrol",0.3915555555555556,null,"Kilogram","Mile"]
["Passenger Car - Diesel - Year 1960-1982","US",5.9999999999999995E-4,"Gram","Mile",1.1999999999999999E-3,"Gram","Mile",null,"Road",22.5,"Mile","US Gallon","On-Road Diesel Fuel",0.45111111111111113,null,"Kilogram","Mile"]
["Passenger Car - Diesel - Year 1983-present","US",5.0000000000000001E-4,"Gram","Mile",1E-3,"Gram","Mile",null,"Road",22.5,"Mile","US Gallon","On-Road Diesel Fuel",0.45111111111111113,null,"Kilogram","Mile"]
["Passenger Car - Fuel Unknown","US",3.1E-2,"Gram","Mile",3.2000000000000001E-2,"Gram","Mile",null,"Road",22.5,"Mile","US Gallon"]
["Light Goods Vehicle - CNG","US",0.73699999999999999,"Gram","Mile",0.05,"Gram","Mile",null,"Road",16.2,"Mile","US Gallon","CNG"]
["Light Goods Vehicle - LPG","US",3.6999999999999998E-2,"Gram","Mile",6.7000000000000004E-2,"Gram","Mile",null,"Road",16.2,"Mile","US Gallon","LPG",0.35740740740740745,null,"Kilogram","Mile"]
["Light Goods Vehicle - Ethanol","US",5.5E-2,"Gram","Mile",6.7000000000000004E-2,"Gram","Mile",null,"Road",16.2,"Mile","US Gallon","Ethanol",null,0.34320987654320989,"Kilogram","Mile"]
["Light Goods Vehicle - Gasoline - Year 1987-1993","US",8.1299999999999997E-2,"Gram","Mile",0.10349999999999999,"Gram","Mile",null,"Road",16.2,"Mile","US Gallon","Gasoline/Petrol",0.54382716049382718,null,"Kilogram","Mile"]
["Light Goods Vehicle - Gasoline - Year 1994","US",6.4600000000000005E-2,"Gram","Mile",9.8199999999999996E-2,"Gram","Mile",null,"Road",16.2,"Mile","US Gallon","Gasoline/Petrol",0.54382716049382718,null,"Kilogram","Mile"]
["Light Goods Vehicle - Gasoline - Year 1995","US",5.1700000000000003E-2,"Gram","Mile",9.0800000000000006E-2,"Gram","Mile",null,"Road",16.2,"Mile","US Gallon","Gasoline/Petrol",0.54382716049382718,null,"Kilogram","Mile"]
["Light Goods Vehicle - Gasoline - Year 1996","US",4.5199999999999997E-2,"Gram","Mile",8.7099999999999997E-2,"Gram","Mile",null,"Road",16.2,"Mile","US Gallon","Gasoline/Petrol",0.54382716049382718,null,"Kilogram","Mile"]
["Light Goods Vehicle - Gasoline - Year 1997","US",4.5199999999999997E-2,"Gram","Mile",8.7099999999999997E-2,"Gram","Mile",null,"Road",16.2,"Mile","US Gallon","Gasoline/Petrol",0.54382716049382718,null,"Kilogram","Mile"]
["Light Goods Vehicle - Gasoline - Year 1998","US",3.9100000000000003E-2,"Gram","Mile",7.2800000000000004E-2,"Gram","Mile",null,"Road",16.2,"Mile","US Gallon","Gasoline/Petrol",0.54382716049382718,null,"Kilogram","Mile"]
["Light Goods Vehicle - Gasoline - Year 1999","US",3.2099999999999997E-2,"Gram","Mile",5.6399999999999999E-2,"Gram","Mile",null,"Road",16.2,"Mile","US Gallon","Gasoline/Petrol",0.54382716049382718,null,"Kilogram","Mile"]
["Light Goods Vehicle - Gasoline - Year 2000","US",3.4599999999999999E-2,"Gram","Mile",6.2100000000000002E-2,"Gram","Mile",null,"Road",16.2,"Mile","US Gallon","Gasoline/Petrol",0.54382716049382718,null,"Kilogram","Mile"]
["Light Goods Vehicle - Gasoline - Year 2001","US",1.5100000000000001E-2,"Gram","Mile",1.6400000000000001E-2,"Gram","Mile",null,"Road",16.2,"Mile","US Gallon","Gasoline/Petrol",0.54382716049382718,null,"Kilogram","Mile"]
["Light Goods Vehicle - Gasoline - Year 2002","US",1.78E-2,"Gram","Mile",2.2800000000000001E-2,"Gram","Mile",null,"Road",16.2,"Mile","US Gallon","Gasoline/Petrol",0.54382716049382718,null,"Kilogram","Mile"]
["Light Goods Vehicle - Gasoline - Year 2003","US",1.55E-2,"Gram","Mile",1.14E-2,"Gram","Mile",null,"Road",16.2,"Mile","US Gallon","Gasoline/Petrol",0.54382716049382718,null,"Kilogram","Mile"]
["Light Goods Vehicle - Gasoline - Year 2004","US",1.52E-2,"Gram","Mile",1.32E-2,"Gram","Mile",null,"Road",16.2,"Mile","US Gallon","Gasoline/Petrol",0.54382716049382718,null,"Kilogram","Mile"]
["Light Goods Vehicle - Gasoline - Year 2005-present","US",1.5699999999999999E-2,"Gram","Mile",1.01E-2,"Gram","Mile",null,"Road",16.2,"Mile","US Gallon","Gasoline/Petrol",0.54382716049382718,null,"Kilogram","Mile"]
["Light Goods Vehicle - Diesel - Year 1960-1982","US",1.1000000000000001E-3,"Gram","Mile",1.6999999999999999E-3,"Gram","Mile",null,"Road",16.2,"Mile","US Gallon","On-Road Diesel Fuel",0.62654320987654322,null,"Kilogram","Mile"]
["Light Goods Vehicle - Diesel - Year 1983-1995","US",8.9999999999999998E-4,"Gram","Mile",1.4E-3,"Gram","Mile",null,"Road",16.2,"Mile","US Gallon","On-Road Diesel Fuel",0.62654320987654322,null,"Kilogram","Mile"]
["Light Goods Vehicle - Diesel - Year 1996-present","US",1E-3,"Gram","Mile",1.5E-3,"Gram","Mile",null,"Road",16.2,"Mile","US Gallon","On-Road Diesel Fuel",0.62654320987654322,null,"Kilogram","Mile"]
["Light Goods Vehicle - Fuel Unknown","US",3.5999999999999997E-2,"Gram","Mile",4.7E-2,"Gram","Mile",null,"Road",16.2,"Mile","US Gallon"]
["Heavy Duty Vehicle - Rigid - Gasoline - Year 1985-1986","US",0.40899999999999997,"Gram","Mile",5.1499999999999997E-2,"Gram","Mile",null,"Road",8.8000000000000007,"Mile","US Gallon","Gasoline/Petrol",1.0011363636363637,null,"Kilogram","Mile"]
["Heavy Duty Vehicle - Rigid - Gasoline - Year 1987","US",0.36749999999999999,"Gram","Mile",8.4900000000000003E-2,"Gram","Mile",null,"Road",8.8000000000000007,"Mile","US Gallon","Gasoline/Petrol",1.0011363636363637,null,"Kilogram","Mile"]
["Heavy Duty Vehicle - Rigid - Gasoline - Year 1988-1989","US",0.34920000000000001,"Gram","Mile",9.3299999999999994E-2,"Gram","Mile",null,"Road",8.8000000000000007,"Mile","US Gallon","Gasoline/Petrol",1.0011363636363637,null,"Kilogram","Mile"]
["Heavy Duty Vehicle - Rigid - Gasoline - Year 1990-1995","US",0.3246,"Gram","Mile",0.1142,"Gram","Mile",null,"Road",8.8000000000000007,"Mile","US Gallon","Gasoline/Petrol",1.0011363636363637,null,"Kilogram","Mile"]
["Heavy Duty Vehicle - Rigid - Gasoline - Year 1996","US",0.1278,"Gram","Mile",0.16800000000000001,"Gram","Mile",null,"Road",8.8000000000000007,"Mile","US Gallon","Gasoline/Petrol",1.0011363636363637,null,"Kilogram","Mile"]
["Heavy Duty Vehicle - Rigid - Gasoline - Year 1997","US",9.2399999999999996E-2,"Gram","Mile",0.1726,"Gram","Mile",null,"Road",8.8000000000000007,"Mile","US Gallon","Gasoline/Petrol",1.0011363636363637,null,"Kilogram","Mile"]
["Heavy Duty Vehicle - Rigid - Gasoline - Year 1998","US",6.4100000000000004E-2,"Gram","Mile",0.16930000000000001,"Gram","Mile",null,"Road",8.8000000000000007,"Mile","US Gallon","Gasoline/Petrol",1.0011363636363637,null,"Kilogram","Mile"]
["Heavy Duty Vehicle - Rigid - Gasoline - Year 1999","US",5.7799999999999997E-2,"Gram","Mile",0.14349999999999999,"Gram","Mile",null,"Road",8.8000000000000007,"Mile","US Gallon","Gasoline/Petrol",1.0011363636363637,null,"Kilogram","Mile"]
["Heavy Duty Vehicle - Rigid - Gasoline - Year 2000","US",4.9299999999999997E-2,"Gram","Mile",0.10920000000000001,"Gram","Mile",null,"Road",8.8000000000000007,"Mile","US Gallon","Gasoline/Petrol",1.0011363636363637,null,"Kilogram","Mile"]
["Heavy Duty Vehicle - Rigid - Gasoline - Year 2001","US",5.28E-2,"Gram","Mile",0.1235,"Gram","Mile",null,"Road",8.8000000000000007,"Mile","US Gallon","Gasoline/Petrol",1.0011363636363637,null,"Kilogram","Mile"]
["Heavy Duty Vehicle - Rigid - Gasoline - Year 2002","US",5.4600000000000003E-2,"Gram","Mile",0.13070000000000001,"Gram","Mile",null,"Road",8.8000000000000007,"Mile","US Gallon","Gasoline/Petrol",1.0011363636363637,null,"Kilogram","Mile"]
["Heavy Duty Vehicle - Rigid - Gasoline - Year 2003","US",5.33E-2,"Gram","Mile",0.124,"Gram","Mile",null,"Road",8.8000000000000007,"Mile","US Gallon","Gasoline/Petrol",1.0011363636363637,null,"Kilogram","Mile"]
["Heavy Duty Vehicle - Rigid - Gasoline - Year 2004","US",3.4099999999999998E-2,"Gram","Mile",2.8500000000000001E-2,"Gram","Mile",null,"Road",8.8000000000000007,"Mile","US Gallon","Gasoline/Petrol",1.0011363636363637,null,"Kilogram","Mile"]
["Heavy Duty Vehicle - Rigid - Gasoline - Year 2005-present","US",3.2599999999999997E-2,"Gram","Mile",1.77E-2,"Gram","Mile",null,"Road",8.8000000000000007,"Mile","US Gallon","Gasoline/Petrol",1.0011363636363637,null,"Kilogram","Mile"]
["Heavy Duty Vehicle - Rigid - Diesel - Year 1960-present","US",5.1000000000000004E-3,"Gram","Mile",4.7999999999999996E-3,"Gram","Mile",null,"Road",8.8000000000000007,"Mile","US Gallon","On-Road Diesel Fuel",1.1534090909090908,null,"Kilogram","Mile"]
["Heavy Duty Vehicle - Rigid - CNG","US",1.966,"Gram","Mile",0.17499999999999999,"Gram","Mile",null,"Road",8.8000000000000007,"Mile","US Gallon","CNG"]
["Heavy Duty Vehicle - Rigid - LNG","US",1.966,"Gram","Mile",0.17499999999999999,"Gram","Mile",null,"Road",8.8000000000000007,"Mile","US Gallon","LNG",0.50681818181818172,null,"Kilogram","Mile"]
["Heavy Duty Vehicle - Rigid - LPG","US",6.6000000000000003E-2,"Gram","Mile",0.17499999999999999,"Gram","Mile",null,"Road",8.8000000000000007,"Mile","US Gallon","LPG",0.65795454545454546,null,"Kilogram","Mile"]
["Heavy Duty Vehicle - Rigid - Ethanol","US",0.19700000000000001,"Gram","Mile",0.17499999999999999,"Gram","Mile",null,"Road",8.8000000000000007,"Mile","US Gallon","Ethanol",null,0.63181818181818172,"Kilogram","Mile"]
["Heavy Duty Vehicle - Rigid - Fuel Unknown","US",2.1000000000000001E-2,"Gram","Mile",1.7000000000000001E-2,"Gram","Mile",null,"Road",8.8000000000000007,"Mile","US Gallon"]
["Heavy Duty Vehicle - Articulated - Gasoline - Year 1985-1986","US",0.40899999999999997,"Gram","Mile",5.1499999999999997E-2,"Gram","Mile",null,"Road",5.9,"Mile","US Gallon","Gasoline/Petrol",1.4932203389830507,null,"Kilogram","Mile"]
["Heavy Duty Vehicle - Articulated - Gasoline - Year 1987","US",0.36749999999999999,"Gram","Mile",8.4900000000000003E-2,"Gram","Mile",null,"Road",5.9,"Mile","US Gallon","Gasoline/Petrol",1.4932203389830507,null,"Kilogram","Mile"]
["Heavy Duty Vehicle - Articulated - Gasoline - Year 1988-1989","US",0.34920000000000001,"Gram","Mile",9.3299999999999994E-2,"Gram","Mile",null,"Road",5.9,"Mile","US Gallon","Gasoline/Petrol",1.4932203389830507,null,"Kilogram","Mile"]
["Heavy Duty Vehicle - Articulated - Gasoline - Year 1990-1995","US",0.3246,"Gram","Mile",0.1142,"Gram","Mile",null,"Road",5.9,"Mile","US Gallon","Gasoline/Petrol",1.4932203389830507,null,"Kilogram","Mile"]
["Heavy Duty Vehicle - Articulated - Gasoline - Year 1996","US",0.1278,"Gram","Mile",0.16800000000000001,"Gram","Mile",null,"Road",5.9,"Mile","US Gallon","Gasoline/Petrol",1.4932203389830507,null,"Kilogram","Mile"]
["Heavy Duty Vehicle - Articulated - Gasoline - Year 1997","US",9.2399999999999996E-2,"Gram","Mile",0.1726,"Gram","Mile",null,"Road",5.9,"Mile","US Gallon","Gasoline/Petrol",1.4932203389830507,null,"Kilogram","Mile"]
["Heavy Duty Vehicle - Articulated - Gasoline - Year 1998","US",6.4100000000000004E-2,"Gram","Mile",0.16930000000000001,"Gram","Mile",null,"Road",5.9,"Mile","US Gallon","Gasoline/Petrol",1.4932203389830507,null,"Kilogram","Mile"]
["Heavy Duty Vehicle - Articulated - Gasoline - Year 1999","US",5.7799999999999997E-2,"Gram","Mile",0.14349999999999999,"Gram","Mile",null,"Road",5.9,"Mile","US Gallon","Gasoline/Petrol",1.4932203389830507,null,"Kilogram","Mile"]
["Heavy Duty Vehicle - Articulated - Gasoline - Year 2000","US",4.9299999999999997E-2,"Gram","Mile",0.10920000000000001,"Gram","Mile",null,"Road",5.9,"Mile","US Gallon","Gasoline/Petrol",1.4932203389830507,null,"Kilogram","Mile"]
["Heavy Duty Vehicle - Articulated - Gasoline - Year 2001","US",5.28E-2,"Gram","Mile",0.1235,"Gram","Mile",null,"Road",5.9,"Mile","US Gallon","Gasoline/Petrol",1.4932203389830507,null,"Kilogram","Mile"]
["Heavy Duty Vehicle - Articulated - Gasoline - Year 2002","US",5.4600000000000003E-2,"Gram","Mile",0.13070000000000001,"Gram","Mile",null,"Road",5.9,"Mile","US Gallon","Gasoline/Petrol",1.4932203389830507,null,"Kilogram","Mile"]
["Heavy Duty Vehicle - Articulated - Gasoline - Year 2003","US",5.33E-2,"Gram","Mile",0.124,"Gram","Mile",null,"Road",5.9,"Mile","US Gallon","Gasoline/Petrol",1.4932203389830507,null,"Kilogram","Mile"]
["Heavy Duty Vehicle - Articulated - Gasoline - Year 2004","US",3.4099999999999998E-2,"Gram","Mile",2.8500000000000001E-2,"Gram","Mile",null,"Road",5.9,"Mile","US Gallon","Gasoline/Petrol",1.4932203389830507,null,"Kilogram","Mile"]
["Heavy Duty Vehicle - Articulated - Gasoline - Year 2005-present","US",3.2599999999999997E-2,"Gram","Mile",1.77E-2,"Gram","Mile",null,"Road",5.9,"Mile","US Gallon","Gasoline/Petrol",1.4932203389830507,null,"Kilogram","Mile"]
["Heavy Duty Vehicle - Articulated - Diesel - Year 1960-present","US",5.1000000000000004E-3,"Gram","Mile",4.7999999999999996E-3,"Gram","Mile",null,"Road",5.9,"Mile","US Gallon","On-Road Diesel Fuel",1.7203389830508473,null,"Kilogram","Mile"]
["Heavy Duty Vehicle - Articulated - CNG","US",1.966,"Gram","Mile",0.17499999999999999,"Gram","Mile",null,"Road",5.9,"Mile","US Gallon","CNG"]
["Heavy Duty Vehicle - Articulated - LNG","US",1.966,"Gram","Mile",0.17499999999999999,"Gram","Mile",null,"Road",5.9,"Mile","US Gallon","LNG",0.75593220338983047,null,"Kilogram","Mile"]
["Heavy Duty Vehicle - Articulated - LPG","US",6.6000000000000003E-2,"Gram","Mile",0.17499999999999999,"Gram","Mile",null,"Road",5.9,"Mile","US Gallon","LPG",0.98135593220338979,null,"Kilogram","Mile"]
["Heavy Duty Vehicle - Articulated - Ethanol","US",0.19700000000000001,"Gram","Mile",0.17499999999999999,"Gram","Mile",null,"Road",5.9,"Mile","US Gallon","Ethanol",null,0.94237288135593211,"Kilogram","Mile"]
["Heavy Duty Vehicle - Articulated - Fuel Unknown","US",2.1000000000000001E-2,"Gram","Mile",1.7000000000000001E-2,"Gram","Mile",null,"Road",5.9,"Mile","US Gallon"]
["Motorbike - Non-Catalyst Control","US",6.7199999999999996E-2,"Gram","Mile",6.8999999999999999E-3,"Gram","Mile",null,"Road",50,"Mile","US Gallon","On-Road Diesel Fuel",0.20300000000000001,null,"Kilogram","Mile"]
["Motorbike - Uncontrolled","US",8.9899999999999994E-2,"Gram","Mile",8.6999999999999994E-3,"Gram","Mile",null,"Road",50,"Mile","US Gallon","On-Road Diesel Fuel",0.20300000000000001,null,"Kilogram","Mile"]
["Motorbike - Control Unknown","US",7.0000000000000007E-2,"Gram","Mile",7.0000000000000001E-3,"Gram","Mile",null,"Road",50,"Mile","US Gallon","On-Road Diesel Fuel",0.20300000000000001,null,"Kilogram","Mile"]
[]
["CO2 Emission Factors for UK by Vehicle Distance"]
[]
["Vehicle and Fuel and Engine Size","Region","CO2","CO2 - Biomass Fuel","CO2 Unit - Numerator","CO2 Unit - Denominator","CH4","CH4 Unit - Numerator","CH4 Unit - Denominator","N2O","N2O Unit - Numerator","N2O Unit - Denominator","Default Scope","Mode of Transport"]
["Passenger Car - Petrol - Engine Size <1.4 liter","UK",0.17297000000000001,null,"Kilogram","Kilometer",null,null,null,null,null,null,null,"Road"]
["Passenger Car - Petrol - Engine Size 1.4 - 2.0 liters","UK",0.21486,null,"Kilogram","Kilometer",null,null,null,null,null,null,null,"Road"]
["Passenger Car - Petrol - Engine Size >2.0 liters","UK",0.29937000000000002,null,"Kilogram","Kilometer",null,null,null,null,null,null,null,"Road"]
["Passenger Car - Petrol - Engine Size Unknown","UK",0.21071000000000001,null,"Kilogram","Kilometer",null,null,null,null,null,null,null,"Road"]
["Passenger Car - Diesel - Engine Size <1.7 liter","UK",0.14518,null,"Kilogram","Kilometer",null,null,null,null,null,null,null,"Road"]
["Passenger Car - Diesel - Engine Size 1.7 - 2.0 liters","UK",0.18096999999999999,null,"Kilogram","Kilometer",null,null,null,null,null,null,null,"Road"]
["Passenger Car - Diesel - Engine Size >2.0 liters","UK",0.24546000000000001,null,"Kilogram","Kilometer",null,null,null,null,null,null,null,"Road"]
["Passenger Car - Diesel - Engine Size Unknown","UK",0.19495000000000001,null,"Kilogram","Kilometer",null,null,null,null,null,null,null,"Road"]
["Passenger Car - Hybrid - Engine Size 1.4 - 2.0 liters","UK",0.11914,null,"Kilogram","Kilometer",null,null,null,null,null,null,null,"Road"]
["Passenger Car - Hybrid - Engine Size >2.0 liters","UK",0.21726000000000001,null,"Kilogram","Kilometer",null,null,null,null,null,null,null,"Road"]
["Passenger Car - Hybrid - Engine Size Unknown","UK",0.16470000000000001,null,"Kilogram","Kilometer",null,null,null,null,null,null,null,"Road"]
["Passenger Car - LPG - Engine Size average","UK",0.21418999999999999,null,"Kilogram","Kilometer",null,null,null,null,null,null,null,"Road"]
["Passenger Car - LPG - Engine Size medium","UK",0.19336999999999999,null,"Kilogram","Kilometer",null,null,null,null,null,null,null,"Road"]
["Passenger Car - LPG - Engine Size large","UK",0.26943,null,"Kilogram","Kilometer",null,null,null,null,null,null,null,"Road"]
["Passenger Car - CNG - Engine Size 1.4 - 2.0 liters","UK",0.19336999999999999,null,"Kilogram","Kilometer",null,null,null,null,null,null,null,"Road"]
["Passenger Car - CNG - Engine Size >2.0 liters","UK",0.26943,null,"Kilogram","Kilometer",null,null,null,null,null,null,null,"Road"]
["Passenger Car - CNG - Engine Size Unknown","UK",0.21418999999999999,null,"Kilogram","Kilometer",null,null,null,null,null,null,null,"Road"]
["Light Goods Vehicle (e.g. Van) - Petrol - Engine Size ≤1.25 tonnes","UK",0.19406999999999999,null,"Kilogram","Kilometer",null,null,null,null,null,null,null,"Road"]
["Light Goods Vehicle (e.g. Van) - Diesel - Engine Size ≤3.5 tonnes","UK",0.25080000000000002,null,"Kilogram","Kilometer",null,null,null,null,null,null,null,"Road"]
["Light Goods Vehicle (e.g. Van) - LPG - Engine Size ≤3.5 tonnes","UK",0.26334000000000002,null,"Kilogram","Kilometer",null,null,null,null,null,null,null,"Road"]
["Light Goods Vehicle (e.g. Van) - CNG - Engine Size ≤3.5 tonnes","UK",0.23826,null,"Kilogram","Kilometer",null,null,null,null,null,null,null,"Road"]
["Light Goods Vehicle (e.g. Van) - Fuel Unknown","UK",0.25015999999999999,null,"Kilogram","Kilometer",null,null,null,null,null,null,null,"Road"]
["Motorbike - Engine Size ≤125 cc","UK",8.4989999999999996E-2,null,"Kilogram","Kilometer",null,null,null,null,null,null,null,"Road"]
["Motorbike - Engine Size >125 and ≤500 cc","UK",0.10316,null,"Kilogram","Kilometer",null,null,null,null,null,null,null,"Road"]
["Motorbike - Engine Size >500 cc","UK",0.13724,null,"Kilogram","Kilometer",null,null,null,null,null,null,null,"Road"]
["Motorbike - Engine Size Unknown","UK",0.11606,null,"Kilogram","Kilometer",null,null,null,null,null,null,null,"Road"]
["HGV - Rigid - Engine Size 3.5 - 7.5 tonnes - 0% Weight Laden","UK",0.52763000000000004,null,"Kilogram","Kilometer",null,null,null,null,null,null,null,"Road"]
["HGV - Rigid - Engine Size 3.5 - 7.5 tonnes - 50% Weight Laden","UK",0.57350999999999996,null,"Kilogram","Kilometer",null,null,null,null,null,null,null,"Road"]
["HGV - Rigid - Engine Size 3.5 - 7.5 tonnes - 100% Weight Laden","UK",0.61939,null,"Kilogram","Kilometer",null,null,null,null,null,null,null,"Road"]
["HGV - Rigid - Engine Size 3.5 - 7.5 tonnes - Default 41% Weight Laden","UK",0.56525000000000003,null,"Kilogram","Kilometer",null,null,null,null,null,null,null,"Road"]
["HGV - Rigid - Engine Size 7.5 - 17 tonnes - 0% Weight Laden","UK",0.67125000000000001,null,"Kilogram","Kilometer",null,null,null,null,null,null,null,"Road"]
["HGV - Rigid - Engine Size 7.5 - 17 tonnes - 50% Weight Laden","UK",0.76714000000000004,null,"Kilogram","Kilometer",null,null,null,null,null,null,null,"Road"]
["HGV - Rigid - Engine Size 7.5 - 17 tonnes - 100% Weight Laden","UK",0.86302999999999996,null,"Kilogram","Kilometer",null,null,null,null,null,null,null,"Road"]
["HGV - Rigid - Engine Size 7.5 - 17 tonnes - Default 41% Weight Laden","UK",0.74987999999999999,null,"Kilogram","Kilometer",null,null,null,null,null,null,null,"Road"]
["HGV - Rigid - Engine Size >17 tonnes - 0% Weight Laden","UK",0.79813999999999996,null,"Kilogram","Kilometer",null,null,null,null,null,null,null,"Road"]
["HGV - Rigid - Engine Size >17 tonnes - 50% Weight Laden","UK",0.97333999999999998,null,"Kilogram","Kilometer",null,null,null,null,null,null,null,"Road"]
["HGV - Rigid - Engine Size >17 tonnes - 100% Weight Laden","UK",1.1485399999999999,null,"Kilogram","Kilometer",null,null,null,null,null,null,null,"Road"]
["HGV - Rigid - Engine Size >17 tonnes - Default 53% Weight Laden","UK",0.98379000000000005,null,"Kilogram","Kilometer",null,null,null,null,null,null,null,"Road"]
["HGV - Rigid - Engine Size Unknown - % Weight Laden","UK",0.82903000000000004,null,"Kilogram","Kilometer",null,null,null,null,null,null,null,"Road"]
["HGV - Articulated - Engine Size 3.5 - 33 tonnes - 0% Weight Laden","UK",0.69213999999999998,null,"Kilogram","Kilometer",null,null,null,null,null,null,null,"Road"]
["HGV - Articulated - Engine Size 3.5 - 33 tonnes - 50% Weight Laden","UK",0.86517999999999995,null,"Kilogram","Kilometer",null,null,null,null,null,null,null,"Road"]
["HGV - Articulated - Engine Size 3.5 - 33 tonnes - 100% Weight Laden","UK",1.0382199999999999,null,"Kilogram","Kilometer",null,null,null,null,null,null,null,"Road"]
["HGV - Articulated - Engine Size 3.5 - 33 tonnes - Default 45% Weight Laden","UK",0.84787999999999997,null,"Kilogram","Kilometer",null,null,null,null,null,null,null,"Road"]
["HGV - Articulated - Engine Size >33 tonnes - 0% Weight Laden","UK",0.69793000000000005,null,"Kilogram","Kilometer",null,null,null,null,null,null,null,"Road"]
["HGV - Articulated - Engine Size >33 tonnes - 50% Weight Laden","UK",0.93057000000000001,null,"Kilogram","Kilometer",null,null,null,null,null,null,null,"Road"]
["HGV - Articulated - Engine Size >33 tonnes - 100% Weight Laden","UK",1.1632100000000001,null,"Kilogram","Kilometer",null,null,null,null,null,null,null,"Road"]
["HGV - Articulated - Engine Size >33 tonnes - Default 61% Weight Laden","UK",0.98175000000000001,null,"Kilogram","Kilometer",null,null,null,null,null,null,null,"Road"]
["HGV - Articulated - Engine Size Unknown","UK",0.96899999999999997,null,"Kilogram","Kilometer",null,null,null,null,null,null,null,"Road"]
["HGV - Type Unknown","UK",0.89522000000000002,null,"Kilogram","Kilometer",null,null,null,null,null,null,null,"Road"]

{"sheet":"Reference - EF Freight","index":9,"n_rows":103,"n_cols":10,"rows_kept":103,"cut":false,"hidden":true,"merged":[]}
["CO2 Emission Factors by Weight Distance (i.e. Freight Transport)"]
[]
["Vehicle and Size","Region","CO2","CO2 - Biomass Fuel","CO2 Unit - Numerator","CO2 Unit - Denominator","Default Scope","Vehicle Type","Mode of Transport"]
["Air - Domestic","Other",1.9607300000000001,null,"Kilogram","Tonne Kilometer",null,"Aircraft","Aircraft"]
["Air - Short Haul","Other",1.4738899999999999,null,"Kilogram","Tonne Kilometer",null,"Aircraft","Aircraft"]
["Air - Long Haul","Other",0.61324000000000001,null,"Kilogram","Tonne Kilometer",null,"Aircraft","Aircraft"]
["Rail","Other",2.52E-2,null,"Kilogram","Short Ton Mile",null,"Rail","Rail"]
["Road Vehicle - HGV - Rigid - Engine Size 3.5 - 7.5 tonnes","Other",0.29699999999999999,null,"Kilogram","Short Ton Mile",null,"HGV and Light Goods Vehicle","Road"]
["Road Vehicle - HGV - Rigid - Engine Size 7.5 - 17 tonnes","Other",0.29699999999999999,null,"Kilogram","Short Ton Mile",null,"HGV and Light Goods Vehicle","Road"]
["Road Vehicle - HGV - Rigid - Engine Size >17 tonnes","Other",0.29699999999999999,null,"Kilogram","Short Ton Mile",null,"HGV and Light Goods Vehicle","Road"]
["Road Vehicle - HGV - Rigid - Engine Size Unknown","Other",0.29699999999999999,null,"Kilogram","Short Ton Mile",null,"HGV and Light Goods Vehicle","Road"]
["Road Vehicle - HGV - Articulated - Engine Size 3.5 - 33 tonnes","Other",0.29699999999999999,null,"Kilogram","Short Ton Mile",null,"HGV and Light Goods Vehicle","Road"]
["Road Vehicle - HGV - Articulated - Engine Size >33 tonnes","Other",0.29699999999999999,null,"Kilogram","Short Ton Mile",null,"HGV and Light Goods Vehicle","Road"]
["Road Vehicle - HGV - Articulated - Engine Size Unknown","Other",0.29699999999999999,null,"Kilogram","Short Ton Mile",null,"HGV and Light Goods Vehicle","Road"]
["Road Vehicle - HGV - Type Unknown","Other",0.29699999999999999,null,"Kilogram","Short Ton Mile",null,"HGV and Light Goods Vehicle","Road"]
["Road Vehicle - Light Goods Vehicle - Petro - Engine Size ≤1.25 tonnes","Other",0.29699999999999999,null,"Kilogram","Short Ton Mile",null,"HGV and Light Goods Vehicle","Road"]
["Road Vehicle - Light Goods Vehicle - Diesel - Engine Size ≤3.5 tonnes","Other",0.29699999999999999,null,"Kilogram","Short Ton Mile",null,"HGV and Light Goods Vehicle","Road"]
["Road Vehicle - Light Goods Vehicle - LPG or CNG - Engine Size ≤3.5 tonnes","Other",0.29699999999999999,null,"Kilogram","Short Ton Mile",null,"HGV and Light Goods Vehicle","Road"]
["Road Vehicle - Light Goods Vehicle - Fuel Unknown","Other",0.29699999999999999,null,"Kilogram","Short Ton Mile",null,"HGV and Light Goods Vehicle","Road"]
["Watercraft - Large RoPax Ferry","Other",4.8000000000000001E-2,null,"Kilogram","Tonne Kilometer",null,"Waterborne Craft","Water"]
["Watercraft - Shipping - Small Tanker (844 tonnes deadweight)","Other",4.8000000000000001E-2,null,"Kilogram","Short Ton Mile",null,"Waterborne Craft","Water"]
["Watercraft - Shipping - Large Tanker (18371 tonnes deadweight)","Other",4.8000000000000001E-2,null,"Kilogram","Short Ton Mile",null,"Waterborne Craft","Water"]
["Watercraft - Shipping - Very Large Tanker (100000 tonnes deadweight)","Other",4.8000000000000001E-2,null,"Kilogram","Short Ton Mile",null,"Waterborne Craft","Water"]
["Watercraft - Shipping - Small Bulk Carrier (1720 tonnes deadweight)","Other",4.8000000000000001E-2,null,"Kilogram","Short Ton Mile",null,"Waterborne Craft","Water"]
["Watercraft - Shipping - Large Bulk Carrier (14201 tonnes deadweight)","Other",4.8000000000000001E-2,null,"Kilogram","Short Ton Mile",null,"Waterborne Craft","Water"]
["Watercraft - Shipping - Very Large Bulk Carrier (70000 tonnes deadweight)","Other",4.8000000000000001E-2,null,"Kilogram","Short Ton Mile",null,"Waterborne Craft","Water"]
["Watercraft - Shipping - Small Container Vessel (2500 tonnes deadweight)","Other",4.8000000000000001E-2,null,"Kilogram","Short Ton Mile",null,"Waterborne Craft","Water"]
["Watercraft - Shipping - Large Container Vessel (20000 tonnes deadweight)","Other",4.8000000000000001E-2,null,"Kilogram","Short Ton Mile",null,"Waterborne Craft","Water"]
["Air - Domestic","UK",1.9607300000000001,null,"Kilogram","Tonne Kilometer",null,"Aircraft","Aircraft"]
["Air - Short Haul","UK",1.4738899999999999,null,"Kilogram","Tonne Kilometer",null,"Aircraft","Aircraft"]
["Air - Long Haul","UK",0.61324000000000001,null,"Kilogram","Tonne Kilometer",null,"Aircraft","Aircraft"]
["Rail","UK",2.8500000000000001E-2,null,"Kilogram","Tonne Kilometer",null,"Rail","Rail"]
["Road Vehicle - HGV - Rigid - Engine Size 3.5 - 7.5 tonnes","UK",0.65946000000000005,null,"Kilogram","Tonne Kilometer",null,"HGV and Light Goods Vehicle","Road"]
["Road Vehicle - HGV - Rigid - Engine Size 7.5 - 17 tonnes","UK",0.41243000000000002,null,"Kilogram","Tonne Kilometer",null,"HGV and Light Goods Vehicle","Road"]
["Road Vehicle - HGV - Rigid - Engine Size >17 tonnes","UK",0.20027,null,"Kilogram","Tonne Kilometer",null,"HGV and Light Goods Vehicle","Road"]
["Road Vehicle - HGV - Rigid - Engine Size Unknown","UK",0.25114999999999998,null,"Kilogram","Tonne Kilometer",null,"HGV and Light Goods Vehicle","Road"]
["Road Vehicle - HGV - Articulated - Engine Size 3.5 - 33 tonnes","UK",0.15262000000000001,null,"Kilogram","Tonne Kilometer",null,"HGV and Light Goods Vehicle","Road"]
["Road Vehicle - HGV - Articulated - Engine Size >33 tonnes","UK",8.6779999999999996E-2,null,"Kilogram","Tonne Kilometer",null,"HGV and Light Goods Vehicle","Road"]
["Road Vehicle - HGV - Articulated - Engine Size Unknown","UK",8.8690000000000005E-2,null,"Kilogram","Tonne Kilometer",null,"HGV and Light Goods Vehicle","Road"]
["Road Vehicle - HGV - Type Unknown","UK",0.12427000000000001,null,"Kilogram","Tonne Kilometer",null,"HGV and Light Goods Vehicle","Road"]
["Road Vehicle - Light Goods Vehicle - Petrol - Engine Size < 1.305 tonnes","UK",1.173514123485599,null,"Kilogram","Tonne Kilometer",null,"HGV and Light Goods Vehicle","Road"]
["Road Vehicle - Light Goods Vehicle - Petrol - Engine Size 1.305 - 1.74 tonnes","UK",0.82063338590271184,null,"Kilogram","Tonne Kilometer",null,"HGV and Light Goods Vehicle","Road"]
["Road Vehicle - Light Goods Vehicle - Petrol - Engine Size 1.74 - 3.5 tonnes","UK",0.49600663249155191,null,"Kilogram","Tonne Kilometer",null,"HGV and Light Goods Vehicle","Road"]
["Road Vehicle - Light Goods Vehicle - Diesel - Engine Size < 1.305 tonnes","UK",0.94952000000000003,null,"Kilogram","Tonne Kilometer",null,"HGV and Light Goods Vehicle","Road"]
["Road Vehicle - Light Goods Vehicle - Diesel - Engine Size 1.305 - 1.74 tonnes","UK",0.87385999999999997,null,"Kilogram","Tonne Kilometer",null,"HGV and Light Goods Vehicle","Road"]
["Road Vehicle - Light Goods Vehicle - Diesel - Engine Size 1.74 - 3.5 tonnes","UK",0.52197000000000005,null,"Kilogram","Tonne Kilometer",null,"HGV and Light Goods Vehicle","Road"]
["Road Vehicle - Light Goods Vehicle - LPG or CNG - Engine Size ≤3.5 tonnes","UK",0.61741999999999997,null,"Kilogram","Tonne Kilometer",null,"HGV and Light Goods Vehicle","Road"]
["Road Vehicle - Light Goods Vehicle - Fuel and Engine Size Unknown","UK",0.58650999999999998,null,"Kilogram","Tonne Kilometer",null,"HGV and Light Goods Vehicle","Road"]
["Watercraft - Large RoPax Ferry","UK",4.9500000000000002E-2,null,"Kilogram","Tonne Kilometer",null,"Waterborne Craft","Water"]
["Watercraft - Shipping - Small Tanker (844 tonnes deadweight)","UK",3.3300000000000003E-2,null,"Kilogram","Tonne Kilometer",null,"Waterborne Craft","Water"]
["Watercraft - Shipping - Large Tanker (18371 tonnes deadweight)","UK",9.1000000000000004E-3,null,"Kilogram","Tonne Kilometer",null,"Waterborne Craft","Water"]
["Watercraft - Shipping - Very Large Tanker (100000 tonnes deadweight)","UK",5.8999999999999999E-3,null,"Kilogram","Tonne Kilometer",null,"Waterborne Craft","Water"]
["Watercraft - Shipping - Small Bulk Carrier (1720 tonnes deadweight)","UK",2.92E-2,null,"Kilogram","Tonne Kilometer",null,"Waterborne Craft","Water"]
["Watercraft - Shipping - Large Bulk Carrier (14201 tonnes deadweight)","UK",7.9000000000000008E-3,null,"Kilogram","Tonne Kilometer",null,"Waterborne Craft","Water"]
["Watercraft - Shipping - Very Large Bulk Carrier (70000 tonnes deadweight)","UK",4.1000000000000003E-3,null,"Kilogram","Tonne Kilometer",null,"Waterborne Craft","Water"]
["Watercraft - Shipping - Small Container Vessel (2500 tonnes deadweight)","UK",0.02,null,"Kilogram","Tonne Kilometer",null,"Waterborne Craft","Water"]
["Watercraft - Shipping - Large Container Vessel (20000 tonnes deadweight)","UK",1.2500000000000001E-2,null,"Kilogram","Tonne Kilometer",null,"Waterborne Craft","Water"]
["Air - Domestic","US",1.5269999999999999,null,"Kilogram","Short Ton Mile",null,"Aircraft","Aircraft"]
["Air - Short Haul","US",1.5269999999999999,null,"Kilogram","Short Ton Mile",null,"Aircraft","Aircraft"]
["Air - Long Haul","US",1.5269999999999999,null,"Kilogram","Short Ton Mile",null,"Aircraft","Aircraft"]
["Rail","US",2.52E-2,null,"Kilogram","Short Ton Mile",null,"Rail","Rail"]
["Road Vehicle - HGV - Rigid - Engine Size 3.5 - 7.5 tonnes","US",0.29699999999999999,null,"Kilogram","Short Ton Mile",null,"HGV and Light Goods Vehicle","Road"]
["Road Vehicle - HGV - Rigid - Engine Size 7.5 - 17 tonnes","US",0.29699999999999999,null,"Kilogram","Short Ton Mile",null,"HGV and Light Goods Vehicle","Road"]
["Road Vehicle - HGV - Rigid - Engine Size >17 tonnes","US",0.29699999999999999,null,"Kilogram","Short Ton Mile",null,"HGV and Light Goods Vehicle","Road"]
["Road Vehicle - HGV - Rigid - Engine Size Unknown","US",0.29699999999999999,null,"Kilogram","Short Ton Mile",null,"HGV and Light Goods Vehicle","Road"]
["Road Vehicle - HGV - Articulated - Engine Size 3.5 - 33 tonnes","US",0.29699999999999999,null,"Kilogram","Short Ton Mile",null,"HGV and Light Goods Vehicle","Road"]
["Road Vehicle - HGV - Articulated - Engine Size >33 tonnes","US",0.29699999999999999,null,"Kilogram","Short Ton Mile",null,"HGV and Light Goods Vehicle","Road"]
["Road Vehicle - HGV - Articulated - Engine Size Unknown","US",0.29699999999999999,null,"Kilogram","Short Ton Mile",null,"HGV and Light Goods Vehicle","Road"]
["Road Vehicle - HGV - Type Unknown","US",0.29699999999999999,null,"Kilogram","Short Ton Mile",null,"HGV and Light Goods Vehicle","Road"]
["Road Vehicle - Light Goods Vehicle - Petro - Engine Size ≤1.25 tonnes","US",0.29699999999999999,null,"Kilogram","Short Ton Mile",null,"HGV and Light Goods Vehicle","Road"]
["Road Vehicle - Light Goods Vehicle - Diesel - Engine Size ≤3.5 tonnes","US",0.29699999999999999,null,"Kilogram","Short Ton Mile",null,"HGV and Light Goods Vehicle","Road"]
["Road Vehicle - Light Goods Vehicle - LPG or CNG - Engine Size ≤3.5 tonnes","US",0.29699999999999999,null,"Kilogram","Short Ton Mile",null,"HGV and Light Goods Vehicle","Road"]
["Road Vehicle - Light Goods Vehicle - Fuel Unknown","US",0.29699999999999999,null,"Kilogram","Short Ton Mile",null,"HGV and Light Goods Vehicle","Road"]
["Watercraft - Large RoPax Ferry","US",4.8000000000000001E-2,null,"Kilogram","Short Ton Mile",null,"Waterborne Craft","Water"]
["Watercraft - Shipping - Small Tanker (844 tonnes deadweight)","US",4.8000000000000001E-2,null,"Kilogram","Short Ton Mile",null,"Waterborne Craft","Water"]
["Watercraft - Shipping - Large Tanker (18371 tonnes deadweight)","US",4.8000000000000001E-2,null,"Kilogram","Short Ton Mile",null,"Waterborne Craft","Water"]
["Watercraft - Shipping - Very Large Tanker (100000 tonnes deadweight)","US",4.8000000000000001E-2,null,"Kilogram","Short Ton Mile",null,"Waterborne Craft","Water"]
["Watercraft - Shipping - Small Bulk Carrier (1720 tonnes deadweight)","US",4.8000000000000001E-2,null,"Kilogram","Short Ton Mile",null,"Waterborne Craft","Water"]
["Watercraft - Shipping - Large Bulk Carrier (14201 tonnes deadweight)","US",4.8000000000000001E-2,null,"Kilogram","Short Ton Mile",null,"Waterborne Craft","Water"]
["Watercraft - Shipping - Very Large Bulk Carrier (70000 tonnes deadweight)","US",4.8000000000000001E-2,null,"Kilogram","Short Ton Mile",null,"Waterborne Craft","Water"]
["Watercraft - Shipping - Small Container Vessel (2500 tonnes deadweight)","US",4.8000000000000001E-2,null,"Kilogram","Short Ton Mile",null,"Waterborne Craft","Water"]
["Watercraft - Shipping - Large Container Vessel (20000 tonnes deadweight)","US",4.8000000000000001E-2,null,"Kilogram","Short Ton Mile",null,"Waterborne Craft","Water"]
[]
["CH4 and N2O Emission Factors by Weight Distance (i.e. Freight Transport)"]
[]
["Vehicle Type","Region","CH4","CH4 Unit - Numerator","CH4 Unit - Denominator","N2O","N2O Unit - Numerator","N2O Unit - Denominator","Default Scope","Mode of Transport"]
["Aircraft","UK",4.1700000000000001E-2,"Gram","Short Ton Mile",4.7899999999999998E-2,"Gram","Short Ton Mile",null,"Aircraft"]
["Rail","UK",2E-3,"Gram","Short Ton Mile",5.9999999999999995E-4,"Gram","Short Ton Mile",null,"Rail"]
["HGV and Light Goods Vehicle","UK",3.5000000000000001E-3,"Gram","Short Ton Mile",2.7000000000000001E-3,"Gram","Short Ton Mile",null,"Road"]
["Waterborne Craft","UK",4.1000000000000003E-3,"Gram","Short Ton Mile",1.4E-3,"Gram","Short Ton Mile",null,"Water"]
["Aircraft","US",4.1700000000000001E-2,"Gram","Short Ton Mile",4.7899999999999998E-2,"Gram","Short Ton Mile",null,"Aircraft"]
["Rail","US",2E-3,"Gram","Short Ton Mile",5.9999999999999995E-4,"Gram","Short Ton Mile",null,"Rail"]
["HGV and Light Goods Vehicle","US",3.5000000000000001E-3,"Gram","Short Ton Mile",2.7000000000000001E-3,"Gram","Short Ton Mile",null,"Road"]
["Waterborne Craft","US",4.1000000000000003E-3,"Gram","Short Ton Mile",1.4E-3,"Gram","Short Ton Mile",null,"Water"]
["Aircraft","Other",4.1700000000000001E-2,"Gram","Short Ton Mile",4.7899999999999998E-2,"Gram","Short Ton Mile",null,"Aircraft"]
["Rail","Other",2E-3,"Gram","Short Ton Mile",5.9999999999999995E-4,"Gram","Short Ton Mile",null,"Rail"]
["HGV and Light Goods Vehicle","Other",3.5000000000000001E-3,"Gram","Short Ton Mile",2.7000000000000001E-3,"Gram","Short Ton Mile",null,"Road"]
["Waterborne Craft","Other",4.1000000000000003E-3,"Gram","Short Ton Mile",1.4E-3,"Gram","Short Ton Mile",null,"Water"]
[]
[]
[]
[]
[null,null,"= Different emission factors provided between May and June 2008 US EPA guidance documents"]

{"sheet":"Reference - EF Public","index":10,"n_rows":60,"n_cols":14,"rows_kept":60,"cut":false,"hidden":true,"merged":[]}
["CO2, CH4 and N2O Emission Factors by Passenger Distance (i.e. Public Transport)"]
[]
["Vehicle and Type","Region","CO2","CO2 - Biomass Fuel","CO2 Unit - Numerator","CO2 Unit - Denominator","CH4","CH4 Unit - Numerator","CH4 Unit - Denominator","N2O","N2O Unit - Numerator","N2O Unit - Denominator","Default Scope","Mode of Transport"]
["Air - Domestic","Other",0.17147000000000001,null,"Kilogram","Passenger Kilometer",null,null,null,null,null,null,"Scope 3","Air"]
["Air - Short Haul - Seating Unknown","Other",9.7000000000000003E-2,null,"Kilogram","Passenger Kilometer",null,null,null,null,null,null,"Scope 3","Air"]
["Air - Short Haul - Economy Class","Other",9.2450000000000004E-2,null,"Kilogram","Passenger Kilometer",null,null,null,null,null,null,"Scope 3","Air"]
["Air - Short Haul - First/Business Class","Other",0.13866999999999999,null,"Kilogram","Passenger Kilometer",null,null,null,null,null,null,"Scope 3","Air"]
["Air - Long Haul - Seating Unknown","Other",0.11319,null,"Kilogram","Passenger Kilometer",null,null,null,null,null,null,"Scope 3","Air"]
["Air - Long Haul - Economy Class","Other",8.2629999999999995E-2,null,"Kilogram","Passenger Kilometer",null,null,null,null,null,null,"Scope 3","Air"]
["Air - Long Haul - Economy+ Class","Other",0.13220999999999999,null,"Kilogram","Passenger Kilometer",null,null,null,null,null,null,"Scope 3","Air"]
["Air - Long Haul - Business Class","Other",0.23963000000000001,null,"Kilogram","Passenger Kilometer",null,null,null,null,null,null,"Scope 3","Air"]
["Air - Long Haul - First Class","Other",0.33051999999999998,null,"Kilogram","Passenger Kilometer",null,null,null,null,null,null,"Scope 3","Air"]
["Train - Light Rail","Other",0.16300000000000001,null,"Kilogram","Passenger Mile",4.0000000000000001E-3,"Gram","Passenger Mile",2E-3,"Gram","Passenger Mile","Scope 3","Rail"]
["Train - Tram","Other",0.16300000000000001,null,"Kilogram","Passenger Mile",4.0000000000000001E-3,"Gram","Passenger Mile",2E-3,"Gram","Passenger Mile","Scope 3","Rail"]
["Train - Average (Light Rail and Tram)","Other",0.16300000000000001,null,"Kilogram","Passenger Mile",4.0000000000000001E-3,"Gram","Passenger Mile",2E-3,"Gram","Passenger Mile","Scope 3","Rail"]
["Train - National Rail","Other",0.185,null,"Kilogram","Passenger Mile",2E-3,"Gram","Passenger Mile",1E-3,"Gram","Passenger Mile","Scope 3","Rail"]
["Train - Subway","Other",0.16300000000000001,null,"Kilogram","Passenger Mile",4.0000000000000001E-3,"Gram","Passenger Mile",2E-3,"Gram","Passenger Mile","Scope 3","Rail"]
["Taxi","Other",0.23,null,"Kilogram","Passenger Mile",0.02,"Gram","Passenger Mile",2.1000000000000001E-2,"Gram","Passenger Mile","Scope 3","Road"]
["Bus - Local Bus","Other",0.107,null,"Kilogram","Passenger Mile",5.9999999999999995E-4,"Gram","Passenger Mile",5.0000000000000001E-4,"Gram","Passenger Mile","Scope 3","Road"]
["Bus - Coach","Other",0.107,null,"Kilogram","Passenger Mile",5.9999999999999995E-4,"Gram","Passenger Mile",5.0000000000000001E-4,"Gram","Passenger Mile","Scope 3","Road"]
["Bus - Type Unknown","Other",0.107,null,"Kilogram","Passenger Mile",5.9999999999999995E-4,"Gram","Passenger Mile",5.0000000000000001E-4,"Gram","Passenger Mile","Scope 3","Road"]
["Large RoPax Ferry","Other",0.1152,null,"Kilogram","Passenger Kilometer",null,null,null,null,null,null,"Scope 3","water"]
["Air - Domestic","UK",0.17147000000000001,null,"Kilogram","Passenger Kilometer",null,null,null,null,null,null,"Scope 3","Air"]
["Air - Short Haul - Seating Unknown","UK",9.7000000000000003E-2,null,"Kilogram","Passenger Kilometer",null,null,null,null,null,null,"Scope 3","Air"]
["Air - Short Haul - Economy Class","UK",9.2450000000000004E-2,null,"Kilogram","Passenger Kilometer",null,null,null,null,null,null,"Scope 3","Air"]
["Air - Short Haul - First/Business Class","UK",0.13866999999999999,null,"Kilogram","Passenger Kilometer",null,null,null,null,null,null,"Scope 3","Air"]
["Air - Long Haul - Seating Unknown","UK",0.11319,null,"Kilogram","Passenger Kilometer",null,null,null,null,null,null,"Scope 3","Air"]
["Air - Long Haul - Economy Class","UK",8.2629999999999995E-2,null,"Kilogram","Passenger Kilometer",null,null,null,null,null,null,"Scope 3","Air"]
["Air - Long Haul - Economy+ Class","UK",0.13220999999999999,null,"Kilogram","Passenger Kilometer",null,null,null,null,null,null,"Scope 3","Air"]
["Air - Long Haul - Business Class","UK",0.23963000000000001,null,"Kilogram","Passenger Kilometer",null,null,null,null,null,null,"Scope 3","Air"]
["Air - Long Haul - First Class","UK",0.33051999999999998,null,"Kilogram","Passenger Kilometer",null,null,null,null,null,null,"Scope 3","Air"]
["Train - Light Rail","UK",7.6799999999999993E-2,null,"Kilogram","Passenger Kilometer",1.9E-3,"Gram","Passenger Kilometer",1.4E-3,"Gram","Passenger Kilometer","Scope 3","Rail"]
["Train - Tram","UK",7.6799999999999993E-2,null,"Kilogram","Passenger Kilometer",1.9E-3,"Gram","Passenger Kilometer",1.4E-3,"Gram","Passenger Kilometer","Scope 3","Rail"]
["Train - Average (Light Rail and Tram)","UK",7.6799999999999993E-2,null,"Kilogram","Passenger Kilometer",1.9E-3,"Gram","Passenger Kilometer",1.4E-3,"Gram","Passenger Kilometer","Scope 3","Rail"]
["Train - National Rail","UK",5.3400000000000003E-2,null,"Kilogram","Passenger Kilometer",2.8600000000000001E-3,"Gram","Passenger Kilometer",9.7999999999999997E-3,"Gram","Passenger Kilometer","Scope 3","Rail"]
["Train - Subway","UK",7.4139999999999998E-2,null,"Kilogram","Passenger Kilometer",1.9E-3,"Gram","Passenger Kilometer",1.4E-3,"Gram","Passenger Kilometer","Scope 3","Rail"]
["Taxi","UK",0.15229999999999999,null,"Kilogram","Passenger Kilometer",1.6999999999999999E-3,"Gram","Passenger Kilometer",3.8E-3,"Gram","Passenger Kilometer","Scope 3","Road"]
["Bus - Local Bus","UK",0.15726000000000001,null,"Kilogram","Passenger Kilometer",9.5200000000000007E-3,"Gram","Passenger Kilometer",4.1000000000000003E-3,"Gram","Passenger Kilometer","Scope 3","Road"]
["Bus - Coach","UK",0.03,null,"Kilogram","Passenger Kilometer",3.81E-3,"Gram","Passenger Kilometer",1.8E-3,"Gram","Passenger Kilometer","Scope 3","Road"]
["Bus - Type Unknown","UK",0.13394,null,"Kilogram","Passenger Kilometer",7.62E-3,"Gram","Passenger Kilometer",3.3E-3,"Gram","Passenger Kilometer","Scope 3","Road"]
["Large RoPax Ferry","UK",0.11516,null,"Kilogram","Passenger Kilometer",null,null,null,null,null,null,"Scope 3","water"]
["Air - Domestic","US",0.17147000000000001,null,"Kilogram","Passenger Kilometer",null,null,null,null,null,null,"Scope 3","Air"]
["Air - Short Haul - Seating Unknown","US",9.7000000000000003E-2,null,"Kilogram","Passenger Kilometer",null,null,null,null,null,null,"Scope 3","Air"]
["Air - Short Haul - Economy Class","US",9.2450000000000004E-2,null,"Kilogram","Passenger Kilometer",null,null,null,null,null,null,"Scope 3","Air"]
["Air - Short Haul - First/Business Class","US",0.13866999999999999,null,"Kilogram","Passenger Kilometer",null,null,null,null,null,null,"Scope 3","Air"]
["Air - Long Haul - Seating Unknown","US",0.11319,null,"Kilogram","Passenger Kilometer",null,null,null,null,null,null,"Scope 3","Air"]
["Air - Long Haul - Economy Class","US",8.2629999999999995E-2,null,"Kilogram","Passenger Kilometer",null,null,null,null,null,null,"Scope 3","Air"]
["Air - Long Haul - Economy+ Class","US",0.13220999999999999,null,"Kilogram","Passenger Kilometer",null,null,null,null,null,null,"Scope 3","Air"]
["Air - Long Haul - Business Class","US",0.23963000000000001,null,"Kilogram","Passenger Kilometer",null,null,null,null,null,null,"Scope 3","Air"]
["Air - Long Haul - First Class","US",0.33051999999999998,null,"Kilogram","Passenger Kilometer",null,null,null,null,null,null,"Scope 3","Air"]
["Train - Light Rail","US",0.16300000000000001,null,"Kilogram","Passenger Mile",4.0000000000000001E-3,"Gram","Passenger Mile",2E-3,"Gram","Passenger Mile","Scope 3","Rail"]
["Train - Tram","US",0.16300000000000001,null,"Kilogram","Passenger Mile",4.0000000000000001E-3,"Gram","Passenger Mile",2E-3,"Gram","Passenger Mile","Scope 3","Rail"]
["Train - Average (Light Rail and Tram)","US",0.16300000000000001,null,"Kilogram","Passenger Mile",4.0000000000000001E-3,"Gram","Passenger Mile",2E-3,"Gram","Passenger Mile","Scope 3","Rail"]
["Train - National Rail","US",0.185,null,"Kilogram","Passenger Mile",2E-3,"Gram","Passenger Mile",1E-3,"Gram","Passenger Mile","Scope 3","Rail"]
["Train - Subway","US",0.16300000000000001,null,"Kilogram","Passenger Mile",4.0000000000000001E-3,"Gram","Passenger Mile",2E-3,"Gram","Passenger Mile","Scope 3","Rail"]
["Taxi","US",0.23,null,"Kilogram","Passenger Mile",0.02,"Gram","Passenger Mile",2.1000000000000001E-2,"Gram","Passenger Mile","Scope 3","Road"]
["Bus - Local Bus","US",0.107,null,"Kilogram","Passenger Mile",5.9999999999999995E-4,"Gram","Passenger Mile",5.0000000000000001E-4,"Gram","Passenger Mile","Scope 3","Road"]
["Bus - Coach","US",0.107,null,"Kilogram","Passenger Mile",5.9999999999999995E-4,"Gram","Passenger Mile",5.0000000000000001E-4,"Gram","Passenger Mile","Scope 3","Road"]
["Bus - Type Unknown","US",0.107,null,"Kilogram","Passenger Mile",5.9999999999999995E-4,"Gram","Passenger Mile",5.0000000000000001E-4,"Gram","Passenger Mile","Scope 3","Road"]
["Large RoPax Ferry","US",0.11516,null,"Kilogram","Passenger Kilometer",null,null,null,null,null,null,"Scope 3","water"]